Workbook

Sheet Report - ALL (DASHBOARD)
A1: PRELIMINARY - NOT FOR DISTRIBUTION
A2: Dashboard | B2: Select Parameter: | F2: Select Statistic: | I2: Select Seasonal Period: | L2: Do you want to convert CFS values to TAF/Mon? | W2: 32
W3: 1
W4: 16
L5: News | W5: TRUE
L6: - parameter list updated to include all items on the appendix list (in addition to other locations of interest)
L7: - year type sorting is now done by calendar year
L8: - year type sorting is provided for 60-20-20 index as well as 40-30-30 index
L9: - format modified to be consistent with appendix reports
L10: - check out the new spinners!
B13: =CONCATENATE('Report Data'!$P$7," / seasonal statistics (",$W$2,"-",$W$3,"-",$W$4,"-",IF(NOT($W$5),1,2),"a):") -> Total Sites Release (PRELIMINARY) / seasonal statistics (32-1-16-2a):
C17: ='Report Data'!P6 -> October-September
C18: ='Report Data'!P7 -> Total Sites Release (PRELIMINARY)
C19: ='Report Data'!P9 -> (C17604/FLOW-CHANNEL)
C20: ='Report Data'!P8 -> Averages
C21: ='Report Data'!P11 -> Volume (TAF) | F21: =CONCATENATE("Difference from ",'Report Data'!Q13) -> Difference from NAA 111820 | G21: =CONCATENATE("Difference from ",'Report Data'!R13) -> Difference from ALT1 rev01 PEA
C25: ='Report Data'!O14 -> NAA 111820 | E25: ='Report Data'!P14 -> 0
C26: ='Report Data'!O15 -> ALT1 rev01 PEA | E26: ='Report Data'!P15 -> 205.3692327 | F26: ='Report Data'!Q15 -> 205.3692327
C27: ='Report Data'!O16 -> ALT1 rev01 PEA NoFrpt | E27: ='Report Data'!P16 -> 220.3711519 | F27: ='Report Data'!Q16 -> 220.3711519 | G27: ='Report Data'!R16 -> 15.00191916
C28: ='Report Data'!O17 -> ALT1 rev01 PEA WS6 | E28: ='Report Data'!P17 -> 214.9127771 | F28: ='Report Data'!Q17 -> 214.9127771 | G28: ='Report Data'!R17 -> 9.543544386
C29: ='Report Data'!O18 -> ALT1 rev01 PEA WSv01 | E29: ='Report Data'!P18 -> 209.6169193 | F29: ='Report Data'!Q18 -> 209.6169193 | G29: ='Report Data'!R18 -> 4.247686542
B60: =CONCATENATE('Report Data'!$P$7," / monthly statistics (",$W$2,"-",$W$3,"-",$W$4,"-",IF(NOT($W$5),1,2),"b):") -> Total Sites Release (PRELIMINARY) / monthly statistics (32-1-16-2b):
B88: =CONCATENATE('Report Data'!$P$7," / time series (",$W$2,"-",$W$3,"-",$W$4,"-",IF(NOT($W$5),1,2),"c):") -> Total Sites Release (PRELIMINARY) / time series (32-1-16-2c):

Sheet Chart - Prob Exc

Sheet Chart - Pattern

Sheet Report Data
A2: Information, Tables and Calculations for Reports
A4: Table of Selected Values for Monthly Chart: | O4: Trend Evaluation: | U4: Water Year Type Averages:
A6: Title: | B6: ='Compile Data'!$B$5&" (PRELIMINARY)" -> Total Sites Release (PRELIMINARY) | O6: Title: | P6: =INDEX(Other!$B$9:$B$33,'Report - ALL (DASHBOARD)'!$W$4) -> October-September | U6: Title: | V6: =INDEX(Other!$B$9:$B$33,'Report - ALL (DASHBOARD)'!$W$4) -> October-September
B7: =INDEX(Other!$C$9:$C$33,'Report - ALL (DASHBOARD)'!$W$3) -> Averages | P7: ='Compile Data'!$B$5&" (PRELIMINARY)" -> Total Sites Release (PRELIMINARY) | V7: ='Compile Data'!$B$5&" (PRELIMINARY)" -> Total Sites Release (PRELIMINARY)
B8: =CONCATENATE("(",'Compile Data'!$B$6,"/",'Compile Data'!$B$7,")") -> (C17604/FLOW-CHANNEL) | P8: =CONCATENATE(INDEX(Other!$C$9:$C$33,'Report - ALL (DASHBOARD)'!$W$3)," ",IF('Report - ALL (DASHBOARD)'!$W$3>4,IF(AND('Compile Data'!$B$10="TAF",'Compile Data'!$B$8="PER-AVER"),"Totals","Averages"),"")) -> Averages | V8: =CONCATENATE(INDEX(Other!$C$9:$C$33,'Report - ALL (DASHBOARD)'!$W$3)," ",IF('Report - ALL (DASHBOARD)'!$W$3>4,IF(AND('Compile Data'!$B$10="TAF",'Compile Data'!$B$8="PER-AVER"),"Totals","Averages"),"")) -> Averages
P9: =CONCATENATE("(",'Compile Data'!$B$6,"/",'Compile Data'!$B$7,")") -> (C17604/FLOW-CHANNEL) | V9: =CONCATENATE("(",'Compile Data'!$B$6,"/",'Compile Data'!$B$7,")") -> (C17604/FLOW-CHANNEL)
A11: Y-axis: | B11: =IF('Compile Data'!$B$10="CFS","Flow (CFS)",IF('Compile Data'!$B$10="TAF","Volume (TAF)",IF('Compile Data'!$B$10="KM","POSITION (KM)",""))) -> Volume (TAF) | P11: =IF('Compile Data'!$B$10="CFS","Flow (CFS)",IF('Compile Data'!$B$10="TAF","Volume (TAF)",IF('Compile Data'!$B$10="KM","POSITION (KM)",""))) -> Volume (TAF) | V11: =IF('Compile Data'!$B$10="CFS","Flow (CFS)",IF('Compile Data'!$B$10="TAF","Volume (TAF)",IF('Compile Data'!$B$10="KM","POSITION (KM)",""))) -> Volume (TAF)
Q12: Diff from | R12: Diff from
B13: OCT | C13: NOV | D13: DEC | E13: JAN | F13: FEB | G13: MAR | H13: APR | I13: MAY | J13: JUN | K13: JUL | L13: AUG | M13: SEP | P13: Value | Q13: =$O$14 -> NAA 111820 | R13: =$O$15 -> ALT1 rev01 PEA | V13: Wet | W13: Above Normal | X13: Below Normal | Y13: Dry | Z13: Critically Dry
A14: ='Compile Data'!$B$1 -> NAA 111820 | B14: =INDEX('Compile Data'!K$95:K$118,'Report - ALL (DASHBOARD)'!$W$3) -> 0 | C14: =INDEX('Compile Data'!L$95:L$118,'Report - ALL (DASHBOARD)'!$W$3) -> 0 | D14: =INDEX('Compile Data'!M$95:M$118,'Report - ALL (DASHBOARD)'!$W$3) -> 0 | E14: =INDEX('Compile Data'!N$95:N$118,'Report - ALL (DASHBOARD)'!$W$3) -> 0 | F14: =INDEX('Compile Data'!O$95:O$118,'Report - ALL (DASHBOARD)'!$W$3) -> 0 | G14: =INDEX('Compile Data'!P$95:P$118,'Report - ALL (DASHBOARD)'!$W$3) -> 0 | H14: =INDEX('Compile Data'!Q$95:Q$118,'Report - ALL (DASHBOARD)'!$W$3) -> 0 | I14: =INDEX('Compile Data'!R$95:R$118,'Report - ALL (DASHBOARD)'!$W$3) -> 0 | J14: =INDEX('Compile Data'!S$95:S$118,'Report - ALL (DASHBOARD)'!$W$3) -> 0 | K14: =INDEX('Compile Data'!T$95:T$118,'Report - ALL (DASHBOARD)'!$W$3) -> 0 | L14: =INDEX('Compile Data'!U$95:U$118,'Report - ALL (DASHBOARD)'!$W$3) -> 0 | M14: =INDEX('Compile Data'!V$95:V$118,'Report - ALL (DASHBOARD)'!$W$3) -> 0 | O14: ='Compile Data'!$B$1 -> NAA 111820 | P14: =INDEX('Compile Data'!$K$95:$AH$118,'Report - ALL (DASHBOARD)'!$W$3,'Report - ALL (DASHBOARD)'!$W$4) -> 0 | U14: ='Compile Data'!$B$1 -> NAA 111820 | V14: =INDEX('Compile Data'!$K$95:$AH$118,12,'Report - ALL (DASHBOARD)'!$W$4) -> 0 | W14: =INDEX('Compile Data'!$K$95:$AH$118,13,'Report - ALL (DASHBOARD)'!$W$4) -> 0 | X14: =INDEX('Compile Data'!$K$95:$AH$118,14,'Report - ALL (DASHBOARD)'!$W$4) -> 0 | Y14: =INDEX('Compile Data'!$K$95:$AH$118,15,'Report - ALL (DASHBOARD)'!$W$4) -> 0 | Z14: =INDEX('Compile Data'!$K$95:$AH$118,16,'Report - ALL (DASHBOARD)'!$W$4) -> 0
A15: ='Compile Data'!$C$1 -> ALT1 rev01 PEA | B15: =INDEX('Compile Data'!AK$95:AK$118,'Report - ALL (DASHBOARD)'!$W$3) -> 27.60132729 | C15: =INDEX('Compile Data'!AL$95:AL$118,'Report - ALL (DASHBOARD)'!$W$3) -> 12.02558317 | D15: =INDEX('Compile Data'!AM$95:AM$118,'Report - ALL (DASHBOARD)'!$W$3) -> 3.036778331 | E15: =INDEX('Compile Data'!AN$95:AN$118,'Report - ALL (DASHBOARD)'!$W$3) -> 0.1040399783 | F15: =INDEX('Compile Data'!AO$95:AO$118,'Report - ALL (DASHBOARD)'!$W$3) -> 0.4455846086 | G15: =INDEX('Compile Data'!AP$95:AP$118,'Report - ALL (DASHBOARD)'!$W$3) -> 1.074912892 | H15: =INDEX('Compile Data'!AQ$95:AQ$118,'Report - ALL (DASHBOARD)'!$W$3) -> 5.846025757 | I15: =INDEX('Compile Data'!AR$95:AR$118,'Report - ALL (DASHBOARD)'!$W$3) -> 17.83660352 | J15: =INDEX('Compile Data'!AS$95:AS$118,'Report - ALL (DASHBOARD)'!$W$3) -> 38.30195534 | K15: =INDEX('Compile Data'!AT$95:AT$118,'Report - ALL (DASHBOARD)'!$W$3) -> 35.01993586 | L15: =INDEX('Compile Data'!AU$95:AU$118,'Report - ALL (DASHBOARD)'!$W$3) -> 34.81675138 | M15: =INDEX('Compile Data'!AV$95:AV$118,'Report - ALL (DASHBOARD)'!$W$3) -> 29.25973458 | O15: ='Compile Data'!$C$1 -> ALT1 rev01 PEA | P15: =INDEX('Compile Data'!$AK$95:$BH$118,'Report - ALL (DASHBOARD)'!$W$3,'Report - ALL (DASHBOARD)'!$W$4) -> 205.3692327 | Q15: =$P15-$P$14 -> 205.3692327 | U15: ='Compile Data'!$C$1 -> ALT1 rev01 PEA | V15: =INDEX('Compile Data'!$AK$95:$BH$118,12,'Report - ALL (DASHBOARD)'!$W$4) -> 82.36922227 | W15: =INDEX('Compile Data'!$AK$95:$BH$118,13,'Report - ALL (DASHBOARD)'!$W$4) -> 184.3513614 | X15: =INDEX('Compile Data'!$AK$95:$BH$118,14,'Report - ALL (DASHBOARD)'!$W$4) -> 191.6677936 | Y15: =INDEX('Compile Data'!$AK$95:$BH$118,15,'Report - ALL (DASHBOARD)'!$W$4) -> 354.4113571 | Z15: =INDEX('Compile Data'!$AK$95:$BH$118,16,'Report - ALL (DASHBOARD)'!$W$4) -> 285.3089522
A16: ='Compile Data'!$D$1 -> ALT1 rev01 PEA NoFrpt | B16: =INDEX('Compile Data'!BK$95:BK$118,'Report - ALL (DASHBOARD)'!$W$3) -> 27.98589884 | C16: =INDEX('Compile Data'!BL$95:BL$118,'Report - ALL (DASHBOARD)'!$W$3) -> 13.06132113 | D16: =INDEX('Compile Data'!BM$95:BM$118,'Report - ALL (DASHBOARD)'!$W$3) -> 3.383496083 | E16: =INDEX('Compile Data'!BN$95:BN$118,'Report - ALL (DASHBOARD)'!$W$3) -> 0.2292130205 | F16: =INDEX('Compile Data'!BO$95:BO$118,'Report - ALL (DASHBOARD)'!$W$3) -> 0.4517212259 | G16: =INDEX('Compile Data'!BP$95:BP$118,'Report - ALL (DASHBOARD)'!$W$3) -> 1.734442358 | H16: =INDEX('Compile Data'!BQ$95:BQ$118,'Report - ALL (DASHBOARD)'!$W$3) -> 6.688081589 | I16: =INDEX('Compile Data'!BR$95:BR$118,'Report - ALL (DASHBOARD)'!$W$3) -> 20.85438231 | J16: =INDEX('Compile Data'!BS$95:BS$118,'Report - ALL (DASHBOARD)'!$W$3) -> 41.67212926 | K16: =INDEX('Compile Data'!BT$95:BT$118,'Report - ALL (DASHBOARD)'!$W$3) -> 36.77585733 | L16: =INDEX('Compile Data'!BU$95:BU$118,'Report - ALL (DASHBOARD)'!$W$3) -> 36.25123146 | M16: =INDEX('Compile Data'!BV$95:BV$118,'Report - ALL (DASHBOARD)'!$W$3) -> 31.28337727 | O16: ='Compile Data'!$D$1 -> ALT1 rev01 PEA NoFrpt | P16: =INDEX('Compile Data'!$BK$95:$CH$118,'Report - ALL (DASHBOARD)'!$W$3,'Report - ALL (DASHBOARD)'!$W$4) -> 220.3711519 | Q16: =$P16-$P$14 -> 220.3711519 | R16: =$P16-$P$15 -> 15.00191916 | U16: ='Compile Data'!$D$1 -> ALT1 rev01 PEA NoFrpt | V16: =INDEX('Compile Data'!$BK$95:$CH$118,12,'Report - ALL (DASHBOARD)'!$W$4) -> 84.56916165 | W16: =INDEX('Compile Data'!$BK$95:$CH$118,13,'Report - ALL (DASHBOARD)'!$W$4) -> 183.1774557 | X16: =INDEX('Compile Data'!$BK$95:$CH$118,14,'Report - ALL (DASHBOARD)'!$W$4) -> 206.1284678 | Y16: =INDEX('Compile Data'!$BK$95:$CH$118,15,'Report - ALL (DASHBOARD)'!$W$4) -> 384.5752565 | Z16: =INDEX('Compile Data'!$BK$95:$CH$118,16,'Report - ALL (DASHBOARD)'!$W$4) -> 322.1128013
A17: ='Compile Data'!$E$1 -> ALT1 rev01 PEA WS6 | B17: =INDEX('Compile Data'!CK$95:CK$118,'Report - ALL (DASHBOARD)'!$W$3) -> 27.72362422 | C17: =INDEX('Compile Data'!CL$95:CL$118,'Report - ALL (DASHBOARD)'!$W$3) -> 13.87837427 | D17: =INDEX('Compile Data'!CM$95:CM$118,'Report - ALL (DASHBOARD)'!$W$3) -> 3.313568686 | E17: =INDEX('Compile Data'!CN$95:CN$118,'Report - ALL (DASHBOARD)'!$W$3) -> 0.01146344679 | F17: =INDEX('Compile Data'!CO$95:CO$118,'Report - ALL (DASHBOARD)'!$W$3) -> 0.4136050667 | G17: =INDEX('Compile Data'!CP$95:CP$118,'Report - ALL (DASHBOARD)'!$W$3) -> 1.115606615 | H17: =INDEX('Compile Data'!CQ$95:CQ$118,'Report - ALL (DASHBOARD)'!$W$3) -> 6.921537681 | I17: =INDEX('Compile Data'!CR$95:CR$118,'Report - ALL (DASHBOARD)'!$W$3) -> 19.20309623 | J17: =INDEX('Compile Data'!CS$95:CS$118,'Report - ALL (DASHBOARD)'!$W$3) -> 38.38088093 | K17: =INDEX('Compile Data'!CT$95:CT$118,'Report - ALL (DASHBOARD)'!$W$3) -> 36.49237441 | L17: =INDEX('Compile Data'!CU$95:CU$118,'Report - ALL (DASHBOARD)'!$W$3) -> 36.66486605 | M17: =INDEX('Compile Data'!CV$95:CV$118,'Report - ALL (DASHBOARD)'!$W$3) -> 30.79377948 | O17: ='Compile Data'!$E$1 -> ALT1 rev01 PEA WS6 | P17: =INDEX('Compile Data'!$CK$95:$DH$118,'Report - ALL (DASHBOARD)'!$W$3,'Report - ALL (DASHBOARD)'!$W$4) -> 214.9127771 | Q17: =$P17-$P$14 -> 214.9127771 | R17: =$P17-$P$15 -> 9.543544386 | U17: ='Compile Data'!$E$1 -> ALT1 rev01 PEA WS6 | V17: =INDEX('Compile Data'!$CK$95:$DH$118,12,'Report - ALL (DASHBOARD)'!$W$4) -> 88.32945924 | W17: =INDEX('Compile Data'!$CK$95:$DH$118,13,'Report - ALL (DASHBOARD)'!$W$4) -> 187.0784733 | X17: =INDEX('Compile Data'!$CK$95:$DH$118,14,'Report - ALL (DASHBOARD)'!$W$4) -> 198.2116075 | Y17: =INDEX('Compile Data'!$CK$95:$DH$118,15,'Report - ALL (DASHBOARD)'!$W$4) -> 367.3926138 | Z17: =INDEX('Compile Data'!$CK$95:$DH$118,16,'Report - ALL (DASHBOARD)'!$W$4) -> 307.7758791
A18: ='Compile Data'!$F$1 -> ALT1 rev01 PEA WSv01 | B18: =INDEX('Compile Data'!DK$95:DK$118,'Report - ALL (DASHBOARD)'!$W$3) -> 27.51900921 | C18: =INDEX('Compile Data'!DL$95:DL$118,'Report - ALL (DASHBOARD)'!$W$3) -> 13.21846239 | D18: =INDEX('Compile Data'!DM$95:DM$118,'Report - ALL (DASHBOARD)'!$W$3) -> 3.0955543 | E18: =INDEX('Compile Data'!DN$95:DN$118,'Report - ALL (DASHBOARD)'!$W$3) -> 0.01146341463 | F18: =INDEX('Compile Data'!DO$95:DO$118,'Report - ALL (DASHBOARD)'!$W$3) -> 0.5071244921 | G18: =INDEX('Compile Data'!DP$95:DP$118,'Report - ALL (DASHBOARD)'!$W$3) -> 1.451302638 | H18: =INDEX('Compile Data'!DQ$95:DQ$118,'Report - ALL (DASHBOARD)'!$W$3) -> 6.595732645 | I18: =INDEX('Compile Data'!DR$95:DR$118,'Report - ALL (DASHBOARD)'!$W$3) -> 18.34324018 | J18: =INDEX('Compile Data'!DS$95:DS$118,'Report - ALL (DASHBOARD)'!$W$3) -> 37.47018247 | K18: =INDEX('Compile Data'!DT$95:DT$118,'Report - ALL (DASHBOARD)'!$W$3) -> 35.49339335 | L18: =INDEX('Compile Data'!DU$95:DU$118,'Report - ALL (DASHBOARD)'!$W$3) -> 35.95665817 | M18: =INDEX('Compile Data'!DV$95:DV$118,'Report - ALL (DASHBOARD)'!$W$3) -> 29.954796 | O18: ='Compile Data'!$F$1 -> ALT1 rev01 PEA WSv01 | P18: =INDEX('Compile Data'!$DK$95:$EH$118,'Report - ALL (DASHBOARD)'!$W$3,'Report - ALL (DASHBOARD)'!$W$4) -> 209.6169193 | Q18: =$P18-$P$14 -> 209.6169193 | R18: =$P18-$P$15 -> 4.247686542 | U18: ='Compile Data'!$F$1 -> ALT1 rev01 PEA WSv01 | V18: =INDEX('Compile Data'!$DK$95:$EH$118,12,'Report - ALL (DASHBOARD)'!$W$4) -> 89.00567963 | W18: =INDEX('Compile Data'!$DK$95:$EH$118,13,'Report - ALL (DASHBOARD)'!$W$4) -> 184.5585324 | X18: =INDEX('Compile Data'!$DK$95:$EH$118,14,'Report - ALL (DASHBOARD)'!$W$4) -> 190.7029201 | Y18: =INDEX('Compile Data'!$DK$95:$EH$118,15,'Report - ALL (DASHBOARD)'!$W$4) -> 358.4380293 | Z18: =INDEX('Compile Data'!$DK$95:$EH$118,16,'Report - ALL (DASHBOARD)'!$W$4) -> 294.834326
A22: Annuals Plot: | O22: Exceedence Plot:
A24: Title: | B24: =INDEX(Other!$B$9:$B$33,'Report - ALL (DASHBOARD)'!$W$4) -> October-September | O24: Title: | P24: =INDEX(Other!$B$9:$B$33,'Report - ALL (DASHBOARD)'!$W$4) -> October-September
B25: ='Compile Data'!$B$5&" (PRELIMINARY)" -> Total Sites Release (PRELIMINARY) | P25: ='Compile Data'!$B$5&" (PRELIMINARY)" -> Total Sites Release (PRELIMINARY)
B26: =IF('Compile Data'!$B$10="CFS","Flow (CFS)",IF('Compile Data'!$B$10="TAF","Volume (TAF)",IF('Compile Data'!$B$10="KM","POSITION (KM)",""))) -> Volume (TAF) | P26: =IF('Compile Data'!$B$10="CFS","Flow (CFS)",IF('Compile Data'!$B$10="TAF","Volume (TAF)",IF('Compile Data'!$B$10="KM","POSITION (KM)",""))) -> Volume (TAF)
B28: ='Compile Data'!$B$1 -> NAA 111820 | C28: ='Compile Data'!$C$1 -> ALT1 rev01 PEA | D28: ='Compile Data'!$D$1 -> ALT1 rev01 PEA NoFrpt | E28: ='Compile Data'!$E$1 -> ALT1 rev01 PEA WS6 | F28: ='Compile Data'!$F$1 -> ALT1 rev01 PEA WSv01 | Q28: ='Compile Data'!$B$1 -> NAA 111820 | R28: ='Compile Data'!$C$1 -> ALT1 rev01 PEA | S28: ='Compile Data'!$D$1 -> ALT1 rev01 PEA NoFrpt | T28: ='Compile Data'!$E$1 -> ALT1 rev01 PEA WS6 | U28: ='Compile Data'!$F$1 -> ALT1 rev01 PEA WSv01
A29: 1922 | B29: =INDEX('Compile Data'!$K$12:$AH$93,$A29-1921,'Report - ALL (DASHBOARD)'!$W$4) -> 0 | C29: =INDEX('Compile Data'!$AK$12:$BH$93,$A29-1921,'Report - ALL (DASHBOARD)'!$W$4) -> 134.8444571 | D29: =INDEX('Compile Data'!$BK$12:$CH$93,$A29-1921,'Report - ALL (DASHBOARD)'!$W$4) -> 140.1581975 | E29: =INDEX('Compile Data'!$CK$12:$DH$93,$A29-1921,'Report - ALL (DASHBOARD)'!$W$4) -> 150.787461 | F29: =INDEX('Compile Data'!$DK$12:$EH$93,$A29-1921,'Report - ALL (DASHBOARD)'!$W$4) -> 141.0414936 | O29: 1 | P29: =(O29-1)/81 -> 0 | Q29: =INDEX('Compile Data'!$K$121:$AH$202,$O29,'Report - ALL (DASHBOARD)'!$W$4) -> 0 | R29: =INDEX('Compile Data'!$AK$121:$BH$202,$O29,'Report - ALL (DASHBOARD)'!$W$4) -> 607.3882734 | S29: =INDEX('Compile Data'!$BK$121:$CH$202,$O29,'Report - ALL (DASHBOARD)'!$W$4) -> 645.2070798 | T29: =INDEX('Compile Data'!$CK$121:$DH$202,$O29,'Report - ALL (DASHBOARD)'!$W$4) -> 606.8721654 | U29: =INDEX('Compile Data'!$DK$121:$EH$202,$O29,'Report - ALL (DASHBOARD)'!$W$4) -> 606.8701998
A30: =A29+1 -> 1923 | B30: =INDEX('Compile Data'!$K$12:$AH$93,$A30-1921,'Report - ALL (DASHBOARD)'!$W$4) -> 0 | C30: =INDEX('Compile Data'!$AK$12:$BH$93,$A30-1921,'Report - ALL (DASHBOARD)'!$W$4) -> 199.0131821 | D30: =INDEX('Compile Data'!$BK$12:$CH$93,$A30-1921,'Report - ALL (DASHBOARD)'!$W$4) -> 199.5248111 | E30: =INDEX('Compile Data'!$CK$12:$DH$93,$A30-1921,'Report - ALL (DASHBOARD)'!$W$4) -> 198.7202704 | F30: =INDEX('Compile Data'!$DK$12:$EH$93,$A30-1921,'Report - ALL (DASHBOARD)'!$W$4) -> 198.616628 | O30: 2 | P30: 0.01234567901 | Q30: =INDEX('Compile Data'!$K$121:$AH$202,$O30,'Report - ALL (DASHBOARD)'!$W$4) -> 0 | R30: =INDEX('Compile Data'!$AK$121:$BH$202,$O30,'Report - ALL (DASHBOARD)'!$W$4) -> 564.9843635 | S30: =INDEX('Compile Data'!$BK$121:$CH$202,$O30,'Report - ALL (DASHBOARD)'!$W$4) -> 607.3764857 | T30: =INDEX('Compile Data'!$CK$121:$DH$202,$O30,'Report - ALL (DASHBOARD)'!$W$4) -> 598.4991151 | U30: =INDEX('Compile Data'!$DK$121:$EH$202,$O30,'Report - ALL (DASHBOARD)'!$W$4) -> 586.3302981
A31: =A30+1 -> 1924 | B31: =INDEX('Compile Data'!$K$12:$AH$93,$A31-1921,'Report - ALL (DASHBOARD)'!$W$4) -> 0 | C31: =INDEX('Compile Data'!$AK$12:$BH$93,$A31-1921,'Report - ALL (DASHBOARD)'!$W$4) -> 564.9843635 | D31: =INDEX('Compile Data'!$BK$12:$CH$93,$A31-1921,'Report - ALL (DASHBOARD)'!$W$4) -> 580.1908719 | E31: =INDEX('Compile Data'!$CK$12:$DH$93,$A31-1921,'Report - ALL (DASHBOARD)'!$W$4) -> 583.4935115 | F31: =INDEX('Compile Data'!$DK$12:$EH$93,$A31-1921,'Report - ALL (DASHBOARD)'!$W$4) -> 571.4081087 | O31: 3 | P31: 0.02469135802 | Q31: =INDEX('Compile Data'!$K$121:$AH$202,$O31,'Report - ALL (DASHBOARD)'!$W$4) -> 0 | R31: =INDEX('Compile Data'!$AK$121:$BH$202,$O31,'Report - ALL (DASHBOARD)'!$W$4) -> 563.3776703 | S31: =INDEX('Compile Data'!$BK$121:$CH$202,$O31,'Report - ALL (DASHBOARD)'!$W$4) -> 604.3932222 | T31: =INDEX('Compile Data'!$CK$121:$DH$202,$O31,'Report - ALL (DASHBOARD)'!$W$4) -> 583.4935115 | U31: =INDEX('Compile Data'!$DK$121:$EH$202,$O31,'Report - ALL (DASHBOARD)'!$W$4) -> 572.767872
A32: 1925 | B32: =INDEX('Compile Data'!$K$12:$AH$93,$A32-1921,'Report - ALL (DASHBOARD)'!$W$4) -> 0 | C32: =INDEX('Compile Data'!$AK$12:$BH$93,$A32-1921,'Report - ALL (DASHBOARD)'!$W$4) -> 314.5417763 | D32: =INDEX('Compile Data'!$BK$12:$CH$93,$A32-1921,'Report - ALL (DASHBOARD)'!$W$4) -> 449.98525 | E32: =INDEX('Compile Data'!$CK$12:$DH$93,$A32-1921,'Report - ALL (DASHBOARD)'!$W$4) -> 433.2127048 | F32: =INDEX('Compile Data'!$DK$12:$EH$93,$A32-1921,'Report - ALL (DASHBOARD)'!$W$4) -> 399.6370535 | O32: 4 | P32: 0.03703703704 | Q32: =INDEX('Compile Data'!$K$121:$AH$202,$O32,'Report - ALL (DASHBOARD)'!$W$4) -> 0 | R32: =INDEX('Compile Data'!$AK$121:$BH$202,$O32,'Report - ALL (DASHBOARD)'!$W$4) -> 547.577715 | S32: =INDEX('Compile Data'!$BK$121:$CH$202,$O32,'Report - ALL (DASHBOARD)'!$W$4) -> 593.5102557 | T32: =INDEX('Compile Data'!$CK$121:$DH$202,$O32,'Report - ALL (DASHBOARD)'!$W$4) -> 579.110649 | U32: =INDEX('Compile Data'!$DK$121:$EH$202,$O32,'Report - ALL (DASHBOARD)'!$W$4) -> 571.4081087
A33: 1926 | B33: =INDEX('Compile Data'!$K$12:$AH$93,$A33-1921,'Report - ALL (DASHBOARD)'!$W$4) -> 0 | C33: =INDEX('Compile Data'!$AK$12:$BH$93,$A33-1921,'Report - ALL (DASHBOARD)'!$W$4) -> 227.1068346 | D33: =INDEX('Compile Data'!$BK$12:$CH$93,$A33-1921,'Report - ALL (DASHBOARD)'!$W$4) -> 291.7557185 | E33: =INDEX('Compile Data'!$CK$12:$DH$93,$A33-1921,'Report - ALL (DASHBOARD)'!$W$4) -> 241.9727621 | F33: =INDEX('Compile Data'!$DK$12:$EH$93,$A33-1921,'Report - ALL (DASHBOARD)'!$W$4) -> 167.8929317 | O33: 5 | P33: 0.04938271605 | Q33: =INDEX('Compile Data'!$K$121:$AH$202,$O33,'Report - ALL (DASHBOARD)'!$W$4) -> 0 | R33: =INDEX('Compile Data'!$AK$121:$BH$202,$O33,'Report - ALL (DASHBOARD)'!$W$4) -> 544.7342387 | S33: =INDEX('Compile Data'!$BK$121:$CH$202,$O33,'Report - ALL (DASHBOARD)'!$W$4) -> 580.1908719 | T33: =INDEX('Compile Data'!$CK$121:$DH$202,$O33,'Report - ALL (DASHBOARD)'!$W$4) -> 575.7780357 | U33: =INDEX('Compile Data'!$DK$121:$EH$202,$O33,'Report - ALL (DASHBOARD)'!$W$4) -> 546.0150642
A34: 1927 | B34: =INDEX('Compile Data'!$K$12:$AH$93,$A34-1921,'Report - ALL (DASHBOARD)'!$W$4) -> 0 | C34: =INDEX('Compile Data'!$AK$12:$BH$93,$A34-1921,'Report - ALL (DASHBOARD)'!$W$4) -> 73.74769265 | D34: =INDEX('Compile Data'!$BK$12:$CH$93,$A34-1921,'Report - ALL (DASHBOARD)'!$W$4) -> 66.01064117 | E34: =INDEX('Compile Data'!$CK$12:$DH$93,$A34-1921,'Report - ALL (DASHBOARD)'!$W$4) -> 72.68337422 | F34: =INDEX('Compile Data'!$DK$12:$EH$93,$A34-1921,'Report - ALL (DASHBOARD)'!$W$4) -> 70.96523945 | O34: 6 | P34: 0.06172839506 | Q34: =INDEX('Compile Data'!$K$121:$AH$202,$O34,'Report - ALL (DASHBOARD)'!$W$4) -> 0 | R34: =INDEX('Compile Data'!$AK$121:$BH$202,$O34,'Report - ALL (DASHBOARD)'!$W$4) -> 511.1645589 | S34: =INDEX('Compile Data'!$BK$121:$CH$202,$O34,'Report - ALL (DASHBOARD)'!$W$4) -> 519.2840669 | T34: =INDEX('Compile Data'!$CK$121:$DH$202,$O34,'Report - ALL (DASHBOARD)'!$W$4) -> 519.0609419 | U34: =INDEX('Compile Data'!$DK$121:$EH$202,$O34,'Report - ALL (DASHBOARD)'!$W$4) -> 511.0409913
A35: 1928 | B35: =INDEX('Compile Data'!$K$12:$AH$93,$A35-1921,'Report - ALL (DASHBOARD)'!$W$4) -> 0 | C35: =INDEX('Compile Data'!$AK$12:$BH$93,$A35-1921,'Report - ALL (DASHBOARD)'!$W$4) -> 134.8891542 | D35: =INDEX('Compile Data'!$BK$12:$CH$93,$A35-1921,'Report - ALL (DASHBOARD)'!$W$4) -> 143.9072537 | E35: =INDEX('Compile Data'!$CK$12:$DH$93,$A35-1921,'Report - ALL (DASHBOARD)'!$W$4) -> 153.1773366 | F35: =INDEX('Compile Data'!$DK$12:$EH$93,$A35-1921,'Report - ALL (DASHBOARD)'!$W$4) -> 150.9839506 | O35: 7 | P35: 0.07407407407 | Q35: =INDEX('Compile Data'!$K$121:$AH$202,$O35,'Report - ALL (DASHBOARD)'!$W$4) -> 0 | R35: =INDEX('Compile Data'!$AK$121:$BH$202,$O35,'Report - ALL (DASHBOARD)'!$W$4) -> 510.4239135 | S35: =INDEX('Compile Data'!$BK$121:$CH$202,$O35,'Report - ALL (DASHBOARD)'!$W$4) -> 514.4606962 | T35: =INDEX('Compile Data'!$CK$121:$DH$202,$O35,'Report - ALL (DASHBOARD)'!$W$4) -> 511.9786023 | U35: =INDEX('Compile Data'!$DK$121:$EH$202,$O35,'Report - ALL (DASHBOARD)'!$W$4) -> 507.8059813
A36: 1929 | B36: =INDEX('Compile Data'!$K$12:$AH$93,$A36-1921,'Report - ALL (DASHBOARD)'!$W$4) -> 0 | C36: =INDEX('Compile Data'!$AK$12:$BH$93,$A36-1921,'Report - ALL (DASHBOARD)'!$W$4) -> 511.1645589 | D36: =INDEX('Compile Data'!$BK$12:$CH$93,$A36-1921,'Report - ALL (DASHBOARD)'!$W$4) -> 514.4606962 | E36: =INDEX('Compile Data'!$CK$12:$DH$93,$A36-1921,'Report - ALL (DASHBOARD)'!$W$4) -> 511.9786023 | F36: =INDEX('Compile Data'!$DK$12:$EH$93,$A36-1921,'Report - ALL (DASHBOARD)'!$W$4) -> 511.0409913 | O36: 8 | P36: 0.08641975309 | Q36: =INDEX('Compile Data'!$K$121:$AH$202,$O36,'Report - ALL (DASHBOARD)'!$W$4) -> 0 | R36: =INDEX('Compile Data'!$AK$121:$BH$202,$O36,'Report - ALL (DASHBOARD)'!$W$4) -> 457.6410174 | S36: =INDEX('Compile Data'!$BK$121:$CH$202,$O36,'Report - ALL (DASHBOARD)'!$W$4) -> 468.0604422 | T36: =INDEX('Compile Data'!$CK$121:$DH$202,$O36,'Report - ALL (DASHBOARD)'!$W$4) -> 458.9884945 | U36: =INDEX('Compile Data'!$DK$121:$EH$202,$O36,'Report - ALL (DASHBOARD)'!$W$4) -> 458.9752631
A37: 1930 | B37: =INDEX('Compile Data'!$K$12:$AH$93,$A37-1921,'Report - ALL (DASHBOARD)'!$W$4) -> 0 | C37: =INDEX('Compile Data'!$AK$12:$BH$93,$A37-1921,'Report - ALL (DASHBOARD)'!$W$4) -> 301.0880343 | D37: =INDEX('Compile Data'!$BK$12:$CH$93,$A37-1921,'Report - ALL (DASHBOARD)'!$W$4) -> 338.7421143 | E37: =INDEX('Compile Data'!$CK$12:$DH$93,$A37-1921,'Report - ALL (DASHBOARD)'!$W$4) -> 305.3025682 | F37: =INDEX('Compile Data'!$DK$12:$EH$93,$A37-1921,'Report - ALL (DASHBOARD)'!$W$4) -> 301.8386952 | O37: 9 | P37: 0.0987654321 | Q37: =INDEX('Compile Data'!$K$121:$AH$202,$O37,'Report - ALL (DASHBOARD)'!$W$4) -> 0 | R37: =INDEX('Compile Data'!$AK$121:$BH$202,$O37,'Report - ALL (DASHBOARD)'!$W$4) -> 416.1160759 | S37: =INDEX('Compile Data'!$BK$121:$CH$202,$O37,'Report - ALL (DASHBOARD)'!$W$4) -> 449.98525 | T37: =INDEX('Compile Data'!$CK$121:$DH$202,$O37,'Report - ALL (DASHBOARD)'!$W$4) -> 433.2127048 | U37: =INDEX('Compile Data'!$DK$121:$EH$202,$O37,'Report - ALL (DASHBOARD)'!$W$4) -> 431.0181556
A38: 1931 | B38: =INDEX('Compile Data'!$K$12:$AH$93,$A38-1921,'Report - ALL (DASHBOARD)'!$W$4) -> 0 | C38: =INDEX('Compile Data'!$AK$12:$BH$93,$A38-1921,'Report - ALL (DASHBOARD)'!$W$4) -> 102.6557464 | D38: =INDEX('Compile Data'!$BK$12:$CH$93,$A38-1921,'Report - ALL (DASHBOARD)'!$W$4) -> 254.8745608 | E38: =INDEX('Compile Data'!$CK$12:$DH$93,$A38-1921,'Report - ALL (DASHBOARD)'!$W$4) -> 188.0555389 | F38: =INDEX('Compile Data'!$DK$12:$EH$93,$A38-1921,'Report - ALL (DASHBOARD)'!$W$4) -> 157.2209417 | O38: 10 | P38: 0.1111111111 | Q38: =INDEX('Compile Data'!$K$121:$AH$202,$O38,'Report - ALL (DASHBOARD)'!$W$4) -> 0 | R38: =INDEX('Compile Data'!$AK$121:$BH$202,$O38,'Report - ALL (DASHBOARD)'!$W$4) -> 413.6010812 | S38: =INDEX('Compile Data'!$BK$121:$CH$202,$O38,'Report - ALL (DASHBOARD)'!$W$4) -> 418.6304931 | T38: =INDEX('Compile Data'!$CK$121:$DH$202,$O38,'Report - ALL (DASHBOARD)'!$W$4) -> 432.4623649 | U38: =INDEX('Compile Data'!$DK$121:$EH$202,$O38,'Report - ALL (DASHBOARD)'!$W$4) -> 413.3032815
A39: 1932 | B39: =INDEX('Compile Data'!$K$12:$AH$93,$A39-1921,'Report - ALL (DASHBOARD)'!$W$4) -> 0 | C39: =INDEX('Compile Data'!$AK$12:$BH$93,$A39-1921,'Report - ALL (DASHBOARD)'!$W$4) -> 113.2347289 | D39: =INDEX('Compile Data'!$BK$12:$CH$93,$A39-1921,'Report - ALL (DASHBOARD)'!$W$4) -> 146.3133045 | E39: =INDEX('Compile Data'!$CK$12:$DH$93,$A39-1921,'Report - ALL (DASHBOARD)'!$W$4) -> 121.8063782 | F39: =INDEX('Compile Data'!$DK$12:$EH$93,$A39-1921,'Report - ALL (DASHBOARD)'!$W$4) -> 122.5439707 | O39: 11 | P39: 0.1234567901 | Q39: =INDEX('Compile Data'!$K$121:$AH$202,$O39,'Report - ALL (DASHBOARD)'!$W$4) -> 0 | R39: =INDEX('Compile Data'!$AK$121:$BH$202,$O39,'Report - ALL (DASHBOARD)'!$W$4) -> 412.2125446 | S39: =INDEX('Compile Data'!$BK$121:$CH$202,$O39,'Report - ALL (DASHBOARD)'!$W$4) -> 417.8884425 | T39: =INDEX('Compile Data'!$CK$121:$DH$202,$O39,'Report - ALL (DASHBOARD)'!$W$4) -> 416.5834062 | U39: =INDEX('Compile Data'!$DK$121:$EH$202,$O39,'Report - ALL (DASHBOARD)'!$W$4) -> 403.5918893
A40: 1933 | B40: =INDEX('Compile Data'!$K$12:$AH$93,$A40-1921,'Report - ALL (DASHBOARD)'!$W$4) -> 0 | C40: =INDEX('Compile Data'!$AK$12:$BH$93,$A40-1921,'Report - ALL (DASHBOARD)'!$W$4) -> 31.39517932 | D40: =INDEX('Compile Data'!$BK$12:$CH$93,$A40-1921,'Report - ALL (DASHBOARD)'!$W$4) -> 153.9964739 | E40: =INDEX('Compile Data'!$CK$12:$DH$93,$A40-1921,'Report - ALL (DASHBOARD)'!$W$4) -> 90.95940941 | F40: =INDEX('Compile Data'!$DK$12:$EH$93,$A40-1921,'Report - ALL (DASHBOARD)'!$W$4) -> 47.4399182 | O40: 12 | P40: 0.1358024691 | Q40: =INDEX('Compile Data'!$K$121:$AH$202,$O40,'Report - ALL (DASHBOARD)'!$W$4) -> 0 | R40: =INDEX('Compile Data'!$AK$121:$BH$202,$O40,'Report - ALL (DASHBOARD)'!$W$4) -> 370.9556667 | S40: =INDEX('Compile Data'!$BK$121:$CH$202,$O40,'Report - ALL (DASHBOARD)'!$W$4) -> 413.6425723 | T40: =INDEX('Compile Data'!$CK$121:$DH$202,$O40,'Report - ALL (DASHBOARD)'!$W$4) -> 413.3330241 | U40: =INDEX('Compile Data'!$DK$121:$EH$202,$O40,'Report - ALL (DASHBOARD)'!$W$4) -> 399.6370535
A41: 1934 | B41: =INDEX('Compile Data'!$K$12:$AH$93,$A41-1921,'Report - ALL (DASHBOARD)'!$W$4) -> 0 | C41: =INDEX('Compile Data'!$AK$12:$BH$93,$A41-1921,'Report - ALL (DASHBOARD)'!$W$4) -> 116.0188714 | D41: =INDEX('Compile Data'!$BK$12:$CH$93,$A41-1921,'Report - ALL (DASHBOARD)'!$W$4) -> 192.2359633 | E41: =INDEX('Compile Data'!$CK$12:$DH$93,$A41-1921,'Report - ALL (DASHBOARD)'!$W$4) -> 178.2108131 | F41: =INDEX('Compile Data'!$DK$12:$EH$93,$A41-1921,'Report - ALL (DASHBOARD)'!$W$4) -> 148.6274268 | O41: 13 | P41: 0.1481481481 | Q41: =INDEX('Compile Data'!$K$121:$AH$202,$O41,'Report - ALL (DASHBOARD)'!$W$4) -> 0 | R41: =INDEX('Compile Data'!$AK$121:$BH$202,$O41,'Report - ALL (DASHBOARD)'!$W$4) -> 365.7238086 | S41: =INDEX('Compile Data'!$BK$121:$CH$202,$O41,'Report - ALL (DASHBOARD)'!$W$4) -> 371.29251 | T41: =INDEX('Compile Data'!$CK$121:$DH$202,$O41,'Report - ALL (DASHBOARD)'!$W$4) -> 392.3257714 | U41: =INDEX('Compile Data'!$DK$121:$EH$202,$O41,'Report - ALL (DASHBOARD)'!$W$4) -> 392.0255988
A42: 1935 | B42: =INDEX('Compile Data'!$K$12:$AH$93,$A42-1921,'Report - ALL (DASHBOARD)'!$W$4) -> 0 | C42: =INDEX('Compile Data'!$AK$12:$BH$93,$A42-1921,'Report - ALL (DASHBOARD)'!$W$4) -> 92.7987579 | D42: =INDEX('Compile Data'!$BK$12:$CH$93,$A42-1921,'Report - ALL (DASHBOARD)'!$W$4) -> 92.83158708 | E42: =INDEX('Compile Data'!$CK$12:$DH$93,$A42-1921,'Report - ALL (DASHBOARD)'!$W$4) -> 87.60755942 | F42: =INDEX('Compile Data'!$DK$12:$EH$93,$A42-1921,'Report - ALL (DASHBOARD)'!$W$4) -> 94.14650502 | O42: 14 | P42: 0.1604938272 | Q42: =INDEX('Compile Data'!$K$121:$AH$202,$O42,'Report - ALL (DASHBOARD)'!$W$4) -> 0 | R42: =INDEX('Compile Data'!$AK$121:$BH$202,$O42,'Report - ALL (DASHBOARD)'!$W$4) -> 349.2070797 | S42: =INDEX('Compile Data'!$BK$121:$CH$202,$O42,'Report - ALL (DASHBOARD)'!$W$4) -> 365.3328222 | T42: =INDEX('Compile Data'!$CK$121:$DH$202,$O42,'Report - ALL (DASHBOARD)'!$W$4) -> 365.9041308 | U42: =INDEX('Compile Data'!$DK$121:$EH$202,$O42,'Report - ALL (DASHBOARD)'!$W$4) -> 365.8886582
A43: 1936 | B43: =INDEX('Compile Data'!$K$12:$AH$93,$A43-1921,'Report - ALL (DASHBOARD)'!$W$4) -> 0 | C43: =INDEX('Compile Data'!$AK$12:$BH$93,$A43-1921,'Report - ALL (DASHBOARD)'!$W$4) -> 155.3269622 | D43: =INDEX('Compile Data'!$BK$12:$CH$93,$A43-1921,'Report - ALL (DASHBOARD)'!$W$4) -> 166.5958946 | E43: =INDEX('Compile Data'!$CK$12:$DH$93,$A43-1921,'Report - ALL (DASHBOARD)'!$W$4) -> 159.5754178 | F43: =INDEX('Compile Data'!$DK$12:$EH$93,$A43-1921,'Report - ALL (DASHBOARD)'!$W$4) -> 153.7974163 | O43: 15 | P43: 0.1728395062 | Q43: =INDEX('Compile Data'!$K$121:$AH$202,$O43,'Report - ALL (DASHBOARD)'!$W$4) -> 0 | R43: =INDEX('Compile Data'!$AK$121:$BH$202,$O43,'Report - ALL (DASHBOARD)'!$W$4) -> 336.7916655 | S43: =INDEX('Compile Data'!$BK$121:$CH$202,$O43,'Report - ALL (DASHBOARD)'!$W$4) -> 357.0277104 | T43: =INDEX('Compile Data'!$CK$121:$DH$202,$O43,'Report - ALL (DASHBOARD)'!$W$4) -> 357.0287237 | U43: =INDEX('Compile Data'!$DK$121:$EH$202,$O43,'Report - ALL (DASHBOARD)'!$W$4) -> 349.2158373
A44: 1937 | B44: =INDEX('Compile Data'!$K$12:$AH$93,$A44-1921,'Report - ALL (DASHBOARD)'!$W$4) -> 0 | C44: =INDEX('Compile Data'!$AK$12:$BH$93,$A44-1921,'Report - ALL (DASHBOARD)'!$W$4) -> 252.9243824 | D44: =INDEX('Compile Data'!$BK$12:$CH$93,$A44-1921,'Report - ALL (DASHBOARD)'!$W$4) -> 260.4070469 | E44: =INDEX('Compile Data'!$CK$12:$DH$93,$A44-1921,'Report - ALL (DASHBOARD)'!$W$4) -> 252.1839192 | F44: =INDEX('Compile Data'!$DK$12:$EH$93,$A44-1921,'Report - ALL (DASHBOARD)'!$W$4) -> 248.6224338 | O44: 16 | P44: 0.1851851852 | Q44: =INDEX('Compile Data'!$K$121:$AH$202,$O44,'Report - ALL (DASHBOARD)'!$W$4) -> 0 | R44: =INDEX('Compile Data'!$AK$121:$BH$202,$O44,'Report - ALL (DASHBOARD)'!$W$4) -> 328.810101 | S44: =INDEX('Compile Data'!$BK$121:$CH$202,$O44,'Report - ALL (DASHBOARD)'!$W$4) -> 355.8983107 | T44: =INDEX('Compile Data'!$CK$121:$DH$202,$O44,'Report - ALL (DASHBOARD)'!$W$4) -> 345.076469 | U44: =INDEX('Compile Data'!$DK$121:$EH$202,$O44,'Report - ALL (DASHBOARD)'!$W$4) -> 340.500609
A45: 1938 | B45: =INDEX('Compile Data'!$K$12:$AH$93,$A45-1921,'Report - ALL (DASHBOARD)'!$W$4) -> 0 | C45: =INDEX('Compile Data'!$AK$12:$BH$93,$A45-1921,'Report - ALL (DASHBOARD)'!$W$4) -> 59.4024138 | D45: =INDEX('Compile Data'!$BK$12:$CH$93,$A45-1921,'Report - ALL (DASHBOARD)'!$W$4) -> 59.40257851 | E45: =INDEX('Compile Data'!$CK$12:$DH$93,$A45-1921,'Report - ALL (DASHBOARD)'!$W$4) -> 59.4024138 | F45: =INDEX('Compile Data'!$DK$12:$EH$93,$A45-1921,'Report - ALL (DASHBOARD)'!$W$4) -> 59.40261102 | O45: 17 | P45: 0.1975308642 | Q45: =INDEX('Compile Data'!$K$121:$AH$202,$O45,'Report - ALL (DASHBOARD)'!$W$4) -> 0 | R45: =INDEX('Compile Data'!$AK$121:$BH$202,$O45,'Report - ALL (DASHBOARD)'!$W$4) -> 328.5708113 | S45: =INDEX('Compile Data'!$BK$121:$CH$202,$O45,'Report - ALL (DASHBOARD)'!$W$4) -> 353.3138769 | T45: =INDEX('Compile Data'!$CK$121:$DH$202,$O45,'Report - ALL (DASHBOARD)'!$W$4) -> 339.0519102 | U45: =INDEX('Compile Data'!$DK$121:$EH$202,$O45,'Report - ALL (DASHBOARD)'!$W$4) -> 338.8999104
A46: 1939 | B46: =INDEX('Compile Data'!$K$12:$AH$93,$A46-1921,'Report - ALL (DASHBOARD)'!$W$4) -> 0 | C46: =INDEX('Compile Data'!$AK$12:$BH$93,$A46-1921,'Report - ALL (DASHBOARD)'!$W$4) -> 304.3671011 | D46: =INDEX('Compile Data'!$BK$12:$CH$93,$A46-1921,'Report - ALL (DASHBOARD)'!$W$4) -> 371.29251 | E46: =INDEX('Compile Data'!$CK$12:$DH$93,$A46-1921,'Report - ALL (DASHBOARD)'!$W$4) -> 272.0031154 | F46: =INDEX('Compile Data'!$DK$12:$EH$93,$A46-1921,'Report - ALL (DASHBOARD)'!$W$4) -> 271.9448832 | O46: 18 | P46: 0.2098765432 | Q46: =INDEX('Compile Data'!$K$121:$AH$202,$O46,'Report - ALL (DASHBOARD)'!$W$4) -> 0 | R46: =INDEX('Compile Data'!$AK$121:$BH$202,$O46,'Report - ALL (DASHBOARD)'!$W$4) -> 321.1677692 | S46: =INDEX('Compile Data'!$BK$121:$CH$202,$O46,'Report - ALL (DASHBOARD)'!$W$4) -> 344.6790232 | T46: =INDEX('Compile Data'!$CK$121:$DH$202,$O46,'Report - ALL (DASHBOARD)'!$W$4) -> 327.0272379 | U46: =INDEX('Compile Data'!$DK$121:$EH$202,$O46,'Report - ALL (DASHBOARD)'!$W$4) -> 326.9016446
A47: 1940 | B47: =INDEX('Compile Data'!$K$12:$AH$93,$A47-1921,'Report - ALL (DASHBOARD)'!$W$4) -> 0 | C47: =INDEX('Compile Data'!$AK$12:$BH$93,$A47-1921,'Report - ALL (DASHBOARD)'!$W$4) -> 232.1849594 | D47: =INDEX('Compile Data'!$BK$12:$CH$93,$A47-1921,'Report - ALL (DASHBOARD)'!$W$4) -> 181.4199077 | E47: =INDEX('Compile Data'!$CK$12:$DH$93,$A47-1921,'Report - ALL (DASHBOARD)'!$W$4) -> 227.549608 | F47: =INDEX('Compile Data'!$DK$12:$EH$93,$A47-1921,'Report - ALL (DASHBOARD)'!$W$4) -> 227.5409558 | O47: 19 | P47: 0.2222222222 | Q47: =INDEX('Compile Data'!$K$121:$AH$202,$O47,'Report - ALL (DASHBOARD)'!$W$4) -> 0 | R47: =INDEX('Compile Data'!$AK$121:$BH$202,$O47,'Report - ALL (DASHBOARD)'!$W$4) -> 314.5417763 | S47: =INDEX('Compile Data'!$BK$121:$CH$202,$O47,'Report - ALL (DASHBOARD)'!$W$4) -> 338.7421143 | T47: =INDEX('Compile Data'!$CK$121:$DH$202,$O47,'Report - ALL (DASHBOARD)'!$W$4) -> 325.7456644 | U47: =INDEX('Compile Data'!$DK$121:$EH$202,$O47,'Report - ALL (DASHBOARD)'!$W$4) -> 325.7869239
A48: 1941 | B48: =INDEX('Compile Data'!$K$12:$AH$93,$A48-1921,'Report - ALL (DASHBOARD)'!$W$4) -> 0 | C48: =INDEX('Compile Data'!$AK$12:$BH$93,$A48-1921,'Report - ALL (DASHBOARD)'!$W$4) -> 42.60250437 | D48: =INDEX('Compile Data'!$BK$12:$CH$93,$A48-1921,'Report - ALL (DASHBOARD)'!$W$4) -> 72.25799974 | E48: =INDEX('Compile Data'!$CK$12:$DH$93,$A48-1921,'Report - ALL (DASHBOARD)'!$W$4) -> 70.08058229 | F48: =INDEX('Compile Data'!$DK$12:$EH$93,$A48-1921,'Report - ALL (DASHBOARD)'!$W$4) -> 70.08392313 | O48: 20 | P48: 0.2345679012 | Q48: =INDEX('Compile Data'!$K$121:$AH$202,$O48,'Report - ALL (DASHBOARD)'!$W$4) -> 0 | R48: =INDEX('Compile Data'!$AK$121:$BH$202,$O48,'Report - ALL (DASHBOARD)'!$W$4) -> 304.3671011 | S48: =INDEX('Compile Data'!$BK$121:$CH$202,$O48,'Report - ALL (DASHBOARD)'!$W$4) -> 329.3607139 | T48: =INDEX('Compile Data'!$CK$121:$DH$202,$O48,'Report - ALL (DASHBOARD)'!$W$4) -> 305.3025682 | U48: =INDEX('Compile Data'!$DK$121:$EH$202,$O48,'Report - ALL (DASHBOARD)'!$W$4) -> 301.8386952
A49: 1942 | B49: =INDEX('Compile Data'!$K$12:$AH$93,$A49-1921,'Report - ALL (DASHBOARD)'!$W$4) -> 0 | C49: =INDEX('Compile Data'!$AK$12:$BH$93,$A49-1921,'Report - ALL (DASHBOARD)'!$W$4) -> 55.6496723 | D49: =INDEX('Compile Data'!$BK$12:$CH$93,$A49-1921,'Report - ALL (DASHBOARD)'!$W$4) -> 83.23062725 | E49: =INDEX('Compile Data'!$CK$12:$DH$93,$A49-1921,'Report - ALL (DASHBOARD)'!$W$4) -> 83.08298402 | F49: =INDEX('Compile Data'!$DK$12:$EH$93,$A49-1921,'Report - ALL (DASHBOARD)'!$W$4) -> 83.08298402 | O49: 21 | P49: 0.2469135802 | Q49: =INDEX('Compile Data'!$K$121:$AH$202,$O49,'Report - ALL (DASHBOARD)'!$W$4) -> 0 | R49: =INDEX('Compile Data'!$AK$121:$BH$202,$O49,'Report - ALL (DASHBOARD)'!$W$4) -> 301.0880343 | S49: =INDEX('Compile Data'!$BK$121:$CH$202,$O49,'Report - ALL (DASHBOARD)'!$W$4) -> 321.1575263 | T49: =INDEX('Compile Data'!$CK$121:$DH$202,$O49,'Report - ALL (DASHBOARD)'!$W$4) -> 277.1069619 | U49: =INDEX('Compile Data'!$DK$121:$EH$202,$O49,'Report - ALL (DASHBOARD)'!$W$4) -> 271.9448832
A50: 1943 | B50: =INDEX('Compile Data'!$K$12:$AH$93,$A50-1921,'Report - ALL (DASHBOARD)'!$W$4) -> 0 | C50: =INDEX('Compile Data'!$AK$12:$BH$93,$A50-1921,'Report - ALL (DASHBOARD)'!$W$4) -> 92.14702888 | D50: =INDEX('Compile Data'!$BK$12:$CH$93,$A50-1921,'Report - ALL (DASHBOARD)'!$W$4) -> 92.14709075 | E50: =INDEX('Compile Data'!$CK$12:$DH$93,$A50-1921,'Report - ALL (DASHBOARD)'!$W$4) -> 92.14704037 | F50: =INDEX('Compile Data'!$DK$12:$EH$93,$A50-1921,'Report - ALL (DASHBOARD)'!$W$4) -> 92.14702364 | O50: 22 | P50: 0.2592592593 | Q50: =INDEX('Compile Data'!$K$121:$AH$202,$O50,'Report - ALL (DASHBOARD)'!$W$4) -> 0 | R50: =INDEX('Compile Data'!$AK$121:$BH$202,$O50,'Report - ALL (DASHBOARD)'!$W$4) -> 265.337854 | S50: =INDEX('Compile Data'!$BK$121:$CH$202,$O50,'Report - ALL (DASHBOARD)'!$W$4) -> 291.7557185 | T50: =INDEX('Compile Data'!$CK$121:$DH$202,$O50,'Report - ALL (DASHBOARD)'!$W$4) -> 272.0031154 | U50: =INDEX('Compile Data'!$DK$121:$EH$202,$O50,'Report - ALL (DASHBOARD)'!$W$4) -> 262.4130557
A51: 1944 | B51: =INDEX('Compile Data'!$K$12:$AH$93,$A51-1921,'Report - ALL (DASHBOARD)'!$W$4) -> 0 | C51: =INDEX('Compile Data'!$AK$12:$BH$93,$A51-1921,'Report - ALL (DASHBOARD)'!$W$4) -> 412.2125446 | D51: =INDEX('Compile Data'!$BK$12:$CH$93,$A51-1921,'Report - ALL (DASHBOARD)'!$W$4) -> 418.6304931 | E51: =INDEX('Compile Data'!$CK$12:$DH$93,$A51-1921,'Report - ALL (DASHBOARD)'!$W$4) -> 416.5834062 | F51: =INDEX('Compile Data'!$DK$12:$EH$93,$A51-1921,'Report - ALL (DASHBOARD)'!$W$4) -> 403.5918893 | O51: 23 | P51: 0.2716049383 | Q51: =INDEX('Compile Data'!$K$121:$AH$202,$O51,'Report - ALL (DASHBOARD)'!$W$4) -> 0 | R51: =INDEX('Compile Data'!$AK$121:$BH$202,$O51,'Report - ALL (DASHBOARD)'!$W$4) -> 252.9243824 | S51: =INDEX('Compile Data'!$BK$121:$CH$202,$O51,'Report - ALL (DASHBOARD)'!$W$4) -> 273.1762744 | T51: =INDEX('Compile Data'!$CK$121:$DH$202,$O51,'Report - ALL (DASHBOARD)'!$W$4) -> 252.1839192 | U51: =INDEX('Compile Data'!$DK$121:$EH$202,$O51,'Report - ALL (DASHBOARD)'!$W$4) -> 248.6224338
A52: 1945 | B52: =INDEX('Compile Data'!$K$12:$AH$93,$A52-1921,'Report - ALL (DASHBOARD)'!$W$4) -> 0 | C52: =INDEX('Compile Data'!$AK$12:$BH$93,$A52-1921,'Report - ALL (DASHBOARD)'!$W$4) -> 197.6193953 | D52: =INDEX('Compile Data'!$BK$12:$CH$93,$A52-1921,'Report - ALL (DASHBOARD)'!$W$4) -> 237.7816151 | E52: =INDEX('Compile Data'!$CK$12:$DH$93,$A52-1921,'Report - ALL (DASHBOARD)'!$W$4) -> 196.1189317 | F52: =INDEX('Compile Data'!$DK$12:$EH$93,$A52-1921,'Report - ALL (DASHBOARD)'!$W$4) -> 184.2953423 | O52: 24 | P52: 0.2839506173 | Q52: =INDEX('Compile Data'!$K$121:$AH$202,$O52,'Report - ALL (DASHBOARD)'!$W$4) -> 0 | R52: =INDEX('Compile Data'!$AK$121:$BH$202,$O52,'Report - ALL (DASHBOARD)'!$W$4) -> 236.4135426 | S52: =INDEX('Compile Data'!$BK$121:$CH$202,$O52,'Report - ALL (DASHBOARD)'!$W$4) -> 260.4070469 | T52: =INDEX('Compile Data'!$CK$121:$DH$202,$O52,'Report - ALL (DASHBOARD)'!$W$4) -> 241.9727621 | U52: =INDEX('Compile Data'!$DK$121:$EH$202,$O52,'Report - ALL (DASHBOARD)'!$W$4) -> 236.5890047
A53: 1946 | B53: =INDEX('Compile Data'!$K$12:$AH$93,$A53-1921,'Report - ALL (DASHBOARD)'!$W$4) -> 0 | C53: =INDEX('Compile Data'!$AK$12:$BH$93,$A53-1921,'Report - ALL (DASHBOARD)'!$W$4) -> 138.3349303 | D53: =INDEX('Compile Data'!$BK$12:$CH$93,$A53-1921,'Report - ALL (DASHBOARD)'!$W$4) -> 211.9501398 | E53: =INDEX('Compile Data'!$CK$12:$DH$93,$A53-1921,'Report - ALL (DASHBOARD)'!$W$4) -> 129.0594953 | F53: =INDEX('Compile Data'!$DK$12:$EH$93,$A53-1921,'Report - ALL (DASHBOARD)'!$W$4) -> 111.9883523 | O53: 25 | P53: 0.2962962963 | Q53: =INDEX('Compile Data'!$K$121:$AH$202,$O53,'Report - ALL (DASHBOARD)'!$W$4) -> 0 | R53: =INDEX('Compile Data'!$AK$121:$BH$202,$O53,'Report - ALL (DASHBOARD)'!$W$4) -> 232.1849594 | S53: =INDEX('Compile Data'!$BK$121:$CH$202,$O53,'Report - ALL (DASHBOARD)'!$W$4) -> 254.8745608 | T53: =INDEX('Compile Data'!$CK$121:$DH$202,$O53,'Report - ALL (DASHBOARD)'!$W$4) -> 236.6587715 | U53: =INDEX('Compile Data'!$DK$121:$EH$202,$O53,'Report - ALL (DASHBOARD)'!$W$4) -> 227.5409558
A54: 1947 | B54: =INDEX('Compile Data'!$K$12:$AH$93,$A54-1921,'Report - ALL (DASHBOARD)'!$W$4) -> 0 | C54: =INDEX('Compile Data'!$AK$12:$BH$93,$A54-1921,'Report - ALL (DASHBOARD)'!$W$4) -> 370.9556667 | D54: =INDEX('Compile Data'!$BK$12:$CH$93,$A54-1921,'Report - ALL (DASHBOARD)'!$W$4) -> 353.3138769 | E54: =INDEX('Compile Data'!$CK$12:$DH$93,$A54-1921,'Report - ALL (DASHBOARD)'!$W$4) -> 392.3257714 | F54: =INDEX('Compile Data'!$DK$12:$EH$93,$A54-1921,'Report - ALL (DASHBOARD)'!$W$4) -> 392.0255988 | O54: 26 | P54: 0.3086419753 | Q54: =INDEX('Compile Data'!$K$121:$AH$202,$O54,'Report - ALL (DASHBOARD)'!$W$4) -> 0 | R54: =INDEX('Compile Data'!$AK$121:$BH$202,$O54,'Report - ALL (DASHBOARD)'!$W$4) -> 227.3660671 | S54: =INDEX('Compile Data'!$BK$121:$CH$202,$O54,'Report - ALL (DASHBOARD)'!$W$4) -> 237.7816151 | T54: =INDEX('Compile Data'!$CK$121:$DH$202,$O54,'Report - ALL (DASHBOARD)'!$W$4) -> 227.549608 | U54: =INDEX('Compile Data'!$DK$121:$EH$202,$O54,'Report - ALL (DASHBOARD)'!$W$4) -> 227.3273828
A55: 1948 | B55: =INDEX('Compile Data'!$K$12:$AH$93,$A55-1921,'Report - ALL (DASHBOARD)'!$W$4) -> 0 | C55: =INDEX('Compile Data'!$AK$12:$BH$93,$A55-1921,'Report - ALL (DASHBOARD)'!$W$4) -> 94.11728517 | D55: =INDEX('Compile Data'!$BK$12:$CH$93,$A55-1921,'Report - ALL (DASHBOARD)'!$W$4) -> 173.874767 | E55: =INDEX('Compile Data'!$CK$12:$DH$93,$A55-1921,'Report - ALL (DASHBOARD)'!$W$4) -> 166.3512932 | F55: =INDEX('Compile Data'!$DK$12:$EH$93,$A55-1921,'Report - ALL (DASHBOARD)'!$W$4) -> 115.4118916 | O55: 27 | P55: 0.3209876543 | Q55: =INDEX('Compile Data'!$K$121:$AH$202,$O55,'Report - ALL (DASHBOARD)'!$W$4) -> 0 | R55: =INDEX('Compile Data'!$AK$121:$BH$202,$O55,'Report - ALL (DASHBOARD)'!$W$4) -> 227.1068346 | S55: =INDEX('Compile Data'!$BK$121:$CH$202,$O55,'Report - ALL (DASHBOARD)'!$W$4) -> 235.6604668 | T55: =INDEX('Compile Data'!$CK$121:$DH$202,$O55,'Report - ALL (DASHBOARD)'!$W$4) -> 227.3653897 | U55: =INDEX('Compile Data'!$DK$121:$EH$202,$O55,'Report - ALL (DASHBOARD)'!$W$4) -> 218.3379575
A56: 1949 | B56: =INDEX('Compile Data'!$K$12:$AH$93,$A56-1921,'Report - ALL (DASHBOARD)'!$W$4) -> 0 | C56: =INDEX('Compile Data'!$AK$12:$BH$93,$A56-1921,'Report - ALL (DASHBOARD)'!$W$4) -> 563.3776703 | D56: =INDEX('Compile Data'!$BK$12:$CH$93,$A56-1921,'Report - ALL (DASHBOARD)'!$W$4) -> 645.2070798 | E56: =INDEX('Compile Data'!$CK$12:$DH$93,$A56-1921,'Report - ALL (DASHBOARD)'!$W$4) -> 598.4991151 | F56: =INDEX('Compile Data'!$DK$12:$EH$93,$A56-1921,'Report - ALL (DASHBOARD)'!$W$4) -> 586.3302981 | O56: 28 | P56: 0.3333333333 | Q56: =INDEX('Compile Data'!$K$121:$AH$202,$O56,'Report - ALL (DASHBOARD)'!$W$4) -> 0 | R56: =INDEX('Compile Data'!$AK$121:$BH$202,$O56,'Report - ALL (DASHBOARD)'!$W$4) -> 217.5201243 | S56: =INDEX('Compile Data'!$BK$121:$CH$202,$O56,'Report - ALL (DASHBOARD)'!$W$4) -> 227.3473473 | T56: =INDEX('Compile Data'!$CK$121:$DH$202,$O56,'Report - ALL (DASHBOARD)'!$W$4) -> 218.2380398 | U56: =INDEX('Compile Data'!$DK$121:$EH$202,$O56,'Report - ALL (DASHBOARD)'!$W$4) -> 211.1492563
A57: 1950 | B57: =INDEX('Compile Data'!$K$12:$AH$93,$A57-1921,'Report - ALL (DASHBOARD)'!$W$4) -> 0 | C57: =INDEX('Compile Data'!$AK$12:$BH$93,$A57-1921,'Report - ALL (DASHBOARD)'!$W$4) -> 204.8567206 | D57: =INDEX('Compile Data'!$BK$12:$CH$93,$A57-1921,'Report - ALL (DASHBOARD)'!$W$4) -> 201.0232806 | E57: =INDEX('Compile Data'!$CK$12:$DH$93,$A57-1921,'Report - ALL (DASHBOARD)'!$W$4) -> 203.609336 | F57: =INDEX('Compile Data'!$DK$12:$EH$93,$A57-1921,'Report - ALL (DASHBOARD)'!$W$4) -> 207.6656571 | O57: 29 | P57: 0.3456790123 | Q57: =INDEX('Compile Data'!$K$121:$AH$202,$O57,'Report - ALL (DASHBOARD)'!$W$4) -> 0 | R57: =INDEX('Compile Data'!$AK$121:$BH$202,$O57,'Report - ALL (DASHBOARD)'!$W$4) -> 213.3281088 | S57: =INDEX('Compile Data'!$BK$121:$CH$202,$O57,'Report - ALL (DASHBOARD)'!$W$4) -> 222.45819 | T57: =INDEX('Compile Data'!$CK$121:$DH$202,$O57,'Report - ALL (DASHBOARD)'!$W$4) -> 211.1492565 | U57: =INDEX('Compile Data'!$DK$121:$EH$202,$O57,'Report - ALL (DASHBOARD)'!$W$4) -> 210.8968326
A58: 1951 | B58: =INDEX('Compile Data'!$K$12:$AH$93,$A58-1921,'Report - ALL (DASHBOARD)'!$W$4) -> 0 | C58: =INDEX('Compile Data'!$AK$12:$BH$93,$A58-1921,'Report - ALL (DASHBOARD)'!$W$4) -> 142.9187333 | D58: =INDEX('Compile Data'!$BK$12:$CH$93,$A58-1921,'Report - ALL (DASHBOARD)'!$W$4) -> 166.6770383 | E58: =INDEX('Compile Data'!$CK$12:$DH$93,$A58-1921,'Report - ALL (DASHBOARD)'!$W$4) -> 150.9219115 | F58: =INDEX('Compile Data'!$DK$12:$EH$93,$A58-1921,'Report - ALL (DASHBOARD)'!$W$4) -> 140.240303 | O58: 30 | P58: 0.3580246914 | Q58: =INDEX('Compile Data'!$K$121:$AH$202,$O58,'Report - ALL (DASHBOARD)'!$W$4) -> 0 | R58: =INDEX('Compile Data'!$AK$121:$BH$202,$O58,'Report - ALL (DASHBOARD)'!$W$4) -> 211.4148825 | S58: =INDEX('Compile Data'!$BK$121:$CH$202,$O58,'Report - ALL (DASHBOARD)'!$W$4) -> 217.512885 | T58: =INDEX('Compile Data'!$CK$121:$DH$202,$O58,'Report - ALL (DASHBOARD)'!$W$4) -> 210.9244972 | U58: =INDEX('Compile Data'!$DK$121:$EH$202,$O58,'Report - ALL (DASHBOARD)'!$W$4) -> 207.6656571
A59: 1952 | B59: =INDEX('Compile Data'!$K$12:$AH$93,$A59-1921,'Report - ALL (DASHBOARD)'!$W$4) -> 0 | C59: =INDEX('Compile Data'!$AK$12:$BH$93,$A59-1921,'Report - ALL (DASHBOARD)'!$W$4) -> 68.01775652 | D59: =INDEX('Compile Data'!$BK$12:$CH$93,$A59-1921,'Report - ALL (DASHBOARD)'!$W$4) -> 82.34783327 | E59: =INDEX('Compile Data'!$CK$12:$DH$93,$A59-1921,'Report - ALL (DASHBOARD)'!$W$4) -> 68.01775652 | F59: =INDEX('Compile Data'!$DK$12:$EH$93,$A59-1921,'Report - ALL (DASHBOARD)'!$W$4) -> 68.01775652 | O59: 31 | P59: 0.3703703704 | Q59: =INDEX('Compile Data'!$K$121:$AH$202,$O59,'Report - ALL (DASHBOARD)'!$W$4) -> 0 | R59: =INDEX('Compile Data'!$AK$121:$BH$202,$O59,'Report - ALL (DASHBOARD)'!$W$4) -> 204.8567206 | S59: =INDEX('Compile Data'!$BK$121:$CH$202,$O59,'Report - ALL (DASHBOARD)'!$W$4) -> 213.3210977 | T59: =INDEX('Compile Data'!$CK$121:$DH$202,$O59,'Report - ALL (DASHBOARD)'!$W$4) -> 210.9110784 | U59: =INDEX('Compile Data'!$DK$121:$EH$202,$O59,'Report - ALL (DASHBOARD)'!$W$4) -> 203.2702099
A60: 1953 | B60: =INDEX('Compile Data'!$K$12:$AH$93,$A60-1921,'Report - ALL (DASHBOARD)'!$W$4) -> 0 | C60: =INDEX('Compile Data'!$AK$12:$BH$93,$A60-1921,'Report - ALL (DASHBOARD)'!$W$4) -> 108.2984998 | D60: =INDEX('Compile Data'!$BK$12:$CH$93,$A60-1921,'Report - ALL (DASHBOARD)'!$W$4) -> 108.2984998 | E60: =INDEX('Compile Data'!$CK$12:$DH$93,$A60-1921,'Report - ALL (DASHBOARD)'!$W$4) -> 108.2984998 | F60: =INDEX('Compile Data'!$DK$12:$EH$93,$A60-1921,'Report - ALL (DASHBOARD)'!$W$4) -> 108.2984998 | O60: 32 | P60: 0.3827160494 | Q60: =INDEX('Compile Data'!$K$121:$AH$202,$O60,'Report - ALL (DASHBOARD)'!$W$4) -> 0 | R60: =INDEX('Compile Data'!$AK$121:$BH$202,$O60,'Report - ALL (DASHBOARD)'!$W$4) -> 202.1235899 | S60: =INDEX('Compile Data'!$BK$121:$CH$202,$O60,'Report - ALL (DASHBOARD)'!$W$4) -> 211.9501398 | T60: =INDEX('Compile Data'!$CK$121:$DH$202,$O60,'Report - ALL (DASHBOARD)'!$W$4) -> 203.609336 | U60: =INDEX('Compile Data'!$DK$121:$EH$202,$O60,'Report - ALL (DASHBOARD)'!$W$4) -> 202.1235664
A61: 1954 | B61: =INDEX('Compile Data'!$K$12:$AH$93,$A61-1921,'Report - ALL (DASHBOARD)'!$W$4) -> 0 | C61: =INDEX('Compile Data'!$AK$12:$BH$93,$A61-1921,'Report - ALL (DASHBOARD)'!$W$4) -> 201.5963998 | D61: =INDEX('Compile Data'!$BK$12:$CH$93,$A61-1921,'Report - ALL (DASHBOARD)'!$W$4) -> 201.5499316 | E61: =INDEX('Compile Data'!$CK$12:$DH$93,$A61-1921,'Report - ALL (DASHBOARD)'!$W$4) -> 201.5500293 | F61: =INDEX('Compile Data'!$DK$12:$EH$93,$A61-1921,'Report - ALL (DASHBOARD)'!$W$4) -> 201.5500237 | O61: 33 | P61: 0.3950617284 | Q61: =INDEX('Compile Data'!$K$121:$AH$202,$O61,'Report - ALL (DASHBOARD)'!$W$4) -> 0 | R61: =INDEX('Compile Data'!$AK$121:$BH$202,$O61,'Report - ALL (DASHBOARD)'!$W$4) -> 201.5963998 | S61: =INDEX('Compile Data'!$BK$121:$CH$202,$O61,'Report - ALL (DASHBOARD)'!$W$4) -> 211.4345946 | T61: =INDEX('Compile Data'!$CK$121:$DH$202,$O61,'Report - ALL (DASHBOARD)'!$W$4) -> 202.1235666 | U61: =INDEX('Compile Data'!$DK$121:$EH$202,$O61,'Report - ALL (DASHBOARD)'!$W$4) -> 201.5500237
A62: 1955 | B62: =INDEX('Compile Data'!$K$12:$AH$93,$A62-1921,'Report - ALL (DASHBOARD)'!$W$4) -> 0 | C62: =INDEX('Compile Data'!$AK$12:$BH$93,$A62-1921,'Report - ALL (DASHBOARD)'!$W$4) -> 457.6410174 | D62: =INDEX('Compile Data'!$BK$12:$CH$93,$A62-1921,'Report - ALL (DASHBOARD)'!$W$4) -> 468.0604422 | E62: =INDEX('Compile Data'!$CK$12:$DH$93,$A62-1921,'Report - ALL (DASHBOARD)'!$W$4) -> 458.9884945 | F62: =INDEX('Compile Data'!$DK$12:$EH$93,$A62-1921,'Report - ALL (DASHBOARD)'!$W$4) -> 458.9752631 | O62: 34 | P62: 0.4074074074 | Q62: =INDEX('Compile Data'!$K$121:$AH$202,$O62,'Report - ALL (DASHBOARD)'!$W$4) -> 0 | R62: =INDEX('Compile Data'!$AK$121:$BH$202,$O62,'Report - ALL (DASHBOARD)'!$W$4) -> 200.7887753 | S62: =INDEX('Compile Data'!$BK$121:$CH$202,$O62,'Report - ALL (DASHBOARD)'!$W$4) -> 202.1235898 | T62: =INDEX('Compile Data'!$CK$121:$DH$202,$O62,'Report - ALL (DASHBOARD)'!$W$4) -> 201.5500293 | U62: =INDEX('Compile Data'!$DK$121:$EH$202,$O62,'Report - ALL (DASHBOARD)'!$W$4) -> 198.616628
A63: 1956 | B63: =INDEX('Compile Data'!$K$12:$AH$93,$A63-1921,'Report - ALL (DASHBOARD)'!$W$4) -> 0 | C63: =INDEX('Compile Data'!$AK$12:$BH$93,$A63-1921,'Report - ALL (DASHBOARD)'!$W$4) -> 163.5053789 | D63: =INDEX('Compile Data'!$BK$12:$CH$93,$A63-1921,'Report - ALL (DASHBOARD)'!$W$4) -> 135.919172 | E63: =INDEX('Compile Data'!$CK$12:$DH$93,$A63-1921,'Report - ALL (DASHBOARD)'!$W$4) -> 163.5053789 | F63: =INDEX('Compile Data'!$DK$12:$EH$93,$A63-1921,'Report - ALL (DASHBOARD)'!$W$4) -> 163.5053789 | O63: 35 | P63: 0.4197530864 | Q63: =INDEX('Compile Data'!$K$121:$AH$202,$O63,'Report - ALL (DASHBOARD)'!$W$4) -> 0 | R63: =INDEX('Compile Data'!$AK$121:$BH$202,$O63,'Report - ALL (DASHBOARD)'!$W$4) -> 199.0131821 | S63: =INDEX('Compile Data'!$BK$121:$CH$202,$O63,'Report - ALL (DASHBOARD)'!$W$4) -> 201.5499316 | T63: =INDEX('Compile Data'!$CK$121:$DH$202,$O63,'Report - ALL (DASHBOARD)'!$W$4) -> 198.7202704 | U63: =INDEX('Compile Data'!$DK$121:$EH$202,$O63,'Report - ALL (DASHBOARD)'!$W$4) -> 196.7837454
A64: 1957 | B64: =INDEX('Compile Data'!$K$12:$AH$93,$A64-1921,'Report - ALL (DASHBOARD)'!$W$4) -> 0 | C64: =INDEX('Compile Data'!$AK$12:$BH$93,$A64-1921,'Report - ALL (DASHBOARD)'!$W$4) -> 211.4148825 | D64: =INDEX('Compile Data'!$BK$12:$CH$93,$A64-1921,'Report - ALL (DASHBOARD)'!$W$4) -> 211.4345946 | E64: =INDEX('Compile Data'!$CK$12:$DH$93,$A64-1921,'Report - ALL (DASHBOARD)'!$W$4) -> 210.9244972 | F64: =INDEX('Compile Data'!$DK$12:$EH$93,$A64-1921,'Report - ALL (DASHBOARD)'!$W$4) -> 203.2702099 | O64: 36 | P64: 0.4320987654 | Q64: =INDEX('Compile Data'!$K$121:$AH$202,$O64,'Report - ALL (DASHBOARD)'!$W$4) -> 0 | R64: =INDEX('Compile Data'!$AK$121:$BH$202,$O64,'Report - ALL (DASHBOARD)'!$W$4) -> 197.6193953 | S64: =INDEX('Compile Data'!$BK$121:$CH$202,$O64,'Report - ALL (DASHBOARD)'!$W$4) -> 201.0232806 | T64: =INDEX('Compile Data'!$CK$121:$DH$202,$O64,'Report - ALL (DASHBOARD)'!$W$4) -> 197.6705358 | U64: =INDEX('Compile Data'!$DK$121:$EH$202,$O64,'Report - ALL (DASHBOARD)'!$W$4) -> 184.2953423
A65: 1958 | B65: =INDEX('Compile Data'!$K$12:$AH$93,$A65-1921,'Report - ALL (DASHBOARD)'!$W$4) -> 0 | C65: =INDEX('Compile Data'!$AK$12:$BH$93,$A65-1921,'Report - ALL (DASHBOARD)'!$W$4) -> 29.2462069 | D65: =INDEX('Compile Data'!$BK$12:$CH$93,$A65-1921,'Report - ALL (DASHBOARD)'!$W$4) -> 29.2462069 | E65: =INDEX('Compile Data'!$CK$12:$DH$93,$A65-1921,'Report - ALL (DASHBOARD)'!$W$4) -> 29.2462069 | F65: =INDEX('Compile Data'!$DK$12:$EH$93,$A65-1921,'Report - ALL (DASHBOARD)'!$W$4) -> 56.8324138 | O65: 37 | P65: 0.4444444444 | Q65: =INDEX('Compile Data'!$K$121:$AH$202,$O65,'Report - ALL (DASHBOARD)'!$W$4) -> 0 | R65: =INDEX('Compile Data'!$AK$121:$BH$202,$O65,'Report - ALL (DASHBOARD)'!$W$4) -> 197.4808424 | S65: =INDEX('Compile Data'!$BK$121:$CH$202,$O65,'Report - ALL (DASHBOARD)'!$W$4) -> 200.5026085 | T65: =INDEX('Compile Data'!$CK$121:$DH$202,$O65,'Report - ALL (DASHBOARD)'!$W$4) -> 196.1189317 | U65: =INDEX('Compile Data'!$DK$121:$EH$202,$O65,'Report - ALL (DASHBOARD)'!$W$4) -> 183.4187671
A66: 1959 | B66: =INDEX('Compile Data'!$K$12:$AH$93,$A66-1921,'Report - ALL (DASHBOARD)'!$W$4) -> 0 | C66: =INDEX('Compile Data'!$AK$12:$BH$93,$A66-1921,'Report - ALL (DASHBOARD)'!$W$4) -> 227.3660671 | D66: =INDEX('Compile Data'!$BK$12:$CH$93,$A66-1921,'Report - ALL (DASHBOARD)'!$W$4) -> 227.3473473 | E66: =INDEX('Compile Data'!$CK$12:$DH$93,$A66-1921,'Report - ALL (DASHBOARD)'!$W$4) -> 227.3653897 | F66: =INDEX('Compile Data'!$DK$12:$EH$93,$A66-1921,'Report - ALL (DASHBOARD)'!$W$4) -> 227.3273828 | O66: 38 | P66: 0.4567901235 | Q66: =INDEX('Compile Data'!$K$121:$AH$202,$O66,'Report - ALL (DASHBOARD)'!$W$4) -> 0 | R66: =INDEX('Compile Data'!$AK$121:$BH$202,$O66,'Report - ALL (DASHBOARD)'!$W$4) -> 189.0212028 | S66: =INDEX('Compile Data'!$BK$121:$CH$202,$O66,'Report - ALL (DASHBOARD)'!$W$4) -> 199.5248111 | T66: =INDEX('Compile Data'!$CK$121:$DH$202,$O66,'Report - ALL (DASHBOARD)'!$W$4) -> 188.0555389 | U66: =INDEX('Compile Data'!$DK$121:$EH$202,$O66,'Report - ALL (DASHBOARD)'!$W$4) -> 172.5525378
A67: 1960 | B67: =INDEX('Compile Data'!$K$12:$AH$93,$A67-1921,'Report - ALL (DASHBOARD)'!$W$4) -> 0 | C67: =INDEX('Compile Data'!$AK$12:$BH$93,$A67-1921,'Report - ALL (DASHBOARD)'!$W$4) -> 510.4239135 | D67: =INDEX('Compile Data'!$BK$12:$CH$93,$A67-1921,'Report - ALL (DASHBOARD)'!$W$4) -> 519.2840669 | E67: =INDEX('Compile Data'!$CK$12:$DH$93,$A67-1921,'Report - ALL (DASHBOARD)'!$W$4) -> 519.0609419 | F67: =INDEX('Compile Data'!$DK$12:$EH$93,$A67-1921,'Report - ALL (DASHBOARD)'!$W$4) -> 507.8059813 | O67: 39 | P67: 0.4691358025 | Q67: =INDEX('Compile Data'!$K$121:$AH$202,$O67,'Report - ALL (DASHBOARD)'!$W$4) -> 0 | R67: =INDEX('Compile Data'!$AK$121:$BH$202,$O67,'Report - ALL (DASHBOARD)'!$W$4) -> 182.9323587 | S67: =INDEX('Compile Data'!$BK$121:$CH$202,$O67,'Report - ALL (DASHBOARD)'!$W$4) -> 194.011458 | T67: =INDEX('Compile Data'!$CK$121:$DH$202,$O67,'Report - ALL (DASHBOARD)'!$W$4) -> 184.107738 | U67: =INDEX('Compile Data'!$DK$121:$EH$202,$O67,'Report - ALL (DASHBOARD)'!$W$4) -> 167.8929317
A68: 1961 | B68: =INDEX('Compile Data'!$K$12:$AH$93,$A68-1921,'Report - ALL (DASHBOARD)'!$W$4) -> 0 | C68: =INDEX('Compile Data'!$AK$12:$BH$93,$A68-1921,'Report - ALL (DASHBOARD)'!$W$4) -> 349.2070797 | D68: =INDEX('Compile Data'!$BK$12:$CH$93,$A68-1921,'Report - ALL (DASHBOARD)'!$W$4) -> 357.0277104 | E68: =INDEX('Compile Data'!$CK$12:$DH$93,$A68-1921,'Report - ALL (DASHBOARD)'!$W$4) -> 357.0287237 | F68: =INDEX('Compile Data'!$DK$12:$EH$93,$A68-1921,'Report - ALL (DASHBOARD)'!$W$4) -> 349.2158373 | O68: 40 | P68: 0.4814814815 | Q68: =INDEX('Compile Data'!$K$121:$AH$202,$O68,'Report - ALL (DASHBOARD)'!$W$4) -> 0 | R68: =INDEX('Compile Data'!$AK$121:$BH$202,$O68,'Report - ALL (DASHBOARD)'!$W$4) -> 172.5455739 | S68: =INDEX('Compile Data'!$BK$121:$CH$202,$O68,'Report - ALL (DASHBOARD)'!$W$4) -> 192.2359633 | T68: =INDEX('Compile Data'!$CK$121:$DH$202,$O68,'Report - ALL (DASHBOARD)'!$W$4) -> 178.2108131 | U68: =INDEX('Compile Data'!$DK$121:$EH$202,$O68,'Report - ALL (DASHBOARD)'!$W$4) -> 163.8229131
A69: 1962 | B69: =INDEX('Compile Data'!$K$12:$AH$93,$A69-1921,'Report - ALL (DASHBOARD)'!$W$4) -> 0 | C69: =INDEX('Compile Data'!$AK$12:$BH$93,$A69-1921,'Report - ALL (DASHBOARD)'!$W$4) -> 182.9323587 | D69: =INDEX('Compile Data'!$BK$12:$CH$93,$A69-1921,'Report - ALL (DASHBOARD)'!$W$4) -> 168.8709892 | E69: =INDEX('Compile Data'!$CK$12:$DH$93,$A69-1921,'Report - ALL (DASHBOARD)'!$W$4) -> 175.5658799 | F69: =INDEX('Compile Data'!$DK$12:$EH$93,$A69-1921,'Report - ALL (DASHBOARD)'!$W$4) -> 163.8229131 | O69: 41 | P69: 0.4938271605 | Q69: =INDEX('Compile Data'!$K$121:$AH$202,$O69,'Report - ALL (DASHBOARD)'!$W$4) -> 0 | R69: =INDEX('Compile Data'!$AK$121:$BH$202,$O69,'Report - ALL (DASHBOARD)'!$W$4) -> 163.5053789 | S69: =INDEX('Compile Data'!$BK$121:$CH$202,$O69,'Report - ALL (DASHBOARD)'!$W$4) -> 181.4199077 | T69: =INDEX('Compile Data'!$CK$121:$DH$202,$O69,'Report - ALL (DASHBOARD)'!$W$4) -> 175.5658799 | U69: =INDEX('Compile Data'!$DK$121:$EH$202,$O69,'Report - ALL (DASHBOARD)'!$W$4) -> 163.5053789
A70: 1963 | B70: =INDEX('Compile Data'!$K$12:$AH$93,$A70-1921,'Report - ALL (DASHBOARD)'!$W$4) -> 0 | C70: =INDEX('Compile Data'!$AK$12:$BH$93,$A70-1921,'Report - ALL (DASHBOARD)'!$W$4) -> 49.8624443 | D70: =INDEX('Compile Data'!$BK$12:$CH$93,$A70-1921,'Report - ALL (DASHBOARD)'!$W$4) -> 62.6624138 | E70: =INDEX('Compile Data'!$CK$12:$DH$93,$A70-1921,'Report - ALL (DASHBOARD)'!$W$4) -> 46.88551669 | F70: =INDEX('Compile Data'!$DK$12:$EH$93,$A70-1921,'Report - ALL (DASHBOARD)'!$W$4) -> 46.17030298 | O70: 42 | P70: 0.5061728395 | Q70: =INDEX('Compile Data'!$K$121:$AH$202,$O70,'Report - ALL (DASHBOARD)'!$W$4) -> 0 | R70: =INDEX('Compile Data'!$AK$121:$BH$202,$O70,'Report - ALL (DASHBOARD)'!$W$4) -> 156.8988424 | S70: =INDEX('Compile Data'!$BK$121:$CH$202,$O70,'Report - ALL (DASHBOARD)'!$W$4) -> 173.874767 | T70: =INDEX('Compile Data'!$CK$121:$DH$202,$O70,'Report - ALL (DASHBOARD)'!$W$4) -> 172.5525356 | U70: =INDEX('Compile Data'!$DK$121:$EH$202,$O70,'Report - ALL (DASHBOARD)'!$W$4) -> 157.2209417
A71: 1964 | B71: =INDEX('Compile Data'!$K$12:$AH$93,$A71-1921,'Report - ALL (DASHBOARD)'!$W$4) -> 0 | C71: =INDEX('Compile Data'!$AK$12:$BH$93,$A71-1921,'Report - ALL (DASHBOARD)'!$W$4) -> 189.0212028 | D71: =INDEX('Compile Data'!$BK$12:$CH$93,$A71-1921,'Report - ALL (DASHBOARD)'!$W$4) -> 222.45819 | E71: =INDEX('Compile Data'!$CK$12:$DH$93,$A71-1921,'Report - ALL (DASHBOARD)'!$W$4) -> 184.107738 | F71: =INDEX('Compile Data'!$DK$12:$EH$93,$A71-1921,'Report - ALL (DASHBOARD)'!$W$4) -> 183.4187671 | O71: 43 | P71: 0.5185185185 | Q71: =INDEX('Compile Data'!$K$121:$AH$202,$O71,'Report - ALL (DASHBOARD)'!$W$4) -> 0 | R71: =INDEX('Compile Data'!$AK$121:$BH$202,$O71,'Report - ALL (DASHBOARD)'!$W$4) -> 155.3269622 | S71: =INDEX('Compile Data'!$BK$121:$CH$202,$O71,'Report - ALL (DASHBOARD)'!$W$4) -> 172.5454711 | T71: =INDEX('Compile Data'!$CK$121:$DH$202,$O71,'Report - ALL (DASHBOARD)'!$W$4) -> 166.3512932 | U71: =INDEX('Compile Data'!$DK$121:$EH$202,$O71,'Report - ALL (DASHBOARD)'!$W$4) -> 156.8988424
A72: 1965 | B72: =INDEX('Compile Data'!$K$12:$AH$93,$A72-1921,'Report - ALL (DASHBOARD)'!$W$4) -> 0 | C72: =INDEX('Compile Data'!$AK$12:$BH$93,$A72-1921,'Report - ALL (DASHBOARD)'!$W$4) -> 130.8438416 | D72: =INDEX('Compile Data'!$BK$12:$CH$93,$A72-1921,'Report - ALL (DASHBOARD)'!$W$4) -> 99.79087541 | E72: =INDEX('Compile Data'!$CK$12:$DH$93,$A72-1921,'Report - ALL (DASHBOARD)'!$W$4) -> 130.6775718 | F72: =INDEX('Compile Data'!$DK$12:$EH$93,$A72-1921,'Report - ALL (DASHBOARD)'!$W$4) -> 129.7560425 | O72: 44 | P72: 0.5308641975 | Q72: =INDEX('Compile Data'!$K$121:$AH$202,$O72,'Report - ALL (DASHBOARD)'!$W$4) -> 0 | R72: =INDEX('Compile Data'!$AK$121:$BH$202,$O72,'Report - ALL (DASHBOARD)'!$W$4) -> 150.7646709 | S72: =INDEX('Compile Data'!$BK$121:$CH$202,$O72,'Report - ALL (DASHBOARD)'!$W$4) -> 168.8709892 | T72: =INDEX('Compile Data'!$CK$121:$DH$202,$O72,'Report - ALL (DASHBOARD)'!$W$4) -> 163.5053789 | U72: =INDEX('Compile Data'!$DK$121:$EH$202,$O72,'Report - ALL (DASHBOARD)'!$W$4) -> 153.7974163
A73: 1966 | B73: =INDEX('Compile Data'!$K$12:$AH$93,$A73-1921,'Report - ALL (DASHBOARD)'!$W$4) -> 0 | C73: =INDEX('Compile Data'!$AK$12:$BH$93,$A73-1921,'Report - ALL (DASHBOARD)'!$W$4) -> 265.337854 | D73: =INDEX('Compile Data'!$BK$12:$CH$93,$A73-1921,'Report - ALL (DASHBOARD)'!$W$4) -> 273.1762744 | E73: =INDEX('Compile Data'!$CK$12:$DH$93,$A73-1921,'Report - ALL (DASHBOARD)'!$W$4) -> 277.1069619 | F73: =INDEX('Compile Data'!$DK$12:$EH$93,$A73-1921,'Report - ALL (DASHBOARD)'!$W$4) -> 262.4130557 | O73: 45 | P73: 0.5432098765 | Q73: =INDEX('Compile Data'!$K$121:$AH$202,$O73,'Report - ALL (DASHBOARD)'!$W$4) -> 0 | R73: =INDEX('Compile Data'!$AK$121:$BH$202,$O73,'Report - ALL (DASHBOARD)'!$W$4) -> 142.9187333 | S73: =INDEX('Compile Data'!$BK$121:$CH$202,$O73,'Report - ALL (DASHBOARD)'!$W$4) -> 166.6770383 | T73: =INDEX('Compile Data'!$CK$121:$DH$202,$O73,'Report - ALL (DASHBOARD)'!$W$4) -> 159.5754178 | U73: =INDEX('Compile Data'!$DK$121:$EH$202,$O73,'Report - ALL (DASHBOARD)'!$W$4) -> 151.6841359
A74: 1967 | B74: =INDEX('Compile Data'!$K$12:$AH$93,$A74-1921,'Report - ALL (DASHBOARD)'!$W$4) -> 0 | C74: =INDEX('Compile Data'!$AK$12:$BH$93,$A74-1921,'Report - ALL (DASHBOARD)'!$W$4) -> 109.9752154 | D74: =INDEX('Compile Data'!$BK$12:$CH$93,$A74-1921,'Report - ALL (DASHBOARD)'!$W$4) -> 109.9752154 | E74: =INDEX('Compile Data'!$CK$12:$DH$93,$A74-1921,'Report - ALL (DASHBOARD)'!$W$4) -> 84.91607234 | F74: =INDEX('Compile Data'!$DK$12:$EH$93,$A74-1921,'Report - ALL (DASHBOARD)'!$W$4) -> 112.5022792 | O74: 46 | P74: 0.5555555556 | Q74: =INDEX('Compile Data'!$K$121:$AH$202,$O74,'Report - ALL (DASHBOARD)'!$W$4) -> 0 | R74: =INDEX('Compile Data'!$AK$121:$BH$202,$O74,'Report - ALL (DASHBOARD)'!$W$4) -> 138.3349303 | S74: =INDEX('Compile Data'!$BK$121:$CH$202,$O74,'Report - ALL (DASHBOARD)'!$W$4) -> 166.5958946 | T74: =INDEX('Compile Data'!$CK$121:$DH$202,$O74,'Report - ALL (DASHBOARD)'!$W$4) -> 156.8988424 | U74: =INDEX('Compile Data'!$DK$121:$EH$202,$O74,'Report - ALL (DASHBOARD)'!$W$4) -> 150.9839506
A75: 1968 | B75: =INDEX('Compile Data'!$K$12:$AH$93,$A75-1921,'Report - ALL (DASHBOARD)'!$W$4) -> 0 | C75: =INDEX('Compile Data'!$AK$12:$BH$93,$A75-1921,'Report - ALL (DASHBOARD)'!$W$4) -> 321.1677692 | D75: =INDEX('Compile Data'!$BK$12:$CH$93,$A75-1921,'Report - ALL (DASHBOARD)'!$W$4) -> 321.1575263 | E75: =INDEX('Compile Data'!$CK$12:$DH$93,$A75-1921,'Report - ALL (DASHBOARD)'!$W$4) -> 339.0519102 | F75: =INDEX('Compile Data'!$DK$12:$EH$93,$A75-1921,'Report - ALL (DASHBOARD)'!$W$4) -> 338.8999104 | O75: 47 | P75: 0.5679012346 | Q75: =INDEX('Compile Data'!$K$121:$AH$202,$O75,'Report - ALL (DASHBOARD)'!$W$4) -> 0 | R75: =INDEX('Compile Data'!$AK$121:$BH$202,$O75,'Report - ALL (DASHBOARD)'!$W$4) -> 137.4185589 | S75: =INDEX('Compile Data'!$BK$121:$CH$202,$O75,'Report - ALL (DASHBOARD)'!$W$4) -> 156.8988424 | T75: =INDEX('Compile Data'!$CK$121:$DH$202,$O75,'Report - ALL (DASHBOARD)'!$W$4) -> 153.1773366 | U75: =INDEX('Compile Data'!$DK$121:$EH$202,$O75,'Report - ALL (DASHBOARD)'!$W$4) -> 148.6274268
A76: 1969 | B76: =INDEX('Compile Data'!$K$12:$AH$93,$A76-1921,'Report - ALL (DASHBOARD)'!$W$4) -> 0 | C76: =INDEX('Compile Data'!$AK$12:$BH$93,$A76-1921,'Report - ALL (DASHBOARD)'!$W$4) -> 136.3158616 | D76: =INDEX('Compile Data'!$BK$12:$CH$93,$A76-1921,'Report - ALL (DASHBOARD)'!$W$4) -> 136.3261044 | E76: =INDEX('Compile Data'!$CK$12:$DH$93,$A76-1921,'Report - ALL (DASHBOARD)'!$W$4) -> 135.9464721 | F76: =INDEX('Compile Data'!$DK$12:$EH$93,$A76-1921,'Report - ALL (DASHBOARD)'!$W$4) -> 136.1012388 | O76: 48 | P76: 0.5802469136 | Q76: =INDEX('Compile Data'!$K$121:$AH$202,$O76,'Report - ALL (DASHBOARD)'!$W$4) -> 0 | R76: =INDEX('Compile Data'!$AK$121:$BH$202,$O76,'Report - ALL (DASHBOARD)'!$W$4) -> 136.3158616 | S76: =INDEX('Compile Data'!$BK$121:$CH$202,$O76,'Report - ALL (DASHBOARD)'!$W$4) -> 153.9964739 | T76: =INDEX('Compile Data'!$CK$121:$DH$202,$O76,'Report - ALL (DASHBOARD)'!$W$4) -> 151.4968833 | U76: =INDEX('Compile Data'!$DK$121:$EH$202,$O76,'Report - ALL (DASHBOARD)'!$W$4) -> 141.0414936
A77: 1970 | B77: =INDEX('Compile Data'!$K$12:$AH$93,$A77-1921,'Report - ALL (DASHBOARD)'!$W$4) -> 0 | C77: =INDEX('Compile Data'!$AK$12:$BH$93,$A77-1921,'Report - ALL (DASHBOARD)'!$W$4) -> 39.8190258 | D77: =INDEX('Compile Data'!$BK$12:$CH$93,$A77-1921,'Report - ALL (DASHBOARD)'!$W$4) -> 67.40523269 | E77: =INDEX('Compile Data'!$CK$12:$DH$93,$A77-1921,'Report - ALL (DASHBOARD)'!$W$4) -> 85.25647236 | F77: =INDEX('Compile Data'!$DK$12:$EH$93,$A77-1921,'Report - ALL (DASHBOARD)'!$W$4) -> 85.25647236 | O77: 49 | P77: 0.5925925926 | Q77: =INDEX('Compile Data'!$K$121:$AH$202,$O77,'Report - ALL (DASHBOARD)'!$W$4) -> 0 | R77: =INDEX('Compile Data'!$AK$121:$BH$202,$O77,'Report - ALL (DASHBOARD)'!$W$4) -> 134.8891542 | S77: =INDEX('Compile Data'!$BK$121:$CH$202,$O77,'Report - ALL (DASHBOARD)'!$W$4) -> 150.754661 | T77: =INDEX('Compile Data'!$CK$121:$DH$202,$O77,'Report - ALL (DASHBOARD)'!$W$4) -> 150.9219115 | U77: =INDEX('Compile Data'!$DK$121:$EH$202,$O77,'Report - ALL (DASHBOARD)'!$W$4) -> 140.240303
A78: 1971 | B78: =INDEX('Compile Data'!$K$12:$AH$93,$A78-1921,'Report - ALL (DASHBOARD)'!$W$4) -> 0 | C78: =INDEX('Compile Data'!$AK$12:$BH$93,$A78-1921,'Report - ALL (DASHBOARD)'!$W$4) -> 92.68856904 | D78: =INDEX('Compile Data'!$BK$12:$CH$93,$A78-1921,'Report - ALL (DASHBOARD)'!$W$4) -> 92.68856832 | E78: =INDEX('Compile Data'!$CK$12:$DH$93,$A78-1921,'Report - ALL (DASHBOARD)'!$W$4) -> 92.68856601 | F78: =INDEX('Compile Data'!$DK$12:$EH$93,$A78-1921,'Report - ALL (DASHBOARD)'!$W$4) -> 92.68856564 | O78: 50 | P78: 0.6049382716 | Q78: =INDEX('Compile Data'!$K$121:$AH$202,$O78,'Report - ALL (DASHBOARD)'!$W$4) -> 0 | R78: =INDEX('Compile Data'!$AK$121:$BH$202,$O78,'Report - ALL (DASHBOARD)'!$W$4) -> 134.8444571 | S78: =INDEX('Compile Data'!$BK$121:$CH$202,$O78,'Report - ALL (DASHBOARD)'!$W$4) -> 146.3133045 | T78: =INDEX('Compile Data'!$CK$121:$DH$202,$O78,'Report - ALL (DASHBOARD)'!$W$4) -> 150.787461 | U78: =INDEX('Compile Data'!$DK$121:$EH$202,$O78,'Report - ALL (DASHBOARD)'!$W$4) -> 136.8107623
A79: 1972 | B79: =INDEX('Compile Data'!$K$12:$AH$93,$A79-1921,'Report - ALL (DASHBOARD)'!$W$4) -> 0 | C79: =INDEX('Compile Data'!$AK$12:$BH$93,$A79-1921,'Report - ALL (DASHBOARD)'!$W$4) -> 200.7887753 | D79: =INDEX('Compile Data'!$BK$12:$CH$93,$A79-1921,'Report - ALL (DASHBOARD)'!$W$4) -> 200.5026085 | E79: =INDEX('Compile Data'!$CK$12:$DH$93,$A79-1921,'Report - ALL (DASHBOARD)'!$W$4) -> 211.1492565 | F79: =INDEX('Compile Data'!$DK$12:$EH$93,$A79-1921,'Report - ALL (DASHBOARD)'!$W$4) -> 211.1492563 | O79: 51 | P79: 0.6172839506 | Q79: =INDEX('Compile Data'!$K$121:$AH$202,$O79,'Report - ALL (DASHBOARD)'!$W$4) -> 0 | R79: =INDEX('Compile Data'!$AK$121:$BH$202,$O79,'Report - ALL (DASHBOARD)'!$W$4) -> 130.8438416 | S79: =INDEX('Compile Data'!$BK$121:$CH$202,$O79,'Report - ALL (DASHBOARD)'!$W$4) -> 143.9072537 | T79: =INDEX('Compile Data'!$CK$121:$DH$202,$O79,'Report - ALL (DASHBOARD)'!$W$4) -> 137.3739159 | U79: =INDEX('Compile Data'!$DK$121:$EH$202,$O79,'Report - ALL (DASHBOARD)'!$W$4) -> 136.1012388
A80: 1973 | B80: =INDEX('Compile Data'!$K$12:$AH$93,$A80-1921,'Report - ALL (DASHBOARD)'!$W$4) -> 0 | C80: =INDEX('Compile Data'!$AK$12:$BH$93,$A80-1921,'Report - ALL (DASHBOARD)'!$W$4) -> 172.5455739 | D80: =INDEX('Compile Data'!$BK$12:$CH$93,$A80-1921,'Report - ALL (DASHBOARD)'!$W$4) -> 172.5454711 | E80: =INDEX('Compile Data'!$CK$12:$DH$93,$A80-1921,'Report - ALL (DASHBOARD)'!$W$4) -> 172.5525356 | F80: =INDEX('Compile Data'!$DK$12:$EH$93,$A80-1921,'Report - ALL (DASHBOARD)'!$W$4) -> 172.5525378 | O80: 52 | P80: 0.6296296296 | Q80: =INDEX('Compile Data'!$K$121:$AH$202,$O80,'Report - ALL (DASHBOARD)'!$W$4) -> 0 | R80: =INDEX('Compile Data'!$AK$121:$BH$202,$O80,'Report - ALL (DASHBOARD)'!$W$4) -> 116.0188714 | S80: =INDEX('Compile Data'!$BK$121:$CH$202,$O80,'Report - ALL (DASHBOARD)'!$W$4) -> 140.1581975 | T80: =INDEX('Compile Data'!$CK$121:$DH$202,$O80,'Report - ALL (DASHBOARD)'!$W$4) -> 135.9464721 | U80: =INDEX('Compile Data'!$DK$121:$EH$202,$O80,'Report - ALL (DASHBOARD)'!$W$4) -> 129.7560425
A81: 1974 | B81: =INDEX('Compile Data'!$K$12:$AH$93,$A81-1921,'Report - ALL (DASHBOARD)'!$W$4) -> 0 | C81: =INDEX('Compile Data'!$AK$12:$BH$93,$A81-1921,'Report - ALL (DASHBOARD)'!$W$4) -> 59.3879569 | D81: =INDEX('Compile Data'!$BK$12:$CH$93,$A81-1921,'Report - ALL (DASHBOARD)'!$W$4) -> 86.63792622 | E81: =INDEX('Compile Data'!$CK$12:$DH$93,$A81-1921,'Report - ALL (DASHBOARD)'!$W$4) -> 87.07604849 | F81: =INDEX('Compile Data'!$DK$12:$EH$93,$A81-1921,'Report - ALL (DASHBOARD)'!$W$4) -> 86.66336416 | O81: 53 | P81: 0.6419753086 | Q81: =INDEX('Compile Data'!$K$121:$AH$202,$O81,'Report - ALL (DASHBOARD)'!$W$4) -> 0 | R81: =INDEX('Compile Data'!$AK$121:$BH$202,$O81,'Report - ALL (DASHBOARD)'!$W$4) -> 113.2347289 | S81: =INDEX('Compile Data'!$BK$121:$CH$202,$O81,'Report - ALL (DASHBOARD)'!$W$4) -> 137.4569465 | T81: =INDEX('Compile Data'!$CK$121:$DH$202,$O81,'Report - ALL (DASHBOARD)'!$W$4) -> 130.6775718 | U81: =INDEX('Compile Data'!$DK$121:$EH$202,$O81,'Report - ALL (DASHBOARD)'!$W$4) -> 122.5439707
A82: 1975 | B82: =INDEX('Compile Data'!$K$12:$AH$93,$A82-1921,'Report - ALL (DASHBOARD)'!$W$4) -> 0 | C82: =INDEX('Compile Data'!$AK$12:$BH$93,$A82-1921,'Report - ALL (DASHBOARD)'!$W$4) -> 88.45599864 | D82: =INDEX('Compile Data'!$BK$12:$CH$93,$A82-1921,'Report - ALL (DASHBOARD)'!$W$4) -> 60.86979174 | E82: =INDEX('Compile Data'!$CK$12:$DH$93,$A82-1921,'Report - ALL (DASHBOARD)'!$W$4) -> 78.72103141 | F82: =INDEX('Compile Data'!$DK$12:$EH$93,$A82-1921,'Report - ALL (DASHBOARD)'!$W$4) -> 106.3072383 | O82: 54 | P82: 0.6543209877 | Q82: =INDEX('Compile Data'!$K$121:$AH$202,$O82,'Report - ALL (DASHBOARD)'!$W$4) -> 0 | R82: =INDEX('Compile Data'!$AK$121:$BH$202,$O82,'Report - ALL (DASHBOARD)'!$W$4) -> 112.4368113 | S82: =INDEX('Compile Data'!$BK$121:$CH$202,$O82,'Report - ALL (DASHBOARD)'!$W$4) -> 136.3261044 | T82: =INDEX('Compile Data'!$CK$121:$DH$202,$O82,'Report - ALL (DASHBOARD)'!$W$4) -> 129.0594953 | U82: =INDEX('Compile Data'!$DK$121:$EH$202,$O82,'Report - ALL (DASHBOARD)'!$W$4) -> 115.4118916
A83: 1976 | B83: =INDEX('Compile Data'!$K$12:$AH$93,$A83-1921,'Report - ALL (DASHBOARD)'!$W$4) -> 0 | C83: =INDEX('Compile Data'!$AK$12:$BH$93,$A83-1921,'Report - ALL (DASHBOARD)'!$W$4) -> 328.810101 | D83: =INDEX('Compile Data'!$BK$12:$CH$93,$A83-1921,'Report - ALL (DASHBOARD)'!$W$4) -> 329.3607139 | E83: =INDEX('Compile Data'!$CK$12:$DH$93,$A83-1921,'Report - ALL (DASHBOARD)'!$W$4) -> 325.7456644 | F83: =INDEX('Compile Data'!$DK$12:$EH$93,$A83-1921,'Report - ALL (DASHBOARD)'!$W$4) -> 325.7869239 | O83: 55 | P83: 0.6666666667 | Q83: =INDEX('Compile Data'!$K$121:$AH$202,$O83,'Report - ALL (DASHBOARD)'!$W$4) -> 0 | R83: =INDEX('Compile Data'!$AK$121:$BH$202,$O83,'Report - ALL (DASHBOARD)'!$W$4) -> 109.9752154 | S83: =INDEX('Compile Data'!$BK$121:$CH$202,$O83,'Report - ALL (DASHBOARD)'!$W$4) -> 135.919172 | T83: =INDEX('Compile Data'!$CK$121:$DH$202,$O83,'Report - ALL (DASHBOARD)'!$W$4) -> 121.8063782 | U83: =INDEX('Compile Data'!$DK$121:$EH$202,$O83,'Report - ALL (DASHBOARD)'!$W$4) -> 112.5022792
A84: 1977 | B84: =INDEX('Compile Data'!$K$12:$AH$93,$A84-1921,'Report - ALL (DASHBOARD)'!$W$4) -> 0 | C84: =INDEX('Compile Data'!$AK$12:$BH$93,$A84-1921,'Report - ALL (DASHBOARD)'!$W$4) -> 607.3882734 | D84: =INDEX('Compile Data'!$BK$12:$CH$93,$A84-1921,'Report - ALL (DASHBOARD)'!$W$4) -> 607.3764857 | E84: =INDEX('Compile Data'!$CK$12:$DH$93,$A84-1921,'Report - ALL (DASHBOARD)'!$W$4) -> 606.8721654 | F84: =INDEX('Compile Data'!$DK$12:$EH$93,$A84-1921,'Report - ALL (DASHBOARD)'!$W$4) -> 606.8701998 | O84: 56 | P84: 0.6790123457 | Q84: =INDEX('Compile Data'!$K$121:$AH$202,$O84,'Report - ALL (DASHBOARD)'!$W$4) -> 0 | R84: =INDEX('Compile Data'!$AK$121:$BH$202,$O84,'Report - ALL (DASHBOARD)'!$W$4) -> 108.2984998 | S84: =INDEX('Compile Data'!$BK$121:$CH$202,$O84,'Report - ALL (DASHBOARD)'!$W$4) -> 111.8190343 | T84: =INDEX('Compile Data'!$CK$121:$DH$202,$O84,'Report - ALL (DASHBOARD)'!$W$4) -> 119.7827126 | U84: =INDEX('Compile Data'!$DK$121:$EH$202,$O84,'Report - ALL (DASHBOARD)'!$W$4) -> 111.9883523
A85: 1978 | B85: =INDEX('Compile Data'!$K$12:$AH$93,$A85-1921,'Report - ALL (DASHBOARD)'!$W$4) -> 0 | C85: =INDEX('Compile Data'!$AK$12:$BH$93,$A85-1921,'Report - ALL (DASHBOARD)'!$W$4) -> 213.3281088 | D85: =INDEX('Compile Data'!$BK$12:$CH$93,$A85-1921,'Report - ALL (DASHBOARD)'!$W$4) -> 213.3210977 | E85: =INDEX('Compile Data'!$CK$12:$DH$93,$A85-1921,'Report - ALL (DASHBOARD)'!$W$4) -> 210.9110784 | F85: =INDEX('Compile Data'!$DK$12:$EH$93,$A85-1921,'Report - ALL (DASHBOARD)'!$W$4) -> 210.8968326 | O85: 57 | P85: 0.6913580247 | Q85: =INDEX('Compile Data'!$K$121:$AH$202,$O85,'Report - ALL (DASHBOARD)'!$W$4) -> 0 | R85: =INDEX('Compile Data'!$AK$121:$BH$202,$O85,'Report - ALL (DASHBOARD)'!$W$4) -> 102.6557464 | S85: =INDEX('Compile Data'!$BK$121:$CH$202,$O85,'Report - ALL (DASHBOARD)'!$W$4) -> 109.9752154 | T85: =INDEX('Compile Data'!$CK$121:$DH$202,$O85,'Report - ALL (DASHBOARD)'!$W$4) -> 109.5468439 | U85: =INDEX('Compile Data'!$DK$121:$EH$202,$O85,'Report - ALL (DASHBOARD)'!$W$4) -> 109.575553
A86: 1979 | B86: =INDEX('Compile Data'!$K$12:$AH$93,$A86-1921,'Report - ALL (DASHBOARD)'!$W$4) -> 0 | C86: =INDEX('Compile Data'!$AK$12:$BH$93,$A86-1921,'Report - ALL (DASHBOARD)'!$W$4) -> 150.7646709 | D86: =INDEX('Compile Data'!$BK$12:$CH$93,$A86-1921,'Report - ALL (DASHBOARD)'!$W$4) -> 150.754661 | E86: =INDEX('Compile Data'!$CK$12:$DH$93,$A86-1921,'Report - ALL (DASHBOARD)'!$W$4) -> 151.4968833 | F86: =INDEX('Compile Data'!$DK$12:$EH$93,$A86-1921,'Report - ALL (DASHBOARD)'!$W$4) -> 151.6841359 | O86: 58 | P86: 0.7037037037 | Q86: =INDEX('Compile Data'!$K$121:$AH$202,$O86,'Report - ALL (DASHBOARD)'!$W$4) -> 0 | R86: =INDEX('Compile Data'!$AK$121:$BH$202,$O86,'Report - ALL (DASHBOARD)'!$W$4) -> 94.11914275 | S86: =INDEX('Compile Data'!$BK$121:$CH$202,$O86,'Report - ALL (DASHBOARD)'!$W$4) -> 108.2984998 | T86: =INDEX('Compile Data'!$CK$121:$DH$202,$O86,'Report - ALL (DASHBOARD)'!$W$4) -> 108.2984998 | U86: =INDEX('Compile Data'!$DK$121:$EH$202,$O86,'Report - ALL (DASHBOARD)'!$W$4) -> 108.2984998
A87: 1980 | B87: =INDEX('Compile Data'!$K$12:$AH$93,$A87-1921,'Report - ALL (DASHBOARD)'!$W$4) -> 0 | C87: =INDEX('Compile Data'!$AK$12:$BH$93,$A87-1921,'Report - ALL (DASHBOARD)'!$W$4) -> 217.5201243 | D87: =INDEX('Compile Data'!$BK$12:$CH$93,$A87-1921,'Report - ALL (DASHBOARD)'!$W$4) -> 217.512885 | E87: =INDEX('Compile Data'!$CK$12:$DH$93,$A87-1921,'Report - ALL (DASHBOARD)'!$W$4) -> 218.2380398 | F87: =INDEX('Compile Data'!$DK$12:$EH$93,$A87-1921,'Report - ALL (DASHBOARD)'!$W$4) -> 218.3379575 | O87: 59 | P87: 0.7160493827 | Q87: =INDEX('Compile Data'!$K$121:$AH$202,$O87,'Report - ALL (DASHBOARD)'!$W$4) -> 0 | R87: =INDEX('Compile Data'!$AK$121:$BH$202,$O87,'Report - ALL (DASHBOARD)'!$W$4) -> 94.11728517 | S87: =INDEX('Compile Data'!$BK$121:$CH$202,$O87,'Report - ALL (DASHBOARD)'!$W$4) -> 99.79087541 | T87: =INDEX('Compile Data'!$CK$121:$DH$202,$O87,'Report - ALL (DASHBOARD)'!$W$4) -> 94.11927859 | U87: =INDEX('Compile Data'!$DK$121:$EH$202,$O87,'Report - ALL (DASHBOARD)'!$W$4) -> 106.3072383
A88: 1981 | B88: =INDEX('Compile Data'!$K$12:$AH$93,$A88-1921,'Report - ALL (DASHBOARD)'!$W$4) -> 0 | C88: =INDEX('Compile Data'!$AK$12:$BH$93,$A88-1921,'Report - ALL (DASHBOARD)'!$W$4) -> 328.5708113 | D88: =INDEX('Compile Data'!$BK$12:$CH$93,$A88-1921,'Report - ALL (DASHBOARD)'!$W$4) -> 355.8983107 | E88: =INDEX('Compile Data'!$CK$12:$DH$93,$A88-1921,'Report - ALL (DASHBOARD)'!$W$4) -> 327.0272379 | F88: =INDEX('Compile Data'!$DK$12:$EH$93,$A88-1921,'Report - ALL (DASHBOARD)'!$W$4) -> 326.9016446 | O88: 60 | P88: 0.7283950617 | Q88: =INDEX('Compile Data'!$K$121:$AH$202,$O88,'Report - ALL (DASHBOARD)'!$W$4) -> 0 | R88: =INDEX('Compile Data'!$AK$121:$BH$202,$O88,'Report - ALL (DASHBOARD)'!$W$4) -> 92.7987579 | S88: =INDEX('Compile Data'!$BK$121:$CH$202,$O88,'Report - ALL (DASHBOARD)'!$W$4) -> 94.11911961 | T88: =INDEX('Compile Data'!$CK$121:$DH$202,$O88,'Report - ALL (DASHBOARD)'!$W$4) -> 92.68856601 | U88: =INDEX('Compile Data'!$DK$121:$EH$202,$O88,'Report - ALL (DASHBOARD)'!$W$4) -> 94.14650502
A89: 1982 | B89: =INDEX('Compile Data'!$K$12:$AH$93,$A89-1921,'Report - ALL (DASHBOARD)'!$W$4) -> 0 | C89: =INDEX('Compile Data'!$AK$12:$BH$93,$A89-1921,'Report - ALL (DASHBOARD)'!$W$4) -> 82.77871974 | D89: =INDEX('Compile Data'!$BK$12:$CH$93,$A89-1921,'Report - ALL (DASHBOARD)'!$W$4) -> 82.83405623 | E89: =INDEX('Compile Data'!$CK$12:$DH$93,$A89-1921,'Report - ALL (DASHBOARD)'!$W$4) -> 82.76712678 | F89: =INDEX('Compile Data'!$DK$12:$EH$93,$A89-1921,'Report - ALL (DASHBOARD)'!$W$4) -> 55.19177056 | O89: 61 | P89: 0.7407407407 | Q89: =INDEX('Compile Data'!$K$121:$AH$202,$O89,'Report - ALL (DASHBOARD)'!$W$4) -> 0 | R89: =INDEX('Compile Data'!$AK$121:$BH$202,$O89,'Report - ALL (DASHBOARD)'!$W$4) -> 92.68856904 | S89: =INDEX('Compile Data'!$BK$121:$CH$202,$O89,'Report - ALL (DASHBOARD)'!$W$4) -> 94.02499278 | T89: =INDEX('Compile Data'!$CK$121:$DH$202,$O89,'Report - ALL (DASHBOARD)'!$W$4) -> 92.14704037 | U89: =INDEX('Compile Data'!$DK$121:$EH$202,$O89,'Report - ALL (DASHBOARD)'!$W$4) -> 94.11917339
A90: 1983 | B90: =INDEX('Compile Data'!$K$12:$AH$93,$A90-1921,'Report - ALL (DASHBOARD)'!$W$4) -> 0 | C90: =INDEX('Compile Data'!$AK$12:$BH$93,$A90-1921,'Report - ALL (DASHBOARD)'!$W$4) -> 61.48760331 | D90: =INDEX('Compile Data'!$BK$12:$CH$93,$A90-1921,'Report - ALL (DASHBOARD)'!$W$4) -> 61.48760331 | E90: =INDEX('Compile Data'!$CK$12:$DH$93,$A90-1921,'Report - ALL (DASHBOARD)'!$W$4) -> 90.14918058 | F90: =INDEX('Compile Data'!$DK$12:$EH$93,$A90-1921,'Report - ALL (DASHBOARD)'!$W$4) -> 90.14918058 | O90: 62 | P90: 0.7530864198 | Q90: =INDEX('Compile Data'!$K$121:$AH$202,$O90,'Report - ALL (DASHBOARD)'!$W$4) -> 0 | R90: =INDEX('Compile Data'!$AK$121:$BH$202,$O90,'Report - ALL (DASHBOARD)'!$W$4) -> 92.14702888 | S90: =INDEX('Compile Data'!$BK$121:$CH$202,$O90,'Report - ALL (DASHBOARD)'!$W$4) -> 92.83158708 | T90: =INDEX('Compile Data'!$CK$121:$DH$202,$O90,'Report - ALL (DASHBOARD)'!$W$4) -> 90.95940941 | U90: =INDEX('Compile Data'!$DK$121:$EH$202,$O90,'Report - ALL (DASHBOARD)'!$W$4) -> 92.68856564
A91: 1984 | B91: =INDEX('Compile Data'!$K$12:$AH$93,$A91-1921,'Report - ALL (DASHBOARD)'!$W$4) -> 0 | C91: =INDEX('Compile Data'!$AK$12:$BH$93,$A91-1921,'Report - ALL (DASHBOARD)'!$W$4) -> 65.1724138 | D91: =INDEX('Compile Data'!$BK$12:$CH$93,$A91-1921,'Report - ALL (DASHBOARD)'!$W$4) -> 65.1724138 | E91: =INDEX('Compile Data'!$CK$12:$DH$93,$A91-1921,'Report - ALL (DASHBOARD)'!$W$4) -> 65.1724138 | F91: =INDEX('Compile Data'!$DK$12:$EH$93,$A91-1921,'Report - ALL (DASHBOARD)'!$W$4) -> 65.1724138 | O91: 63 | P91: 0.7654320988 | Q91: =INDEX('Compile Data'!$K$121:$AH$202,$O91,'Report - ALL (DASHBOARD)'!$W$4) -> 0 | R91: =INDEX('Compile Data'!$AK$121:$BH$202,$O91,'Report - ALL (DASHBOARD)'!$W$4) -> 88.45599864 | S91: =INDEX('Compile Data'!$BK$121:$CH$202,$O91,'Report - ALL (DASHBOARD)'!$W$4) -> 92.68856832 | T91: =INDEX('Compile Data'!$CK$121:$DH$202,$O91,'Report - ALL (DASHBOARD)'!$W$4) -> 90.14918058 | U91: =INDEX('Compile Data'!$DK$121:$EH$202,$O91,'Report - ALL (DASHBOARD)'!$W$4) -> 92.14702364
A92: 1985 | B92: =INDEX('Compile Data'!$K$12:$AH$93,$A92-1921,'Report - ALL (DASHBOARD)'!$W$4) -> 0 | C92: =INDEX('Compile Data'!$AK$12:$BH$93,$A92-1921,'Report - ALL (DASHBOARD)'!$W$4) -> 416.1160759 | D92: =INDEX('Compile Data'!$BK$12:$CH$93,$A92-1921,'Report - ALL (DASHBOARD)'!$W$4) -> 417.8884425 | E92: =INDEX('Compile Data'!$CK$12:$DH$93,$A92-1921,'Report - ALL (DASHBOARD)'!$W$4) -> 432.4623649 | F92: =INDEX('Compile Data'!$DK$12:$EH$93,$A92-1921,'Report - ALL (DASHBOARD)'!$W$4) -> 431.0181556 | O92: 64 | P92: 0.7777777778 | Q92: =INDEX('Compile Data'!$K$121:$AH$202,$O92,'Report - ALL (DASHBOARD)'!$W$4) -> 0 | R92: =INDEX('Compile Data'!$AK$121:$BH$202,$O92,'Report - ALL (DASHBOARD)'!$W$4) -> 82.77871974 | S92: =INDEX('Compile Data'!$BK$121:$CH$202,$O92,'Report - ALL (DASHBOARD)'!$W$4) -> 92.14709075 | T92: =INDEX('Compile Data'!$CK$121:$DH$202,$O92,'Report - ALL (DASHBOARD)'!$W$4) -> 87.60755942 | U92: =INDEX('Compile Data'!$DK$121:$EH$202,$O92,'Report - ALL (DASHBOARD)'!$W$4) -> 90.14918058
A93: 1986 | B93: =INDEX('Compile Data'!$K$12:$AH$93,$A93-1921,'Report - ALL (DASHBOARD)'!$W$4) -> 0 | C93: =INDEX('Compile Data'!$AK$12:$BH$93,$A93-1921,'Report - ALL (DASHBOARD)'!$W$4) -> 156.8988424 | D93: =INDEX('Compile Data'!$BK$12:$CH$93,$A93-1921,'Report - ALL (DASHBOARD)'!$W$4) -> 156.8988424 | E93: =INDEX('Compile Data'!$CK$12:$DH$93,$A93-1921,'Report - ALL (DASHBOARD)'!$W$4) -> 156.8988424 | F93: =INDEX('Compile Data'!$DK$12:$EH$93,$A93-1921,'Report - ALL (DASHBOARD)'!$W$4) -> 156.8988424 | O93: 65 | P93: =(O93-1)/81 -> 0.7901234568 | Q93: =INDEX('Compile Data'!$K$121:$AH$202,$O93,'Report - ALL (DASHBOARD)'!$W$4) -> 0 | R93: =INDEX('Compile Data'!$AK$121:$BH$202,$O93,'Report - ALL (DASHBOARD)'!$W$4) -> 82.13259214 | S93: =INDEX('Compile Data'!$BK$121:$CH$202,$O93,'Report - ALL (DASHBOARD)'!$W$4) -> 86.63792622 | T93: =INDEX('Compile Data'!$CK$121:$DH$202,$O93,'Report - ALL (DASHBOARD)'!$W$4) -> 87.07604849 | U93: =INDEX('Compile Data'!$DK$121:$EH$202,$O93,'Report - ALL (DASHBOARD)'!$W$4) -> 86.66336416
A94: 1987 | B94: =INDEX('Compile Data'!$K$12:$AH$93,$A94-1921,'Report - ALL (DASHBOARD)'!$W$4) -> 0 | C94: =INDEX('Compile Data'!$AK$12:$BH$93,$A94-1921,'Report - ALL (DASHBOARD)'!$W$4) -> 544.7342387 | D94: =INDEX('Compile Data'!$BK$12:$CH$93,$A94-1921,'Report - ALL (DASHBOARD)'!$W$4) -> 593.5102557 | E94: =INDEX('Compile Data'!$CK$12:$DH$93,$A94-1921,'Report - ALL (DASHBOARD)'!$W$4) -> 575.7780357 | F94: =INDEX('Compile Data'!$DK$12:$EH$93,$A94-1921,'Report - ALL (DASHBOARD)'!$W$4) -> 572.767872 | O94: 66 | P94: 0.8024691358 | Q94: =INDEX('Compile Data'!$K$121:$AH$202,$O94,'Report - ALL (DASHBOARD)'!$W$4) -> 0 | R94: =INDEX('Compile Data'!$AK$121:$BH$202,$O94,'Report - ALL (DASHBOARD)'!$W$4) -> 73.74769265 | S94: =INDEX('Compile Data'!$BK$121:$CH$202,$O94,'Report - ALL (DASHBOARD)'!$W$4) -> 83.23062725 | T94: =INDEX('Compile Data'!$CK$121:$DH$202,$O94,'Report - ALL (DASHBOARD)'!$W$4) -> 85.25647236 | U94: =INDEX('Compile Data'!$DK$121:$EH$202,$O94,'Report - ALL (DASHBOARD)'!$W$4) -> 85.79055803
A95: =A94+1 -> 1988 | B95: =INDEX('Compile Data'!$K$12:$AH$93,$A95-1921,'Report - ALL (DASHBOARD)'!$W$4) -> 0 | C95: =INDEX('Compile Data'!$AK$12:$BH$93,$A95-1921,'Report - ALL (DASHBOARD)'!$W$4) -> 547.577715 | D95: =INDEX('Compile Data'!$BK$12:$CH$93,$A95-1921,'Report - ALL (DASHBOARD)'!$W$4) -> 604.3932222 | E95: =INDEX('Compile Data'!$CK$12:$DH$93,$A95-1921,'Report - ALL (DASHBOARD)'!$W$4) -> 579.110649 | F95: =INDEX('Compile Data'!$DK$12:$EH$93,$A95-1921,'Report - ALL (DASHBOARD)'!$W$4) -> 546.0150642 | O95: 67 | P95: 0.8148148148 | Q95: =INDEX('Compile Data'!$K$121:$AH$202,$O95,'Report - ALL (DASHBOARD)'!$W$4) -> 0 | R95: =INDEX('Compile Data'!$AK$121:$BH$202,$O95,'Report - ALL (DASHBOARD)'!$W$4) -> 73.02365347 | S95: =INDEX('Compile Data'!$BK$121:$CH$202,$O95,'Report - ALL (DASHBOARD)'!$W$4) -> 82.83405623 | T95: =INDEX('Compile Data'!$CK$121:$DH$202,$O95,'Report - ALL (DASHBOARD)'!$W$4) -> 84.91607234 | U95: =INDEX('Compile Data'!$DK$121:$EH$202,$O95,'Report - ALL (DASHBOARD)'!$W$4) -> 85.25647236
A96: 1989 | B96: =INDEX('Compile Data'!$K$12:$AH$93,$A96-1921,'Report - ALL (DASHBOARD)'!$W$4) -> 0 | C96: =INDEX('Compile Data'!$AK$12:$BH$93,$A96-1921,'Report - ALL (DASHBOARD)'!$W$4) -> 197.4808424 | D96: =INDEX('Compile Data'!$BK$12:$CH$93,$A96-1921,'Report - ALL (DASHBOARD)'!$W$4) -> 194.011458 | E96: =INDEX('Compile Data'!$CK$12:$DH$93,$A96-1921,'Report - ALL (DASHBOARD)'!$W$4) -> 197.6705358 | F96: =INDEX('Compile Data'!$DK$12:$EH$93,$A96-1921,'Report - ALL (DASHBOARD)'!$W$4) -> 196.7837454 | O96: 68 | P96: 0.8271604938 | Q96: =INDEX('Compile Data'!$K$121:$AH$202,$O96,'Report - ALL (DASHBOARD)'!$W$4) -> 0 | R96: =INDEX('Compile Data'!$AK$121:$BH$202,$O96,'Report - ALL (DASHBOARD)'!$W$4) -> 70.85969032 | S96: =INDEX('Compile Data'!$BK$121:$CH$202,$O96,'Report - ALL (DASHBOARD)'!$W$4) -> 82.34783327 | T96: =INDEX('Compile Data'!$CK$121:$DH$202,$O96,'Report - ALL (DASHBOARD)'!$W$4) -> 83.08298402 | U96: =INDEX('Compile Data'!$DK$121:$EH$202,$O96,'Report - ALL (DASHBOARD)'!$W$4) -> 83.08298402
A97: 1990 | B97: =INDEX('Compile Data'!$K$12:$AH$93,$A97-1921,'Report - ALL (DASHBOARD)'!$W$4) -> 0 | C97: =INDEX('Compile Data'!$AK$12:$BH$93,$A97-1921,'Report - ALL (DASHBOARD)'!$W$4) -> 70.85969032 | D97: =INDEX('Compile Data'!$BK$12:$CH$93,$A97-1921,'Report - ALL (DASHBOARD)'!$W$4) -> 77.06363323 | E97: =INDEX('Compile Data'!$CK$12:$DH$93,$A97-1921,'Report - ALL (DASHBOARD)'!$W$4) -> 77.4816505 | F97: =INDEX('Compile Data'!$DK$12:$EH$93,$A97-1921,'Report - ALL (DASHBOARD)'!$W$4) -> 77.37435903 | O97: 69 | P97: 0.8395061728 | Q97: =INDEX('Compile Data'!$K$121:$AH$202,$O97,'Report - ALL (DASHBOARD)'!$W$4) -> 0 | R97: =INDEX('Compile Data'!$AK$121:$BH$202,$O97,'Report - ALL (DASHBOARD)'!$W$4) -> 68.64270331 | S97: =INDEX('Compile Data'!$BK$121:$CH$202,$O97,'Report - ALL (DASHBOARD)'!$W$4) -> 77.06363323 | T97: =INDEX('Compile Data'!$CK$121:$DH$202,$O97,'Report - ALL (DASHBOARD)'!$W$4) -> 82.76712678 | U97: =INDEX('Compile Data'!$DK$121:$EH$202,$O97,'Report - ALL (DASHBOARD)'!$W$4) -> 77.37435903
A98: 1991 | B98: =INDEX('Compile Data'!$K$12:$AH$93,$A98-1921,'Report - ALL (DASHBOARD)'!$W$4) -> 0 | C98: =INDEX('Compile Data'!$AK$12:$BH$93,$A98-1921,'Report - ALL (DASHBOARD)'!$W$4) -> 137.4185589 | D98: =INDEX('Compile Data'!$BK$12:$CH$93,$A98-1921,'Report - ALL (DASHBOARD)'!$W$4) -> 137.4569465 | E98: =INDEX('Compile Data'!$CK$12:$DH$93,$A98-1921,'Report - ALL (DASHBOARD)'!$W$4) -> 137.3739159 | F98: =INDEX('Compile Data'!$DK$12:$EH$93,$A98-1921,'Report - ALL (DASHBOARD)'!$W$4) -> 136.8107623 | O98: 70 | P98: 0.8518518519 | Q98: =INDEX('Compile Data'!$K$121:$AH$202,$O98,'Report - ALL (DASHBOARD)'!$W$4) -> 0 | R98: =INDEX('Compile Data'!$AK$121:$BH$202,$O98,'Report - ALL (DASHBOARD)'!$W$4) -> 68.01775652 | S98: =INDEX('Compile Data'!$BK$121:$CH$202,$O98,'Report - ALL (DASHBOARD)'!$W$4) -> 73.02365347 | T98: =INDEX('Compile Data'!$CK$121:$DH$202,$O98,'Report - ALL (DASHBOARD)'!$W$4) -> 78.72103141 | U98: =INDEX('Compile Data'!$DK$121:$EH$202,$O98,'Report - ALL (DASHBOARD)'!$W$4) -> 73.02365347
A99: 1992 | B99: =INDEX('Compile Data'!$K$12:$AH$93,$A99-1921,'Report - ALL (DASHBOARD)'!$W$4) -> 0 | C99: =INDEX('Compile Data'!$AK$12:$BH$93,$A99-1921,'Report - ALL (DASHBOARD)'!$W$4) -> 68.64270331 | D99: =INDEX('Compile Data'!$BK$12:$CH$93,$A99-1921,'Report - ALL (DASHBOARD)'!$W$4) -> 69.26502512 | E99: =INDEX('Compile Data'!$CK$12:$DH$93,$A99-1921,'Report - ALL (DASHBOARD)'!$W$4) -> 68.95215961 | F99: =INDEX('Compile Data'!$DK$12:$EH$93,$A99-1921,'Report - ALL (DASHBOARD)'!$W$4) -> 68.9166071 | O99: 71 | P99: 0.8641975309 | Q99: =INDEX('Compile Data'!$K$121:$AH$202,$O99,'Report - ALL (DASHBOARD)'!$W$4) -> 0 | R99: =INDEX('Compile Data'!$AK$121:$BH$202,$O99,'Report - ALL (DASHBOARD)'!$W$4) -> 65.1724138 | S99: =INDEX('Compile Data'!$BK$121:$CH$202,$O99,'Report - ALL (DASHBOARD)'!$W$4) -> 72.25799974 | T99: =INDEX('Compile Data'!$CK$121:$DH$202,$O99,'Report - ALL (DASHBOARD)'!$W$4) -> 77.4816505 | U99: =INDEX('Compile Data'!$DK$121:$EH$202,$O99,'Report - ALL (DASHBOARD)'!$W$4) -> 70.96523945
A100: 1993 | B100: =INDEX('Compile Data'!$K$12:$AH$93,$A100-1921,'Report - ALL (DASHBOARD)'!$W$4) -> 0 | C100: =INDEX('Compile Data'!$AK$12:$BH$93,$A100-1921,'Report - ALL (DASHBOARD)'!$W$4) -> 112.4368113 | D100: =INDEX('Compile Data'!$BK$12:$CH$93,$A100-1921,'Report - ALL (DASHBOARD)'!$W$4) -> 111.8190343 | E100: =INDEX('Compile Data'!$CK$12:$DH$93,$A100-1921,'Report - ALL (DASHBOARD)'!$W$4) -> 109.5468439 | F100: =INDEX('Compile Data'!$DK$12:$EH$93,$A100-1921,'Report - ALL (DASHBOARD)'!$W$4) -> 109.575553 | O100: 72 | P100: 0.8765432099 | Q100: =INDEX('Compile Data'!$K$121:$AH$202,$O100,'Report - ALL (DASHBOARD)'!$W$4) -> 0 | R100: =INDEX('Compile Data'!$AK$121:$BH$202,$O100,'Report - ALL (DASHBOARD)'!$W$4) -> 64.42689506 | S100: =INDEX('Compile Data'!$BK$121:$CH$202,$O100,'Report - ALL (DASHBOARD)'!$W$4) -> 69.26502512 | T100: =INDEX('Compile Data'!$CK$121:$DH$202,$O100,'Report - ALL (DASHBOARD)'!$W$4) -> 73.02365347 | U100: =INDEX('Compile Data'!$DK$121:$EH$202,$O100,'Report - ALL (DASHBOARD)'!$W$4) -> 70.08392313
A101: 1994 | B101: =INDEX('Compile Data'!$K$12:$AH$93,$A101-1921,'Report - ALL (DASHBOARD)'!$W$4) -> 0 | C101: =INDEX('Compile Data'!$AK$12:$BH$93,$A101-1921,'Report - ALL (DASHBOARD)'!$W$4) -> 336.7916655 | D101: =INDEX('Compile Data'!$BK$12:$CH$93,$A101-1921,'Report - ALL (DASHBOARD)'!$W$4) -> 344.6790232 | E101: =INDEX('Compile Data'!$CK$12:$DH$93,$A101-1921,'Report - ALL (DASHBOARD)'!$W$4) -> 345.076469 | F101: =INDEX('Compile Data'!$DK$12:$EH$93,$A101-1921,'Report - ALL (DASHBOARD)'!$W$4) -> 340.500609 | O101: 73 | P101: 0.8888888889 | Q101: =INDEX('Compile Data'!$K$121:$AH$202,$O101,'Report - ALL (DASHBOARD)'!$W$4) -> 0 | R101: =INDEX('Compile Data'!$AK$121:$BH$202,$O101,'Report - ALL (DASHBOARD)'!$W$4) -> 61.59384891 | S101: =INDEX('Compile Data'!$BK$121:$CH$202,$O101,'Report - ALL (DASHBOARD)'!$W$4) -> 67.40523269 | T101: =INDEX('Compile Data'!$CK$121:$DH$202,$O101,'Report - ALL (DASHBOARD)'!$W$4) -> 72.68337422 | U101: =INDEX('Compile Data'!$DK$121:$EH$202,$O101,'Report - ALL (DASHBOARD)'!$W$4) -> 68.9166071
A102: 1995 | B102: =INDEX('Compile Data'!$K$12:$AH$93,$A102-1921,'Report - ALL (DASHBOARD)'!$W$4) -> 0 | C102: =INDEX('Compile Data'!$AK$12:$BH$93,$A102-1921,'Report - ALL (DASHBOARD)'!$W$4) -> 82.13259214 | D102: =INDEX('Compile Data'!$BK$12:$CH$93,$A102-1921,'Report - ALL (DASHBOARD)'!$W$4) -> 94.02499278 | E102: =INDEX('Compile Data'!$CK$12:$DH$93,$A102-1921,'Report - ALL (DASHBOARD)'!$W$4) -> 119.7827126 | F102: =INDEX('Compile Data'!$DK$12:$EH$93,$A102-1921,'Report - ALL (DASHBOARD)'!$W$4) -> 85.79055803 | O102: 74 | P102: 0.9012345679 | Q102: =INDEX('Compile Data'!$K$121:$AH$202,$O102,'Report - ALL (DASHBOARD)'!$W$4) -> 0 | R102: =INDEX('Compile Data'!$AK$121:$BH$202,$O102,'Report - ALL (DASHBOARD)'!$W$4) -> 61.48760331 | S102: =INDEX('Compile Data'!$BK$121:$CH$202,$O102,'Report - ALL (DASHBOARD)'!$W$4) -> 66.01064117 | T102: =INDEX('Compile Data'!$CK$121:$DH$202,$O102,'Report - ALL (DASHBOARD)'!$W$4) -> 70.08058229 | U102: =INDEX('Compile Data'!$DK$121:$EH$202,$O102,'Report - ALL (DASHBOARD)'!$W$4) -> 68.01775652
A103: 1996 | B103: =INDEX('Compile Data'!$K$12:$AH$93,$A103-1921,'Report - ALL (DASHBOARD)'!$W$4) -> 0 | C103: =INDEX('Compile Data'!$AK$12:$BH$93,$A103-1921,'Report - ALL (DASHBOARD)'!$W$4) -> 73.02365347 | D103: =INDEX('Compile Data'!$BK$12:$CH$93,$A103-1921,'Report - ALL (DASHBOARD)'!$W$4) -> 73.02365347 | E103: =INDEX('Compile Data'!$CK$12:$DH$93,$A103-1921,'Report - ALL (DASHBOARD)'!$W$4) -> 73.02365347 | F103: =INDEX('Compile Data'!$DK$12:$EH$93,$A103-1921,'Report - ALL (DASHBOARD)'!$W$4) -> 73.02365347 | O103: 75 | P103: 0.9135802469 | Q103: =INDEX('Compile Data'!$K$121:$AH$202,$O103,'Report - ALL (DASHBOARD)'!$W$4) -> 0 | R103: =INDEX('Compile Data'!$AK$121:$BH$202,$O103,'Report - ALL (DASHBOARD)'!$W$4) -> 59.4024138 | S103: =INDEX('Compile Data'!$BK$121:$CH$202,$O103,'Report - ALL (DASHBOARD)'!$W$4) -> 65.1724138 | T103: =INDEX('Compile Data'!$CK$121:$DH$202,$O103,'Report - ALL (DASHBOARD)'!$W$4) -> 68.95215961 | U103: =INDEX('Compile Data'!$DK$121:$EH$202,$O103,'Report - ALL (DASHBOARD)'!$W$4) -> 65.1724138
A104: 1997 | B104: =INDEX('Compile Data'!$K$12:$AH$93,$A104-1921,'Report - ALL (DASHBOARD)'!$W$4) -> 0 | C104: =INDEX('Compile Data'!$AK$12:$BH$93,$A104-1921,'Report - ALL (DASHBOARD)'!$W$4) -> 94.11914275 | D104: =INDEX('Compile Data'!$BK$12:$CH$93,$A104-1921,'Report - ALL (DASHBOARD)'!$W$4) -> 94.11911961 | E104: =INDEX('Compile Data'!$CK$12:$DH$93,$A104-1921,'Report - ALL (DASHBOARD)'!$W$4) -> 94.11927859 | F104: =INDEX('Compile Data'!$DK$12:$EH$93,$A104-1921,'Report - ALL (DASHBOARD)'!$W$4) -> 94.11917339 | O104: 76 | P104: 0.9259259259 | Q104: =INDEX('Compile Data'!$K$121:$AH$202,$O104,'Report - ALL (DASHBOARD)'!$W$4) -> 0 | R104: =INDEX('Compile Data'!$AK$121:$BH$202,$O104,'Report - ALL (DASHBOARD)'!$W$4) -> 59.3879569 | S104: =INDEX('Compile Data'!$BK$121:$CH$202,$O104,'Report - ALL (DASHBOARD)'!$W$4) -> 64.42689506 | T104: =INDEX('Compile Data'!$CK$121:$DH$202,$O104,'Report - ALL (DASHBOARD)'!$W$4) -> 68.01775652 | U104: =INDEX('Compile Data'!$DK$121:$EH$202,$O104,'Report - ALL (DASHBOARD)'!$W$4) -> 64.42689506
A105: 1998 | B105: =INDEX('Compile Data'!$K$12:$AH$93,$A105-1921,'Report - ALL (DASHBOARD)'!$W$4) -> 0 | C105: =INDEX('Compile Data'!$AK$12:$BH$93,$A105-1921,'Report - ALL (DASHBOARD)'!$W$4) -> 61.59384891 | D105: =INDEX('Compile Data'!$BK$12:$CH$93,$A105-1921,'Report - ALL (DASHBOARD)'!$W$4) -> 61.59384891 | E105: =INDEX('Compile Data'!$CK$12:$DH$93,$A105-1921,'Report - ALL (DASHBOARD)'!$W$4) -> 61.59384891 | F105: =INDEX('Compile Data'!$DK$12:$EH$93,$A105-1921,'Report - ALL (DASHBOARD)'!$W$4) -> 61.59384891 | O105: 77 | P105: 0.9382716049 | Q105: =INDEX('Compile Data'!$K$121:$AH$202,$O105,'Report - ALL (DASHBOARD)'!$W$4) -> 0 | R105: =INDEX('Compile Data'!$AK$121:$BH$202,$O105,'Report - ALL (DASHBOARD)'!$W$4) -> 55.6496723 | S105: =INDEX('Compile Data'!$BK$121:$CH$202,$O105,'Report - ALL (DASHBOARD)'!$W$4) -> 62.6624138 | T105: =INDEX('Compile Data'!$CK$121:$DH$202,$O105,'Report - ALL (DASHBOARD)'!$W$4) -> 65.1724138 | U105: =INDEX('Compile Data'!$DK$121:$EH$202,$O105,'Report - ALL (DASHBOARD)'!$W$4) -> 61.59384891
A106: 1999 | B106: =INDEX('Compile Data'!$K$12:$AH$93,$A106-1921,'Report - ALL (DASHBOARD)'!$W$4) -> 0 | C106: =INDEX('Compile Data'!$AK$12:$BH$93,$A106-1921,'Report - ALL (DASHBOARD)'!$W$4) -> 64.42689506 | D106: =INDEX('Compile Data'!$BK$12:$CH$93,$A106-1921,'Report - ALL (DASHBOARD)'!$W$4) -> 64.42689506 | E106: =INDEX('Compile Data'!$CK$12:$DH$93,$A106-1921,'Report - ALL (DASHBOARD)'!$W$4) -> 64.42689506 | F106: =INDEX('Compile Data'!$DK$12:$EH$93,$A106-1921,'Report - ALL (DASHBOARD)'!$W$4) -> 64.42689506 | O106: 78 | P106: 0.950617284 | Q106: =INDEX('Compile Data'!$K$121:$AH$202,$O106,'Report - ALL (DASHBOARD)'!$W$4) -> 0 | R106: =INDEX('Compile Data'!$AK$121:$BH$202,$O106,'Report - ALL (DASHBOARD)'!$W$4) -> 49.8624443 | S106: =INDEX('Compile Data'!$BK$121:$CH$202,$O106,'Report - ALL (DASHBOARD)'!$W$4) -> 61.59384891 | T106: =INDEX('Compile Data'!$CK$121:$DH$202,$O106,'Report - ALL (DASHBOARD)'!$W$4) -> 64.42689506 | U106: =INDEX('Compile Data'!$DK$121:$EH$202,$O106,'Report - ALL (DASHBOARD)'!$W$4) -> 59.40261102
A107: 2000 | B107: =INDEX('Compile Data'!$K$12:$AH$93,$A107-1921,'Report - ALL (DASHBOARD)'!$W$4) -> 0 | C107: =INDEX('Compile Data'!$AK$12:$BH$93,$A107-1921,'Report - ALL (DASHBOARD)'!$W$4) -> 202.1235899 | D107: =INDEX('Compile Data'!$BK$12:$CH$93,$A107-1921,'Report - ALL (DASHBOARD)'!$W$4) -> 202.1235898 | E107: =INDEX('Compile Data'!$CK$12:$DH$93,$A107-1921,'Report - ALL (DASHBOARD)'!$W$4) -> 202.1235666 | F107: =INDEX('Compile Data'!$DK$12:$EH$93,$A107-1921,'Report - ALL (DASHBOARD)'!$W$4) -> 202.1235664 | O107: 79 | P107: 0.962962963 | Q107: =INDEX('Compile Data'!$K$121:$AH$202,$O107,'Report - ALL (DASHBOARD)'!$W$4) -> 0 | R107: =INDEX('Compile Data'!$AK$121:$BH$202,$O107,'Report - ALL (DASHBOARD)'!$W$4) -> 42.60250437 | S107: =INDEX('Compile Data'!$BK$121:$CH$202,$O107,'Report - ALL (DASHBOARD)'!$W$4) -> 61.48760331 | T107: =INDEX('Compile Data'!$CK$121:$DH$202,$O107,'Report - ALL (DASHBOARD)'!$W$4) -> 61.59384891 | U107: =INDEX('Compile Data'!$DK$121:$EH$202,$O107,'Report - ALL (DASHBOARD)'!$W$4) -> 56.8324138
A108: 2001 | B108: =INDEX('Compile Data'!$K$12:$AH$93,$A108-1921,'Report - ALL (DASHBOARD)'!$W$4) -> 0 | C108: =INDEX('Compile Data'!$AK$12:$BH$93,$A108-1921,'Report - ALL (DASHBOARD)'!$W$4) -> 413.6010812 | D108: =INDEX('Compile Data'!$BK$12:$CH$93,$A108-1921,'Report - ALL (DASHBOARD)'!$W$4) -> 413.6425723 | E108: =INDEX('Compile Data'!$CK$12:$DH$93,$A108-1921,'Report - ALL (DASHBOARD)'!$W$4) -> 413.3330241 | F108: =INDEX('Compile Data'!$DK$12:$EH$93,$A108-1921,'Report - ALL (DASHBOARD)'!$W$4) -> 413.3032815 | O108: 80 | P108: 0.975308642 | Q108: =INDEX('Compile Data'!$K$121:$AH$202,$O108,'Report - ALL (DASHBOARD)'!$W$4) -> 0 | R108: =INDEX('Compile Data'!$AK$121:$BH$202,$O108,'Report - ALL (DASHBOARD)'!$W$4) -> 39.8190258 | S108: =INDEX('Compile Data'!$BK$121:$CH$202,$O108,'Report - ALL (DASHBOARD)'!$W$4) -> 60.86979174 | T108: =INDEX('Compile Data'!$CK$121:$DH$202,$O108,'Report - ALL (DASHBOARD)'!$W$4) -> 59.4024138 | U108: =INDEX('Compile Data'!$DK$121:$EH$202,$O108,'Report - ALL (DASHBOARD)'!$W$4) -> 55.19177056
A109: 2002 | B109: =INDEX('Compile Data'!$K$12:$AH$93,$A109-1921,'Report - ALL (DASHBOARD)'!$W$4) -> 0 | C109: =INDEX('Compile Data'!$AK$12:$BH$93,$A109-1921,'Report - ALL (DASHBOARD)'!$W$4) -> 365.7238086 | D109: =INDEX('Compile Data'!$BK$12:$CH$93,$A109-1921,'Report - ALL (DASHBOARD)'!$W$4) -> 365.3328222 | E109: =INDEX('Compile Data'!$CK$12:$DH$93,$A109-1921,'Report - ALL (DASHBOARD)'!$W$4) -> 365.9041308 | F109: =INDEX('Compile Data'!$DK$12:$EH$93,$A109-1921,'Report - ALL (DASHBOARD)'!$W$4) -> 365.8886582 | O109: 81 | P109: 0.987654321 | Q109: =INDEX('Compile Data'!$K$121:$AH$202,$O109,'Report - ALL (DASHBOARD)'!$W$4) -> 0 | R109: =INDEX('Compile Data'!$AK$121:$BH$202,$O109,'Report - ALL (DASHBOARD)'!$W$4) -> 31.39517932 | S109: =INDEX('Compile Data'!$BK$121:$CH$202,$O109,'Report - ALL (DASHBOARD)'!$W$4) -> 59.40257851 | T109: =INDEX('Compile Data'!$CK$121:$DH$202,$O109,'Report - ALL (DASHBOARD)'!$W$4) -> 46.88551669 | U109: =INDEX('Compile Data'!$DK$121:$EH$202,$O109,'Report - ALL (DASHBOARD)'!$W$4) -> 47.4399182
A110: 2003 | B110: =INDEX('Compile Data'!$K$12:$AH$93,$A110-1921,'Report - ALL (DASHBOARD)'!$W$4) -> 0 | C110: =INDEX('Compile Data'!$AK$12:$BH$93,$A110-1921,'Report - ALL (DASHBOARD)'!$W$4) -> 236.4135426 | D110: =INDEX('Compile Data'!$BK$12:$CH$93,$A110-1921,'Report - ALL (DASHBOARD)'!$W$4) -> 235.6604668 | E110: =INDEX('Compile Data'!$CK$12:$DH$93,$A110-1921,'Report - ALL (DASHBOARD)'!$W$4) -> 236.6587715 | F110: =INDEX('Compile Data'!$DK$12:$EH$93,$A110-1921,'Report - ALL (DASHBOARD)'!$W$4) -> 236.5890047 | O110: 82 | P110: 1 | Q110: =INDEX('Compile Data'!$K$121:$AH$202,$O110,'Report - ALL (DASHBOARD)'!$W$4) -> 0 | R110: =INDEX('Compile Data'!$AK$121:$BH$202,$O110,'Report - ALL (DASHBOARD)'!$W$4) -> 29.2462069 | S110: =INDEX('Compile Data'!$BK$121:$CH$202,$O110,'Report - ALL (DASHBOARD)'!$W$4) -> 29.2462069 | T110: =INDEX('Compile Data'!$CK$121:$DH$202,$O110,'Report - ALL (DASHBOARD)'!$W$4) -> 29.2462069 | U110: =INDEX('Compile Data'!$DK$121:$EH$202,$O110,'Report - ALL (DASHBOARD)'!$W$4) -> 46.17030298

Sheet Compile Data
B1: =Control!$B$5 -> NAA 111820 | C1: =Control!$B$6 -> ALT1 rev01 PEA | D1: =Control!$B$7 -> ALT1 rev01 PEA NoFrpt | E1: =Control!$B$8 -> ALT1 rev01 PEA WS6 | F1: =Control!$B$9 -> ALT1 rev01 PEA WSv01 | AD1: =$B$8 -> PER-AVER | BD1: =$C$8 -> PER-AVER | CD1: ='Compile Data'!$D$8 -> PER-AVER | DD1: ='Compile Data'!$E$8 -> PER-AVER | ED1: ='Compile Data'!$F$8 -> PER-AVER
A2: Index: | B2: ='Report - ALL (DASHBOARD)'!W2 -> 32 | C2: =B2 -> 32 | D2: 32 | E2: 32 | F2: 32
A3: Convert? | B3: =IF('Report - ALL (DASHBOARD)'!W5,1,0) -> 1 | C3: 1 | D3: 1 | E3: 1 | F3: 1
A4: Column: | B4: =TRIM(VLOOKUP(B$2+2,DSSPathnames!$H$7:$K$190,2)) -> AH | C4: AH | D4: AH | E4: AH | F4: AH
A5: Title: | B5: =TRIM(VLOOKUP(B$2+2,DSSPathnames!$H$7:$K$190,4)) -> Total Sites Release | C5: =TRIM(VLOOKUP(C$2+2,DSSPathnames!$H$7:$K$190,4)) -> Total Sites Release | D5: =TRIM(VLOOKUP(D$2+2,DSSPathnames!$H$7:$K$190,4)) -> Total Sites Release | E5: =TRIM(VLOOKUP(E$2+2,DSSPathnames!$H$7:$K$190,4)) -> Total Sites Release | F5: =TRIM(VLOOKUP(F$2+2,DSSPathnames!$H$7:$K$190,4)) -> Total Sites Release
A6: Parameter: | B6: =INDIRECT(CONCATENATE("'",B$1,"'!",B$4,2)) -> C17604 | C6: =INDIRECT(CONCATENATE("'",C$1,"'!",C$4,2)) -> C17604 | D6: =INDIRECT(CONCATENATE("'",D$1,"'!",D$4,2)) -> C17604 | E6: =INDIRECT(CONCATENATE("'",E$1,"'!",E$4,2)) -> C17604 | F6: =INDIRECT(CONCATENATE("'",F$1,"'!",F$4,2)) -> C17604
B7: =INDIRECT(CONCATENATE("'",B$1,"'!",B$4,3)) -> FLOW-CHANNEL | C7: =INDIRECT(CONCATENATE("'",C$1,"'!",C$4,3)) -> FLOW-CHANNEL | D7: =INDIRECT(CONCATENATE("'",D$1,"'!",D$4,3)) -> FLOW-CHANNEL | E7: =INDIRECT(CONCATENATE("'",E$1,"'!",E$4,3)) -> FLOW-CHANNEL | F7: =INDIRECT(CONCATENATE("'",F$1,"'!",F$4,3)) -> FLOW-CHANNEL
A8: Type: | B8: =TRIM(VLOOKUP(B$2+2,DSSPathnames!$H$7:$K$190,3)) -> PER-AVER | C8: =TRIM(VLOOKUP(C$2+2,DSSPathnames!$H$7:$K$190,3)) -> PER-AVER | D8: =TRIM(VLOOKUP(D$2+2,DSSPathnames!$H$7:$K$190,3)) -> PER-AVER | E8: =TRIM(VLOOKUP(E$2+2,DSSPathnames!$H$7:$K$190,3)) -> PER-AVER | F8: =TRIM(VLOOKUP(F$2+2,DSSPathnames!$H$7:$K$190,3)) -> PER-AVER | J8: =CONCATENATE(TRIM(B$1),": ",TRIM(B$5)," - ",TRIM(B$6)," ",TRIM(B$7)," (",TRIM(B$10),") ",TRIM(B$11)) -> NAA 111820: Total Sites Release - C17604 FLOW-CHANNEL (TAF) | AJ8: =CONCATENATE(TRIM(C$1),": ",TRIM(C$5)," - ",TRIM(C$6)," ",TRIM(C$7)," (",TRIM(C$10),") ",TRIM(C$11)) -> ALT1 rev01 PEA: Total Sites Release - C17604 FLOW-CHANNEL (TAF) | BJ8: =CONCATENATE(TRIM('Compile Data'!D$1),": ",TRIM('Compile Data'!D$5)," - ",TRIM('Compile Data'!D$6)," ",TRIM('Compile Data'!D$7)," (",TRIM('Compile Data'!D$10),") ",TRIM('Compile Data'!D$11)) -> ALT1 rev01 PEA NoFrpt: Total Sites Release - C17604 FLOW-CHANNEL (TAF) | CJ8: =CONCATENATE(TRIM('Compile Data'!E$1),": ",TRIM('Compile Data'!E$5)," - ",TRIM('Compile Data'!E$6)," ",TRIM('Compile Data'!E$7)," (",TRIM('Compile Data'!E$10),") ",TRIM('Compile Data'!E$11)) -> ALT1 rev01 PEA WS6: Total Sites Release - C17604 FLOW-CHANNEL (TAF) | DJ8: =CONCATENATE(TRIM('Compile Data'!F$1),": ",TRIM('Compile Data'!F$5)," - ",TRIM('Compile Data'!F$6)," ",TRIM('Compile Data'!F$7)," (",TRIM('Compile Data'!F$10),") ",TRIM('Compile Data'!F$11)) -> ALT1 rev01 PEA WSv01: Total Sites Release - C17604 FLOW-CHANNEL (TAF)
A9: Units-native: | B9: =TRIM(INDIRECT(CONCATENATE("'",B$1,"'!",B$4,11))) -> CFS | C9: =TRIM(INDIRECT(CONCATENATE("'",C$1,"'!",C$4,11))) -> CFS | D9: =TRIM(INDIRECT(CONCATENATE("'",D$1,"'!",D$4,11))) -> CFS | E9: =TRIM(INDIRECT(CONCATENATE("'",E$1,"'!",E$4,11))) -> CFS | F9: =TRIM(INDIRECT(CONCATENATE("'",F$1,"'!",F$4,11))) -> CFS
A10: Units-shown: | B10: =IF(AND(B$3>0,B$9="CFS"),"TAF",B$9) -> TAF | C10: =IF(AND(C$3>0,C$9="CFS"),"TAF",C$9) -> TAF | D10: =IF(AND(D$3>0,D$9="CFS"),"TAF",D$9) -> TAF | E10: =IF(AND(E$3>0,E$9="CFS"),"TAF",E$9) -> TAF | F10: =IF(AND(F$3>0,F$9="CFS"),"TAF",F$9) -> TAF | X10: Jan-Dec | Y10: Mar-Feb | Z10: Oct-Sep | AB10: Nov-Mar | AC10: Aug-Oct | AD10: Oct-Jan | AE10: Dec-Feb | AF10: Mar-Jun | AG10: Jun-Sep | AH10: Sep-Nov | AX10: Jan-Dec | AY10: Mar-Feb | AZ10: Oct-Sep | BB10: Nov-Mar | BC10: Aug-Oct | BD10: Oct-Jan | BE10: Dec-Feb | BF10: Mar-Jun | BG10: Jun-Sep | BH10: Sep-Nov | BX10: Jan-Dec | BY10: Mar-Feb | BZ10: Oct-Sep | CB10: Nov-Mar | CC10: Aug-Oct | CD10: Oct-Jan | CE10: Dec-Feb | CF10: Mar-Jun | CG10: Jun-Sep | CH10: Sep-Nov | CX10: Jan-Dec | CY10: Mar-Feb | CZ10: Oct-Sep | DB10: Nov-Mar | DC10: Aug-Oct | DD10: Oct-Jan | DE10: Dec-Feb | DF10: Mar-Jun | DG10: Jun-Sep | DH10: Sep-Nov | DX10: Jan-Dec | DY10: Mar-Feb | DZ10: Oct-Sep | EB10: Nov-Mar | EC10: Aug-Oct | ED10: Oct-Jan | EE10: Dec-Feb | EF10: Mar-Jun | EG10: Jun-Sep | EH10: Sep-Nov
A11: Date | B11: =IF(ISNUMBER(FIND("PRV",B$6)),"SHIFTED","") ->  | C11: =IF(ISNUMBER(FIND("PRV",C$6)),"SHIFTED","") ->  | D11: =IF(ISNUMBER(FIND("PRV",D$6)),"SHIFTED","") ->  | E11: =IF(ISNUMBER(FIND("PRV",E$6)),"SHIFTED","") ->  | F11: =IF(ISNUMBER(FIND("PRV",F$6)),"SHIFTED","") ->  | J11: YEAR | K11: OCT | L11: NOV | M11: DEC | N11: JAN | O11: FEB | P11: MAR | Q11: APR | R11: MAY | S11: JUN | T11: JUL | U11: AUG | V11: SEP | X11: =IF(AND($B$10="TAF",$B$8="PER-AVER"),"TOT","AVG") -> TOT | Y11: =IF(AND($B$10="TAF",$B$8="PER-AVER"),"TOT","AVG") -> TOT | Z11: =IF(AND($B$10="TAF",$B$8="PER-AVER"),"TOT","AVG") -> TOT | AB11: =IF(AND($B$10="TAF",$B$8="PER-AVER"),"TOT","AVG") -> TOT | AC11: TOT | AD11: TOT | AE11: TOT | AF11: TOT | AG11: TOT | AH11: TOT | AJ11: YEAR | AK11: OCT | AL11: NOV | AM11: DEC | AN11: JAN | AO11: FEB | AP11: MAR | AQ11: APR | AR11: MAY | AS11: JUN | AT11: JUL | AU11: AUG | AV11: SEP | AX11: =IF(AND($C$10="TAF",$C$8="PER-AVER"),"TOT","AVG") -> TOT | AY11: =IF(AND($C$10="TAF",$C$8="PER-AVER"),"TOT","AVG") -> TOT | AZ11: =IF(AND($C$10="TAF",$C$8="PER-AVER"),"TOT","AVG") -> TOT | BB11: =IF(AND($B$10="TAF",$B$8="PER-AVER"),"TOT","AVG") -> TOT | BC11: =IF(AND($B$10="TAF",$B$8="PER-AVER"),"TOT","AVG") -> TOT | BD11: =IF(AND($C$10="TAF",$C$8="PER-AVER"),"TOT","AVG") -> TOT | BE11: =IF(AND($C$10="TAF",$C$8="PER-AVER"),"TOT","AVG") -> TOT | BF11: =IF(AND($C$10="TAF",$C$8="PER-AVER"),"TOT","AVG") -> TOT | BG11: =IF(AND($C$10="TAF",$C$8="PER-AVER"),"TOT","AVG") -> TOT | BH11: =IF(AND($C$10="TAF",$C$8="PER-AVER"),"TOT","AVG") -> TOT | BJ11: YEAR | BK11: OCT | BL11: NOV | BM11: DEC | BN11: JAN | BO11: FEB | BP11: MAR | BQ11: APR | BR11: MAY | BS11: JUN | BT11: JUL | BU11: AUG | BV11: SEP | BX11: =IF(AND('Compile Data'!$D$10="TAF",'Compile Data'!$D$8="PER-AVER"),"TOT","AVG") -> TOT | BY11: =IF(AND('Compile Data'!$D$10="TAF",'Compile Data'!$D$8="PER-AVER"),"TOT","AVG") -> TOT | BZ11: =IF(AND('Compile Data'!$D$10="TAF",'Compile Data'!$D$8="PER-AVER"),"TOT","AVG") -> TOT | CB11: =IF(AND($B$10="TAF",$B$8="PER-AVER"),"TOT","AVG") -> TOT | CC11: =IF(AND($B$10="TAF",$B$8="PER-AVER"),"TOT","AVG") -> TOT | CD11: =IF(AND('Compile Data'!$D$10="TAF",'Compile Data'!$D$8="PER-AVER"),"TOT","AVG") -> TOT | CE11: =IF(AND('Compile Data'!$D$10="TAF",'Compile Data'!$D$8="PER-AVER"),"TOT","AVG") -> TOT | CF11: =IF(AND('Compile Data'!$D$10="TAF",'Compile Data'!$D$8="PER-AVER"),"TOT","AVG") -> TOT | CG11: =IF(AND('Compile Data'!$D$10="TAF",'Compile Data'!$D$8="PER-AVER"),"TOT","AVG") -> TOT | CH11: =IF(AND('Compile Data'!$D$10="TAF",'Compile Data'!$D$8="PER-AVER"),"TOT","AVG") -> TOT | CJ11: YEAR | CK11: OCT | CL11: NOV | CM11: DEC | CN11: JAN | CO11: FEB | CP11: MAR | CQ11: APR | CR11: MAY | CS11: JUN | CT11: JUL | CU11: AUG | CV11: SEP | CX11: =IF(AND('Compile Data'!$E$10="TAF",'Compile Data'!$E$8="PER-AVER"),"TOT","AVG") -> TOT | CY11: =IF(AND('Compile Data'!$E$10="TAF",'Compile Data'!$E$8="PER-AVER"),"TOT","AVG") -> TOT | CZ11: =IF(AND('Compile Data'!$E$10="TAF",'Compile Data'!$E$8="PER-AVER"),"TOT","AVG") -> TOT | DB11: =IF(AND($B$10="TAF",$B$8="PER-AVER"),"TOT","AVG") -> TOT | DC11: =IF(AND($B$10="TAF",$B$8="PER-AVER"),"TOT","AVG") -> TOT | DD11: =IF(AND('Compile Data'!$E$10="TAF",'Compile Data'!$E$8="PER-AVER"),"TOT","AVG") -> TOT | DE11: =IF(AND('Compile Data'!$E$10="TAF",'Compile Data'!$E$8="PER-AVER"),"TOT","AVG") -> TOT | DF11: =IF(AND('Compile Data'!$E$10="TAF",'Compile Data'!$E$8="PER-AVER"),"TOT","AVG") -> TOT | DG11: =IF(AND('Compile Data'!$E$10="TAF",'Compile Data'!$E$8="PER-AVER"),"TOT","AVG") -> TOT | DH11: =IF(AND('Compile Data'!$E$10="TAF",'Compile Data'!$E$8="PER-AVER"),"TOT","AVG") -> TOT | DJ11: YEAR | DK11: OCT | DL11: NOV | DM11: DEC | DN11: JAN | DO11: FEB | DP11: MAR | DQ11: APR | DR11: MAY | DS11: JUN | DT11: JUL | DU11: AUG | DV11: SEP | DX11: =IF(AND('Compile Data'!$F$10="TAF",'Compile Data'!$F$8="PER-AVER"),"TOT","AVG") -> TOT | DY11: =IF(AND('Compile Data'!$F$10="TAF",'Compile Data'!$F$8="PER-AVER"),"TOT","AVG") -> TOT | DZ11: =IF(AND('Compile Data'!$F$10="TAF",'Compile Data'!$F$8="PER-AVER"),"TOT","AVG") -> TOT | EB11: =IF(AND($B$10="TAF",$B$8="PER-AVER"),"TOT","AVG") -> TOT | EC11: =IF(AND($B$10="TAF",$B$8="PER-AVER"),"TOT","AVG") -> TOT | ED11: =IF(AND('Compile Data'!$F$10="TAF",'Compile Data'!$F$8="PER-AVER"),"TOT","AVG") -> TOT | EE11: =IF(AND('Compile Data'!$F$10="TAF",'Compile Data'!$F$8="PER-AVER"),"TOT","AVG") -> TOT | EF11: =IF(AND('Compile Data'!$F$10="TAF",'Compile Data'!$F$8="PER-AVER"),"TOT","AVG") -> TOT | EG11: =IF(AND('Compile Data'!$F$10="TAF",'Compile Data'!$F$8="PER-AVER"),"TOT","AVG") -> TOT | EH11: =IF(AND('Compile Data'!$F$10="TAF",'Compile Data'!$F$8="PER-AVER"),"TOT","AVG") -> TOT
A12: 1921-09-30 | J12: 1922 | K12: =B13 -> 0 | L12: =B14 -> 0 | M12: =B15 -> 0 | N12: =B16 -> 0 | O12: =B17 -> 0 | P12: =B18 -> 0 | Q12: =B19 -> 0 | R12: =B20 -> 0 | S12: =B21 -> 0 | T12: =B22 -> 0 | U12: =B23 -> 0 | V12: =B24 -> 0 | X12: =IF(X$11="AVG",AVERAGE(N12:V12,K13:M13),SUM(N12:V12,K13:M13)) -> 0 | Y12: =IF(Y$11="AVG",AVERAGE(P12:V12,K13:O13),SUM(P12:V12,K13:O13)) -> 0 | Z12: =IF(Z$11="AVG",AVERAGE(K12:V12),SUM(K12:V12)) -> 0 | AB12: =IF(AB$11="AVG",IF(AD$1="INST-VAL",AVERAGE(K12:O12,L12:P12),AVERAGE(L12:P12)),SUM(L12:P12)) -> 0 | AC12: =IF(AC$11="AVG",IF(AD$1="INST-VAL",AVERAGE(T12:V12,U12:V12,K13),AVERAGE(U12:V12,K13)),SUM(U12:V12,K13)) -> 0 | AD12: =IF(AD$11="AVG",IF(AD$1="INST-VAL",AVERAGE(V11,K12:M12,K12:N12),AVERAGE(K12:N12)),SUM(K12:N12)) -> 0 | AE12: =IF(AE$11="AVG",IF(AD$1="INST-VAL",AVERAGE(L12:N12,M12:O12),AVERAGE(M12:O12)),SUM(M12:O12)) -> 0 | AF12: =IF(AF$11="AVG",IF(AD$1="INST-VAL",AVERAGE(O12:R12,P12:S12),AVERAGE(P12:S12)),SUM(P12:S12)) -> 0 | AG12: =IF(AG$11="AVG",IF(AD$1="INST-VAL",AVERAGE(R12:U12,S12:V12),AVERAGE(S12:V12)),SUM(S12:V12)) -> 0 | AH12: =IF(AH$11="AVG",IF(AD$1="INST-VAL",AVERAGE(U12:V12,K13,V12,K13:L13),AVERAGE(V12,K13:L13)),SUM(V12,K13:L13)) -> 0 | AJ12: 1922 | AK12: ='Compile Data'!C13 -> 17.85123967 | AL12: ='Compile Data'!C14 -> 18.34924492 | AM12: ='Compile Data'!C15 -> 0 | AN12: ='Compile Data'!C16 -> 0 | AO12: ='Compile Data'!C17 -> 0 | AP12: ='Compile Data'!C18 -> 0 | AQ12: ='Compile Data'!C19 -> 0 | AR12: ='Compile Data'!C20 -> 0 | AS12: ='Compile Data'!C21 -> 2.5 | AT12: ='Compile Data'!C22 -> 32.98155875 | AU12: ='Compile Data'!C23 -> 31.3362069 | AV12: ='Compile Data'!C24 -> 31.8262069 | AX12: =IF(AX$11="AVG",AVERAGE(AN12:AV12,AK13:AM13),SUM(AN12:AV12,AK13:AM13)) -> 130.3801794 | AY12: =IF(AY$11="AVG",AVERAGE(AP12:AV12,AK13:AO13),SUM(AP12:AV12,AK13:AO13)) -> 139.1375584 | AZ12: =IF(AZ$11="AVG",AVERAGE(AK12:AV12),SUM(AK12:AV12)) -> 134.8444571 | BB12: =IF(BB$11="AVG",IF(BD$1="INST-VAL",AVERAGE(AK12:AO12,AL12:AP12),AVERAGE(AL12:AP12)),SUM(AL12:AP12)) -> 18.34924492 | BC12: =IF(BC$11="AVG",IF(BD$1="INST-VAL",AVERAGE(AT12:AV12,AU12:AV12,AK13),AVERAGE(AU12:AV12,AK13)),SUM(AU12:AV12,AK13)) -> 93.2386207 | BD12: =IF(BD$11="AVG",IF(BD$1="INST-VAL",AVERAGE(AV11,AK12:AM12,AK12:AN12),AVERAGE(AK12:AN12)),SUM(AK12:AN12)) -> 36.20048459 | BE12: =IF(BE$11="AVG",IF(BD$1="INST-VAL",AVERAGE(AL12:AN12,AM12:AO12),AVERAGE(AM12:AO12)),SUM(AM12:AO12)) -> 0 | BF12: =IF(BF$11="AVG",IF(BD$1="INST-VAL",AVERAGE(AO12:AR12,AP12:AS12),AVERAGE(AP12:AS12)),SUM(AP12:AS12)) -> 2.5 | BG12: =IF(BG$11="AVG",IF(BD$1="INST-VAL",AVERAGE(AR12:AU12,AS12:AV12),AVERAGE(AS12:AV12)),SUM(AS12:AV12)) -> 98.64397255 | BH12: =IF(BH$11="AVG",IF(BD$1="INST-VAL",AVERAGE(AU12:AV12,AK13,AV12,AK13:AL13),AVERAGE(AV12,AK13:AL13)),SUM(AV12,AK13:AL13)) -> 61.9024138 | BJ12: 1922 | BK12: ='Compile Data'!D13 -> 17.85123967 | BL12: ='Compile Data'!D14 -> 18.34924492 | BM12: ='Compile Data'!D15 -> 0 | BN12: ='Compile Data'!D16 -> 0 | BO12: ='Compile Data'!D17 -> 0 | BP12: ='Compile Data'!D18 -> 0 | BQ12: ='Compile Data'!D19 -> 0 | BR12: ='Compile Data'!D20 -> 0 | BS12: ='Compile Data'!D21 -> 2.5 | BT12: ='Compile Data'!D22 -> 38.29529911 | BU12: ='Compile Data'!D23 -> 31.3362069 | BV12: ='Compile Data'!D24 -> 31.8262069 | BX12: =IF(BX$11="AVG",AVERAGE(BN12:BV12,BK13:BM13),SUM(BN12:BV12,BK13:BM13)) -> 135.6939198 | BY12: =IF(BY$11="AVG",AVERAGE(BP12:BV12,BK13:BO13),SUM(BP12:BV12,BK13:BO13)) -> 144.8055621 | BZ12: =IF(BZ$11="AVG",AVERAGE(BK12:BV12),SUM(BK12:BV12)) -> 140.1581975 | CB12: =IF(CB$11="AVG",IF(CD$1="INST-VAL",AVERAGE(BK12:BO12,BL12:BP12),AVERAGE(BL12:BP12)),SUM(BL12:BP12)) -> 18.34924492 | CC12: =IF(CC$11="AVG",IF(CD$1="INST-VAL",AVERAGE(BT12:BV12,BU12:BV12,BK13),AVERAGE(BU12:BV12,BK13)),SUM(BU12:BV12,BK13)) -> 93.2386207 | CD12: =IF(CD$11="AVG",IF(CD$1="INST-VAL",AVERAGE(BV11,BK12:BM12,BK12:BN12),AVERAGE(BK12:BN12)),SUM(BK12:BN12)) -> 36.20048459 | CE12: =IF(CE$11="AVG",IF(CD$1="INST-VAL",AVERAGE(BL12:BN12,BM12:BO12),AVERAGE(BM12:BO12)),SUM(BM12:BO12)) -> 0 | CF12: =IF(CF$11="AVG",IF(CD$1="INST-VAL",AVERAGE(BO12:BR12,BP12:BS12),AVERAGE(BP12:BS12)),SUM(BP12:BS12)) -> 2.5 | CG12: =IF(CG$11="AVG",IF(CD$1="INST-VAL",AVERAGE(BR12:BU12,BS12:BV12),AVERAGE(BS12:BV12)),SUM(BS12:BV12)) -> 103.9577129 | CH12: =IF(CH$11="AVG",IF(CD$1="INST-VAL",AVERAGE(BU12:BV12,BK13,BV12,BK13:BL13),AVERAGE(BV12,BK13:BL13)),SUM(BV12,BK13:BL13)) -> 61.9024138 | CJ12: 1922 | CK12: ='Compile Data'!E13 -> 17.85123967 | CL12: ='Compile Data'!E14 -> 18.34924492 | CM12: ='Compile Data'!E15 -> 0 | CN12: ='Compile Data'!E16 -> 0 | CO12: ='Compile Data'!E17 -> 0 | CP12: ='Compile Data'!E18 -> 0 | CQ12: ='Compile Data'!E19 -> 0 | CR12: ='Compile Data'!E20 -> 0 | CS12: ='Compile Data'!E21 -> 2.5 | CT12: ='Compile Data'!E22 -> 48.92456257 | CU12: ='Compile Data'!E23 -> 31.3362069 | CV12: ='Compile Data'!E24 -> 31.8262069 | CX12: =IF(CX$11="AVG",AVERAGE(CN12:CV12,CK13:CM13),SUM(CN12:CV12,CK13:CM13)) -> 146.3231833 | CY12: =IF(CY$11="AVG",AVERAGE(CP12:CV12,CK13:CO13),SUM(CP12:CV12,CK13:CO13)) -> 152.5421026 | CZ12: =IF(CZ$11="AVG",AVERAGE(CK12:CV12),SUM(CK12:CV12)) -> 150.787461 | DB12: =IF(DB$11="AVG",IF(DD$1="INST-VAL",AVERAGE(CK12:CO12,CL12:CP12),AVERAGE(CL12:CP12)),SUM(CL12:CP12)) -> 18.34924492 | DC12: =IF(DC$11="AVG",IF(DD$1="INST-VAL",AVERAGE(CT12:CV12,CU12:CV12,CK13),AVERAGE(CU12:CV12,CK13)),SUM(CU12:CV12,CK13)) -> 93.2386207 | DD12: =IF(DD$11="AVG",IF(DD$1="INST-VAL",AVERAGE(CV11,CK12:CM12,CK12:CN12),AVERAGE(CK12:CN12)),SUM(CK12:CN12)) -> 36.20048459 | DE12: =IF(DE$11="AVG",IF(DD$1="INST-VAL",AVERAGE(CL12:CN12,CM12:CO12),AVERAGE(CM12:CO12)),SUM(CM12:CO12)) -> 0 | DF12: =IF(DF$11="AVG",IF(DD$1="INST-VAL",AVERAGE(CO12:CR12,CP12:CS12),AVERAGE(CP12:CS12)),SUM(CP12:CS12)) -> 2.5 | DG12: =IF(DG$11="AVG",IF(DD$1="INST-VAL",AVERAGE(CR12:CU12,CS12:CV12),AVERAGE(CS12:CV12)),SUM(CS12:CV12)) -> 114.5869764 | DH12: =IF(DH$11="AVG",IF(DD$1="INST-VAL",AVERAGE(CU12:CV12,CK13,CV12,CK13:CL13),AVERAGE(CV12,CK13:CL13)),SUM(CV12,CK13:CL13)) -> 61.9024138 | DJ12: 1922 | DK12: ='Compile Data'!F13 -> 17.85123967 | DL12: ='Compile Data'!F14 -> 18.34924492 | DM12: ='Compile Data'!F15 -> 0 | DN12: ='Compile Data'!F16 -> 0 | DO12: ='Compile Data'!F17 -> 0 | DP12: ='Compile Data'!F18 -> 0 | DQ12: ='Compile Data'!F19 -> 0 | DR12: ='Compile Data'!F20 -> 0 | DS12: ='Compile Data'!F21 -> 2.5 | DT12: ='Compile Data'!F22 -> 39.17859524 | DU12: ='Compile Data'!F23 -> 31.3362069 | DV12: ='Compile Data'!F24 -> 31.8262069 | DX12: =IF(DX$11="AVG",AVERAGE(DN12:DV12,DK13:DM13),SUM(DN12:DV12,DK13:DM13)) -> 136.5772159 | DY12: =IF(DY$11="AVG",AVERAGE(DP12:DV12,DK13:DO13),SUM(DP12:DV12,DK13:DO13)) -> 142.786484 | DZ12: =IF(DZ$11="AVG",AVERAGE(DK12:DV12),SUM(DK12:DV12)) -> 141.0414936 | EB12: =IF(EB$11="AVG",IF(ED$1="INST-VAL",AVERAGE(DK12:DO12,DL12:DP12),AVERAGE(DL12:DP12)),SUM(DL12:DP12)) -> 18.34924492 | EC12: =IF(EC$11="AVG",IF(ED$1="INST-VAL",AVERAGE(DT12:DV12,DU12:DV12,DK13),AVERAGE(DU12:DV12,DK13)),SUM(DU12:DV12,DK13)) -> 93.2386207 | ED12: =IF(ED$11="AVG",IF(ED$1="INST-VAL",AVERAGE(DV11,DK12:DM12,DK12:DN12),AVERAGE(DK12:DN12)),SUM(DK12:DN12)) -> 36.20048459 | EE12: =IF(EE$11="AVG",IF(ED$1="INST-VAL",AVERAGE(DL12:DN12,DM12:DO12),AVERAGE(DM12:DO12)),SUM(DM12:DO12)) -> 0 | EF12: =IF(EF$11="AVG",IF(ED$1="INST-VAL",AVERAGE(DO12:DR12,DP12:DS12),AVERAGE(DP12:DS12)),SUM(DP12:DS12)) -> 2.5 | EG12: =IF(EG$11="AVG",IF(ED$1="INST-VAL",AVERAGE(DR12:DU12,DS12:DV12),AVERAGE(DS12:DV12)),SUM(DS12:DV12)) -> 104.841009 | EH12: =IF(EH$11="AVG",IF(ED$1="INST-VAL",AVERAGE(DU12:DV12,DK13,DV12,DK13:DL13),AVERAGE(DV12,DK13:DL13)),SUM(DV12,DK13:DL13)) -> 61.9024138
A13: 1921-10-31 | B13: =INDIRECT(CONCATENATE("'",B$1,"'!",B$4,(YEAR($A13)-1921)*12+MONTH($A13)+3+IF(ISNUMBER(FIND("PRV",B$6)),1,0)))*IF(AND(B$3>0,TRIM(B$9)="CFS"),Conv_Flags!$C13,1) -> 0 | C13: =INDIRECT(CONCATENATE("'",C$1,"'!",C$4,(YEAR($A13)-1921)*12+MONTH($A13)+3+IF(ISNUMBER(FIND("PRV",C$6)),1,0)))*IF(AND(C$3>0,TRIM(C$9)="CFS"),Conv_Flags!$C13,1) -> 17.85123967 | D13: =INDIRECT(CONCATENATE("'",D$1,"'!",D$4,(YEAR($A13)-1921)*12+MONTH($A13)+3+IF(ISNUMBER(FIND("PRV",D$6)),1,0)))*IF(AND(D$3>0,TRIM(D$9)="CFS"),Conv_Flags!$C13,1) -> 17.85123967 | E13: =INDIRECT(CONCATENATE("'",E$1,"'!",E$4,(YEAR($A13)-1921)*12+MONTH($A13)+3+IF(ISNUMBER(FIND("PRV",E$6)),1,0)))*IF(AND(E$3>0,TRIM(E$9)="CFS"),Conv_Flags!$C13,1) -> 17.85123967 | F13: =INDIRECT(CONCATENATE("'",F$1,"'!",F$4,(YEAR($A13)-1921)*12+MONTH($A13)+3+IF(ISNUMBER(FIND("PRV",F$6)),1,0)))*IF(AND(F$3>0,TRIM(F$9)="CFS"),Conv_Flags!$C13,1) -> 17.85123967 | J13: 1923 | K13: =B25 -> 0 | L13: =B26 -> 0 | M13: =B27 -> 0 | N13: =B28 -> 0 | O13: =B29 -> 0 | P13: =B30 -> 0 | Q13: =B31 -> 0 | R13: =B32 -> 0 | S13: =B33 -> 0 | T13: =B34 -> 0 | U13: =B35 -> 0 | V13: =B36 -> 0 | X13: 0 | Y13: 0 | Z13: 0 | AB13: =IF(AB$11="AVG",IF(AD$1="INST-VAL",AVERAGE(K13:O13,L13:P13),AVERAGE(L13:P13)),SUM(L13:P13)) -> 0 | AC13: =IF(AC$11="AVG",IF(AD$1="INST-VAL",AVERAGE(T13:V13,U13:V13,K14),AVERAGE(U13:V13,K14)),SUM(U13:V13,K14)) -> 0 | AD13: =IF(AD$11="AVG",IF(AD$1="INST-VAL",AVERAGE(V12,K13:M13,K13:N13),AVERAGE(K13:N13)),SUM(K13:N13)) -> 0 | AE13: 0 | AF13: 0 | AG13: 0 | AH13: 0 | AJ13: 1923 | AK13: ='Compile Data'!C25 -> 30.0762069 | AL13: ='Compile Data'!C26 -> 0 | AM13: ='Compile Data'!C27 -> 1.66 | AN13: ='Compile Data'!C28 -> 0 | AO13: ='Compile Data'!C29 -> 8.757378956 | AP13: ='Compile Data'!C30 -> 0.3594572343 | AQ13: ='Compile Data'!C31 -> 1.744637767 | AR13: ='Compile Data'!C32 -> 0 | AS13: ='Compile Data'!C33 -> 28.85714286 | AT13: ='Compile Data'!C34 -> 50.19011013 | AU13: ='Compile Data'!C35 -> 42.28294846 | AV13: ='Compile Data'!C36 -> 35.08529976 | AX13: 277.2941805 | AY13: 268.5368015 | AZ13: 199.0131821 | BB13: =IF(BB$11="AVG",IF(BD$1="INST-VAL",AVERAGE(AK13:AO13,AL13:AP13),AVERAGE(AL13:AP13)),SUM(AL13:AP13)) -> 10.77683619 | BC13: =IF(BC$11="AVG",IF(BD$1="INST-VAL",AVERAGE(AT13:AV13,AU13:AV13,AK14),AVERAGE(AU13:AV13,AK14)),SUM(AU13:AV13,AK14)) -> 124.4545494 | BD13: 31.7362069 | BE13: 10.41737896 | BF13: 30.96123786 | BG13: 156.4155012 | BH13: 137.3312147 | BJ13: 1923 | BK13: ='Compile Data'!D25 -> 30.0762069 | BL13: ='Compile Data'!D26 -> 0 | BM13: ='Compile Data'!D27 -> 1.66 | BN13: ='Compile Data'!D28 -> 0 | BO13: ='Compile Data'!D29 -> 9.111642289 | BP13: ='Compile Data'!D30 -> 0.3742539781 | BQ13: ='Compile Data'!D31 -> 1.816454261 | BR13: ='Compile Data'!D32 -> 0 | BS13: ='Compile Data'!D33 -> 28.85714286 | BT13: ='Compile Data'!D34 -> 50.19216174 | BU13: ='Compile Data'!D35 -> 42.29212105 | BV13: ='Compile Data'!D36 -> 35.14482799 | BX13: 285.3150824 | BY13: 276.2034402 | BZ13: 199.5248111 | CB13: =IF(CB$11="AVG",IF(CD$1="INST-VAL",AVERAGE(BK13:BO13,BL13:BP13),AVERAGE(BL13:BP13)),SUM(BL13:BP13)) -> 11.14589627 | CC13: =IF(CC$11="AVG",IF(CD$1="INST-VAL",AVERAGE(BT13:BV13,BU13:BV13,BK14),AVERAGE(BU13:BV13,BK14)),SUM(BU13:BV13,BK14)) -> 124.5326895 | CD13: 31.7362069 | CE13: 10.77164229 | CF13: 31.0478511 | CG13: 156.4862536 | CH13: 137.3216526 | CJ13: 1923 | CK13: ='Compile Data'!E25 -> 30.0762069 | CL13: ='Compile Data'!E26 -> 0 | CM13: ='Compile Data'!E27 -> 1.66 | CN13: ='Compile Data'!E28 -> 0 | CO13: ='Compile Data'!E29 -> 6.218919295 | CP13: ='Compile Data'!E30 -> 0.3564334742 | CQ13: ='Compile Data'!E31 -> 1.729961846 | CR13: ='Compile Data'!E32 -> 0 | CS13: ='Compile Data'!E33 -> 29.38714286 | CT13: ='Compile Data'!E34 -> 49.66712127 | CU13: ='Compile Data'!E35 -> 42.20852756 | CV13: ='Compile Data'!E36 -> 37.41595721 | CX13: 284.2602688 | CY13: 278.0413495 | CZ13: 198.7202704 | DB13: 8.235352769 | DC13: 126.6272757 | DD13: 31.7362069 | DE13: 7.878919295 | DF13: 31.47353818 | DG13: 158.6787489 | DH13: 136.8409229 | DJ13: 1923 | DK13: ='Compile Data'!F25 -> 30.0762069 | DL13: ='Compile Data'!F26 -> 0 | DM13: ='Compile Data'!F27 -> 1.66 | DN13: ='Compile Data'!F28 -> 0 | DO13: ='Compile Data'!F29 -> 6.209268055 | DP13: ='Compile Data'!F30 -> 0.364629407 | DQ13: ='Compile Data'!F31 -> 1.769741081 | DR13: ='Compile Data'!F32 -> 0 | DS13: ='Compile Data'!F33 -> 29.38714286 | DT13: ='Compile Data'!F34 -> 49.66594857 | DU13: ='Compile Data'!F35 -> 42.26999912 | DV13: ='Compile Data'!F36 -> 37.21369201 | DX13: 279.0417145 | DY13: 272.8330508 | DZ13: 198.616628 | EB13: 8.233897462 | EC13: 126.5555298 | ED13: 31.7362069 | EE13: 7.869268055 | EF13: 31.52151335 | EG13: 158.5367826 | EH13: 136.7792748
A14: 1921-11-30 | B14: =INDIRECT(CONCATENATE("'",B$1,"'!",B$4,(YEAR($A14)-1921)*12+MONTH($A14)+3+IF(ISNUMBER(FIND("PRV",B$6)),1,0)))*IF(AND(B$3>0,TRIM(B$9)="CFS"),Conv_Flags!$C14,1) -> 0 | C14: =INDIRECT(CONCATENATE("'",C$1,"'!",C$4,(YEAR($A14)-1921)*12+MONTH($A14)+3+IF(ISNUMBER(FIND("PRV",C$6)),1,0)))*IF(AND(C$3>0,TRIM(C$9)="CFS"),Conv_Flags!$C14,1) -> 18.34924492 | D14: =INDIRECT(CONCATENATE("'",D$1,"'!",D$4,(YEAR($A14)-1921)*12+MONTH($A14)+3+IF(ISNUMBER(FIND("PRV",D$6)),1,0)))*IF(AND(D$3>0,TRIM(D$9)="CFS"),Conv_Flags!$C14,1) -> 18.34924492 | E14: =INDIRECT(CONCATENATE("'",E$1,"'!",E$4,(YEAR($A14)-1921)*12+MONTH($A14)+3+IF(ISNUMBER(FIND("PRV",E$6)),1,0)))*IF(AND(E$3>0,TRIM(E$9)="CFS"),Conv_Flags!$C14,1) -> 18.34924492 | F14: =INDIRECT(CONCATENATE("'",F$1,"'!",F$4,(YEAR($A14)-1921)*12+MONTH($A14)+3+IF(ISNUMBER(FIND("PRV",F$6)),1,0)))*IF(AND(F$3>0,TRIM(F$9)="CFS"),Conv_Flags!$C14,1) -> 18.34924492 | J14: 1924 | K14: =B37 -> 0 | L14: =B38 -> 0 | M14: =B39 -> 0 | N14: =B40 -> 0 | O14: =B41 -> 0 | P14: =B42 -> 0 | Q14: =B43 -> 0 | R14: =B44 -> 0 | S14: =B45 -> 0 | T14: =B46 -> 0 | U14: =B47 -> 0 | V14: =B48 -> 0 | X14: 0 | Y14: 0 | Z14: 0 | AB14: =IF(AB$11="AVG",IF(AD$1="INST-VAL",AVERAGE(K14:O14,L14:P14),AVERAGE(L14:P14)),SUM(L14:P14)) -> 0 | AC14: =IF(AC$11="AVG",IF(AD$1="INST-VAL",AVERAGE(T14:V14,U14:V14,K15),AVERAGE(U14:V14,K15)),SUM(U14:V14,K15)) -> 0 | AD14: =IF(AD$11="AVG",IF(AD$1="INST-VAL",AVERAGE(V13,K14:M14,K14:N14),AVERAGE(K14:N14)),SUM(K14:N14)) -> 0 | AE14: 0 | AF14: 0 | AG14: 0 | AH14: 0 | AJ14: 1924 | AK14: ='Compile Data'!C37 -> 47.08630119 | AL14: ='Compile Data'!C38 -> 55.15961377 | AM14: ='Compile Data'!C39 -> 7.771290344 | AN14: ='Compile Data'!C40 -> 0 | AO14: ='Compile Data'!C41 -> 0 | AP14: ='Compile Data'!C42 -> 2.988839389 | AQ14: ='Compile Data'!C43 -> 17.71542875 | AR14: ='Compile Data'!C44 -> 23.13042493 | AS14: ='Compile Data'!C45 -> 96.87730423 | AT14: ='Compile Data'!C46 -> 133.0410062 | AU14: ='Compile Data'!C47 -> 109.1704123 | AV14: ='Compile Data'!C48 -> 72.04374236 | AX14: 583.7838426 | AY14: 583.7838426 | AZ14: 564.9843635 | BB14: =IF(BB$11="AVG",IF(BD$1="INST-VAL",AVERAGE(AK14:AO14,AL14:AP14),AVERAGE(AL14:AP14)),SUM(AL14:AP14)) -> 65.9197435 | BC14: 242.7361711 | BD14: 110.0172053 | BE14: 7.771290344 | BF14: 140.7119973 | BG14: 411.1324651 | BH14: 200.8604268 | BJ14: 1924 | BK14: ='Compile Data'!D37 -> 47.09574046 | BL14: ='Compile Data'!D38 -> 55.08108419 | BM14: ='Compile Data'!D39 -> 15.34965363 | BN14: ='Compile Data'!D40 -> 0 | BO14: ='Compile Data'!D41 -> 0 | BP14: ='Compile Data'!D42 -> 2.97443346 | BQ14: ='Compile Data'!D43 -> 18.4305084 | BR14: ='Compile Data'!D44 -> 23.04260417 | BS14: ='Compile Data'!D45 -> 96.80408214 | BT14: ='Compile Data'!D46 -> 140.1173749 | BU14: ='Compile Data'!D47 -> 109.2043738 | BV14: ='Compile Data'!D48 -> 72.09101681 | BX14: 591.4547716 | BY14: 591.4547716 | BZ14: 580.1908719 | CB14: =IF(CB$11="AVG",IF(CD$1="INST-VAL",AVERAGE(BK14:BO14,BL14:BP14),AVERAGE(BL14:BP14)),SUM(BL14:BP14)) -> 73.40517128 | CC14: 242.9120244 | CD14: 117.5264783 | CE14: 15.34965363 | CF14: 141.2516282 | CG14: 418.2168476 | CH14: 200.8813947 | CJ14: 1924 | CK14: ='Compile Data'!E37 -> 47.00279097 | CL14: ='Compile Data'!E38 -> 52.42217467 | CM14: ='Compile Data'!E39 -> 17.85123967 | CN14: ='Compile Data'!E40 -> 0 | CO14: ='Compile Data'!E41 -> 0 | CP14: ='Compile Data'!E42 -> 2.950628204 | CQ14: ='Compile Data'!E43 -> 18.32850848 | CR14: ='Compile Data'!E44 -> 22.89748367 | CS14: ='Compile Data'!E45 -> 96.62994999 | CT14: ='Compile Data'!E46 -> 141.3994148 | CU14: ='Compile Data'!E47 -> 111.9669129 | CV14: ='Compile Data'!E48 -> 72.04440818 | CX14: 595.0306882 | CY14: 595.0306882 | CZ14: 583.4935115 | DB14: 73.22404254 | DC14: 245.5346701 | DD14: 117.2762053 | DE14: 17.85123967 | DF14: 140.8065703 | DG14: 422.0406858 | DH14: 200.8577901 | DJ14: 1924 | DK14: ='Compile Data'!F37 -> 47.07183866 | DL14: ='Compile Data'!F38 -> 52.4937441 | DM14: ='Compile Data'!F39 -> 12.59571064 | DN14: ='Compile Data'!F40 -> 0 | DO14: ='Compile Data'!F41 -> 0.0006043820894 | DP14: ='Compile Data'!F42 -> 2.952308431 | DQ14: ='Compile Data'!F43 -> 17.5442914 | DR14: ='Compile Data'!F44 -> 22.90772659 | DS14: ='Compile Data'!F45 -> 96.64085555 | DT14: ='Compile Data'!F46 -> 137.9856641 | DU14: ='Compile Data'!F47 -> 109.1709182 | DV14: ='Compile Data'!F48 -> 72.04444667 | DX14: 588.0800616 | DY14: 588.0794572 | DZ14: 571.4081087 | EB14: 68.04236756 | EC14: 242.738791 | ED14: 112.1612934 | EE14: 12.59631502 | EF14: 140.045182 | EG14: 415.8418845 | EH14: 200.8776929
A15: 1921-12-31 | B15: =INDIRECT(CONCATENATE("'",B$1,"'!",B$4,(YEAR($A15)-1921)*12+MONTH($A15)+3+IF(ISNUMBER(FIND("PRV",B$6)),1,0)))*IF(AND(B$3>0,TRIM(B$9)="CFS"),Conv_Flags!$C15,1) -> 0 | C15: =INDIRECT(CONCATENATE("'",C$1,"'!",C$4,(YEAR($A15)-1921)*12+MONTH($A15)+3+IF(ISNUMBER(FIND("PRV",C$6)),1,0)))*IF(AND(C$3>0,TRIM(C$9)="CFS"),Conv_Flags!$C15,1) -> 0 | D15: =INDIRECT(CONCATENATE("'",D$1,"'!",D$4,(YEAR($A15)-1921)*12+MONTH($A15)+3+IF(ISNUMBER(FIND("PRV",D$6)),1,0)))*IF(AND(D$3>0,TRIM(D$9)="CFS"),Conv_Flags!$C15,1) -> 0 | E15: =INDIRECT(CONCATENATE("'",E$1,"'!",E$4,(YEAR($A15)-1921)*12+MONTH($A15)+3+IF(ISNUMBER(FIND("PRV",E$6)),1,0)))*IF(AND(E$3>0,TRIM(E$9)="CFS"),Conv_Flags!$C15,1) -> 0 | F15: =INDIRECT(CONCATENATE("'",F$1,"'!",F$4,(YEAR($A15)-1921)*12+MONTH($A15)+3+IF(ISNUMBER(FIND("PRV",F$6)),1,0)))*IF(AND(F$3>0,TRIM(F$9)="CFS"),Conv_Flags!$C15,1) -> 0 | J15: 1925 | K15: =B49 -> 0 | L15: =B50 -> 0 | M15: =B51 -> 0 | N15: =B52 -> 0 | O15: =B53 -> 0 | P15: =B54 -> 0 | Q15: =B55 -> 0 | R15: =B56 -> 0 | S15: =B57 -> 0 | T15: =B58 -> 0 | U15: =B59 -> 0 | V15: =B60 -> 0 | X15: 0 | Y15: 0 | Z15: 0 | AB15: =IF(AB$11="AVG",IF(AD$1="INST-VAL",AVERAGE(K15:O15,L15:P15),AVERAGE(L15:P15)),SUM(L15:P15)) -> 0 | AC15: 0 | AD15: 0 | AE15: 0 | AF15: 0 | AG15: 0 | AH15: 0 | AJ15: 1925 | AK15: ='Compile Data'!C49 -> 61.52201648 | AL15: ='Compile Data'!C50 -> 67.29466796 | AM15: ='Compile Data'!C51 -> 0 | AN15: ='Compile Data'!C52 -> 0 | AO15: ='Compile Data'!C53 -> 0 | AP15: ='Compile Data'!C54 -> 0 | AQ15: ='Compile Data'!C55 -> 0 | AR15: ='Compile Data'!C56 -> 0 | AS15: ='Compile Data'!C57 -> 52.24317087 | AT15: ='Compile Data'!C58 -> 39.78395266 | AU15: ='Compile Data'!C59 -> 82.7837015 | AV15: ='Compile Data'!C60 -> 10.91426683 | AX15: 191.8744061 | AY15: 191.8744061 | AZ15: 314.5417763 | BB15: =IF(BB$11="AVG",IF(BD$1="INST-VAL",AVERAGE(AK15:AO15,AL15:AP15),AVERAGE(AL15:AP15)),SUM(AL15:AP15)) -> 67.29466796 | BC15: =IF(BC$11="AVG",IF(BD$1="INST-VAL",AVERAGE(AT15:AV15,AU15:AV15,AK16),AVERAGE(AU15:AV15,AK16)),SUM(AU15:AV15,AK16)) -> 99.84728255 | BD15: 128.8166844 | BE15: 0 | BF15: 52.24317087 | BG15: 185.7250919 | BH15: 17.06358105 | BJ15: 1925 | BK15: ='Compile Data'!D49 -> 61.61663378 | BL15: ='Compile Data'!D50 -> 67.17374415 | BM15: ='Compile Data'!D51 -> 0 | BN15: ='Compile Data'!D52 -> 0 | BO15: ='Compile Data'!D53 -> 0 | BP15: ='Compile Data'!D54 -> 0 | BQ15: ='Compile Data'!D55 -> 2.303720599 | BR15: ='Compile Data'!D56 -> 0 | BS15: ='Compile Data'!D57 -> 73.47762962 | BT15: ='Compile Data'!D58 -> 62.64796577 | BU15: ='Compile Data'!D59 -> 107.0333056 | BV15: ='Compile Data'!D60 -> 75.73225048 | BX15: 396.5288949 | BY15: 396.5288949 | BZ15: 449.98525 | CB15: 67.17374415 | CC15: 210.6674078 | CD15: 128.7903779 | CE15: 0 | CF15: 75.78135022 | CG15: 318.8911515 | CH15: 151.0662733 | CJ15: 1925 | CK15: ='Compile Data'!E49 -> 61.52334908 | CL15: ='Compile Data'!E50 -> 67.29003288 | CM15: ='Compile Data'!E51 -> 0 | CN15: ='Compile Data'!E52 -> 0 | CO15: ='Compile Data'!E53 -> 0 | CP15: ='Compile Data'!E54 -> 0.003732490921 | CQ15: ='Compile Data'!E55 -> 0 | CR15: ='Compile Data'!E56 -> 0 | CS15: ='Compile Data'!E57 -> 61.20562439 | CT15: ='Compile Data'!E58 -> 62.68757376 | CU15: ='Compile Data'!E59 -> 106.2263936 | CV15: ='Compile Data'!E60 -> 74.27599853 | CX15: 378.9293305 | CY15: 378.9293305 | CZ15: 433.2127048 | DB15: 67.29376537 | DC15: 206.4759407 | DD15: 128.813382 | DE15: 0 | DF15: 61.20935688 | DG15: 304.3955903 | DH15: 148.8060063 | DJ15: 1925 | DK15: ='Compile Data'!F49 -> 61.52342612 | DL15: ='Compile Data'!F50 -> 67.30982012 | DM15: ='Compile Data'!F51 -> 0 | DN15: ='Compile Data'!F52 -> 0 | DO15: ='Compile Data'!F53 -> 0 | DP15: ='Compile Data'!F54 -> 0.003740535217 | DQ15: ='Compile Data'!F55 -> 0 | DR15: ='Compile Data'!F56 -> 0 | DS15: ='Compile Data'!F57 -> 45.60276337 | DT15: ='Compile Data'!F58 -> 47.07763016 | DU15: ='Compile Data'!F59 -> 109.3981734 | DV15: ='Compile Data'!F60 -> 68.72149981 | DX15: 286.4372829 | DY15: 286.4372829 | DZ15: 399.6370535 | EB15: 67.31356066 | EC15: 193.7531488 | ED15: 128.8332462 | EE15: 0 | EF15: 45.6065039 | EG15: 270.8000667 | EH15: 84.35497545
A16: 1922-01-31 | B16: =INDIRECT(CONCATENATE("'",B$1,"'!",B$4,(YEAR($A16)-1921)*12+MONTH($A16)+3+IF(ISNUMBER(FIND("PRV",B$6)),1,0)))*IF(AND(B$3>0,TRIM(B$9)="CFS"),Conv_Flags!$C16,1) -> 0 | C16: =INDIRECT(CONCATENATE("'",C$1,"'!",C$4,(YEAR($A16)-1921)*12+MONTH($A16)+3+IF(ISNUMBER(FIND("PRV",C$6)),1,0)))*IF(AND(C$3>0,TRIM(C$9)="CFS"),Conv_Flags!$C16,1) -> 0 | D16: =INDIRECT(CONCATENATE("'",D$1,"'!",D$4,(YEAR($A16)-1921)*12+MONTH($A16)+3+IF(ISNUMBER(FIND("PRV",D$6)),1,0)))*IF(AND(D$3>0,TRIM(D$9)="CFS"),Conv_Flags!$C16,1) -> 0 | E16: =INDIRECT(CONCATENATE("'",E$1,"'!",E$4,(YEAR($A16)-1921)*12+MONTH($A16)+3+IF(ISNUMBER(FIND("PRV",E$6)),1,0)))*IF(AND(E$3>0,TRIM(E$9)="CFS"),Conv_Flags!$C16,1) -> 0 | F16: =INDIRECT(CONCATENATE("'",F$1,"'!",F$4,(YEAR($A16)-1921)*12+MONTH($A16)+3+IF(ISNUMBER(FIND("PRV",F$6)),1,0)))*IF(AND(F$3>0,TRIM(F$9)="CFS"),Conv_Flags!$C16,1) -> 0 | J16: 1926 | K16: =B61 -> 0 | L16: =B62 -> 0 | M16: =B63 -> 0 | N16: =B64 -> 0 | O16: =B65 -> 0 | P16: =B66 -> 0 | Q16: =B67 -> 0 | R16: =B68 -> 0 | S16: =B69 -> 0 | T16: =B70 -> 0 | U16: =B71 -> 0 | V16: =B72 -> 0 | X16: 0 | Y16: 0 | Z16: 0 | AB16: 0 | AC16: 0 | AD16: 0 | AE16: 0 | AF16: 0 | AG16: 0 | AH16: 0 | AJ16: 1926 | AK16: ='Compile Data'!C61 -> 6.149314216 | AL16: ='Compile Data'!C62 -> 0 | AM16: ='Compile Data'!C63 -> 0 | AN16: ='Compile Data'!C64 -> 0 | AO16: ='Compile Data'!C65 -> 0 | AP16: ='Compile Data'!C66 -> 0.5686255806 | AQ16: ='Compile Data'!C67 -> 1.634846936 | AR16: ='Compile Data'!C68 -> 23.209536 | AS16: ='Compile Data'!C69 -> 61.29838544 | AT16: ='Compile Data'!C70 -> 49.33278427 | AU16: ='Compile Data'!C71 -> 58.30940803 | AV16: ='Compile Data'!C72 -> 26.60393409 | AX16: 230.4742754 | AY16: 230.4742754 | AZ16: 227.1068346 | BB16: 0.5686255806 | BC16: 94.43009717 | BD16: 6.149314216 | BE16: 0 | BF16: 86.71139396 | BG16: 195.5445118 | BH16: 36.12068914 | BJ16: 1926 | BK16: ='Compile Data'!D61 -> 27.9018517 | BL16: ='Compile Data'!D62 -> 47.43217113 | BM16: ='Compile Data'!D63 -> 0 | BN16: ='Compile Data'!D64 -> 0 | BO16: ='Compile Data'!D65 -> 0 | BP16: ='Compile Data'!D66 -> 31.07175512 | BQ16: ='Compile Data'!D67 -> 1.627875471 | BR16: ='Compile Data'!D68 -> 15.42892625 | BS16: ='Compile Data'!D69 -> 80.55601735 | BT16: ='Compile Data'!D70 -> 59.19746319 | BU16: ='Compile Data'!D71 -> 22.83269222 | BV16: ='Compile Data'!D72 -> 5.706966014 | BX16: 218.2013992 | BY16: 218.2013992 | BZ16: 291.7557185 | CB16: 78.50392625 | CC16: 30.31936181 | CD16: 75.33402284 | CE16: 0 | CF16: 128.6845742 | CG16: 168.2931388 | CH16: 7.486669581 | CJ16: 1926 | CK16: ='Compile Data'!E61 -> 25.97354852 | CL16: ='Compile Data'!E62 -> 48.55645922 | CM16: ='Compile Data'!E63 -> 0 | CN16: ='Compile Data'!E64 -> 0 | CO16: ='Compile Data'!E65 -> 0 | CP16: ='Compile Data'!E66 -> 0.5686409957 | CQ16: ='Compile Data'!E67 -> 1.634891253 | CR16: ='Compile Data'!E68 -> 23.19002378 | CS16: ='Compile Data'!E69 -> 28.31244256 | CT16: ='Compile Data'!E70 -> 48.50445055 | CU16: ='Compile Data'!E71 -> 54.47503857 | CV16: ='Compile Data'!E72 -> 10.75726671 | CX16: 175.895191 | CY16: 175.895191 | CZ16: 241.9727621 | DB16: 49.12510021 | DC16: 73.68474189 | DD16: 74.53000773 | DE16: 0 | DF16: 53.70599859 | DG16: 142.0491984 | DH16: 19.20970332 | DJ16: 1926 | DK16: ='Compile Data'!F61 -> 15.63347564 | DL16: ='Compile Data'!F62 -> 0 | DM16: ='Compile Data'!F63 -> 0 | DN16: ='Compile Data'!F64 -> 0 | DO16: ='Compile Data'!F65 -> 0 | DP16: ='Compile Data'!F66 -> 0.5705191274 | DQ16: ='Compile Data'!F67 -> 1.640290646 | DR16: ='Compile Data'!F68 -> 22.50163781 | DS16: ='Compile Data'!F69 -> 23.21442793 | DT16: ='Compile Data'!F70 -> 44.66013459 | DU16: ='Compile Data'!F71 -> 49.87862329 | DV16: ='Compile Data'!F72 -> 9.793822642 | DX16: 158.9937579 | DY16: 158.9937579 | DZ16: 167.8929317 | EB16: 0.5705191274 | EC16: 66.40674777 | ED16: 15.63347564 | EE16: 0 | EF16: 47.92687551 | EG16: 127.5470084 | EH16: 16.52812448
A17: 1922-02-28 | B17: =INDIRECT(CONCATENATE("'",B$1,"'!",B$4,(YEAR($A17)-1921)*12+MONTH($A17)+3+IF(ISNUMBER(FIND("PRV",B$6)),1,0)))*IF(AND(B$3>0,TRIM(B$9)="CFS"),Conv_Flags!$C17,1) -> 0 | C17: =INDIRECT(CONCATENATE("'",C$1,"'!",C$4,(YEAR($A17)-1921)*12+MONTH($A17)+3+IF(ISNUMBER(FIND("PRV",C$6)),1,0)))*IF(AND(C$3>0,TRIM(C$9)="CFS"),Conv_Flags!$C17,1) -> 0 | D17: =INDIRECT(CONCATENATE("'",D$1,"'!",D$4,(YEAR($A17)-1921)*12+MONTH($A17)+3+IF(ISNUMBER(FIND("PRV",D$6)),1,0)))*IF(AND(D$3>0,TRIM(D$9)="CFS"),Conv_Flags!$C17,1) -> 0 | E17: =INDIRECT(CONCATENATE("'",E$1,"'!",E$4,(YEAR($A17)-1921)*12+MONTH($A17)+3+IF(ISNUMBER(FIND("PRV",E$6)),1,0)))*IF(AND(E$3>0,TRIM(E$9)="CFS"),Conv_Flags!$C17,1) -> 0 | F17: =INDIRECT(CONCATENATE("'",F$1,"'!",F$4,(YEAR($A17)-1921)*12+MONTH($A17)+3+IF(ISNUMBER(FIND("PRV",F$6)),1,0)))*IF(AND(F$3>0,TRIM(F$9)="CFS"),Conv_Flags!$C17,1) -> 0 | J17: 1927 | K17: =B73 -> 0 | L17: =B74 -> 0 | M17: =B75 -> 0 | N17: =B76 -> 0 | O17: =B77 -> 0 | P17: =B78 -> 0 | Q17: =B79 -> 0 | R17: =B80 -> 0 | S17: =B81 -> 0 | T17: =B82 -> 0 | U17: =B83 -> 0 | V17: =B84 -> 0 | X17: 0 | Y17: 0 | Z17: 0 | AB17: 0 | AC17: 0 | AD17: 0 | AE17: 0 | AF17: 0 | AG17: 0 | AH17: 0 | AJ17: 1927 | AK17: ='Compile Data'!C73 -> 9.516755045 | AL17: ='Compile Data'!C74 -> 0 | AM17: ='Compile Data'!C75 -> 0 | AN17: ='Compile Data'!C76 -> 0 | AO17: ='Compile Data'!C77 -> 0 | AP17: ='Compile Data'!C78 -> 0 | AQ17: ='Compile Data'!C79 -> 0 | AR17: ='Compile Data'!C80 -> 0 | AS17: ='Compile Data'!C81 -> 1.966778492 | AT17: ='Compile Data'!C82 -> 2.5 | AU17: ='Compile Data'!C83 -> 29.67795222 | AV17: ='Compile Data'!C84 -> 30.0862069 | AX17: 66.4054619 | AY17: 66.4054619 | AZ17: 73.74769265 | BB17: 0 | BC17: 61.93868341 | BD17: 9.516755045 | BE17: 0 | BF17: 1.966778492 | BG17: 64.23093761 | BH17: 32.26073119 | BJ17: 1927 | BK17: ='Compile Data'!D73 -> 1.779703567 | BL17: ='Compile Data'!D74 -> 0 | BM17: ='Compile Data'!D75 -> 0 | BN17: ='Compile Data'!D76 -> 0 | BO17: ='Compile Data'!D77 -> 0 | BP17: ='Compile Data'!D78 -> 0 | BQ17: ='Compile Data'!D79 -> 0 | BR17: ='Compile Data'!D80 -> 0 | BS17: ='Compile Data'!D81 -> 1.966778492 | BT17: ='Compile Data'!D82 -> 2.5 | BU17: ='Compile Data'!D83 -> 29.67795222 | BV17: ='Compile Data'!D84 -> 30.0862069 | BX17: 77.72782531 | BY17: 77.72782531 | BZ17: 66.01064117 | CB17: =IF(CB$11="AVG",IF(CD$1="INST-VAL",AVERAGE(BK17:BO17,BL17:BP17),AVERAGE(BL17:BP17)),SUM(BL17:BP17)) -> 0 | CC17: =IF(CC$11="AVG",IF(CD$1="INST-VAL",AVERAGE(BT17:BV17,BU17:BV17,BK18),AVERAGE(BU17:BV17,BK18)),SUM(BU17:BV17,BK18)) -> 73.26104681 | CD17: 1.779703567 | CE17: 0 | CF17: 1.966778492 | CG17: 64.23093761 | CH17: 43.5830946 | CJ17: 1927 | CK17: ='Compile Data'!E73 -> 8.452436616 | CL17: ='Compile Data'!E74 -> 0 | CM17: ='Compile Data'!E75 -> 0 | CN17: ='Compile Data'!E76 -> 0 | CO17: ='Compile Data'!E77 -> 0 | CP17: ='Compile Data'!E78 -> 0 | CQ17: ='Compile Data'!E79 -> 0 | CR17: ='Compile Data'!E80 -> 0 | CS17: ='Compile Data'!E81 -> 1.966778492 | CT17: ='Compile Data'!E82 -> 2.5 | CU17: ='Compile Data'!E83 -> 29.67795222 | CV17: ='Compile Data'!E84 -> 30.0862069 | CX17: 84.56153807 | CY17: 84.56153807 | CZ17: 72.68337422 | DB17: 0 | DC17: 80.09475958 | DD17: 8.452436616 | DE17: 0 | DF17: 1.966778492 | DG17: 64.23093761 | DH17: 50.41680736 | DJ17: 1927 | DK17: ='Compile Data'!F73 -> 6.73430184 | DL17: ='Compile Data'!F74 -> 0 | DM17: ='Compile Data'!F75 -> 0 | DN17: ='Compile Data'!F76 -> 0 | DO17: ='Compile Data'!F77 -> 0 | DP17: ='Compile Data'!F78 -> 0 | DQ17: ='Compile Data'!F79 -> 0 | DR17: ='Compile Data'!F80 -> 0 | DS17: ='Compile Data'!F81 -> 1.966778492 | DT17: ='Compile Data'!F82 -> 2.5 | DU17: ='Compile Data'!F83 -> 29.67795222 | DV17: ='Compile Data'!F84 -> 30.0862069 | DX17: 83.93556667 | DY17: 83.93556667 | DZ17: 70.96523945 | EB17: 0 | EC17: 79.46878817 | ED17: 6.73430184 | EE17: 0 | EF17: 1.966778492 | EG17: 64.23093761 | EH17: 49.79083596
A18: 1922-03-31 | B18: =INDIRECT(CONCATENATE("'",B$1,"'!",B$4,(YEAR($A18)-1921)*12+MONTH($A18)+3+IF(ISNUMBER(FIND("PRV",B$6)),1,0)))*IF(AND(B$3>0,TRIM(B$9)="CFS"),Conv_Flags!$C18,1) -> 0 | C18: =INDIRECT(CONCATENATE("'",C$1,"'!",C$4,(YEAR($A18)-1921)*12+MONTH($A18)+3+IF(ISNUMBER(FIND("PRV",C$6)),1,0)))*IF(AND(C$3>0,TRIM(C$9)="CFS"),Conv_Flags!$C18,1) -> 0 | D18: =INDIRECT(CONCATENATE("'",D$1,"'!",D$4,(YEAR($A18)-1921)*12+MONTH($A18)+3+IF(ISNUMBER(FIND("PRV",D$6)),1,0)))*IF(AND(D$3>0,TRIM(D$9)="CFS"),Conv_Flags!$C18,1) -> 0 | E18: =INDIRECT(CONCATENATE("'",E$1,"'!",E$4,(YEAR($A18)-1921)*12+MONTH($A18)+3+IF(ISNUMBER(FIND("PRV",E$6)),1,0)))*IF(AND(E$3>0,TRIM(E$9)="CFS"),Conv_Flags!$C18,1) -> 0 | F18: =INDIRECT(CONCATENATE("'",F$1,"'!",F$4,(YEAR($A18)-1921)*12+MONTH($A18)+3+IF(ISNUMBER(FIND("PRV",F$6)),1,0)))*IF(AND(F$3>0,TRIM(F$9)="CFS"),Conv_Flags!$C18,1) -> 0 | J18: 1928 | K18: =B85 -> 0 | L18: =B86 -> 0 | M18: =B87 -> 0 | N18: =B88 -> 0 | O18: =B89 -> 0 | P18: =B90 -> 0 | Q18: =B91 -> 0 | R18: =B92 -> 0 | S18: =B93 -> 0 | T18: =B94 -> 0 | U18: =B95 -> 0 | V18: =B96 -> 0 | X18: 0 | Y18: 0 | Z18: 0 | AB18: 0 | AC18: 0 | AD18: 0 | AE18: 0 | AF18: 0 | AG18: 0 | AH18: 0 | AJ18: 1928 | AK18: ='Compile Data'!C85 -> 2.174524291 | AL18: ='Compile Data'!C86 -> 0 | AM18: ='Compile Data'!C87 -> 0 | AN18: ='Compile Data'!C88 -> 0 | AO18: ='Compile Data'!C89 -> 0 | AP18: ='Compile Data'!C90 -> 0 | AQ18: ='Compile Data'!C91 -> 2.260925071 | AR18: ='Compile Data'!C92 -> 69.69667344 | AS18: ='Compile Data'!C93 -> 6.07822045 | AT18: ='Compile Data'!C94 -> 12.27083822 | AU18: ='Compile Data'!C95 -> 34.67989933 | AV18: ='Compile Data'!C96 -> 7.728073435 | AX18: 139.1146099 | AY18: 139.1146099 | AZ18: 134.8891542 | BB18: 0 | BC18: 45.40795274 | BD18: 2.174524291 | BE18: 0 | BF18: 78.03581896 | BG18: 60.75703144 | BH18: 12.46805341 | BJ18: 1928 | BK18: ='Compile Data'!D85 -> 13.4968877 | BL18: ='Compile Data'!D86 -> 0 | BM18: ='Compile Data'!D87 -> 0 | BN18: ='Compile Data'!D88 -> 0 | BO18: ='Compile Data'!D89 -> 0 | BP18: ='Compile Data'!D90 -> 0 | BQ18: ='Compile Data'!D91 -> 2.2606927 | BR18: ='Compile Data'!D92 -> 67.39535999 | BS18: ='Compile Data'!D93 -> 6.0770928 | BT18: ='Compile Data'!D94 -> 12.26955681 | BU18: ='Compile Data'!D95 -> 34.67881595 | BV18: ='Compile Data'!D96 -> 7.728847787 | BX18: 136.8101932 | BY18: 136.8101932 | BZ18: 143.9072537 | CB18: 0 | CC18: 45.40749087 | CD18: 13.4968877 | CE18: 0 | CF18: 75.73314549 | CG18: 60.75431335 | CH18: 12.46867492 | CJ18: 1928 | CK18: ='Compile Data'!E85 -> 20.33060046 | CL18: ='Compile Data'!E86 -> 0 | CM18: ='Compile Data'!E87 -> 0 | CN18: ='Compile Data'!E88 -> 0 | CO18: ='Compile Data'!E89 -> 0 | CP18: ='Compile Data'!E90 -> 0 | CQ18: ='Compile Data'!E91 -> 2.260926548 | CR18: ='Compile Data'!E92 -> 69.8274879 | CS18: ='Compile Data'!E93 -> 6.078227618 | CT18: ='Compile Data'!E94 -> 12.2708764 | CU18: ='Compile Data'!E95 -> 34.67990622 | CV18: ='Compile Data'!E96 -> 7.72931144 | CX18: 139.2467171 | CY18: 139.2467171 | CZ18: 153.1773366 | DB18: =IF(DB$11="AVG",IF(DD$1="INST-VAL",AVERAGE(CK18:CO18,CL18:CP18),AVERAGE(CL18:CP18)),SUM(CL18:CP18)) -> 0 | DC18: =IF(DC$11="AVG",IF(DD$1="INST-VAL",AVERAGE(CT18:CV18,CU18:CV18,CK19),AVERAGE(CU18:CV18,CK19)),SUM(CU18:CV18,CK19)) -> 45.4091986 | DD18: 20.33060046 | DE18: 0 | DF18: 78.16664206 | DG18: 60.75832167 | DH18: 12.46929238 | DJ18: 1928 | DK18: ='Compile Data'!F85 -> 19.70462906 | DL18: ='Compile Data'!F86 -> 0 | DM18: ='Compile Data'!F87 -> 0 | DN18: ='Compile Data'!F88 -> 0 | DO18: ='Compile Data'!F89 -> 0 | DP18: ='Compile Data'!F90 -> 0 | DQ18: ='Compile Data'!F91 -> 2.26110652 | DR18: ='Compile Data'!F92 -> 68.26372837 | DS18: ='Compile Data'!F93 -> 6.079100981 | DT18: ='Compile Data'!F94 -> 12.27187575 | DU18: ='Compile Data'!F95 -> 34.68074529 | DV18: ='Compile Data'!F96 -> 7.722764645 | DX18: 137.6794209 | DY18: 137.6794209 | DZ18: 150.9839506 | EB18: =IF(EB$11="AVG",IF(ED$1="INST-VAL",AVERAGE(DK18:DO18,DL18:DP18),AVERAGE(DL18:DP18)),SUM(DL18:DP18)) -> 0 | EC18: =IF(EC$11="AVG",IF(ED$1="INST-VAL",AVERAGE(DT18:DV18,DU18:DV18,DK19),AVERAGE(DU18:DV18,DK19)),SUM(DU18:DV18,DK19)) -> 45.40360926 | ED18: 19.70462906 | EE18: 0 | EF18: 76.60393587 | EG18: 60.75448667 | EH18: 12.46286397
A19: 1922-04-30 | B19: =INDIRECT(CONCATENATE("'",B$1,"'!",B$4,(YEAR($A19)-1921)*12+MONTH($A19)+3+IF(ISNUMBER(FIND("PRV",B$6)),1,0)))*IF(AND(B$3>0,TRIM(B$9)="CFS"),Conv_Flags!$C19,1) -> 0 | C19: =INDIRECT(CONCATENATE("'",C$1,"'!",C$4,(YEAR($A19)-1921)*12+MONTH($A19)+3+IF(ISNUMBER(FIND("PRV",C$6)),1,0)))*IF(AND(C$3>0,TRIM(C$9)="CFS"),Conv_Flags!$C19,1) -> 0 | D19: =INDIRECT(CONCATENATE("'",D$1,"'!",D$4,(YEAR($A19)-1921)*12+MONTH($A19)+3+IF(ISNUMBER(FIND("PRV",D$6)),1,0)))*IF(AND(D$3>0,TRIM(D$9)="CFS"),Conv_Flags!$C19,1) -> 0 | E19: =INDIRECT(CONCATENATE("'",E$1,"'!",E$4,(YEAR($A19)-1921)*12+MONTH($A19)+3+IF(ISNUMBER(FIND("PRV",E$6)),1,0)))*IF(AND(E$3>0,TRIM(E$9)="CFS"),Conv_Flags!$C19,1) -> 0 | F19: =INDIRECT(CONCATENATE("'",F$1,"'!",F$4,(YEAR($A19)-1921)*12+MONTH($A19)+3+IF(ISNUMBER(FIND("PRV",F$6)),1,0)))*IF(AND(F$3>0,TRIM(F$9)="CFS"),Conv_Flags!$C19,1) -> 0 | J19: 1929 | K19: =B97 -> 0 | L19: =B98 -> 0 | M19: =B99 -> 0 | N19: =B100 -> 0 | O19: =B101 -> 0 | P19: =B102 -> 0 | Q19: =B103 -> 0 | R19: =B104 -> 0 | S19: =B105 -> 0 | T19: =B106 -> 0 | U19: =B107 -> 0 | V19: =B108 -> 0 | X19: 0 | Y19: 0 | Z19: 0 | AB19: 0 | AC19: 0 | AD19: 0 | AE19: 0 | AF19: 0 | AG19: 0 | AH19: 0 | AJ19: 1929 | AK19: ='Compile Data'!C97 -> 2.999979973 | AL19: ='Compile Data'!C98 -> 1.74 | AM19: ='Compile Data'!C99 -> 1.66 | AN19: ='Compile Data'!C100 -> 0 | AO19: ='Compile Data'!C101 -> 0 | AP19: ='Compile Data'!C102 -> 0.7207407919 | AQ19: ='Compile Data'!C103 -> 17.4542644 | AR19: ='Compile Data'!C104 -> 133.8225274 | AS19: ='Compile Data'!C105 -> 77.73000001 | AT19: ='Compile Data'!C106 -> 123.8904017 | AU19: ='Compile Data'!C107 -> 71.34238081 | AV19: ='Compile Data'!C108 -> 79.80426374 | AX19: 614.7374745 | AY19: 614.7374745 | AZ19: 511.1645589 | BB19: 4.120740792 | BC19: 214.4580722 | BD19: 6.399979973 | BE19: 1.66 | BF19: 229.7275326 | BG19: 352.7670463 | BH19: 189.7771593 | BJ19: 1929 | BK19: ='Compile Data'!D97 -> 2.999827128 | BL19: ='Compile Data'!D98 -> 1.74 | BM19: ='Compile Data'!D99 -> 1.66 | BN19: ='Compile Data'!D100 -> 0 | BO19: ='Compile Data'!D101 -> 0 | BP19: ='Compile Data'!D102 -> 0.7210923275 | BQ19: ='Compile Data'!D103 -> 17.47338651 | BR19: ='Compile Data'!D104 -> 137.0698848 | BS19: ='Compile Data'!D105 -> 77.73000001 | BT19: ='Compile Data'!D106 -> 123.8522556 | BU19: ='Compile Data'!D107 -> 71.37866418 | BV19: ='Compile Data'!D108 -> 79.83558569 | BX19: 623.7622346 | BY19: 623.7622979 | BZ19: 514.4606962 | CB19: 4.121092328 | CC19: 214.5197477 | CD19: 6.399827128 | CE19: 1.66 | CF19: 232.9943636 | CG19: 352.7965055 | CH19: 195.5369512 | CJ19: 1929 | CK19: ='Compile Data'!E97 -> 2.999980945 | CL19: ='Compile Data'!E98 -> 1.74 | CM19: ='Compile Data'!E99 -> 1.66 | CN19: ='Compile Data'!E100 -> 0 | CO19: ='Compile Data'!E101 -> 0 | CP19: ='Compile Data'!E102 -> 0.7207330368 | CQ19: ='Compile Data'!E103 -> 17.45409274 | CR19: ='Compile Data'!E104 -> 134.6366477 | CS19: ='Compile Data'!E105 -> 77.73000001 | CT19: ='Compile Data'!E106 -> 123.8907442 | CU19: ='Compile Data'!E107 -> 71.34266325 | CV19: ='Compile Data'!E108 -> 79.80374045 | CX19: 613.9715842 | CY19: 613.9715842 | CZ19: 511.9786023 | DB19: 4.120733037 | DC19: 214.4582964 | DD19: 6.399980945 | DE19: 1.66 | DF19: 230.5414735 | DG19: 352.7671479 | DH19: 188.1967033 | DJ19: 1929 | DK19: ='Compile Data'!F97 -> 3.000099323 | DL19: ='Compile Data'!F98 -> 1.74 | DM19: ='Compile Data'!F99 -> 1.66 | DN19: ='Compile Data'!F100 -> 0 | DO19: ='Compile Data'!F101 -> 0 | DP19: ='Compile Data'!F102 -> 0.72095711 | DQ19: ='Compile Data'!F103 -> 17.45943239 | DR19: ='Compile Data'!F104 -> 133.9172622 | DS19: ='Compile Data'!F105 -> 77.73000001 | DT19: ='Compile Data'!F106 -> 123.8800923 | DU19: ='Compile Data'!F107 -> 71.3527575 | DV19: ='Compile Data'!F108 -> 79.5803905 | DX19: 613.5573684 | DY19: 613.5573684 | DZ19: 511.0409913 | EB19: 4.12095711 | EC19: 214.8932496 | ED19: 6.400099323 | EE19: 1.66 | EF19: 229.8276517 | EG19: 352.5432403 | EH19: 188.496867
A20: 1922-05-31 | B20: =INDIRECT(CONCATENATE("'",B$1,"'!",B$4,(YEAR($A20)-1921)*12+MONTH($A20)+3+IF(ISNUMBER(FIND("PRV",B$6)),1,0)))*IF(AND(B$3>0,TRIM(B$9)="CFS"),Conv_Flags!$C20,1) -> 0 | C20: =INDIRECT(CONCATENATE("'",C$1,"'!",C$4,(YEAR($A20)-1921)*12+MONTH($A20)+3+IF(ISNUMBER(FIND("PRV",C$6)),1,0)))*IF(AND(C$3>0,TRIM(C$9)="CFS"),Conv_Flags!$C20,1) -> 0 | D20: =INDIRECT(CONCATENATE("'",D$1,"'!",D$4,(YEAR($A20)-1921)*12+MONTH($A20)+3+IF(ISNUMBER(FIND("PRV",D$6)),1,0)))*IF(AND(D$3>0,TRIM(D$9)="CFS"),Conv_Flags!$C20,1) -> 0 | E20: =INDIRECT(CONCATENATE("'",E$1,"'!",E$4,(YEAR($A20)-1921)*12+MONTH($A20)+3+IF(ISNUMBER(FIND("PRV",E$6)),1,0)))*IF(AND(E$3>0,TRIM(E$9)="CFS"),Conv_Flags!$C20,1) -> 0 | F20: =INDIRECT(CONCATENATE("'",F$1,"'!",F$4,(YEAR($A20)-1921)*12+MONTH($A20)+3+IF(ISNUMBER(FIND("PRV",F$6)),1,0)))*IF(AND(F$3>0,TRIM(F$9)="CFS"),Conv_Flags!$C20,1) -> 0 | J20: 1930 | K20: =B109 -> 0 | L20: =B110 -> 0 | M20: =B111 -> 0 | N20: =B112 -> 0 | O20: =B113 -> 0 | P20: =B114 -> 0 | Q20: =B115 -> 0 | R20: =B116 -> 0 | S20: =B117 -> 0 | T20: =B118 -> 0 | U20: =B119 -> 0 | V20: =B120 -> 0 | X20: 0 | Y20: 0 | Z20: 0 | AB20: 0 | AC20: 0 | AD20: 0 | AE20: 0 | AF20: 0 | AG20: 0 | AH20: 0 | AJ20: 1930 | AK20: ='Compile Data'!C109 -> 63.31142765 | AL20: ='Compile Data'!C110 -> 46.66146794 | AM20: ='Compile Data'!C111 -> 0 | AN20: ='Compile Data'!C112 -> 0 | AO20: ='Compile Data'!C113 -> 0 | AP20: ='Compile Data'!C114 -> 0 | AQ20: ='Compile Data'!C115 -> 3.779418618 | AR20: ='Compile Data'!C116 -> 10.60074443 | AS20: ='Compile Data'!C117 -> 28.81057953 | AT20: ='Compile Data'!C118 -> 80.81315278 | AU20: ='Compile Data'!C119 -> 64.61124332 | AV20: ='Compile Data'!C120 -> 2.5 | AX20: 196.2981662 | AY20: 196.2981662 | AZ20: 301.0880343 | BB20: 46.66146794 | BC20: 72.29427081 | BD20: 109.9728956 | BE20: 0 | BF20: 43.19074257 | BG20: 176.7349756 | BH20: 7.683027494 | BJ20: 1930 | BK20: ='Compile Data'!D109 -> 63.30549778 | BL20: ='Compile Data'!D110 -> 52.3958677 | BM20: ='Compile Data'!D111 -> 0 | BN20: ='Compile Data'!D112 -> 6.33800195e-05 | BO20: ='Compile Data'!D113 -> 0 | BP20: ='Compile Data'!D114 -> 0 | BQ20: ='Compile Data'!D115 -> 3.776540594 | BR20: ='Compile Data'!D116 -> 10.61293726 | BS20: ='Compile Data'!D117 -> 33.66585006 | BT20: ='Compile Data'!D118 -> 87.50680273 | BU20: ='Compile Data'!D119 -> 84.97855475 | BV20: ='Compile Data'!D120 -> 2.5 | BX20: 228.2490417 | BY20: 228.2489783 | BZ20: 338.7421143 | CB20: 52.39593108 | CC20: 92.6868477 | CD20: 115.7014289 | CE20: 6.33800195e-05 | CF20: 48.05532791 | CG20: 208.6512075 | CH20: 7.708292947 | CJ20: 1930 | CK20: ='Compile Data'!E109 -> 63.31189269 | CL20: ='Compile Data'!E110 -> 45.08107016 | CM20: ='Compile Data'!E111 -> 0 | CN20: ='Compile Data'!E112 -> 0 | CO20: ='Compile Data'!E113 -> 0 | CP20: ='Compile Data'!E114 -> 0 | CQ20: ='Compile Data'!E115 -> 3.781139185 | CR20: ='Compile Data'!E116 -> 10.60203807 | CS20: ='Compile Data'!E117 -> 29.66663434 | CT20: ='Compile Data'!E118 -> 82.73799808 | CU20: ='Compile Data'!E119 -> 67.62179572 | CV20: ='Compile Data'!E120 -> 2.5 | CX20: 202.0998354 | CY20: 202.0998354 | CZ20: 305.3025682 | DB20: 45.08107016 | DC20: 75.3120257 | DD20: 108.3929629 | DE20: 0 | DF20: 44.04981159 | DG20: 182.5264281 | DH20: 7.690229984 | DJ20: 1930 | DK20: ='Compile Data'!F109 -> 63.96010162 | DL20: ='Compile Data'!F110 -> 44.95637484 | DM20: ='Compile Data'!F111 -> 0 | DN20: ='Compile Data'!F112 -> 0 | DO20: ='Compile Data'!F113 -> 0 | DP20: ='Compile Data'!F114 -> 0 | DQ20: ='Compile Data'!F115 -> 3.781807273 | DR20: ='Compile Data'!F116 -> 10.59927505 | DS20: ='Compile Data'!F117 -> 29.07081754 | DT20: ='Compile Data'!F118 -> 84.45806019 | DU20: ='Compile Data'!F119 -> 62.51225872 | DV20: ='Compile Data'!F120 -> 2.5 | DX20: 198.106594 | DY20: 198.106594 | DZ20: 301.8386952 | EB20: 44.95637484 | EC20: 70.19663391 | ED20: 108.9164765 | EE20: 0 | EF20: 43.45189986 | EG20: 178.5411365 | EH20: 7.684375185
A21: 1922-06-30 | B21: =INDIRECT(CONCATENATE("'",B$1,"'!",B$4,(YEAR($A21)-1921)*12+MONTH($A21)+3+IF(ISNUMBER(FIND("PRV",B$6)),1,0)))*IF(AND(B$3>0,TRIM(B$9)="CFS"),Conv_Flags!$C21,1) -> 0 | C21: =INDIRECT(CONCATENATE("'",C$1,"'!",C$4,(YEAR($A21)-1921)*12+MONTH($A21)+3+IF(ISNUMBER(FIND("PRV",C$6)),1,0)))*IF(AND(C$3>0,TRIM(C$9)="CFS"),Conv_Flags!$C21,1) -> 2.5 | D21: =INDIRECT(CONCATENATE("'",D$1,"'!",D$4,(YEAR($A21)-1921)*12+MONTH($A21)+3+IF(ISNUMBER(FIND("PRV",D$6)),1,0)))*IF(AND(D$3>0,TRIM(D$9)="CFS"),Conv_Flags!$C21,1) -> 2.5 | E21: =INDIRECT(CONCATENATE("'",E$1,"'!",E$4,(YEAR($A21)-1921)*12+MONTH($A21)+3+IF(ISNUMBER(FIND("PRV",E$6)),1,0)))*IF(AND(E$3>0,TRIM(E$9)="CFS"),Conv_Flags!$C21,1) -> 2.5 | F21: =INDIRECT(CONCATENATE("'",F$1,"'!",F$4,(YEAR($A21)-1921)*12+MONTH($A21)+3+IF(ISNUMBER(FIND("PRV",F$6)),1,0)))*IF(AND(F$3>0,TRIM(F$9)="CFS"),Conv_Flags!$C21,1) -> 2.5 | J21: 1931 | K21: =B121 -> 0 | L21: =B122 -> 0 | M21: =B123 -> 0 | N21: =B124 -> 0 | O21: =B125 -> 0 | P21: =B126 -> 0 | Q21: =B127 -> 0 | R21: =B128 -> 0 | S21: =B129 -> 0 | T21: =B130 -> 0 | U21: =B131 -> 0 | V21: =B132 -> 0 | X21: 0 | Y21: 0 | Z21: 0 | AB21: 0 | AC21: 0 | AD21: 0 | AE21: 0 | AF21: 0 | AG21: 0 | AH21: 0 | AJ21: 1931 | AK21: ='Compile Data'!C121 -> 5.183027494 | AL21: ='Compile Data'!C122 -> 0 | AM21: ='Compile Data'!C123 -> 0 | AN21: ='Compile Data'!C124 -> 0 | AO21: ='Compile Data'!C125 -> 0 | AP21: ='Compile Data'!C126 -> 2.741520565 | AQ21: ='Compile Data'!C127 -> 21.88633455 | AR21: ='Compile Data'!C128 -> 44.109938 | AS21: ='Compile Data'!C129 -> 21.90724847 | AT21: ='Compile Data'!C130 -> 5.951812837 | AU21: ='Compile Data'!C131 -> 0.8758644327 | AV21: ='Compile Data'!C132 -> 0 | AX21: 97.47271886 | AY21: 97.47271886 | AZ21: 102.6557464 | BB21: 2.741520565 | BC21: 0.8758644327 | BD21: 5.183027494 | BE21: 0 | BF21: 90.64504159 | BG21: 28.73492574 | BH21: 0 | BJ21: 1931 | BK21: ='Compile Data'!D121 -> 5.208292947 | BL21: ='Compile Data'!D122 -> 0 | BM21: ='Compile Data'!D123 -> 0 | BN21: ='Compile Data'!D124 -> 0 | BO21: ='Compile Data'!D125 -> 0 | BP21: ='Compile Data'!D126 -> 52.82708662 | BQ21: ='Compile Data'!D127 -> 19.24726471 | BR21: ='Compile Data'!D128 -> 128.8138565 | BS21: ='Compile Data'!D129 -> 28.60925058 | BT21: ='Compile Data'!D130 -> 15.16880938 | BU21: ='Compile Data'!D131 -> 2.5 | BV21: ='Compile Data'!D132 -> 2.5 | BX21: 249.6662678 | BY21: 249.6662678 | BZ21: 254.8745608 | CB21: 52.82708662 | CC21: 5 | CD21: 5.208292947 | CE21: 0 | CF21: 229.4974584 | CG21: 48.77805996 | CH21: 2.5 | CJ21: 1931 | CK21: ='Compile Data'!E121 -> 5.190229984 | CL21: ='Compile Data'!E122 -> 0 | CM21: ='Compile Data'!E123 -> 0 | CN21: ='Compile Data'!E124 -> 0 | CO21: ='Compile Data'!E125 -> 0 | CP21: ='Compile Data'!E126 -> 32.06524317 | CQ21: ='Compile Data'!E127 -> 19.29722612 | CR21: ='Compile Data'!E128 -> 94.87675333 | CS21: ='Compile Data'!E129 -> 21.92267102 | CT21: ='Compile Data'!E130 -> 9.703415245 | CU21: ='Compile Data'!E131 -> 2.5 | CV21: ='Compile Data'!E132 -> 2.5 | CX21: 182.8653089 | CY21: 182.8653089 | CZ21: 188.0555389 | DB21: 32.06524317 | DC21: 5 | DD21: 5.190229984 | DE21: 0 | DF21: 168.1618936 | DG21: 36.62608626 | DH21: 2.5 | DJ21: 1931 | DK21: ='Compile Data'!F121 -> 5.184375185 | DL21: ='Compile Data'!F122 -> 0 | DM21: ='Compile Data'!F123 -> 0 | DN21: ='Compile Data'!F124 -> 0 | DO21: ='Compile Data'!F125 -> 0 | DP21: ='Compile Data'!F126 -> 24.56184662 | DQ21: ='Compile Data'!F127 -> 19.29830031 | DR21: ='Compile Data'!F128 -> 75.33766574 | DS21: ='Compile Data'!F129 -> 21.92389505 | DT21: ='Compile Data'!F130 -> 7.348479279 | DU21: ='Compile Data'!F131 -> 2.5 | DV21: ='Compile Data'!F132 -> 1.066379513 | DX21: 152.0365665 | DY21: 152.0365665 | DZ21: 157.2209417 | EB21: 24.56184662 | EC21: 3.566379513 | ED21: 5.184375185 | EE21: 0 | EF21: 141.1217077 | EG21: 32.83875384 | EH21: 1.066379513
A22: 1922-07-31 | B22: =INDIRECT(CONCATENATE("'",B$1,"'!",B$4,(YEAR($A22)-1921)*12+MONTH($A22)+3+IF(ISNUMBER(FIND("PRV",B$6)),1,0)))*IF(AND(B$3>0,TRIM(B$9)="CFS"),Conv_Flags!$C22,1) -> 0 | C22: =INDIRECT(CONCATENATE("'",C$1,"'!",C$4,(YEAR($A22)-1921)*12+MONTH($A22)+3+IF(ISNUMBER(FIND("PRV",C$6)),1,0)))*IF(AND(C$3>0,TRIM(C$9)="CFS"),Conv_Flags!$C22,1) -> 32.98155875 | D22: =INDIRECT(CONCATENATE("'",D$1,"'!",D$4,(YEAR($A22)-1921)*12+MONTH($A22)+3+IF(ISNUMBER(FIND("PRV",D$6)),1,0)))*IF(AND(D$3>0,TRIM(D$9)="CFS"),Conv_Flags!$C22,1) -> 38.29529911 | E22: =INDIRECT(CONCATENATE("'",E$1,"'!",E$4,(YEAR($A22)-1921)*12+MONTH($A22)+3+IF(ISNUMBER(FIND("PRV",E$6)),1,0)))*IF(AND(E$3>0,TRIM(E$9)="CFS"),Conv_Flags!$C22,1) -> 48.92456257 | F22: =INDIRECT(CONCATENATE("'",F$1,"'!",F$4,(YEAR($A22)-1921)*12+MONTH($A22)+3+IF(ISNUMBER(FIND("PRV",F$6)),1,0)))*IF(AND(F$3>0,TRIM(F$9)="CFS"),Conv_Flags!$C22,1) -> 39.17859524 | J22: 1932 | K22: =B133 -> 0 | L22: =B134 -> 0 | M22: =B135 -> 0 | N22: =B136 -> 0 | O22: =B137 -> 0 | P22: =B138 -> 0 | Q22: =B139 -> 0 | R22: =B140 -> 0 | S22: =B141 -> 0 | T22: =B142 -> 0 | U22: =B143 -> 0 | V22: =B144 -> 0 | X22: 0 | Y22: 0 | Z22: 0 | AB22: 0 | AC22: 0 | AD22: 0 | AE22: 0 | AF22: 0 | AG22: 0 | AH22: 0 | AJ22: 1932 | AK22: ='Compile Data'!C133 -> 0 | AL22: ='Compile Data'!C134 -> 0 | AM22: ='Compile Data'!C135 -> 0 | AN22: ='Compile Data'!C136 -> 0 | AO22: ='Compile Data'!C137 -> 0 | AP22: ='Compile Data'!C138 -> 0.1097050772 | AQ22: ='Compile Data'!C139 -> 21.17945589 | AR22: ='Compile Data'!C140 -> 8.313972986 | AS22: ='Compile Data'!C141 -> 15.49815652 | AT22: ='Compile Data'!C142 -> 63.0324137 | AU22: ='Compile Data'!C143 -> 5.101024757 | AV22: ='Compile Data'!C144 -> 0 | AX22: 113.2347289 | AY22: 113.2347289 | AZ22: 113.2347289 | BB22: 0.1097050772 | BC22: 5.101024757 | BD22: 0 | BE22: 0 | BF22: 45.10129047 | BG22: 83.63159498 | BH22: 0 | BJ22: 1932 | BK22: ='Compile Data'!D133 -> 0 | BL22: ='Compile Data'!D134 -> 0 | BM22: ='Compile Data'!D135 -> 0 | BN22: ='Compile Data'!D136 -> 0 | BO22: ='Compile Data'!D137 -> 0 | BP22: ='Compile Data'!D138 -> 0.1092003422 | BQ22: ='Compile Data'!D139 -> 20.55398667 | BR22: ='Compile Data'!D140 -> 11.55523485 | BS22: ='Compile Data'!D141 -> 18.07691519 | BT22: ='Compile Data'!D142 -> 66.784974 | BU22: ='Compile Data'!D143 -> 21.14404261 | BV22: ='Compile Data'!D144 -> 8.088950833 | BX22: 146.3133045 | BY22: 146.3133045 | BZ22: 146.3133045 | CB22: 0.1092003422 | CC22: 29.23299344 | CD22: 0 | CE22: 0 | CF22: 50.29533705 | CG22: 114.0948826 | CH22: 8.088950833 | CJ22: 1932 | CK22: ='Compile Data'!E133 -> 0 | CL22: ='Compile Data'!E134 -> 0 | CM22: ='Compile Data'!E135 -> 0 | CN22: ='Compile Data'!E136 -> 0 | CO22: ='Compile Data'!E137 -> 0 | CP22: ='Compile Data'!E138 -> 0.1099422684 | CQ22: ='Compile Data'!E139 -> 19.00502857 | CR22: ='Compile Data'!E140 -> 9.164092027 | CS22: ='Compile Data'!E141 -> 16.20079969 | CT22: ='Compile Data'!E142 -> 61.86601975 | CU22: ='Compile Data'!E143 -> 15.27775908 | CV22: ='Compile Data'!E144 -> 0.1827368706 | CX22: 121.8063782 | CY22: 121.8063782 | CZ22: 121.8063782 | DB22: 0.1099422684 | DC22: 15.46049595 | DD22: 0 | DE22: 0 | DF22: 44.47986255 | DG22: 93.52731538 | DH22: 0.1827368706 | DJ22: 1932 | DK22: ='Compile Data'!F133 -> 0 | DL22: ='Compile Data'!F134 -> 0 | DM22: ='Compile Data'!F135 -> 0 | DN22: ='Compile Data'!F136 -> 0 | DO22: ='Compile Data'!F137 -> 0 | DP22: ='Compile Data'!F138 -> 0.1099092038 | DQ22: ='Compile Data'!F139 -> 25.62388807 | DR22: ='Compile Data'!F140 -> 9.150898143 | DS22: ='Compile Data'!F141 -> 16.08772335 | DT22: ='Compile Data'!F142 -> 61.62732043 | DU22: ='Compile Data'!F143 -> 9.944231553 | DV22: ='Compile Data'!F144 -> 0 | DX22: 122.5439707 | DY22: 122.5439707 | DZ22: 122.5439707 | EB22: 0.1099092038 | EC22: 9.944231553 | ED22: 0 | EE22: 0 | EF22: 50.97241876 | EG22: 87.65927533 | EH22: 0
A23: 1922-08-31 | B23: =INDIRECT(CONCATENATE("'",B$1,"'!",B$4,(YEAR($A23)-1921)*12+MONTH($A23)+3+IF(ISNUMBER(FIND("PRV",B$6)),1,0)))*IF(AND(B$3>0,TRIM(B$9)="CFS"),Conv_Flags!$C23,1) -> 0 | C23: =INDIRECT(CONCATENATE("'",C$1,"'!",C$4,(YEAR($A23)-1921)*12+MONTH($A23)+3+IF(ISNUMBER(FIND("PRV",C$6)),1,0)))*IF(AND(C$3>0,TRIM(C$9)="CFS"),Conv_Flags!$C23,1) -> 31.3362069 | D23: =INDIRECT(CONCATENATE("'",D$1,"'!",D$4,(YEAR($A23)-1921)*12+MONTH($A23)+3+IF(ISNUMBER(FIND("PRV",D$6)),1,0)))*IF(AND(D$3>0,TRIM(D$9)="CFS"),Conv_Flags!$C23,1) -> 31.3362069 | E23: =INDIRECT(CONCATENATE("'",E$1,"'!",E$4,(YEAR($A23)-1921)*12+MONTH($A23)+3+IF(ISNUMBER(FIND("PRV",E$6)),1,0)))*IF(AND(E$3>0,TRIM(E$9)="CFS"),Conv_Flags!$C23,1) -> 31.3362069 | F23: =INDIRECT(CONCATENATE("'",F$1,"'!",F$4,(YEAR($A23)-1921)*12+MONTH($A23)+3+IF(ISNUMBER(FIND("PRV",F$6)),1,0)))*IF(AND(F$3>0,TRIM(F$9)="CFS"),Conv_Flags!$C23,1) -> 31.3362069 | J23: 1933 | K23: =B145 -> 0 | L23: =B146 -> 0 | M23: =B147 -> 0 | N23: =B148 -> 0 | O23: =B149 -> 0 | P23: =B150 -> 0 | Q23: =B151 -> 0 | R23: =B152 -> 0 | S23: =B153 -> 0 | T23: =B154 -> 0 | U23: =B155 -> 0 | V23: =B156 -> 0 | X23: 0 | Y23: 0 | Z23: 0 | AB23: 0 | AC23: 0 | AD23: 0 | AE23: 0 | AF23: 0 | AG23: 0 | AH23: 0 | AJ23: 1933 | AK23: ='Compile Data'!C145 -> 0 | AL23: ='Compile Data'!C146 -> 0 | AM23: ='Compile Data'!C147 -> 0 | AN23: ='Compile Data'!C148 -> 0 | AO23: ='Compile Data'!C149 -> 0 | AP23: ='Compile Data'!C150 -> 3.256942244 | AQ23: ='Compile Data'!C151 -> 5.197645394 | AR23: ='Compile Data'!C152 -> 22.10019758 | AS23: ='Compile Data'!C153 -> 0.8403941043 | AT23: ='Compile Data'!C154 -> 0 | AU23: ='Compile Data'!C155 -> 0 | AV23: ='Compile Data'!C156 -> 0 | AX23: 31.39517932 | AY23: 31.39517932 | AZ23: 31.39517932 | BB23: 3.256942244 | BC23: 0 | BD23: 0 | BE23: 0 | BF23: 31.39517932 | BG23: 0.8403941043 | BH23: 0 | BJ23: 1933 | BK23: ='Compile Data'!D145 -> 0 | BL23: ='Compile Data'!D146 -> 0 | BM23: ='Compile Data'!D147 -> 0 | BN23: ='Compile Data'!D148 -> 0 | BO23: ='Compile Data'!D149 -> 0 | BP23: ='Compile Data'!D150 -> 3.254577952 | BQ23: ='Compile Data'!D151 -> 47.92454388 | BR23: ='Compile Data'!D152 -> 49.88999033 | BS23: ='Compile Data'!D153 -> 23.79478925 | BT23: ='Compile Data'!D154 -> 25.66760495 | BU23: ='Compile Data'!D155 -> 2.500522546 | BV23: ='Compile Data'!D156 -> 0.9644449639 | BX23: 153.9964739 | BY23: 153.9964739 | BZ23: 153.9964739 | CB23: 3.254577952 | CC23: 3.46496751 | CD23: 0 | CE23: 0 | CF23: 124.8639014 | CG23: 52.92736171 | CH23: 0.9644449639 | CJ23: 1933 | CK23: ='Compile Data'!E145 -> 0 | CL23: ='Compile Data'!E146 -> 0 | CM23: ='Compile Data'!E147 -> 0 | CN23: ='Compile Data'!E148 -> 0 | CO23: ='Compile Data'!E149 -> 0 | CP23: ='Compile Data'!E150 -> 3.257548608 | CQ23: ='Compile Data'!E151 -> 30.60941501 | CR23: ='Compile Data'!E152 -> 49.1242278 | CS23: ='Compile Data'!E153 -> 7.755948257 | CT23: ='Compile Data'!E154 -> 0.212269738 | CU23: ='Compile Data'!E155 -> 0 | CV23: ='Compile Data'!E156 -> 0 | CX23: 90.95940941 | CY23: 90.95940941 | CZ23: 90.95940941 | DB23: 3.257548608 | DC23: 0 | DD23: 0 | DE23: 0 | DF23: 90.74713967 | DG23: 7.968217996 | DH23: 0 | DJ23: 1933 | DK23: ='Compile Data'!F145 -> 0 | DL23: ='Compile Data'!F146 -> 0 | DM23: ='Compile Data'!F147 -> 0 | DN23: ='Compile Data'!F148 -> 0 | DO23: ='Compile Data'!F149 -> 0 | DP23: ='Compile Data'!F150 -> 3.257164646 | DQ23: ='Compile Data'!F151 -> 7.683326596 | DR23: ='Compile Data'!F152 -> 34.91378586 | DS23: ='Compile Data'!F153 -> 1.585641105 | DT23: ='Compile Data'!F154 -> 0 | DU23: ='Compile Data'!F155 -> 0 | DV23: ='Compile Data'!F156 -> 0 | DX23: 47.4399182 | DY23: 47.4399182 | DZ23: 47.4399182 | EB23: 3.257164646 | EC23: 0 | ED23: 0 | EE23: 0 | EF23: 47.4399182 | EG23: 1.585641105 | EH23: 0
A24: 1922-09-30 | B24: =INDIRECT(CONCATENATE("'",B$1,"'!",B$4,(YEAR($A24)-1921)*12+MONTH($A24)+3+IF(ISNUMBER(FIND("PRV",B$6)),1,0)))*IF(AND(B$3>0,TRIM(B$9)="CFS"),Conv_Flags!$C24,1) -> 0 | C24: =INDIRECT(CONCATENATE("'",C$1,"'!",C$4,(YEAR($A24)-1921)*12+MONTH($A24)+3+IF(ISNUMBER(FIND("PRV",C$6)),1,0)))*IF(AND(C$3>0,TRIM(C$9)="CFS"),Conv_Flags!$C24,1) -> 31.8262069 | D24: =INDIRECT(CONCATENATE("'",D$1,"'!",D$4,(YEAR($A24)-1921)*12+MONTH($A24)+3+IF(ISNUMBER(FIND("PRV",D$6)),1,0)))*IF(AND(D$3>0,TRIM(D$9)="CFS"),Conv_Flags!$C24,1) -> 31.8262069 | E24: =INDIRECT(CONCATENATE("'",E$1,"'!",E$4,(YEAR($A24)-1921)*12+MONTH($A24)+3+IF(ISNUMBER(FIND("PRV",E$6)),1,0)))*IF(AND(E$3>0,TRIM(E$9)="CFS"),Conv_Flags!$C24,1) -> 31.8262069 | F24: =INDIRECT(CONCATENATE("'",F$1,"'!",F$4,(YEAR($A24)-1921)*12+MONTH($A24)+3+IF(ISNUMBER(FIND("PRV",F$6)),1,0)))*IF(AND(F$3>0,TRIM(F$9)="CFS"),Conv_Flags!$C24,1) -> 31.8262069 | J24: 1934 | K24: =B157 -> 0 | L24: =B158 -> 0 | M24: =B159 -> 0 | N24: =B160 -> 0 | O24: =B161 -> 0 | P24: =B162 -> 0 | Q24: =B163 -> 0 | R24: =B164 -> 0 | S24: =B165 -> 0 | T24: =B166 -> 0 | U24: =B167 -> 0 | V24: =B168 -> 0 | X24: 0 | Y24: 0 | Z24: 0 | AB24: 0 | AC24: 0 | AD24: 0 | AE24: 0 | AF24: 0 | AG24: 0 | AH24: 0 | AJ24: 1934 | AK24: ='Compile Data'!C157 -> 0 | AL24: ='Compile Data'!C158 -> 0 | AM24: ='Compile Data'!C159 -> 0 | AN24: ='Compile Data'!C160 -> 0 | AO24: ='Compile Data'!C161 -> 0 | AP24: ='Compile Data'!C162 -> 28.1222705 | AQ24: ='Compile Data'!C163 -> 12.45166194 | AR24: ='Compile Data'!C164 -> 72.65744009 | AS24: ='Compile Data'!C165 -> 2.5 | AT24: ='Compile Data'!C166 -> 0.2874988627 | AU24: ='Compile Data'!C167 -> 0 | AV24: ='Compile Data'!C168 -> 0 | AX24: 116.0188714 | AY24: 116.0188714 | AZ24: 116.0188714 | BB24: 28.1222705 | BC24: 0 | BD24: 0 | BE24: 0 | BF24: 115.7313725 | BG24: 2.787498863 | BH24: 0 | BJ24: 1934 | BK24: ='Compile Data'!D157 -> 0 | BL24: ='Compile Data'!D158 -> 0 | BM24: ='Compile Data'!D159 -> 0 | BN24: ='Compile Data'!D160 -> 0 | BO24: ='Compile Data'!D161 -> 0 | BP24: ='Compile Data'!D162 -> 0.06212099143 | BQ24: ='Compile Data'!D163 -> 17.13943518 | BR24: ='Compile Data'!D164 -> 110.3705051 | BS24: ='Compile Data'!D165 -> 31.32076624 | BT24: ='Compile Data'!D166 -> 2.5 | BU24: ='Compile Data'!D167 -> 30.84313574 | BV24: ='Compile Data'!D168 -> 0 | BX24: 192.2359633 | BY24: 192.2359633 | BZ24: 192.2359633 | CB24: 0.06212099143 | CC24: 30.84313574 | CD24: 0 | CE24: 0 | CF24: 158.8928276 | CG24: 64.66390198 | CH24: 0 | CJ24: 1934 | CK24: ='Compile Data'!E157 -> 0 | CL24: ='Compile Data'!E158 -> 0 | CM24: ='Compile Data'!E159 -> 0 | CN24: ='Compile Data'!E160 -> 0 | CO24: ='Compile Data'!E161 -> 0 | CP24: ='Compile Data'!E162 -> 0.06235173151 | CQ24: ='Compile Data'!E163 -> 17.34943355 | CR24: ='Compile Data'!E164 -> 105.9860607 | CS24: ='Compile Data'!E165 -> 19.65816542 | CT24: ='Compile Data'!E166 -> 2.5 | CU24: ='Compile Data'!E167 -> 32.65480173 | CV24: ='Compile Data'!E168 -> 0 | CX24: 178.2108131 | CY24: 178.2108131 | CZ24: 178.2108131 | DB24: 0.06235173151 | DC24: 32.65480173 | DD24: 0 | DE24: 0 | DF24: 143.0560114 | DG24: 54.81296715 | DH24: 0 | DJ24: 1934 | DK24: ='Compile Data'!F157 -> 0 | DL24: ='Compile Data'!F158 -> 0 | DM24: ='Compile Data'!F159 -> 0 | DN24: ='Compile Data'!F160 -> 0 | DO24: ='Compile Data'!F161 -> 0 | DP24: ='Compile Data'!F162 -> 35.48859127 | DQ24: ='Compile Data'!F163 -> 13.06372094 | DR24: ='Compile Data'!F164 -> 96.29504579 | DS24: ='Compile Data'!F165 -> 2.5 | DT24: ='Compile Data'!F166 -> 1.280068821 | DU24: ='Compile Data'!F167 -> 0 | DV24: ='Compile Data'!F168 -> 0 | DX24: 148.6274268 | DY24: 148.6274268 | DZ24: 148.6274268 | EB24: 35.48859127 | EC24: 0 | ED24: 0 | EE24: 0 | EF24: 147.347358 | EG24: 3.780068821 | EH24: 0
A25: 1922-10-31 | B25: =INDIRECT(CONCATENATE("'",B$1,"'!",B$4,(YEAR($A25)-1921)*12+MONTH($A25)+3+IF(ISNUMBER(FIND("PRV",B$6)),1,0)))*IF(AND(B$3>0,TRIM(B$9)="CFS"),Conv_Flags!$C25,1) -> 0 | C25: =INDIRECT(CONCATENATE("'",C$1,"'!",C$4,(YEAR($A25)-1921)*12+MONTH($A25)+3+IF(ISNUMBER(FIND("PRV",C$6)),1,0)))*IF(AND(C$3>0,TRIM(C$9)="CFS"),Conv_Flags!$C25,1) -> 30.0762069 | D25: =INDIRECT(CONCATENATE("'",D$1,"'!",D$4,(YEAR($A25)-1921)*12+MONTH($A25)+3+IF(ISNUMBER(FIND("PRV",D$6)),1,0)))*IF(AND(D$3>0,TRIM(D$9)="CFS"),Conv_Flags!$C25,1) -> 30.0762069 | E25: =INDIRECT(CONCATENATE("'",E$1,"'!",E$4,(YEAR($A25)-1921)*12+MONTH($A25)+3+IF(ISNUMBER(FIND("PRV",E$6)),1,0)))*IF(AND(E$3>0,TRIM(E$9)="CFS"),Conv_Flags!$C25,1) -> 30.0762069 | F25: =INDIRECT(CONCATENATE("'",F$1,"'!",F$4,(YEAR($A25)-1921)*12+MONTH($A25)+3+IF(ISNUMBER(FIND("PRV",F$6)),1,0)))*IF(AND(F$3>0,TRIM(F$9)="CFS"),Conv_Flags!$C25,1) -> 30.0762069 | J25: 1935 | K25: =B169 -> 0 | L25: =B170 -> 0 | M25: =B171 -> 0 | N25: =B172 -> 0 | O25: =B173 -> 0 | P25: =B174 -> 0 | Q25: =B175 -> 0 | R25: =B176 -> 0 | S25: =B177 -> 0 | T25: =B178 -> 0 | U25: =B179 -> 0 | V25: =B180 -> 0 | X25: 0 | Y25: 0 | Z25: 0 | AB25: 0 | AC25: 0 | AD25: 0 | AE25: 0 | AF25: 0 | AG25: 0 | AH25: 0 | AJ25: 1935 | AK25: ='Compile Data'!C169 -> 0 | AL25: ='Compile Data'!C170 -> 0 | AM25: ='Compile Data'!C171 -> 0 | AN25: ='Compile Data'!C172 -> 0 | AO25: ='Compile Data'!C173 -> 0 | AP25: ='Compile Data'!C174 -> 0 | AQ25: ='Compile Data'!C175 -> 0.04519538657 | AR25: ='Compile Data'!C176 -> 13.2774905 | AS25: ='Compile Data'!C177 -> 20.23321596 | AT25: ='Compile Data'!C178 -> 11.41950357 | AU25: ='Compile Data'!C179 -> 33.37147864 | AV25: ='Compile Data'!C180 -> 14.45187384 | AX25: 112.5778503 | AY25: 112.5778503 | AZ25: 92.7987579 | BB25: 0 | BC25: 58.56689157 | BD25: 0 | BE25: 0 | BF25: 33.55590185 | BG25: 79.47607201 | BH25: 34.23096622 | BJ25: 1935 | BK25: ='Compile Data'!D169 -> 0 | BL25: ='Compile Data'!D170 -> 0 | BM25: ='Compile Data'!D171 -> 0 | BN25: ='Compile Data'!D172 -> 0 | BO25: ='Compile Data'!D173 -> 0 | BP25: ='Compile Data'!D174 -> 0 | BQ25: ='Compile Data'!D175 -> 0.02434471636 | BR25: ='Compile Data'!D176 -> 13.29144535 | BS25: ='Compile Data'!D177 -> 24.61207687 | BT25: ='Compile Data'!D178 -> 12.38413503 | BU25: ='Compile Data'!D179 -> 34.04202494 | BV25: ='Compile Data'!D180 -> 8.477560165 | BX25: 122.9258904 | BY25: 122.9258904 | BZ25: 92.83158708 | CB25: 0 | CC25: 57.37394865 | CD25: 0 | CE25: 0 | CF25: 37.92786694 | CG25: 79.51579701 | CH25: 38.57186352 | CJ25: 1935 | CK25: ='Compile Data'!E169 -> 0 | CL25: ='Compile Data'!E170 -> 0 | CM25: ='Compile Data'!E171 -> 0 | CN25: ='Compile Data'!E172 -> 0 | CO25: ='Compile Data'!E173 -> 0 | CP25: ='Compile Data'!E174 -> 0 | CQ25: ='Compile Data'!E175 -> 0.03264178961 | CR25: ='Compile Data'!E176 -> 13.27941789 | CS25: ='Compile Data'!E177 -> 20.45529216 | CT25: ='Compile Data'!E178 -> 11.51055995 | CU25: ='Compile Data'!E179 -> 33.74742929 | CV25: ='Compile Data'!E180 -> 8.582218339 | CX25: 111.0220979 | CY25: 111.0220979 | CZ25: 87.60755942 | DB25: 0 | DC25: 54.53560623 | DD25: 0 | DE25: 0 | DF25: 33.76735184 | DG25: 74.29549973 | DH25: 31.99675685 | DJ25: 1935 | DK25: ='Compile Data'!F169 -> 0 | DL25: ='Compile Data'!F170 -> 0 | DM25: ='Compile Data'!F171 -> 0 | DN25: ='Compile Data'!F172 -> 0 | DO25: ='Compile Data'!F173 -> 0 | DP25: ='Compile Data'!F174 -> 0 | DQ25: ='Compile Data'!F175 -> 0.04514203416 | DR25: ='Compile Data'!F176 -> 13.27756977 | DS25: ='Compile Data'!F177 -> 20.41589956 | DT25: ='Compile Data'!F178 -> 11.56124261 | DU25: ='Compile Data'!F179 -> 33.48194475 | DV25: ='Compile Data'!F180 -> 15.3647063 | DX25: 112.7859202 | DY25: 112.7859202 | DZ25: 94.14650502 | EB25: 0 | EC25: 60.02972553 | ED25: 0 | EE25: 0 | EF25: 33.73861136 | EG25: 80.82379322 | EH25: 34.00412143
A26: 1922-11-30 | B26: =INDIRECT(CONCATENATE("'",B$1,"'!",B$4,(YEAR($A26)-1921)*12+MONTH($A26)+3+IF(ISNUMBER(FIND("PRV",B$6)),1,0)))*IF(AND(B$3>0,TRIM(B$9)="CFS"),Conv_Flags!$C26,1) -> 0 | C26: =INDIRECT(CONCATENATE("'",C$1,"'!",C$4,(YEAR($A26)-1921)*12+MONTH($A26)+3+IF(ISNUMBER(FIND("PRV",C$6)),1,0)))*IF(AND(C$3>0,TRIM(C$9)="CFS"),Conv_Flags!$C26,1) -> 0 | D26: =INDIRECT(CONCATENATE("'",D$1,"'!",D$4,(YEAR($A26)-1921)*12+MONTH($A26)+3+IF(ISNUMBER(FIND("PRV",D$6)),1,0)))*IF(AND(D$3>0,TRIM(D$9)="CFS"),Conv_Flags!$C26,1) -> 0 | E26: =INDIRECT(CONCATENATE("'",E$1,"'!",E$4,(YEAR($A26)-1921)*12+MONTH($A26)+3+IF(ISNUMBER(FIND("PRV",E$6)),1,0)))*IF(AND(E$3>0,TRIM(E$9)="CFS"),Conv_Flags!$C26,1) -> 0 | F26: =INDIRECT(CONCATENATE("'",F$1,"'!",F$4,(YEAR($A26)-1921)*12+MONTH($A26)+3+IF(ISNUMBER(FIND("PRV",F$6)),1,0)))*IF(AND(F$3>0,TRIM(F$9)="CFS"),Conv_Flags!$C26,1) -> 0 | J26: 1936 | K26: =B181 -> 0 | L26: =B182 -> 0 | M26: =B183 -> 0 | N26: =B184 -> 0 | O26: =B185 -> 0 | P26: =B186 -> 0 | Q26: =B187 -> 0 | R26: =B188 -> 0 | S26: =B189 -> 0 | T26: =B190 -> 0 | U26: =B191 -> 0 | V26: =B192 -> 0 | X26: 0 | Y26: 0 | Z26: 0 | AB26: 0 | AC26: 0 | AD26: 0 | AE26: 0 | AF26: 0 | AG26: 0 | AH26: 0 | AJ26: 1936 | AK26: ='Compile Data'!C181 -> 10.74353909 | AL26: ='Compile Data'!C182 -> 9.03555329 | AM26: ='Compile Data'!C183 -> 0 | AN26: ='Compile Data'!C184 -> 0 | AO26: ='Compile Data'!C185 -> 0 | AP26: ='Compile Data'!C186 -> 0 | AQ26: ='Compile Data'!C187 -> 4.065752429 | AR26: ='Compile Data'!C188 -> 11.19293309 | AS26: ='Compile Data'!C189 -> 43.1796908 | AT26: ='Compile Data'!C190 -> 33.78571429 | AU26: ='Compile Data'!C191 -> 40.92898741 | AV26: ='Compile Data'!C192 -> 2.39479182 | AX26: 215.3045387 | AY26: 215.3045387 | AZ26: 155.3269622 | BB26: 9.03555329 | BC26: 115.6649476 | BD26: 19.77909238 | BE26: 0 | BF26: 58.43837632 | BG26: 120.2891843 | BH26: 82.15146064 | BJ26: 1936 | BK26: ='Compile Data'!D181 -> 14.85436354 | BL26: ='Compile Data'!D182 -> 15.23993981 | BM26: ='Compile Data'!D183 -> 0 | BN26: ='Compile Data'!D184 -> 0 | BO26: ='Compile Data'!D185 -> 0 | BP26: ='Compile Data'!D186 -> 0 | BQ26: ='Compile Data'!D187 -> 4.085809143 | BR26: ='Compile Data'!D188 -> 11.24814882 | BS26: ='Compile Data'!D189 -> 43.56658653 | BT26: ='Compile Data'!D190 -> 33.78571429 | BU26: ='Compile Data'!D191 -> 41.20715607 | BV26: ='Compile Data'!D192 -> 2.608176433 | BX26: 216.5031626 | BY26: 216.5031626 | BZ26: 166.5958946 | CB26: 15.23993981 | CC26: 107.1239485 | CD26: 30.09430335 | CE26: 0 | CF26: 58.90054449 | CG26: 121.1676333 | CH26: 82.60974774 | CJ26: 1936 | CK26: ='Compile Data'!E181 -> 12.2059586 | CL26: ='Compile Data'!E182 -> 11.20857992 | CM26: ='Compile Data'!E183 -> 0 | CN26: ='Compile Data'!E184 -> 0 | CO26: ='Compile Data'!E185 -> 0 | CP26: ='Compile Data'!E186 -> 0 | CQ26: ='Compile Data'!E187 -> 4.081990187 | CR26: ='Compile Data'!E188 -> 11.23763531 | CS26: ='Compile Data'!E189 -> 43.39522566 | CT26: ='Compile Data'!E190 -> 34.69571429 | CU26: ='Compile Data'!E191 -> 40.24064693 | CV26: ='Compile Data'!E192 -> 2.509666914 | CX26: 215.9941947 | CY26: 215.9941947 | CZ26: 159.5754178 | DB26: 11.20857992 | DC26: 105.7947476 | DD26: 23.41453851 | DE26: 0 | DF26: 58.71485115 | DG26: 120.8412538 | DH26: 82.34298232 | DJ26: 1936 | DK26: ='Compile Data'!F181 -> 11.18307449 | DL26: ='Compile Data'!F182 -> 7.456340643 | DM26: ='Compile Data'!F183 -> 0 | DN26: ='Compile Data'!F184 -> 0 | DO26: ='Compile Data'!F185 -> 0 | DP26: ='Compile Data'!F186 -> 0 | DQ26: ='Compile Data'!F187 -> 4.052406724 | DR26: ='Compile Data'!F188 -> 11.15619264 | DS26: ='Compile Data'!F189 -> 43.0550713 | DT26: ='Compile Data'!F190 -> 34.69571429 | DU26: ='Compile Data'!F191 -> 39.86949423 | DV26: ='Compile Data'!F192 -> 2.329121985 | DX26: 214.9111926 | DY26: 214.9111926 | DZ26: 153.7974163 | EB26: 7.456340643 | EC26: 103.8892911 | ED26: 18.63941513 | EE26: 0 | EF26: 58.26367067 | EG26: 119.9494018 | EH26: 82.08231343
A27: 1922-12-31 | B27: =INDIRECT(CONCATENATE("'",B$1,"'!",B$4,(YEAR($A27)-1921)*12+MONTH($A27)+3+IF(ISNUMBER(FIND("PRV",B$6)),1,0)))*IF(AND(B$3>0,TRIM(B$9)="CFS"),Conv_Flags!$C27,1) -> 0 | C27: =INDIRECT(CONCATENATE("'",C$1,"'!",C$4,(YEAR($A27)-1921)*12+MONTH($A27)+3+IF(ISNUMBER(FIND("PRV",C$6)),1,0)))*IF(AND(C$3>0,TRIM(C$9)="CFS"),Conv_Flags!$C27,1) -> 1.66 | D27: =INDIRECT(CONCATENATE("'",D$1,"'!",D$4,(YEAR($A27)-1921)*12+MONTH($A27)+3+IF(ISNUMBER(FIND("PRV",D$6)),1,0)))*IF(AND(D$3>0,TRIM(D$9)="CFS"),Conv_Flags!$C27,1) -> 1.66 | E27: =INDIRECT(CONCATENATE("'",E$1,"'!",E$4,(YEAR($A27)-1921)*12+MONTH($A27)+3+IF(ISNUMBER(FIND("PRV",E$6)),1,0)))*IF(AND(E$3>0,TRIM(E$9)="CFS"),Conv_Flags!$C27,1) -> 1.66 | F27: =INDIRECT(CONCATENATE("'",F$1,"'!",F$4,(YEAR($A27)-1921)*12+MONTH($A27)+3+IF(ISNUMBER(FIND("PRV",F$6)),1,0)))*IF(AND(F$3>0,TRIM(F$9)="CFS"),Conv_Flags!$C27,1) -> 1.66 | J27: 1937 | K27: =B193 -> 0 | L27: =B194 -> 0 | M27: =B195 -> 0 | N27: =B196 -> 0 | O27: =B197 -> 0 | P27: =B198 -> 0 | Q27: =B199 -> 0 | R27: =B200 -> 0 | S27: =B201 -> 0 | T27: =B202 -> 0 | U27: =B203 -> 0 | V27: =B204 -> 0 | X27: 0 | Y27: 0 | Z27: 0 | AB27: 0 | AC27: 0 | AD27: 0 | AE27: 0 | AF27: 0 | AG27: 0 | AH27: 0 | AJ27: 1937 | AK27: ='Compile Data'!C193 -> 72.34116842 | AL27: ='Compile Data'!C194 -> 7.415500403 | AM27: ='Compile Data'!C195 -> 0 | AN27: ='Compile Data'!C196 -> 0 | AO27: ='Compile Data'!C197 -> 0 | AP27: ='Compile Data'!C198 -> 0 | AQ27: ='Compile Data'!C199 -> 4.223849657 | AR27: ='Compile Data'!C200 -> 13.02012117 | AS27: ='Compile Data'!C201 -> 42.55191416 | AT27: ='Compile Data'!C202 -> 36.42649883 | AU27: ='Compile Data'!C203 -> 60.86935828 | AV27: ='Compile Data'!C204 -> 16.07597147 | AX27: 177.3977136 | AY27: 177.3977136 | AZ27: 252.9243824 | BB27: 7.415500403 | BC27: 79.43532975 | BD27: 79.75666882 | BE27: 0 | BF27: 59.79588499 | BG27: 155.9237427 | BH27: 20.30597147 | BJ27: 1937 | BK27: ='Compile Data'!D193 -> 63.30861596 | BL27: ='Compile Data'!D194 -> 16.69295535 | BM27: ='Compile Data'!D195 -> 0 | BN27: ='Compile Data'!D196 -> 0 | BO27: ='Compile Data'!D197 -> 0 | BP27: ='Compile Data'!D198 -> 0 | BQ27: ='Compile Data'!D199 -> 4.26309367 | BR27: ='Compile Data'!D200 -> 13.4692224 | BS27: ='Compile Data'!D201 -> 46.88235608 | BT27: ='Compile Data'!D202 -> 36.24971052 | BU27: ='Compile Data'!D203 -> 59.18771463 | BV27: ='Compile Data'!D204 -> 20.35337826 | BX27: 184.6356403 | BY27: 184.6356403 | BZ27: 260.4070469 | CB27: 16.69295535 | CC27: 82.03125761 | CD27: 80.00157131 | CE27: 0 | CF27: 64.61467215 | CG27: 162.6731595 | CH27: 24.58354298 | CJ27: 1937 | CK27: ='Compile Data'!E193 -> 63.04443372 | CL27: ='Compile Data'!E194 -> 16.78888169 | CM27: ='Compile Data'!E195 -> 0 | CN27: ='Compile Data'!E196 -> 0 | CO27: ='Compile Data'!E197 -> 0 | CP27: ='Compile Data'!E198 -> 0 | CQ27: ='Compile Data'!E199 -> 4.218051442 | CR27: ='Compile Data'!E200 -> 13.18355018 | CS27: ='Compile Data'!E201 -> 43.90664024 | CT27: ='Compile Data'!E202 -> 36.30659422 | CU27: ='Compile Data'!E203 -> 59.88085299 | CV27: ='Compile Data'!E204 -> 14.85491477 | CX27: 176.5806038 | CY27: 176.5806038 | CZ27: 252.1839192 | DB27: 16.78888169 | DC27: 77.22576776 | DD27: 79.83331541 | DE27: 0 | DF27: 61.30824186 | DG27: 154.9490022 | DH27: 19.08491477 | DJ27: 1937 | DK27: ='Compile Data'!F193 -> 61.69067492 | DL27: ='Compile Data'!F194 -> 18.06251652 | DM27: ='Compile Data'!F195 -> 0 | DN27: ='Compile Data'!F196 -> 0 | DO27: ='Compile Data'!F197 -> 0 | DP27: ='Compile Data'!F198 -> 0 | DQ27: ='Compile Data'!F199 -> 4.225575219 | DR27: ='Compile Data'!F200 -> 12.99691921 | DS27: ='Compile Data'!F201 -> 42.53431837 | DT27: ='Compile Data'!F202 -> 36.27493779 | DU27: ='Compile Data'!F203 -> 59.50442568 | DV27: ='Compile Data'!F204 -> 13.3330661 | DX27: 173.0994396 | DY27: 173.0994396 | DZ27: 248.6224338 | EB27: 18.06251652 | EC27: 75.327689 | ED27: 79.75319144 | EE27: 0 | EF27: 59.75681279 | EG27: 151.6467479 | EH27: 17.56326332
A28: 1923-01-31 | B28: =INDIRECT(CONCATENATE("'",B$1,"'!",B$4,(YEAR($A28)-1921)*12+MONTH($A28)+3+IF(ISNUMBER(FIND("PRV",B$6)),1,0)))*IF(AND(B$3>0,TRIM(B$9)="CFS"),Conv_Flags!$C28,1) -> 0 | C28: =INDIRECT(CONCATENATE("'",C$1,"'!",C$4,(YEAR($A28)-1921)*12+MONTH($A28)+3+IF(ISNUMBER(FIND("PRV",C$6)),1,0)))*IF(AND(C$3>0,TRIM(C$9)="CFS"),Conv_Flags!$C28,1) -> 0 | D28: =INDIRECT(CONCATENATE("'",D$1,"'!",D$4,(YEAR($A28)-1921)*12+MONTH($A28)+3+IF(ISNUMBER(FIND("PRV",D$6)),1,0)))*IF(AND(D$3>0,TRIM(D$9)="CFS"),Conv_Flags!$C28,1) -> 0 | E28: =INDIRECT(CONCATENATE("'",E$1,"'!",E$4,(YEAR($A28)-1921)*12+MONTH($A28)+3+IF(ISNUMBER(FIND("PRV",E$6)),1,0)))*IF(AND(E$3>0,TRIM(E$9)="CFS"),Conv_Flags!$C28,1) -> 0 | F28: =INDIRECT(CONCATENATE("'",F$1,"'!",F$4,(YEAR($A28)-1921)*12+MONTH($A28)+3+IF(ISNUMBER(FIND("PRV",F$6)),1,0)))*IF(AND(F$3>0,TRIM(F$9)="CFS"),Conv_Flags!$C28,1) -> 0 | J28: 1938 | K28: =B205 -> 0 | L28: =B206 -> 0 | M28: =B207 -> 0 | N28: =B208 -> 0 | O28: =B209 -> 0 | P28: =B210 -> 0 | Q28: =B211 -> 0 | R28: =B212 -> 0 | S28: =B213 -> 0 | T28: =B214 -> 0 | U28: =B215 -> 0 | V28: =B216 -> 0 | X28: 0 | Y28: 0 | Z28: 0 | AB28: 0 | AC28: 0 | AD28: 0 | AE28: 0 | AF28: 0 | AG28: 0 | AH28: 0 | AJ28: 1938 | AK28: ='Compile Data'!C205 -> 2.49 | AL28: ='Compile Data'!C206 -> 1.74 | AM28: ='Compile Data'!C207 -> 0 | AN28: ='Compile Data'!C208 -> 0 | AO28: ='Compile Data'!C209 -> 0 | AP28: ='Compile Data'!C210 -> 0 | AQ28: ='Compile Data'!C211 -> 0 | AR28: ='Compile Data'!C212 -> 0 | AS28: ='Compile Data'!C213 -> 0 | AT28: ='Compile Data'!C214 -> 0 | AU28: ='Compile Data'!C215 -> 27.5862069 | AV28: ='Compile Data'!C216 -> 27.5862069 | AX28: 100.8670665 | AY28: 100.8670665 | AZ28: 59.4024138 | BB28: 1.74 | BC28: 65.16458714 | BD28: 4.23 | BE28: 0 | BF28: 0 | BG28: 55.1724138 | BH28: 55.42961991 | BJ28: 1938 | BK28: ='Compile Data'!D205 -> 2.490164714 | BL28: ='Compile Data'!D206 -> 1.74 | BM28: ='Compile Data'!D207 -> 0 | BN28: ='Compile Data'!D208 -> 0 | BO28: ='Compile Data'!D209 -> 0 | BP28: ='Compile Data'!D210 -> 0 | BQ28: ='Compile Data'!D211 -> 0 | BR28: ='Compile Data'!D212 -> 0 | BS28: ='Compile Data'!D213 -> 0 | BT28: ='Compile Data'!D214 -> 0 | BU28: ='Compile Data'!D215 -> 27.5862069 | BV28: ='Compile Data'!D216 -> 27.5862069 | BX28: 100.9248775 | BY28: 100.9248775 | BZ28: 59.40257851 | CB28: 1.74 | CC28: 65.22239816 | CD28: 4.230164714 | CE28: 0 | CF28: 0 | CG28: 55.1724138 | CH28: 55.48743093 | CJ28: 1938 | CK28: ='Compile Data'!E205 -> 2.49 | CL28: ='Compile Data'!E206 -> 1.74 | CM28: ='Compile Data'!E207 -> 0 | CN28: ='Compile Data'!E208 -> 0 | CO28: ='Compile Data'!E209 -> 0 | CP28: ='Compile Data'!E210 -> 0 | CQ28: ='Compile Data'!E211 -> 0 | CR28: ='Compile Data'!E212 -> 0 | CS28: ='Compile Data'!E213 -> 0 | CT28: ='Compile Data'!E214 -> 0 | CU28: ='Compile Data'!E215 -> 27.5862069 | CV28: ='Compile Data'!E216 -> 27.5862069 | CX28: 97.41740392 | CY28: 97.41740392 | CZ28: 59.4024138 | DB28: 1.74 | DC28: 61.71492458 | DD28: 4.23 | DE28: 0 | DF28: 0 | DG28: 55.1724138 | DH28: 51.97995735 | DJ28: 1938 | DK28: ='Compile Data'!F205 -> 2.490197222 | DL28: ='Compile Data'!F206 -> 1.74 | DM28: ='Compile Data'!F207 -> 0 | DN28: ='Compile Data'!F208 -> 0 | DO28: ='Compile Data'!F209 -> 0 | DP28: ='Compile Data'!F210 -> 0 | DQ28: ='Compile Data'!F211 -> 0 | DR28: ='Compile Data'!F212 -> 0 | DS28: ='Compile Data'!F213 -> 0 | DT28: ='Compile Data'!F214 -> 0 | DU28: ='Compile Data'!F215 -> 27.5862069 | DV28: ='Compile Data'!F216 -> 27.5862069 | DX28: 97.40821644 | DY28: 97.40821644 | DZ28: 59.40261102 | EB28: 1.74 | EC28: 61.7057371 | ED28: 4.230197222 | EE28: 0 | EF28: 0 | EG28: 55.1724138 | EH28: 51.97076987
A29: 1923-02-28 | B29: =INDIRECT(CONCATENATE("'",B$1,"'!",B$4,(YEAR($A29)-1921)*12+MONTH($A29)+3+IF(ISNUMBER(FIND("PRV",B$6)),1,0)))*IF(AND(B$3>0,TRIM(B$9)="CFS"),Conv_Flags!$C29,1) -> 0 | C29: =INDIRECT(CONCATENATE("'",C$1,"'!",C$4,(YEAR($A29)-1921)*12+MONTH($A29)+3+IF(ISNUMBER(FIND("PRV",C$6)),1,0)))*IF(AND(C$3>0,TRIM(C$9)="CFS"),Conv_Flags!$C29,1) -> 8.757378956 | D29: =INDIRECT(CONCATENATE("'",D$1,"'!",D$4,(YEAR($A29)-1921)*12+MONTH($A29)+3+IF(ISNUMBER(FIND("PRV",D$6)),1,0)))*IF(AND(D$3>0,TRIM(D$9)="CFS"),Conv_Flags!$C29,1) -> 9.111642289 | E29: =INDIRECT(CONCATENATE("'",E$1,"'!",E$4,(YEAR($A29)-1921)*12+MONTH($A29)+3+IF(ISNUMBER(FIND("PRV",E$6)),1,0)))*IF(AND(E$3>0,TRIM(E$9)="CFS"),Conv_Flags!$C29,1) -> 6.218919295 | F29: =INDIRECT(CONCATENATE("'",F$1,"'!",F$4,(YEAR($A29)-1921)*12+MONTH($A29)+3+IF(ISNUMBER(FIND("PRV",F$6)),1,0)))*IF(AND(F$3>0,TRIM(F$9)="CFS"),Conv_Flags!$C29,1) -> 6.209268055 | J29: 1939 | K29: =B217 -> 0 | L29: =B218 -> 0 | M29: =B219 -> 0 | N29: =B220 -> 0 | O29: =B221 -> 0 | P29: =B222 -> 0 | Q29: =B223 -> 0 | R29: =B224 -> 0 | S29: =B225 -> 0 | T29: =B226 -> 0 | U29: =B227 -> 0 | V29: =B228 -> 0 | X29: 0 | Y29: 0 | Z29: 0 | AB29: 0 | AC29: 0 | AD29: 0 | AE29: 0 | AF29: 0 | AG29: 0 | AH29: 0 | AJ29: 1939 | AK29: ='Compile Data'!C217 -> 9.992173346 | AL29: ='Compile Data'!C218 -> 17.85123967 | AM29: ='Compile Data'!C219 -> 17.85123967 | AN29: ='Compile Data'!C220 -> 0 | AO29: ='Compile Data'!C221 -> 0 | AP29: ='Compile Data'!C222 -> 6.959780871 | AQ29: ='Compile Data'!C223 -> 28.35299098 | AR29: ='Compile Data'!C224 -> 9.467998412 | AS29: ='Compile Data'!C225 -> 48.99477786 | AT29: ='Compile Data'!C226 -> 69.46391082 | AU29: ='Compile Data'!C227 -> 53.2672218 | AV29: ='Compile Data'!C228 -> 42.16576768 | AX29: 399.9669707 | AY29: 399.9669707 | AZ29: 304.3671011 | BB29: 42.66226021 | BC29: 156.5513748 | BD29: 45.69465268 | BE29: 17.85123967 | BF29: 93.77554812 | BG29: 213.8916782 | BH29: 183.46029 | BJ29: 1939 | BK29: ='Compile Data'!D217 -> 10.04998436 | BL29: ='Compile Data'!D218 -> 17.85123967 | BM29: ='Compile Data'!D219 -> 17.85123967 | BN29: ='Compile Data'!D220 -> 0 | BO29: ='Compile Data'!D221 -> 0 | BP29: ='Compile Data'!D222 -> 6.915426401 | BQ29: ='Compile Data'!D223 -> 28.30282974 | BR29: ='Compile Data'!D224 -> 9.380504248 | BS29: ='Compile Data'!D225 -> 135.4345448 | BT29: ='Compile Data'!D226 -> 77.95568251 | BU29: ='Compile Data'!D227 -> 29.75451034 | BV29: ='Compile Data'!D228 -> 37.7965482 | BX29: 413.8031792 | BY29: 413.8073438 | BZ29: 371.29251 | CB29: 42.61790574 | CC29: 93.89471708 | CD29: 45.7524637 | CE29: 17.85123967 | CF29: 180.0333052 | CG29: 280.9412859 | CH29: 123.0536376 | CJ29: 1939 | CK29: ='Compile Data'!E217 -> 6.54251078 | CL29: ='Compile Data'!E218 -> 17.85123967 | CM29: ='Compile Data'!E219 -> 17.85123967 | CN29: ='Compile Data'!E220 -> 0 | CO29: ='Compile Data'!E221 -> 0 | CP29: ='Compile Data'!E222 -> 6.989130332 | CQ29: ='Compile Data'!E223 -> 24.34433493 | CR29: ='Compile Data'!E224 -> 9.520885573 | CS29: ='Compile Data'!E225 -> 49.05735051 | CT29: ='Compile Data'!E226 -> 68.45252439 | CU29: ='Compile Data'!E227 -> 27.03896728 | CV29: ='Compile Data'!E228 -> 44.35493228 | CX29: 370.9455805 | CY29: 370.9455805 | CZ29: 272.0031154 | DB29: 42.69160967 | DC29: 132.4494432 | DD29: 42.24499012 | DE29: 17.85123967 | DF29: 89.91170134 | DG29: 188.9037745 | DH29: 185.5423874 | DJ29: 1939 | DK29: ='Compile Data'!F217 -> 6.5333233 | DL29: ='Compile Data'!F218 -> 17.85123967 | DM29: ='Compile Data'!F219 -> 17.85123967 | DN29: ='Compile Data'!F220 -> 0 | DO29: ='Compile Data'!F221 -> 0 | DP29: ='Compile Data'!F222 -> 6.989079531 | DQ29: ='Compile Data'!F223 -> 24.33523273 | DR29: ='Compile Data'!F224 -> 9.520795874 | DS29: ='Compile Data'!F225 -> 49.05724439 | DT29: ='Compile Data'!F226 -> 68.43062702 | DU29: ='Compile Data'!F227 -> 27.00384976 | DV29: ='Compile Data'!F228 -> 44.37225123 | DX29: 370.8870877 | DY29: 370.8870877 | DZ29: 271.9448832 | EB29: 42.69155887 | EC29: 132.4238697 | ED29: 42.23580264 | EE29: 17.85123967 | EF29: 89.90235252 | EG29: 188.8639724 | EH29: 185.5502584
A30: 1923-03-31 | B30: =INDIRECT(CONCATENATE("'",B$1,"'!",B$4,(YEAR($A30)-1921)*12+MONTH($A30)+3+IF(ISNUMBER(FIND("PRV",B$6)),1,0)))*IF(AND(B$3>0,TRIM(B$9)="CFS"),Conv_Flags!$C30,1) -> 0 | C30: =INDIRECT(CONCATENATE("'",C$1,"'!",C$4,(YEAR($A30)-1921)*12+MONTH($A30)+3+IF(ISNUMBER(FIND("PRV",C$6)),1,0)))*IF(AND(C$3>0,TRIM(C$9)="CFS"),Conv_Flags!$C30,1) -> 0.3594572343 | D30: =INDIRECT(CONCATENATE("'",D$1,"'!",D$4,(YEAR($A30)-1921)*12+MONTH($A30)+3+IF(ISNUMBER(FIND("PRV",D$6)),1,0)))*IF(AND(D$3>0,TRIM(D$9)="CFS"),Conv_Flags!$C30,1) -> 0.3742539781 | E30: =INDIRECT(CONCATENATE("'",E$1,"'!",E$4,(YEAR($A30)-1921)*12+MONTH($A30)+3+IF(ISNUMBER(FIND("PRV",E$6)),1,0)))*IF(AND(E$3>0,TRIM(E$9)="CFS"),Conv_Flags!$C30,1) -> 0.3564334742 | F30: =INDIRECT(CONCATENATE("'",F$1,"'!",F$4,(YEAR($A30)-1921)*12+MONTH($A30)+3+IF(ISNUMBER(FIND("PRV",F$6)),1,0)))*IF(AND(F$3>0,TRIM(F$9)="CFS"),Conv_Flags!$C30,1) -> 0.364629407 | J30: 1940 | K30: =B229 -> 0 | L30: =B230 -> 0 | M30: =B231 -> 0 | N30: =B232 -> 0 | O30: =B233 -> 0 | P30: =B234 -> 0 | Q30: =B235 -> 0 | R30: =B236 -> 0 | S30: =B237 -> 0 | T30: =B238 -> 0 | U30: =B239 -> 0 | V30: =B240 -> 0 | X30: 0 | Y30: 0 | Z30: 0 | AB30: 0 | AC30: 0 | AD30: 0 | AE30: 0 | AF30: 0 | AG30: 0 | AH30: 0 | AJ30: 1940 | AK30: ='Compile Data'!C229 -> 61.11838537 | AL30: ='Compile Data'!C230 -> 80.17613692 | AM30: ='Compile Data'!C231 -> 0 | AN30: ='Compile Data'!C232 -> 0 | AO30: ='Compile Data'!C233 -> 0 | AP30: ='Compile Data'!C234 -> 0 | AQ30: ='Compile Data'!C235 -> 0 | AR30: ='Compile Data'!C236 -> 0 | AS30: ='Compile Data'!C237 -> 36.61884607 | AT30: ='Compile Data'!C238 -> 0 | AU30: ='Compile Data'!C239 -> 30.78761452 | AV30: ='Compile Data'!C240 -> 23.48397655 | AX30: 103.4067346 | AY30: 103.4067346 | AZ30: 232.1849594 | BB30: 80.17613692 | BC30: 56.76159107 | BD30: 141.2945223 | BE30: 0 | BF30: 36.61884607 | BG30: 90.89043715 | BH30: 34.34027402 | BJ30: 1940 | BK30: ='Compile Data'!D229 -> 26.34365854 | BL30: ='Compile Data'!D230 -> 58.91343084 | BM30: ='Compile Data'!D231 -> 3.006043511 | BN30: ='Compile Data'!D232 -> 0.004164630838 | BO30: ='Compile Data'!D233 -> 0 | BP30: ='Compile Data'!D234 -> 0 | BQ30: ='Compile Data'!D235 -> 0.1180160714 | BR30: ='Compile Data'!D236 -> 0 | BS30: ='Compile Data'!D237 -> 37.13457246 | BT30: ='Compile Data'!D238 -> 0 | BU30: ='Compile Data'!D239 -> 30.78813768 | BV30: ='Compile Data'!D240 -> 25.11188402 | BX30: 107.7423608 | BY30: 107.7381962 | BZ30: 181.4199077 | CB30: 61.92363898 | CC30: 58.39002169 | CD30: 88.26729752 | CE30: 3.010208142 | CF30: 37.25258853 | CG30: 93.03459415 | CH30: 38.03746996 | CJ30: 1940 | CK30: ='Compile Data'!E229 -> 61.0555436 | CL30: ='Compile Data'!E230 -> 80.13191157 | CM30: ='Compile Data'!E231 -> 0 | CN30: ='Compile Data'!E232 -> 0 | CO30: ='Compile Data'!E233 -> 0 | CP30: ='Compile Data'!E234 -> 0 | CQ30: ='Compile Data'!E235 -> 0 | CR30: ='Compile Data'!E236 -> 0 | CS30: ='Compile Data'!E237 -> 36.55330738 | CT30: ='Compile Data'!E238 -> 0 | CU30: ='Compile Data'!E239 -> 30.78728415 | CV30: ='Compile Data'!E240 -> 19.02156127 | CX30: 98.7703213 | CY30: 98.7703213 | CZ30: 227.549608 | DB30: 80.13191157 | DC30: 52.29884542 | DD30: 141.1874552 | DE30: 0 | DF30: 36.55330738 | DG30: 86.36215281 | DH30: 29.76972977 | DJ30: 1940 | DK30: ='Compile Data'!F229 -> 61.04776874 | DL30: ='Compile Data'!F230 -> 80.13023843 | DM30: ='Compile Data'!F231 -> 0 | DN30: ='Compile Data'!F232 -> 0 | DO30: ='Compile Data'!F233 -> 0 | DP30: ='Compile Data'!F234 -> 0 | DQ30: ='Compile Data'!F235 -> 0 | DR30: ='Compile Data'!F236 -> 0 | DS30: ='Compile Data'!F237 -> 36.550701 | DT30: ='Compile Data'!F238 -> 1.96625542 | DU30: ='Compile Data'!F239 -> 28.8362069 | DV30: ='Compile Data'!F240 -> 19.00978532 | DX30: 98.77445798 | DY30: 98.77445798 | DZ30: 227.5409558 | EB30: 80.13023843 | EC30: 50.33599222 | ED30: 141.1780072 | EE30: 0 | EF30: 36.550701 | EG30: 86.36294865 | EH30: 29.76129465
A31: 1923-04-30 | B31: =INDIRECT(CONCATENATE("'",B$1,"'!",B$4,(YEAR($A31)-1921)*12+MONTH($A31)+3+IF(ISNUMBER(FIND("PRV",B$6)),1,0)))*IF(AND(B$3>0,TRIM(B$9)="CFS"),Conv_Flags!$C31,1) -> 0 | C31: =INDIRECT(CONCATENATE("'",C$1,"'!",C$4,(YEAR($A31)-1921)*12+MONTH($A31)+3+IF(ISNUMBER(FIND("PRV",C$6)),1,0)))*IF(AND(C$3>0,TRIM(C$9)="CFS"),Conv_Flags!$C31,1) -> 1.744637767 | D31: =INDIRECT(CONCATENATE("'",D$1,"'!",D$4,(YEAR($A31)-1921)*12+MONTH($A31)+3+IF(ISNUMBER(FIND("PRV",D$6)),1,0)))*IF(AND(D$3>0,TRIM(D$9)="CFS"),Conv_Flags!$C31,1) -> 1.816454261 | E31: =INDIRECT(CONCATENATE("'",E$1,"'!",E$4,(YEAR($A31)-1921)*12+MONTH($A31)+3+IF(ISNUMBER(FIND("PRV",E$6)),1,0)))*IF(AND(E$3>0,TRIM(E$9)="CFS"),Conv_Flags!$C31,1) -> 1.729961846 | F31: =INDIRECT(CONCATENATE("'",F$1,"'!",F$4,(YEAR($A31)-1921)*12+MONTH($A31)+3+IF(ISNUMBER(FIND("PRV",F$6)),1,0)))*IF(AND(F$3>0,TRIM(F$9)="CFS"),Conv_Flags!$C31,1) -> 1.769741081 | J31: 1941 | K31: =B241 -> 0 | L31: =B242 -> 0 | M31: =B243 -> 0 | N31: =B244 -> 0 | O31: =B245 -> 0 | P31: =B246 -> 0 | Q31: =B247 -> 0 | R31: =B248 -> 0 | S31: =B249 -> 0 | T31: =B250 -> 0 | U31: =B251 -> 0 | V31: =B252 -> 0 | X31: 0 | Y31: 0 | Z31: 0 | AB31: 0 | AC31: 0 | AD31: 0 | AE31: 0 | AF31: 0 | AG31: 0 | AH31: 0 | AJ31: 1941 | AK31: ='Compile Data'!C241 -> 2.49 | AL31: ='Compile Data'!C242 -> 8.366297473 | AM31: ='Compile Data'!C243 -> 1.66 | AN31: ='Compile Data'!C244 -> 0 | AO31: ='Compile Data'!C245 -> 0 | AP31: ='Compile Data'!C246 -> 0 | AQ31: ='Compile Data'!C247 -> 0 | AR31: ='Compile Data'!C248 -> 0 | AS31: ='Compile Data'!C249 -> 0 | AT31: ='Compile Data'!C250 -> 0 | AU31: ='Compile Data'!C251 -> 0 | AV31: ='Compile Data'!C252 -> 30.0862069 | AX31: 57.6724138 | AY31: 58.1496723 | AZ31: 42.60250437 | BB31: 10.02629747 | BC31: 57.6724138 | BD31: 12.51629747 | BE31: 1.66 | BF31: 0 | BG31: 30.0862069 | BH31: 57.6724138 | BJ31: 1941 | BK31: ='Compile Data'!D241 -> 2.49 | BL31: ='Compile Data'!D242 -> 10.43558594 | BM31: ='Compile Data'!D243 -> 1.66 | BN31: ='Compile Data'!D244 -> 0 | BO31: ='Compile Data'!D245 -> 0 | BP31: ='Compile Data'!D246 -> 0 | BQ31: ='Compile Data'!D247 -> 0 | BR31: ='Compile Data'!D248 -> 0 | BS31: ='Compile Data'!D249 -> 0 | BT31: ='Compile Data'!D250 -> 0 | BU31: ='Compile Data'!D251 -> 27.5862069 | BV31: ='Compile Data'!D252 -> 30.0862069 | BX31: 85.2586207 | BY31: 85.73062725 | BZ31: 72.25799974 | CB31: 12.09558594 | CC31: 85.2586207 | CD31: 14.58558594 | CE31: 1.66 | CF31: 0 | CG31: 57.6724138 | CH31: 57.6724138 | CJ31: 1941 | CK31: ='Compile Data'!E241 -> 2.49 | CL31: ='Compile Data'!E242 -> 8.258168495 | CM31: ='Compile Data'!E243 -> 1.66 | CN31: ='Compile Data'!E244 -> 0 | CO31: ='Compile Data'!E245 -> 0 | CP31: ='Compile Data'!E246 -> 0 | CQ31: ='Compile Data'!E247 -> 0 | CR31: ='Compile Data'!E248 -> 0 | CS31: ='Compile Data'!E249 -> 0 | CT31: ='Compile Data'!E250 -> 0 | CU31: ='Compile Data'!E251 -> 27.5862069 | CV31: ='Compile Data'!E252 -> 30.0862069 | CX31: 85.2586207 | CY31: 85.58298402 | CZ31: 70.08058229 | DB31: 9.918168495 | DC31: 85.2586207 | DD31: 12.4081685 | DE31: 1.66 | DF31: 0 | DG31: 57.6724138 | DH31: 57.6724138 | DJ31: 1941 | DK31: ='Compile Data'!F241 -> 2.49 | DL31: ='Compile Data'!F242 -> 8.26150933 | DM31: ='Compile Data'!F243 -> 1.66 | DN31: ='Compile Data'!F244 -> 0 | DO31: ='Compile Data'!F245 -> 0 | DP31: ='Compile Data'!F246 -> 0 | DQ31: ='Compile Data'!F247 -> 0 | DR31: ='Compile Data'!F248 -> 0 | DS31: ='Compile Data'!F249 -> 0 | DT31: ='Compile Data'!F250 -> 0 | DU31: ='Compile Data'!F251 -> 27.5862069 | DV31: ='Compile Data'!F252 -> 30.0862069 | DX31: 85.2586207 | DY31: 85.58298402 | DZ31: 70.08392313 | EB31: 9.921509331 | EC31: 85.2586207 | ED31: 12.41150933 | EE31: 1.66 | EF31: 0 | EG31: 57.6724138 | EH31: 57.6724138
A32: 1923-05-31 | B32: =INDIRECT(CONCATENATE("'",B$1,"'!",B$4,(YEAR($A32)-1921)*12+MONTH($A32)+3+IF(ISNUMBER(FIND("PRV",B$6)),1,0)))*IF(AND(B$3>0,TRIM(B$9)="CFS"),Conv_Flags!$C32,1) -> 0 | C32: =INDIRECT(CONCATENATE("'",C$1,"'!",C$4,(YEAR($A32)-1921)*12+MONTH($A32)+3+IF(ISNUMBER(FIND("PRV",C$6)),1,0)))*IF(AND(C$3>0,TRIM(C$9)="CFS"),Conv_Flags!$C32,1) -> 0 | D32: =INDIRECT(CONCATENATE("'",D$1,"'!",D$4,(YEAR($A32)-1921)*12+MONTH($A32)+3+IF(ISNUMBER(FIND("PRV",D$6)),1,0)))*IF(AND(D$3>0,TRIM(D$9)="CFS"),Conv_Flags!$C32,1) -> 0 | E32: =INDIRECT(CONCATENATE("'",E$1,"'!",E$4,(YEAR($A32)-1921)*12+MONTH($A32)+3+IF(ISNUMBER(FIND("PRV",E$6)),1,0)))*IF(AND(E$3>0,TRIM(E$9)="CFS"),Conv_Flags!$C32,1) -> 0 | F32: =INDIRECT(CONCATENATE("'",F$1,"'!",F$4,(YEAR($A32)-1921)*12+MONTH($A32)+3+IF(ISNUMBER(FIND("PRV",F$6)),1,0)))*IF(AND(F$3>0,TRIM(F$9)="CFS"),Conv_Flags!$C32,1) -> 0 | J32: 1942 | K32: =B253 -> 0 | L32: =B254 -> 0 | M32: =B255 -> 0 | N32: =B256 -> 0 | O32: =B257 -> 0 | P32: =B258 -> 0 | Q32: =B259 -> 0 | R32: =B260 -> 0 | S32: =B261 -> 0 | T32: =B262 -> 0 | U32: =B263 -> 0 | V32: =B264 -> 0 | X32: 0 | Y32: 0 | Z32: 0 | AB32: 0 | AC32: 0 | AD32: 0 | AE32: 0 | AF32: 0 | AG32: 0 | AH32: 0 | AJ32: 1942 | AK32: ='Compile Data'!C253 -> 27.5862069 | AL32: ='Compile Data'!C254 -> 0 | AM32: ='Compile Data'!C255 -> 0 | AN32: ='Compile Data'!C256 -> 0 | AO32: ='Compile Data'!C257 -> 0.477258502 | AP32: ='Compile Data'!C258 -> 0 | AQ32: ='Compile Data'!C259 -> 0 | AR32: ='Compile Data'!C260 -> 0 | AS32: ='Compile Data'!C261 -> 0 | AT32: ='Compile Data'!C262 -> 0 | AU32: ='Compile Data'!C263 -> 0 | AV32: ='Compile Data'!C264 -> 27.5862069 | AX32: 55.6496723 | AY32: 55.1724138 | AZ32: 55.6496723 | BB32: 0.477258502 | BC32: 55.1724138 | BD32: 27.5862069 | BE32: 0.477258502 | BF32: 0 | BG32: 27.5862069 | BH32: 55.1724138 | BJ32: 1942 | BK32: ='Compile Data'!D253 -> 27.5862069 | BL32: ='Compile Data'!D254 -> 0 | BM32: ='Compile Data'!D255 -> 0 | BN32: ='Compile Data'!D256 -> 0 | BO32: ='Compile Data'!D257 -> 0.4720065518 | BP32: ='Compile Data'!D258 -> 0 | BQ32: ='Compile Data'!D259 -> 0 | BR32: ='Compile Data'!D260 -> 0 | BS32: ='Compile Data'!D261 -> 0 | BT32: ='Compile Data'!D262 -> 0 | BU32: ='Compile Data'!D263 -> 27.5862069 | BV32: ='Compile Data'!D264 -> 27.5862069 | BX32: 83.23062725 | BY32: 82.7586207 | BZ32: 83.23062725 | CB32: 0.4720065518 | CC32: 82.7586207 | CD32: 27.5862069 | CE32: 0.4720065518 | CF32: 0 | CG32: 55.1724138 | CH32: 55.1724138 | CJ32: 1942 | CK32: ='Compile Data'!E253 -> 27.5862069 | CL32: ='Compile Data'!E254 -> 0 | CM32: ='Compile Data'!E255 -> 0 | CN32: ='Compile Data'!E256 -> 0 | CO32: ='Compile Data'!E257 -> 0.3243633234 | CP32: ='Compile Data'!E258 -> 0 | CQ32: ='Compile Data'!E259 -> 0 | CR32: ='Compile Data'!E260 -> 0 | CS32: ='Compile Data'!E261 -> 0 | CT32: ='Compile Data'!E262 -> 0 | CU32: ='Compile Data'!E263 -> 27.5862069 | CV32: ='Compile Data'!E264 -> 27.5862069 | CX32: 83.08298402 | CY32: 82.7586207 | CZ32: 83.08298402 | DB32: 0.3243633234 | DC32: 82.7586207 | DD32: 27.5862069 | DE32: 0.3243633234 | DF32: 0 | DG32: 55.1724138 | DH32: 55.1724138 | DJ32: 1942 | DK32: ='Compile Data'!F253 -> 27.5862069 | DL32: ='Compile Data'!F254 -> 0 | DM32: ='Compile Data'!F255 -> 0 | DN32: ='Compile Data'!F256 -> 0 | DO32: ='Compile Data'!F257 -> 0.3243633222 | DP32: ='Compile Data'!F258 -> 0 | DQ32: ='Compile Data'!F259 -> 0 | DR32: ='Compile Data'!F260 -> 0 | DS32: ='Compile Data'!F261 -> 0 | DT32: ='Compile Data'!F262 -> 0 | DU32: ='Compile Data'!F263 -> 27.5862069 | DV32: ='Compile Data'!F264 -> 27.5862069 | DX32: 83.08298402 | DY32: 82.7586207 | DZ32: 83.08298402 | EB32: 0.3243633222 | EC32: 82.7586207 | ED32: 27.5862069 | EE32: 0.3243633222 | EF32: 0 | EG32: 55.1724138 | EH32: 55.1724138
A33: 1923-06-30 | B33: =INDIRECT(CONCATENATE("'",B$1,"'!",B$4,(YEAR($A33)-1921)*12+MONTH($A33)+3+IF(ISNUMBER(FIND("PRV",B$6)),1,0)))*IF(AND(B$3>0,TRIM(B$9)="CFS"),Conv_Flags!$C33,1) -> 0 | C33: =INDIRECT(CONCATENATE("'",C$1,"'!",C$4,(YEAR($A33)-1921)*12+MONTH($A33)+3+IF(ISNUMBER(FIND("PRV",C$6)),1,0)))*IF(AND(C$3>0,TRIM(C$9)="CFS"),Conv_Flags!$C33,1) -> 28.85714286 | D33: =INDIRECT(CONCATENATE("'",D$1,"'!",D$4,(YEAR($A33)-1921)*12+MONTH($A33)+3+IF(ISNUMBER(FIND("PRV",D$6)),1,0)))*IF(AND(D$3>0,TRIM(D$9)="CFS"),Conv_Flags!$C33,1) -> 28.85714286 | E33: =INDIRECT(CONCATENATE("'",E$1,"'!",E$4,(YEAR($A33)-1921)*12+MONTH($A33)+3+IF(ISNUMBER(FIND("PRV",E$6)),1,0)))*IF(AND(E$3>0,TRIM(E$9)="CFS"),Conv_Flags!$C33,1) -> 29.38714286 | F33: =INDIRECT(CONCATENATE("'",F$1,"'!",F$4,(YEAR($A33)-1921)*12+MONTH($A33)+3+IF(ISNUMBER(FIND("PRV",F$6)),1,0)))*IF(AND(F$3>0,TRIM(F$9)="CFS"),Conv_Flags!$C33,1) -> 29.38714286 | J33: 1943 | K33: =B265 -> 0 | L33: =B266 -> 0 | M33: =B267 -> 0 | N33: =B268 -> 0 | O33: =B269 -> 0 | P33: =B270 -> 0 | Q33: =B271 -> 0 | R33: =B272 -> 0 | S33: =B273 -> 0 | T33: =B274 -> 0 | U33: =B275 -> 0 | V33: =B276 -> 0 | X33: 0 | Y33: 0 | Z33: 0 | AB33: 0 | AC33: 0 | AD33: 0 | AE33: 0 | AF33: 0 | AG33: 0 | AH33: 0 | AJ33: 1943 | AK33: ='Compile Data'!C265 -> 27.5862069 | AL33: ='Compile Data'!C266 -> 0 | AM33: ='Compile Data'!C267 -> 0 | AN33: ='Compile Data'!C268 -> 0 | AO33: ='Compile Data'!C269 -> 0 | AP33: ='Compile Data'!C270 -> 0 | AQ33: ='Compile Data'!C271 -> 0.05477018638 | AR33: ='Compile Data'!C272 -> 0 | AS33: ='Compile Data'!C273 -> 2.004728869 | AT33: ='Compile Data'!C274 -> 2.328909131 | AU33: ='Compile Data'!C275 -> 30.0862069 | AV33: ='Compile Data'!C276 -> 30.0862069 | AX33: 109.9982686 | AY33: 109.9982686 | AZ33: 92.14702888 | BB33: 0 | BC33: 87.7586207 | BD33: 27.5862069 | BE33: 0 | BF33: 2.059499055 | BG33: 64.5060518 | BH33: 75.52365347 | BJ33: 1943 | BK33: ='Compile Data'!D265 -> 27.5862069 | BL33: ='Compile Data'!D266 -> 0 | BM33: ='Compile Data'!D267 -> 0 | BN33: ='Compile Data'!D268 -> 0 | BO33: ='Compile Data'!D269 -> 0 | BP33: ='Compile Data'!D270 -> 0 | BQ33: ='Compile Data'!D271 -> 0.05483205816 | BR33: ='Compile Data'!D272 -> 0 | BS33: ='Compile Data'!D273 -> 2.004728869 | BT33: ='Compile Data'!D274 -> 2.328909131 | BU33: ='Compile Data'!D275 -> 30.0862069 | BV33: ='Compile Data'!D276 -> 30.0862069 | BX33: 109.9983304 | BY33: 109.9983304 | BZ33: 92.14709075 | CB33: 0 | CC33: 87.7586207 | CD33: 27.5862069 | CE33: 0 | CF33: 2.059560927 | CG33: 64.5060518 | CH33: 75.52365347 | CJ33: 1943 | CK33: ='Compile Data'!E265 -> 27.5862069 | CL33: ='Compile Data'!E266 -> 0 | CM33: ='Compile Data'!E267 -> 0 | CN33: ='Compile Data'!E268 -> 0 | CO33: ='Compile Data'!E269 -> 0 | CP33: ='Compile Data'!E270 -> 0 | CQ33: ='Compile Data'!E271 -> 0.05478167641 | CR33: ='Compile Data'!E272 -> 0 | CS33: ='Compile Data'!E273 -> 2.004728869 | CT33: ='Compile Data'!E274 -> 2.328909131 | CU33: ='Compile Data'!E275 -> 30.0862069 | CV33: ='Compile Data'!E276 -> 30.0862069 | CX33: 109.99828 | CY33: 109.99828 | CZ33: 92.14704037 | DB33: 0 | DC33: 87.7586207 | DD33: 27.5862069 | DE33: 0 | DF33: 2.059510545 | DG33: 64.5060518 | DH33: 75.52365347 | DJ33: 1943 | DK33: ='Compile Data'!F265 -> 27.5862069 | DL33: ='Compile Data'!F266 -> 0 | DM33: ='Compile Data'!F267 -> 0 | DN33: ='Compile Data'!F268 -> 0 | DO33: ='Compile Data'!F269 -> 0 | DP33: ='Compile Data'!F270 -> 0 | DQ33: ='Compile Data'!F271 -> 0.0547649423 | DR33: ='Compile Data'!F272 -> 0 | DS33: ='Compile Data'!F273 -> 2.004728869 | DT33: ='Compile Data'!F274 -> 2.328909131 | DU33: ='Compile Data'!F275 -> 30.0862069 | DV33: ='Compile Data'!F276 -> 30.0862069 | DX33: 109.9982633 | DY33: 109.9982633 | DZ33: 92.14702364 | EB33: 0 | EC33: 87.7586207 | ED33: 27.5862069 | EE33: 0 | EF33: 2.059493811 | EG33: 64.5060518 | EH33: 75.52365347
A34: 1923-07-31 | B34: =INDIRECT(CONCATENATE("'",B$1,"'!",B$4,(YEAR($A34)-1921)*12+MONTH($A34)+3+IF(ISNUMBER(FIND("PRV",B$6)),1,0)))*IF(AND(B$3>0,TRIM(B$9)="CFS"),Conv_Flags!$C34,1) -> 0 | C34: =INDIRECT(CONCATENATE("'",C$1,"'!",C$4,(YEAR($A34)-1921)*12+MONTH($A34)+3+IF(ISNUMBER(FIND("PRV",C$6)),1,0)))*IF(AND(C$3>0,TRIM(C$9)="CFS"),Conv_Flags!$C34,1) -> 50.19011013 | D34: =INDIRECT(CONCATENATE("'",D$1,"'!",D$4,(YEAR($A34)-1921)*12+MONTH($A34)+3+IF(ISNUMBER(FIND("PRV",D$6)),1,0)))*IF(AND(D$3>0,TRIM(D$9)="CFS"),Conv_Flags!$C34,1) -> 50.19216174 | E34: =INDIRECT(CONCATENATE("'",E$1,"'!",E$4,(YEAR($A34)-1921)*12+MONTH($A34)+3+IF(ISNUMBER(FIND("PRV",E$6)),1,0)))*IF(AND(E$3>0,TRIM(E$9)="CFS"),Conv_Flags!$C34,1) -> 49.66712127 | F34: =INDIRECT(CONCATENATE("'",F$1,"'!",F$4,(YEAR($A34)-1921)*12+MONTH($A34)+3+IF(ISNUMBER(FIND("PRV",F$6)),1,0)))*IF(AND(F$3>0,TRIM(F$9)="CFS"),Conv_Flags!$C34,1) -> 49.66594857 | J34: 1944 | K34: =B277 -> 0 | L34: =B278 -> 0 | M34: =B279 -> 0 | N34: =B280 -> 0 | O34: =B281 -> 0 | P34: =B282 -> 0 | Q34: =B283 -> 0 | R34: =B284 -> 0 | S34: =B285 -> 0 | T34: =B286 -> 0 | U34: =B287 -> 0 | V34: =B288 -> 0 | X34: 0 | Y34: 0 | Z34: 0 | AB34: 0 | AC34: 0 | AD34: 0 | AE34: 0 | AF34: 0 | AG34: 0 | AH34: 0 | AJ34: 1944 | AK34: ='Compile Data'!C277 -> 27.5862069 | AL34: ='Compile Data'!C278 -> 17.85123967 | AM34: ='Compile Data'!C279 -> 0 | AN34: ='Compile Data'!C280 -> 0 | AO34: ='Compile Data'!C281 -> 0 | AP34: ='Compile Data'!C282 -> 0.1192741465 | AQ34: ='Compile Data'!C283 -> 7.275692558 | AR34: ='Compile Data'!C284 -> 13.63114827 | AS34: ='Compile Data'!C285 -> 118.0903023 | AT34: ='Compile Data'!C286 -> 84.59132434 | AU34: ='Compile Data'!C287 -> 83.67331645 | AV34: ='Compile Data'!C288 -> 59.39404004 | AX34: 465.1659028 | AY34: 465.1659028 | AZ34: 412.2125446 | BB34: 17.97051382 | BC34: 212.985649 | BD34: 45.43744657 | BE34: 0 | BF34: 139.1164172 | BG34: 345.7489831 | BH34: 156.1248448 | BJ34: 1944 | BK34: ='Compile Data'!D277 -> 27.5862069 | BL34: ='Compile Data'!D278 -> 17.85123967 | BM34: ='Compile Data'!D279 -> 0 | BN34: ='Compile Data'!D280 -> 0 | BO34: ='Compile Data'!D281 -> 0 | BP34: ='Compile Data'!D282 -> 0.1195283621 | BQ34: ='Compile Data'!D283 -> 7.291199648 | BR34: ='Compile Data'!D284 -> 13.6615644 | BS34: ='Compile Data'!D285 -> 118.0903023 | BT34: ='Compile Data'!D286 -> 84.71729055 | BU34: ='Compile Data'!D287 -> 81.08626182 | BV34: ='Compile Data'!D288 -> 68.22689949 | BX34: 494.9057274 | BY34: 494.9057274 | BZ34: 418.6304931 | CB34: 17.97076803 | CC34: 232.1108344 | CD34: 45.43744657 | CE34: 0 | CF34: 139.1625947 | CG34: 352.1207541 | CH34: 188.2795804 | CJ34: 1944 | CK34: ='Compile Data'!E277 -> 27.5862069 | CL34: ='Compile Data'!E278 -> 17.85123967 | CM34: ='Compile Data'!E279 -> 0 | CN34: ='Compile Data'!E280 -> 0 | CO34: ='Compile Data'!E281 -> 0 | CP34: ='Compile Data'!E282 -> 0.1205663432 | CQ34: ='Compile Data'!E283 -> 7.35451623 | CR34: ='Compile Data'!E284 -> 13.77800049 | CS34: ='Compile Data'!E285 -> 118.0903023 | CT34: ='Compile Data'!E286 -> 85.07972004 | CU34: ='Compile Data'!E287 -> 80.00215107 | CV34: ='Compile Data'!E288 -> 66.72070324 | CX34: 468.100736 | CY34: 468.100736 | CZ34: 416.5834062 | DB34: 17.97180601 | DC34: 211.1602076 | DD34: 45.43744657 | DE34: 0 | DF34: 139.3433853 | DG34: 349.8928766 | DH34: 162.0154795 | DJ34: 1944 | DK34: ='Compile Data'!F277 -> 27.5862069 | DL34: ='Compile Data'!F278 -> 17.85123967 | DM34: ='Compile Data'!F279 -> 0 | DN34: ='Compile Data'!F280 -> 0 | DO34: ='Compile Data'!F281 -> 0 | DP34: ='Compile Data'!F282 -> 0.1205663318 | DQ34: ='Compile Data'!F283 -> 7.354515536 | DR34: ='Compile Data'!F284 -> 13.77695604 | DS34: ='Compile Data'!F285 -> 118.0903023 | DT34: ='Compile Data'!F286 -> 85.03498934 | DU34: ='Compile Data'!F287 -> 79.99929145 | DV34: ='Compile Data'!F288 -> 53.77782181 | DX34: 449.6547388 | DY34: 449.6547388 | DZ34: 403.5918893 | EB34: 17.971806 | EC34: 192.778406 | ED34: 45.43744657 | EE34: 0 | EF34: 139.3423402 | EG34: 336.9024049 | EH34: 143.6181178
A35: 1923-08-31 | B35: =INDIRECT(CONCATENATE("'",B$1,"'!",B$4,(YEAR($A35)-1921)*12+MONTH($A35)+3+IF(ISNUMBER(FIND("PRV",B$6)),1,0)))*IF(AND(B$3>0,TRIM(B$9)="CFS"),Conv_Flags!$C35,1) -> 0 | C35: =INDIRECT(CONCATENATE("'",C$1,"'!",C$4,(YEAR($A35)-1921)*12+MONTH($A35)+3+IF(ISNUMBER(FIND("PRV",C$6)),1,0)))*IF(AND(C$3>0,TRIM(C$9)="CFS"),Conv_Flags!$C35,1) -> 42.28294846 | D35: =INDIRECT(CONCATENATE("'",D$1,"'!",D$4,(YEAR($A35)-1921)*12+MONTH($A35)+3+IF(ISNUMBER(FIND("PRV",D$6)),1,0)))*IF(AND(D$3>0,TRIM(D$9)="CFS"),Conv_Flags!$C35,1) -> 42.29212105 | E35: =INDIRECT(CONCATENATE("'",E$1,"'!",E$4,(YEAR($A35)-1921)*12+MONTH($A35)+3+IF(ISNUMBER(FIND("PRV",E$6)),1,0)))*IF(AND(E$3>0,TRIM(E$9)="CFS"),Conv_Flags!$C35,1) -> 42.20852756 | F35: =INDIRECT(CONCATENATE("'",F$1,"'!",F$4,(YEAR($A35)-1921)*12+MONTH($A35)+3+IF(ISNUMBER(FIND("PRV",F$6)),1,0)))*IF(AND(F$3>0,TRIM(F$9)="CFS"),Conv_Flags!$C35,1) -> 42.26999912 | J35: 1945 | K35: =B289 -> 0 | L35: =B290 -> 0 | M35: =B291 -> 0 | N35: =B292 -> 0 | O35: =B293 -> 0 | P35: =B294 -> 0 | Q35: =B295 -> 0 | R35: =B296 -> 0 | S35: =B297 -> 0 | T35: =B298 -> 0 | U35: =B299 -> 0 | V35: =B300 -> 0 | X35: 0 | Y35: 0 | Z35: 0 | AB35: 0 | AC35: 0 | AD35: 0 | AE35: 0 | AF35: 0 | AG35: 0 | AH35: 0 | AJ35: 1945 | AK35: ='Compile Data'!C289 -> 69.91829251 | AL35: ='Compile Data'!C290 -> 26.81251224 | AM35: ='Compile Data'!C291 -> 1.66 | AN35: ='Compile Data'!C292 -> 0 | AO35: ='Compile Data'!C293 -> 0 | AP35: ='Compile Data'!C294 -> 0 | AQ35: ='Compile Data'!C295 -> 1.09354285 | AR35: ='Compile Data'!C296 -> 0 | AS35: ='Compile Data'!C297 -> 37.22245976 | AT35: ='Compile Data'!C298 -> 16.72 | AU35: ='Compile Data'!C299 -> 30.13324395 | AV35: ='Compile Data'!C300 -> 14.05934403 | AX35: 120.4798303 | AY35: 131.6267284 | AZ35: 197.6193953 | BB35: 28.47251224 | BC35: 62.04382765 | BD35: 98.39080475 | BE35: 1.66 | BF35: 38.31600261 | BG35: 98.13504774 | BH35: 33.6505837 | BJ35: 1945 | BK35: ='Compile Data'!D289 -> 82.7976731 | BL35: ='Compile Data'!D290 -> 37.2550078 | BM35: ='Compile Data'!D291 -> 1.66 | BN35: ='Compile Data'!D292 -> 0 | BO35: ='Compile Data'!D293 -> 0 | BP35: ='Compile Data'!D294 -> 0 | BQ35: ='Compile Data'!D295 -> 0.9877150196 | BR35: ='Compile Data'!D296 -> 0 | BS35: ='Compile Data'!D297 -> 53.83930751 | BT35: ='Compile Data'!D298 -> 16.72 | BU35: ='Compile Data'!D299 -> 30.18529768 | BV35: ='Compile Data'!D300 -> 14.33661399 | BX35: 137.3201739 | BY35: 148.5093206 | BZ35: 237.7816151 | CB35: 38.9150078 | CC35: 62.37315134 | CD35: 121.7126809 | CE35: 1.66 | CF35: 54.82702253 | CG35: 115.0812192 | CH35: 33.92785366 | CJ35: 1945 | CK35: ='Compile Data'!E289 -> 64.43735329 | CL35: ='Compile Data'!E290 -> 30.85742301 | CM35: ='Compile Data'!E291 -> 1.66 | CN35: ='Compile Data'!E292 -> 0 | CO35: ='Compile Data'!E293 -> 0 | CP35: ='Compile Data'!E294 -> 0 | CQ35: ='Compile Data'!E295 -> 1.053592001 | CR35: ='Compile Data'!E296 -> 0 | CS35: ='Compile Data'!E297 -> 43.49780902 | CT35: ='Compile Data'!E298 -> 16.72 | CU35: ='Compile Data'!E299 -> 28.66201244 | CV35: ='Compile Data'!E300 -> 9.230741949 | CX35: 120.4153951 | CY35: 131.4918848 | CZ35: 196.1189317 | DB35: 32.51742301 | DC35: 55.74399406 | DD35: 96.9547763 | DE35: 1.66 | DF35: 44.55140102 | DG35: 98.11056341 | DH35: 28.82198162 | DJ35: 1945 | DK35: ='Compile Data'!F289 -> 59.00129274 | DL35: ='Compile Data'!F290 -> 30.83900325 | DM35: ='Compile Data'!F291 -> 1.66 | DN35: ='Compile Data'!F292 -> 0 | DO35: ='Compile Data'!F293 -> 0 | DP35: ='Compile Data'!F294 -> 0 | DQ35: ='Compile Data'!F295 -> 1.094052665 | DR35: ='Compile Data'!F296 -> 0 | DS35: ='Compile Data'!F297 -> 37.1435036 | DT35: ='Compile Data'!F298 -> 16.72 | DU35: ='Compile Data'!F299 -> 28.64278286 | DV35: ='Compile Data'!F300 -> 9.194707228 | DX35: 114.046286 | DY35: 125.0791807 | DZ35: 184.2953423 | EB35: 32.49900325 | EC35: 55.68872976 | ED35: 91.50029599 | EE35: 1.66 | EF35: 38.23755626 | EG35: 91.70099369 | EH35: 28.7859469
A36: 1923-09-30 | B36: =INDIRECT(CONCATENATE("'",B$1,"'!",B$4,(YEAR($A36)-1921)*12+MONTH($A36)+3+IF(ISNUMBER(FIND("PRV",B$6)),1,0)))*IF(AND(B$3>0,TRIM(B$9)="CFS"),Conv_Flags!$C36,1) -> 0 | C36: =INDIRECT(CONCATENATE("'",C$1,"'!",C$4,(YEAR($A36)-1921)*12+MONTH($A36)+3+IF(ISNUMBER(FIND("PRV",C$6)),1,0)))*IF(AND(C$3>0,TRIM(C$9)="CFS"),Conv_Flags!$C36,1) -> 35.08529976 | D36: =INDIRECT(CONCATENATE("'",D$1,"'!",D$4,(YEAR($A36)-1921)*12+MONTH($A36)+3+IF(ISNUMBER(FIND("PRV",D$6)),1,0)))*IF(AND(D$3>0,TRIM(D$9)="CFS"),Conv_Flags!$C36,1) -> 35.14482799 | E36: =INDIRECT(CONCATENATE("'",E$1,"'!",E$4,(YEAR($A36)-1921)*12+MONTH($A36)+3+IF(ISNUMBER(FIND("PRV",E$6)),1,0)))*IF(AND(E$3>0,TRIM(E$9)="CFS"),Conv_Flags!$C36,1) -> 37.41595721 | F36: =INDIRECT(CONCATENATE("'",F$1,"'!",F$4,(YEAR($A36)-1921)*12+MONTH($A36)+3+IF(ISNUMBER(FIND("PRV",F$6)),1,0)))*IF(AND(F$3>0,TRIM(F$9)="CFS"),Conv_Flags!$C36,1) -> 37.21369201 | J36: 1946 | K36: =B301 -> 0 | L36: =B302 -> 0 | M36: =B303 -> 0 | N36: =B304 -> 0 | O36: =B305 -> 0 | P36: =B306 -> 0 | Q36: =B307 -> 0 | R36: =B308 -> 0 | S36: =B309 -> 0 | T36: =B310 -> 0 | U36: =B311 -> 0 | V36: =B312 -> 0 | X36: 0 | Y36: 0 | Z36: 0 | AB36: 0 | AC36: 0 | AD36: 0 | AE36: 0 | AF36: 0 | AG36: 0 | AH36: 0 | AJ36: 1946 | AK36: ='Compile Data'!C301 -> 17.85123967 | AL36: ='Compile Data'!C302 -> 1.74 | AM36: ='Compile Data'!C303 -> 1.66 | AN36: ='Compile Data'!C304 -> 0 | AO36: ='Compile Data'!C305 -> 11.1468981 | AP36: ='Compile Data'!C306 -> 0.03386785075 | AQ36: ='Compile Data'!C307 -> 0 | AR36: ='Compile Data'!C308 -> 7.589549772 | AS36: ='Compile Data'!C309 -> 19.98571429 | AT36: ='Compile Data'!C310 -> 28.04969879 | AU36: ='Compile Data'!C311 -> 38.02498581 | AV36: ='Compile Data'!C312 -> 12.25297603 | AX36: 198.8689372 | AY36: 187.722039 | AZ36: 138.3349303 | BB36: 14.58076595 | BC36: 129.3266043 | BD36: 21.25123967 | BE36: 12.8068981 | BF36: 27.60913191 | BG36: 98.31337492 | BH36: 94.03822254 | BJ36: 1946 | BK36: ='Compile Data'!D301 -> 17.85123967 | BL36: ='Compile Data'!D302 -> 1.74 | BM36: ='Compile Data'!D303 -> 1.66 | BN36: ='Compile Data'!D304 -> 0 | BO36: ='Compile Data'!D305 -> 11.18914672 | BP36: ='Compile Data'!D306 -> 0.03111584304 | BQ36: ='Compile Data'!D307 -> 0 | BR36: ='Compile Data'!D308 -> 48.80783719 | BS36: ='Compile Data'!D309 -> 46.48662585 | BT36: ='Compile Data'!D310 -> 28.05886295 | BU36: ='Compile Data'!D311 -> 37.49613595 | BV36: ='Compile Data'!D312 -> 18.62917561 | BX36: 271.9422019 | BY36: 260.7530552 | BZ36: 211.9501398 | CB36: 14.62026257 | CC36: 134.8982619 | CD36: 21.25123967 | CE36: 12.84914672 | CF36: 95.32557888 | CG36: 130.6708003 | CH36: 99.87247744 | CJ36: 1946 | CK36: ='Compile Data'!E301 -> 17.85123967 | CL36: ='Compile Data'!E302 -> 1.74 | CM36: ='Compile Data'!E303 -> 1.66 | CN36: ='Compile Data'!E304 -> 0 | CO36: ='Compile Data'!E305 -> 11.07648975 | CP36: ='Compile Data'!E306 -> 0.03192473651 | CQ36: ='Compile Data'!E307 -> 0 | CR36: ='Compile Data'!E308 -> 24.07020801 | CS36: ='Compile Data'!E309 -> 19.98571429 | CT36: ='Compile Data'!E310 -> 28.05262568 | CU36: ='Compile Data'!E311 -> 20.35123967 | CV36: ='Compile Data'!E312 -> 4.240053465 | CX36: 185.4929837 | CY36: 174.416494 | CZ36: 129.0594953 | DB36: 14.50841449 | DC36: 96.63310889 | DD36: 21.25123967 | DE36: 12.73648975 | DF36: 44.08784704 | DG36: 72.62963311 | DH36: 81.92478158 | DJ36: 1946 | DK36: ='Compile Data'!F301 -> 17.85123967 | DL36: ='Compile Data'!F302 -> 1.74 | DM36: ='Compile Data'!F303 -> 1.66 | DN36: ='Compile Data'!F304 -> 0 | DO36: ='Compile Data'!F305 -> 11.03289465 | DP36: ='Compile Data'!F306 -> 0.03298987535 | DQ36: ='Compile Data'!F307 -> 0 | DR36: ='Compile Data'!F308 -> 5.594973379 | DS36: ='Compile Data'!F309 -> 20.51571429 | DT36: ='Compile Data'!F310 -> 28.96926936 | DU36: ='Compile Data'!F311 -> 20.35123967 | DV36: ='Compile Data'!F312 -> 4.240031438 | DX36: 166.9022314 | DY36: 155.8693368 | DZ36: 111.9883523 | EB36: 14.46588453 | EC36: 95.16233811 | ED36: 21.25123967 | EE36: 12.69289465 | EF36: 26.14367754 | EG36: 74.07625475 | EH36: 80.4051502
A37: 1923-10-31 | B37: =INDIRECT(CONCATENATE("'",B$1,"'!",B$4,(YEAR($A37)-1921)*12+MONTH($A37)+3+IF(ISNUMBER(FIND("PRV",B$6)),1,0)))*IF(AND(B$3>0,TRIM(B$9)="CFS"),Conv_Flags!$C37,1) -> 0 | C37: =INDIRECT(CONCATENATE("'",C$1,"'!",C$4,(YEAR($A37)-1921)*12+MONTH($A37)+3+IF(ISNUMBER(FIND("PRV",C$6)),1,0)))*IF(AND(C$3>0,TRIM(C$9)="CFS"),Conv_Flags!$C37,1) -> 47.08630119 | D37: =INDIRECT(CONCATENATE("'",D$1,"'!",D$4,(YEAR($A37)-1921)*12+MONTH($A37)+3+IF(ISNUMBER(FIND("PRV",D$6)),1,0)))*IF(AND(D$3>0,TRIM(D$9)="CFS"),Conv_Flags!$C37,1) -> 47.09574046 | E37: =INDIRECT(CONCATENATE("'",E$1,"'!",E$4,(YEAR($A37)-1921)*12+MONTH($A37)+3+IF(ISNUMBER(FIND("PRV",E$6)),1,0)))*IF(AND(E$3>0,TRIM(E$9)="CFS"),Conv_Flags!$C37,1) -> 47.00279097 | F37: =INDIRECT(CONCATENATE("'",F$1,"'!",F$4,(YEAR($A37)-1921)*12+MONTH($A37)+3+IF(ISNUMBER(FIND("PRV",F$6)),1,0)))*IF(AND(F$3>0,TRIM(F$9)="CFS"),Conv_Flags!$C37,1) -> 47.07183866 | J37: 1947 | K37: =B313 -> 0 | L37: =B314 -> 0 | M37: =B315 -> 0 | N37: =B316 -> 0 | O37: =B317 -> 0 | P37: =B318 -> 0 | Q37: =B319 -> 0 | R37: =B320 -> 0 | S37: =B321 -> 0 | T37: =B322 -> 0 | U37: =B323 -> 0 | V37: =B324 -> 0 | X37: 0 | Y37: 0 | Z37: 0 | AB37: 0 | AC37: 0 | AD37: 0 | AE37: 0 | AF37: 0 | AG37: 0 | AH37: 0 | AJ37: 1947 | AK37: ='Compile Data'!C313 -> 79.04864245 | AL37: ='Compile Data'!C314 -> 2.736604055 | AM37: ='Compile Data'!C315 -> 0 | AN37: ='Compile Data'!C316 -> 0 | AO37: ='Compile Data'!C317 -> 0 | AP37: ='Compile Data'!C318 -> 0 | AQ37: ='Compile Data'!C319 -> 5.0024869 | AR37: ='Compile Data'!C320 -> 3.711226679 | AS37: ='Compile Data'!C321 -> 136.908709 | AT37: ='Compile Data'!C322 -> 57.41685383 | AU37: ='Compile Data'!C323 -> 65.77990412 | AV37: ='Compile Data'!C324 -> 20.35123967 | AX37: 289.1704202 | AY37: 289.1704202 | AZ37: 370.9556667 | BB37: 2.736604055 | BC37: 86.13114379 | BD37: 81.78524651 | BE37: 0 | BF37: 145.6224226 | BG37: 280.4567067 | BH37: 20.35123967 | BJ37: 1947 | BK37: ='Compile Data'!D313 -> 78.77295036 | BL37: ='Compile Data'!D314 -> 2.47035147 | BM37: ='Compile Data'!D315 -> 0 | BN37: ='Compile Data'!D316 -> 0 | BO37: ='Compile Data'!D317 -> 0 | BP37: ='Compile Data'!D318 -> 0 | BQ37: ='Compile Data'!D319 -> 4.584703924 | BR37: ='Compile Data'!D320 -> 3.357985054 | BS37: ='Compile Data'!D321 -> 137.5889023 | BT37: ='Compile Data'!D322 -> 57.41732013 | BU37: ='Compile Data'!D323 -> 66.62166363 | BV37: ='Compile Data'!D324 -> 2.5 | BX37: 275.8183492 | BY37: 275.9302918 | BZ37: 353.3138769 | CB37: 2.47035147 | CC37: 72.86943782 | CD37: 81.24330183 | CE37: 0 | CF37: 145.5315913 | CG37: 264.1278861 | CH37: 6.247774188 | CJ37: 1947 | CK37: ='Compile Data'!E313 -> 72.04181575 | CL37: ='Compile Data'!E314 -> 5.642912366 | CM37: ='Compile Data'!E315 -> 0 | CN37: ='Compile Data'!E316 -> 0 | CO37: ='Compile Data'!E317 -> 0 | CP37: ='Compile Data'!E318 -> 0 | CQ37: ='Compile Data'!E319 -> 4.989537619 | CR37: ='Compile Data'!E320 -> 3.646062925 | CS37: ='Compile Data'!E321 -> 124.1887863 | CT37: ='Compile Data'!E322 -> 57.46042704 | CU37: ='Compile Data'!E323 -> 95.19260247 | CV37: ='Compile Data'!E324 -> 29.16362687 | CX37: 314.6410432 | CY37: 314.780484 | CZ37: 392.3257714 | DB37: 5.642912366 | DC37: 124.3562293 | DD37: 77.68472812 | DE37: 0 | DF37: 132.8243869 | DG37: 306.0054427 | DH37: 29.16362687 | DJ37: 1947 | DK37: ='Compile Data'!F313 -> 70.571067 | DL37: ='Compile Data'!F314 -> 5.594051763 | DM37: ='Compile Data'!F315 -> 0 | DN37: ='Compile Data'!F316 -> 0 | DO37: ='Compile Data'!F317 -> 0 | DP37: ='Compile Data'!F318 -> 0 | DQ37: ='Compile Data'!F319 -> 5.178606811 | DR37: ='Compile Data'!F320 -> 3.455971807 | DS37: ='Compile Data'!F321 -> 112.6543653 | DT37: ='Compile Data'!F322 -> 61.69064636 | DU37: ='Compile Data'!F323 -> 95.35414529 | DV37: ='Compile Data'!F324 -> 37.52674448 | DX37: 318.9124633 | DY37: 326.7731389 | DZ37: 392.0255988 | EB37: 5.594051763 | EC37: 135.932873 | ED37: 76.16511877 | EE37: 0 | EF37: 121.288944 | EG37: 307.2259015 | EH37: 40.5787277
A38: 1923-11-30 | B38: =INDIRECT(CONCATENATE("'",B$1,"'!",B$4,(YEAR($A38)-1921)*12+MONTH($A38)+3+IF(ISNUMBER(FIND("PRV",B$6)),1,0)))*IF(AND(B$3>0,TRIM(B$9)="CFS"),Conv_Flags!$C38,1) -> 0 | C38: =INDIRECT(CONCATENATE("'",C$1,"'!",C$4,(YEAR($A38)-1921)*12+MONTH($A38)+3+IF(ISNUMBER(FIND("PRV",C$6)),1,0)))*IF(AND(C$3>0,TRIM(C$9)="CFS"),Conv_Flags!$C38,1) -> 55.15961377 | D38: =INDIRECT(CONCATENATE("'",D$1,"'!",D$4,(YEAR($A38)-1921)*12+MONTH($A38)+3+IF(ISNUMBER(FIND("PRV",D$6)),1,0)))*IF(AND(D$3>0,TRIM(D$9)="CFS"),Conv_Flags!$C38,1) -> 55.08108419 | E38: =INDIRECT(CONCATENATE("'",E$1,"'!",E$4,(YEAR($A38)-1921)*12+MONTH($A38)+3+IF(ISNUMBER(FIND("PRV",E$6)),1,0)))*IF(AND(E$3>0,TRIM(E$9)="CFS"),Conv_Flags!$C38,1) -> 52.42217467 | F38: =INDIRECT(CONCATENATE("'",F$1,"'!",F$4,(YEAR($A38)-1921)*12+MONTH($A38)+3+IF(ISNUMBER(FIND("PRV",F$6)),1,0)))*IF(AND(F$3>0,TRIM(F$9)="CFS"),Conv_Flags!$C38,1) -> 52.4937441 | J38: 1948 | K38: =B325 -> 0 | L38: =B326 -> 0 | M38: =B327 -> 0 | N38: =B328 -> 0 | O38: =B329 -> 0 | P38: =B330 -> 0 | Q38: =B331 -> 0 | R38: =B332 -> 0 | S38: =B333 -> 0 | T38: =B334 -> 0 | U38: =B335 -> 0 | V38: =B336 -> 0 | X38: 0 | Y38: 0 | Z38: 0 | AB38: 0 | AC38: 0 | AD38: 0 | AE38: 0 | AF38: 0 | AG38: 0 | AH38: 0 | AJ38: 1948 | AK38: ='Compile Data'!C325 -> 0 | AL38: ='Compile Data'!C326 -> 0 | AM38: ='Compile Data'!C327 -> 0 | AN38: ='Compile Data'!C328 -> 0 | AO38: ='Compile Data'!C329 -> 0 | AP38: ='Compile Data'!C330 -> 0 | AQ38: ='Compile Data'!C331 -> 1.322450959 | AR38: ='Compile Data'!C332 -> 0 | AS38: ='Compile Data'!C333 -> 0 | AT38: ='Compile Data'!C334 -> 41.48136934 | AU38: ='Compile Data'!C335 -> 31.56586181 | AV38: ='Compile Data'!C336 -> 19.74760306 | AX38: 146.0355582 | AY38: 146.0355582 | AZ38: 94.11728517 | BB38: 0 | BC38: 92.86908199 | BD38: 0 | BE38: 0 | BF38: 1.322450959 | BG38: 92.79483421 | BH38: 71.66587614 | BJ38: 1948 | BK38: ='Compile Data'!D325 -> 3.747774188 | BL38: ='Compile Data'!D326 -> 0 | BM38: ='Compile Data'!D327 -> 0 | BN38: ='Compile Data'!D328 -> 0 | BO38: ='Compile Data'!D329 -> 0.1119426137 | BP38: ='Compile Data'!D330 -> 1.896522599 | BQ38: ='Compile Data'!D331 -> 1.304853177 | BR38: ='Compile Data'!D332 -> 0 | BS38: ='Compile Data'!D333 -> 0 | BT38: ='Compile Data'!D334 -> 102.3532614 | BU38: ='Compile Data'!D335 -> 34.30433938 | BV38: ='Compile Data'!D336 -> 30.15607368 | BX38: 269.1039046 | BY38: 268.991962 | BZ38: 173.874767 | CB38: 2.008465213 | CC38: 124.6676468 | CD38: 3.747774188 | CE38: 0.1119426137 | CF38: 3.201375776 | CG38: 166.8136744 | CH38: 111.2817458 | CJ38: 1948 | CK38: ='Compile Data'!E325 -> 0 | CL38: ='Compile Data'!E326 -> 0 | CM38: ='Compile Data'!E327 -> 0 | CN38: ='Compile Data'!E328 -> 0 | CO38: ='Compile Data'!E329 -> 0.1394407502 | CP38: ='Compile Data'!E330 -> 1.923848727 | CQ38: ='Compile Data'!E331 -> 1.317467034 | CR38: ='Compile Data'!E332 -> 0 | CS38: ='Compile Data'!E333 -> 0 | CT38: ='Compile Data'!E334 -> 102.226819 | CU38: ='Compile Data'!E335 -> 33.26450387 | CV38: ='Compile Data'!E336 -> 27.47921375 | CX38: 244.1389036 | CY38: 243.9994629 | CZ38: 166.3512932 | DB38: 2.063289477 | DC38: 106.7234213 | DD38: 0 | DE38: 0.1394407502 | DF38: 3.241315761 | DG38: 162.9705367 | DH38: 94.37735584 | DJ38: 1948 | DK38: ='Compile Data'!F325 -> 3.05198322 | DL38: ='Compile Data'!F326 -> 0 | DM38: ='Compile Data'!F327 -> 0 | DN38: ='Compile Data'!F328 -> 0 | DO38: ='Compile Data'!F329 -> 7.860675596 | DP38: ='Compile Data'!F330 -> 1.936356427 | DQ38: ='Compile Data'!F331 -> 1.323125246 | DR38: ='Compile Data'!F332 -> 0 | DS38: ='Compile Data'!F333 -> 0 | DT38: ='Compile Data'!F334 -> 46.98959856 | DU38: ='Compile Data'!F335 -> 32.18154424 | DV38: ='Compile Data'!F336 -> 22.06860832 | DX38: 176.8918018 | DY38: 169.0311262 | DZ38: 115.4118916 | EB38: 9.797032023 | EC38: 101.0919664 | ED38: 3.05198322 | EE38: 7.860675596 | EF38: 3.259481673 | EG38: 101.2397511 | EH38: 86.60050177
A39: 1923-12-31 | B39: =INDIRECT(CONCATENATE("'",B$1,"'!",B$4,(YEAR($A39)-1921)*12+MONTH($A39)+3+IF(ISNUMBER(FIND("PRV",B$6)),1,0)))*IF(AND(B$3>0,TRIM(B$9)="CFS"),Conv_Flags!$C39,1) -> 0 | C39: =INDIRECT(CONCATENATE("'",C$1,"'!",C$4,(YEAR($A39)-1921)*12+MONTH($A39)+3+IF(ISNUMBER(FIND("PRV",C$6)),1,0)))*IF(AND(C$3>0,TRIM(C$9)="CFS"),Conv_Flags!$C39,1) -> 7.771290344 | D39: =INDIRECT(CONCATENATE("'",D$1,"'!",D$4,(YEAR($A39)-1921)*12+MONTH($A39)+3+IF(ISNUMBER(FIND("PRV",D$6)),1,0)))*IF(AND(D$3>0,TRIM(D$9)="CFS"),Conv_Flags!$C39,1) -> 15.34965363 | E39: =INDIRECT(CONCATENATE("'",E$1,"'!",E$4,(YEAR($A39)-1921)*12+MONTH($A39)+3+IF(ISNUMBER(FIND("PRV",E$6)),1,0)))*IF(AND(E$3>0,TRIM(E$9)="CFS"),Conv_Flags!$C39,1) -> 17.85123967 | F39: =INDIRECT(CONCATENATE("'",F$1,"'!",F$4,(YEAR($A39)-1921)*12+MONTH($A39)+3+IF(ISNUMBER(FIND("PRV",F$6)),1,0)))*IF(AND(F$3>0,TRIM(F$9)="CFS"),Conv_Flags!$C39,1) -> 12.59571064 | J39: 1949 | K39: =B337 -> 0 | L39: =B338 -> 0 | M39: =B339 -> 0 | N39: =B340 -> 0 | O39: =B341 -> 0 | P39: =B342 -> 0 | Q39: =B343 -> 0 | R39: =B344 -> 0 | S39: =B345 -> 0 | T39: =B346 -> 0 | U39: =B347 -> 0 | V39: =B348 -> 0 | X39: 0 | Y39: 0 | Z39: 0 | AB39: 0 | AC39: 0 | AD39: 0 | AE39: 0 | AF39: 0 | AG39: 0 | AH39: 0 | AJ39: 1949 | AK39: ='Compile Data'!C337 -> 41.55561712 | AL39: ='Compile Data'!C338 -> 10.36265596 | AM39: ='Compile Data'!C339 -> 0 | AN39: ='Compile Data'!C340 -> 0 | AO39: ='Compile Data'!C341 -> 0 | AP39: ='Compile Data'!C342 -> 0 | AQ39: ='Compile Data'!C343 -> 1.823194209 | AR39: ='Compile Data'!C344 -> 125.8712915 | AS39: ='Compile Data'!C345 -> 77.48163497 | AT39: ='Compile Data'!C346 -> 124.3420118 | AU39: ='Compile Data'!C347 -> 112.444846 | AV39: ='Compile Data'!C348 -> 69.4964188 | AX39: 590.3554249 | AY39: 590.3554249 | AZ39: 563.3776703 | BB39: 10.36265596 | BC39: 208.4848816 | BD39: 51.91827308 | BE39: 0 | BF39: 205.1761206 | BG39: 383.7649116 | BH39: 148.3924465 | BJ39: 1949 | BK39: ='Compile Data'!D337 -> 60.20723372 | BL39: ='Compile Data'!D338 -> 20.91843839 | BM39: ='Compile Data'!D339 -> 17.85123967 | BN39: ='Compile Data'!D340 -> 0 | BO39: ='Compile Data'!D341 -> 0 | BP39: ='Compile Data'!D342 -> 0 | BQ39: ='Compile Data'!D343 -> 1.642360539 | BR39: ='Compile Data'!D344 -> 138.7692872 | BS39: ='Compile Data'!D345 -> 77.48163497 | BT39: ='Compile Data'!D346 -> 119.3264463 | BU39: ='Compile Data'!D347 -> 117.7797529 | BV39: ='Compile Data'!D348 -> 91.23068606 | BX39: 650.8802679 | BY39: 650.8802679 | BZ39: 645.2070798 | CB39: 38.76967806 | CC39: 254.1230471 | CD39: 98.97691178 | CE39: 17.85123967 | CF39: 217.8932828 | CG39: 405.8185202 | CH39: 195.880786 | CJ39: 1949 | CK39: ='Compile Data'!E337 -> 45.9797037 | CL39: ='Compile Data'!E338 -> 20.91843839 | CM39: ='Compile Data'!E339 -> 10.88946837 | CN39: ='Compile Data'!E340 -> 0 | CO39: ='Compile Data'!E341 -> 0 | CP39: ='Compile Data'!E342 -> 0 | CQ39: ='Compile Data'!E343 -> 1.638090149 | CR39: ='Compile Data'!E344 -> 125.8712906 | CS39: ='Compile Data'!E345 -> 91.50246656 | CT39: ='Compile Data'!E346 -> 119.3264463 | CU39: ='Compile Data'!E347 -> 112.3465731 | CV39: ='Compile Data'!E348 -> 70.02663792 | CX39: 592.2097756 | CY39: 592.2097782 | CZ39: 598.4991151 | DB39: 31.80790676 | DC39: 208.3529637 | DD39: 77.78761047 | DE39: 10.88946837 | DF39: 219.0118474 | DG39: 393.2021238 | DH39: 141.5249089 | DJ39: 1949 | DK39: ='Compile Data'!F337 -> 46.84181384 | DL39: ='Compile Data'!F338 -> 17.6900796 | DM39: ='Compile Data'!F339 -> 0 | DN39: ='Compile Data'!F340 -> 0 | DO39: ='Compile Data'!F341 -> 0 | DP39: ='Compile Data'!F342 -> 0 | DQ39: ='Compile Data'!F343 -> 1.735433676 | DR39: ='Compile Data'!F344 -> 125.8712915 | DS39: ='Compile Data'!F345 -> 91.50316074 | DT39: ='Compile Data'!F346 -> 119.3264463 | DU39: ='Compile Data'!F347 -> 113.4359964 | DV39: ='Compile Data'!F348 -> 69.92607606 | DX39: 598.8403933 | DY39: 598.8403933 | DZ39: 586.3302981 | EB39: 17.6900796 | EC39: 209.0397819 | ED39: 64.53189344 | EE39: 0 | EF39: 219.1098859 | EG39: 394.1916795 | EH39: 146.9680648
A40: 1924-01-31 | B40: =INDIRECT(CONCATENATE("'",B$1,"'!",B$4,(YEAR($A40)-1921)*12+MONTH($A40)+3+IF(ISNUMBER(FIND("PRV",B$6)),1,0)))*IF(AND(B$3>0,TRIM(B$9)="CFS"),Conv_Flags!$C40,1) -> 0 | C40: =INDIRECT(CONCATENATE("'",C$1,"'!",C$4,(YEAR($A40)-1921)*12+MONTH($A40)+3+IF(ISNUMBER(FIND("PRV",C$6)),1,0)))*IF(AND(C$3>0,TRIM(C$9)="CFS"),Conv_Flags!$C40,1) -> 0 | D40: =INDIRECT(CONCATENATE("'",D$1,"'!",D$4,(YEAR($A40)-1921)*12+MONTH($A40)+3+IF(ISNUMBER(FIND("PRV",D$6)),1,0)))*IF(AND(D$3>0,TRIM(D$9)="CFS"),Conv_Flags!$C40,1) -> 0 | E40: =INDIRECT(CONCATENATE("'",E$1,"'!",E$4,(YEAR($A40)-1921)*12+MONTH($A40)+3+IF(ISNUMBER(FIND("PRV",E$6)),1,0)))*IF(AND(E$3>0,TRIM(E$9)="CFS"),Conv_Flags!$C40,1) -> 0 | F40: =INDIRECT(CONCATENATE("'",F$1,"'!",F$4,(YEAR($A40)-1921)*12+MONTH($A40)+3+IF(ISNUMBER(FIND("PRV",F$6)),1,0)))*IF(AND(F$3>0,TRIM(F$9)="CFS"),Conv_Flags!$C40,1) -> 0 | J40: 1950 | K40: =B349 -> 0 | L40: =B350 -> 0 | M40: =B351 -> 0 | N40: =B352 -> 0 | O40: =B353 -> 0 | P40: =B354 -> 0 | Q40: =B355 -> 0 | R40: =B356 -> 0 | S40: =B357 -> 0 | T40: =B358 -> 0 | U40: =B359 -> 0 | V40: =B360 -> 0 | X40: 0 | Y40: 0 | Z40: 0 | AB40: 0 | AC40: 0 | AD40: 0 | AE40: 0 | AF40: 0 | AG40: 0 | AH40: 0 | AJ40: 1950 | AK40: ='Compile Data'!C349 -> 26.54361683 | AL40: ='Compile Data'!C350 -> 52.35241084 | AM40: ='Compile Data'!C351 -> 0 | AN40: ='Compile Data'!C352 -> 0 | AO40: ='Compile Data'!C353 -> 0 | AP40: ='Compile Data'!C354 -> 0.1831263902 | AQ40: ='Compile Data'!C355 -> 9.625198191 | AR40: ='Compile Data'!C356 -> 15.83038418 | AS40: ='Compile Data'!C357 -> 33.7548897 | AT40: ='Compile Data'!C358 -> 17.40367299 | AU40: ='Compile Data'!C359 -> 34.97292043 | AV40: ='Compile Data'!C360 -> 14.19050104 | AX40: 164.4737339 | AY40: 164.4737339 | AZ40: 204.8567206 | BB40: 52.53553723 | BC40: 85.93646241 | BD40: 78.89602767 | BE40: 0 | BF40: 59.39359846 | BG40: 100.3219842 | BH40: 52.70354198 | BJ40: 1950 | BK40: ='Compile Data'!D349 -> 45.11260813 | BL40: ='Compile Data'!D350 -> 59.53749181 | BM40: ='Compile Data'!D351 -> 0 | BN40: ='Compile Data'!D352 -> 0 | BO40: ='Compile Data'!D353 -> 0 | BP40: ='Compile Data'!D354 -> 0.1832277218 | BQ40: ='Compile Data'!D355 -> 9.631462403 | BR40: ='Compile Data'!D356 -> 15.84068682 | BS40: ='Compile Data'!D357 -> 29.69370793 | BT40: ='Compile Data'!D358 -> 17.40096405 | BU40: ='Compile Data'!D359 -> 19.38313178 | BV40: ='Compile Data'!D360 -> 4.24 | BX40: 122.9497746 | BY40: 122.9497746 | BZ40: 201.0232806 | CB40: 59.72071953 | CC40: 48.45972568 | CD40: 104.6500999 | CE40: 0 | CF40: 55.34908487 | CG40: 70.71780375 | CH40: 30.8165939 | CJ40: 1950 | CK40: ='Compile Data'!E349 -> 25.97975268 | CL40: ='Compile Data'!E350 -> 45.51851828 | CM40: ='Compile Data'!E351 -> 0 | CN40: ='Compile Data'!E352 -> 2.636916131e-06 | CO40: ='Compile Data'!E353 -> 0 | CP40: ='Compile Data'!E354 -> 0.1831830402 | CQ40: ='Compile Data'!E355 -> 9.628711984 | CR40: ='Compile Data'!E356 -> 15.83616325 | CS40: ='Compile Data'!E357 -> 34.93776363 | CT40: ='Compile Data'!E358 -> 20.35123967 | CU40: ='Compile Data'!E359 -> 34.24924327 | CV40: ='Compile Data'!E360 -> 16.92475756 | CX40: 169.0808804 | CY40: 169.0808778 | CZ40: 203.609336 | DB40: 45.70170395 | DC40: 86.40381623 | DD40: 71.4982736 | DE40: 2.636916131e-06 | DF40: 60.5858219 | DG40: 106.4630041 | DH40: 53.89457297 | DJ40: 1950 | DK40: ='Compile Data'!F349 -> 25.67770941 | DL40: ='Compile Data'!F350 -> 51.36427929 | DM40: ='Compile Data'!F351 -> 0 | DN40: ='Compile Data'!F352 -> 0 | DO40: ='Compile Data'!F353 -> 0 | DP40: ='Compile Data'!F354 -> 0.1829037608 | DQ40: ='Compile Data'!F355 -> 9.605064259 | DR40: ='Compile Data'!F356 -> 15.79727028 | DS40: ='Compile Data'!F357 -> 33.33881795 | DT40: ='Compile Data'!F358 -> 20.35123967 | DU40: ='Compile Data'!F359 -> 34.17171115 | DV40: ='Compile Data'!F360 -> 17.17666132 | DX40: 167.3777737 | DY40: 167.3777737 | DZ40: 207.6656571 | EB40: 51.54718305 | EC40: 86.36247779 | ED40: 77.0419887 | EE40: 0 | EF40: 58.92405625 | EG40: 105.0384301 | EH40: 53.93076664
A41: 1924-02-29 | B41: =INDIRECT(CONCATENATE("'",B$1,"'!",B$4,(YEAR($A41)-1921)*12+MONTH($A41)+3+IF(ISNUMBER(FIND("PRV",B$6)),1,0)))*IF(AND(B$3>0,TRIM(B$9)="CFS"),Conv_Flags!$C41,1) -> 0 | C41: =INDIRECT(CONCATENATE("'",C$1,"'!",C$4,(YEAR($A41)-1921)*12+MONTH($A41)+3+IF(ISNUMBER(FIND("PRV",C$6)),1,0)))*IF(AND(C$3>0,TRIM(C$9)="CFS"),Conv_Flags!$C41,1) -> 0 | D41: =INDIRECT(CONCATENATE("'",D$1,"'!",D$4,(YEAR($A41)-1921)*12+MONTH($A41)+3+IF(ISNUMBER(FIND("PRV",D$6)),1,0)))*IF(AND(D$3>0,TRIM(D$9)="CFS"),Conv_Flags!$C41,1) -> 0 | E41: =INDIRECT(CONCATENATE("'",E$1,"'!",E$4,(YEAR($A41)-1921)*12+MONTH($A41)+3+IF(ISNUMBER(FIND("PRV",E$6)),1,0)))*IF(AND(E$3>0,TRIM(E$9)="CFS"),Conv_Flags!$C41,1) -> 0 | F41: =INDIRECT(CONCATENATE("'",F$1,"'!",F$4,(YEAR($A41)-1921)*12+MONTH($A41)+3+IF(ISNUMBER(FIND("PRV",F$6)),1,0)))*IF(AND(F$3>0,TRIM(F$9)="CFS"),Conv_Flags!$C41,1) -> 0.0006043820894 | J41: 1951 | K41: =B361 -> 0 | L41: =B362 -> 0 | M41: =B363 -> 0 | N41: =B364 -> 0 | O41: =B365 -> 0 | P41: =B366 -> 0 | Q41: =B367 -> 0 | R41: =B368 -> 0 | S41: =B369 -> 0 | T41: =B370 -> 0 | U41: =B371 -> 0 | V41: =B372 -> 0 | X41: 0 | Y41: 0 | Z41: 0 | AB41: 0 | AC41: 0 | AD41: 0 | AE41: 0 | AF41: 0 | AG41: 0 | AH41: 0 | AJ41: 1951 | AK41: ='Compile Data'!C361 -> 36.77304095 | AL41: ='Compile Data'!C362 -> 1.74 | AM41: ='Compile Data'!C363 -> 0 | AN41: ='Compile Data'!C364 -> 0 | AO41: ='Compile Data'!C365 -> 0 | AP41: ='Compile Data'!C366 -> 0 | AQ41: ='Compile Data'!C367 -> 0 | AR41: ='Compile Data'!C368 -> 0 | AS41: ='Compile Data'!C369 -> 42.74828202 | AT41: ='Compile Data'!C370 -> 2.5 | AU41: ='Compile Data'!C371 -> 35.01075398 | AV41: ='Compile Data'!C372 -> 24.14665637 | AX41: 110.2956924 | AY41: 110.2956924 | AZ41: 142.9187333 | BB41: 1.74 | BC41: 61.64741035 | BD41: 38.51304095 | BE41: 0 | BF41: 42.74828202 | BG41: 104.4056924 | BH41: 28.37665637 | BJ41: 1951 | BK41: ='Compile Data'!D361 -> 24.8365939 | BL41: ='Compile Data'!D362 -> 1.74 | BM41: ='Compile Data'!D363 -> 0 | BN41: ='Compile Data'!D364 -> 0 | BO41: ='Compile Data'!D365 -> 0 | BP41: ='Compile Data'!D366 -> 0 | BQ41: ='Compile Data'!D367 -> 0 | BR41: ='Compile Data'!D368 -> 0 | BS41: ='Compile Data'!D369 -> 70.74240029 | BT41: ='Compile Data'!D370 -> 2.5 | BU41: ='Compile Data'!D371 -> 35.03183718 | BV41: ='Compile Data'!D372 -> 31.8262069 | BX41: 160.3205211 | BY41: 160.3205211 | BZ41: 166.6770383 | CB41: 1.74 | CC41: 83.67812083 | CD41: 26.5765939 | CE41: 0 | CF41: 70.74240029 | CG41: 140.1004444 | CH41: 50.38628365 | CJ41: 1951 | CK41: ='Compile Data'!E361 -> 35.22981541 | CL41: ='Compile Data'!E362 -> 1.74 | CM41: ='Compile Data'!E363 -> 0 | CN41: ='Compile Data'!E364 -> 0 | CO41: ='Compile Data'!E365 -> 0 | CP41: ='Compile Data'!E366 -> 0 | CQ41: ='Compile Data'!E367 -> 0 | CR41: ='Compile Data'!E368 -> 0 | CS41: ='Compile Data'!E369 -> 52.79493034 | CT41: ='Compile Data'!E370 -> 2.5 | CU41: ='Compile Data'!E371 -> 35.01845632 | CV41: ='Compile Data'!E372 -> 23.63870943 | CX41: 119.8420961 | CY41: 119.8420961 | CZ41: 150.9219115 | DB41: 1.74 | DC41: 61.14716575 | DD41: 36.96981541 | DE41: 0 | DF41: 52.79493034 | DG41: 113.9520961 | DH41: 27.86870943 | DJ41: 1951 | DK41: ='Compile Data'!F361 -> 35.01410532 | DL41: ='Compile Data'!F362 -> 1.74 | DM41: ='Compile Data'!F363 -> 0 | DN41: ='Compile Data'!F364 -> 0 | DO41: ='Compile Data'!F365 -> 0 | DP41: ='Compile Data'!F366 -> 0 | DQ41: ='Compile Data'!F367 -> 0 | DR41: ='Compile Data'!F368 -> 0 | DS41: ='Compile Data'!F369 -> 42.35037323 | DT41: ='Compile Data'!F370 -> 2.5 | DU41: ='Compile Data'!F371 -> 35.00101902 | DV41: ='Compile Data'!F372 -> 23.63480539 | DX41: 109.3761976 | DY41: 109.3761976 | DZ41: 140.240303 | EB41: 1.74 | EC41: 61.12582441 | ED41: 36.75410532 | EE41: 0 | EF41: 42.35037323 | EG41: 103.4861976 | EH41: 27.86480539
A42: 1924-03-31 | B42: =INDIRECT(CONCATENATE("'",B$1,"'!",B$4,(YEAR($A42)-1921)*12+MONTH($A42)+3+IF(ISNUMBER(FIND("PRV",B$6)),1,0)))*IF(AND(B$3>0,TRIM(B$9)="CFS"),Conv_Flags!$C42,1) -> 0 | C42: =INDIRECT(CONCATENATE("'",C$1,"'!",C$4,(YEAR($A42)-1921)*12+MONTH($A42)+3+IF(ISNUMBER(FIND("PRV",C$6)),1,0)))*IF(AND(C$3>0,TRIM(C$9)="CFS"),Conv_Flags!$C42,1) -> 2.988839389 | D42: =INDIRECT(CONCATENATE("'",D$1,"'!",D$4,(YEAR($A42)-1921)*12+MONTH($A42)+3+IF(ISNUMBER(FIND("PRV",D$6)),1,0)))*IF(AND(D$3>0,TRIM(D$9)="CFS"),Conv_Flags!$C42,1) -> 2.97443346 | E42: =INDIRECT(CONCATENATE("'",E$1,"'!",E$4,(YEAR($A42)-1921)*12+MONTH($A42)+3+IF(ISNUMBER(FIND("PRV",E$6)),1,0)))*IF(AND(E$3>0,TRIM(E$9)="CFS"),Conv_Flags!$C42,1) -> 2.950628204 | F42: =INDIRECT(CONCATENATE("'",F$1,"'!",F$4,(YEAR($A42)-1921)*12+MONTH($A42)+3+IF(ISNUMBER(FIND("PRV",F$6)),1,0)))*IF(AND(F$3>0,TRIM(F$9)="CFS"),Conv_Flags!$C42,1) -> 2.952308431 | J42: 1952 | K42: =B373 -> 0 | L42: =B374 -> 0 | M42: =B375 -> 0 | N42: =B376 -> 0 | O42: =B377 -> 0 | P42: =B378 -> 0 | Q42: =B379 -> 0 | R42: =B380 -> 0 | S42: =B381 -> 0 | T42: =B382 -> 0 | U42: =B383 -> 0 | V42: =B384 -> 0 | X42: 0 | Y42: 0 | Z42: 0 | AB42: 0 | AC42: 0 | AD42: 0 | AE42: 0 | AF42: 0 | AG42: 0 | AH42: 0 | AJ42: 1952 | AK42: ='Compile Data'!C373 -> 2.49 | AL42: ='Compile Data'!C374 -> 1.74 | AM42: ='Compile Data'!C375 -> 1.66 | AN42: ='Compile Data'!C376 -> 0 | AO42: ='Compile Data'!C377 -> 0 | AP42: ='Compile Data'!C378 -> 0 | AQ42: ='Compile Data'!C379 -> 0 | AR42: ='Compile Data'!C380 -> 0 | AS42: ='Compile Data'!C381 -> 1.852375478 | AT42: ='Compile Data'!C382 -> 2.345336251 | AU42: ='Compile Data'!C383 -> 29.53744166 | AV42: ='Compile Data'!C384 -> 28.39260313 | AX42: 107.5652031 | AY42: 107.5652031 | AZ42: 68.01775652 | BB42: 3.4 | BC42: 85.51625168 | BD42: 5.89 | BE42: 1.66 | BF42: 1.852375478 | BG42: 62.12775651 | BH42: 73.8300497 | BJ42: 1952 | BK42: ='Compile Data'!D373 -> 16.82007675 | BL42: ='Compile Data'!D374 -> 1.74 | BM42: ='Compile Data'!D375 -> 1.66 | BN42: ='Compile Data'!D376 -> 0 | BO42: ='Compile Data'!D377 -> 0 | BP42: ='Compile Data'!D378 -> 0 | BQ42: ='Compile Data'!D379 -> 0 | BR42: ='Compile Data'!D380 -> 0 | BS42: ='Compile Data'!D381 -> 1.852375478 | BT42: ='Compile Data'!D382 -> 2.345336251 | BU42: ='Compile Data'!D383 -> 29.53744166 | BV42: ='Compile Data'!D384 -> 28.39260313 | BX42: 107.5652031 | BY42: 107.5652031 | BZ42: 82.34783327 | CB42: 3.4 | CC42: 85.51625168 | CD42: 20.22007675 | CE42: 1.66 | CF42: 1.852375478 | CG42: 62.12775651 | CH42: 73.8300497 | CJ42: 1952 | CK42: ='Compile Data'!E373 -> 2.49 | CL42: ='Compile Data'!E374 -> 1.74 | CM42: ='Compile Data'!E375 -> 1.66 | CN42: ='Compile Data'!E376 -> 0 | CO42: ='Compile Data'!E377 -> 0 | CP42: ='Compile Data'!E378 -> 0 | CQ42: ='Compile Data'!E379 -> 0 | CR42: ='Compile Data'!E380 -> 0 | CS42: ='Compile Data'!E381 -> 1.852375478 | CT42: ='Compile Data'!E382 -> 2.345336251 | CU42: ='Compile Data'!E383 -> 29.53744166 | CV42: ='Compile Data'!E384 -> 28.39260313 | CX42: 107.5652031 | CY42: 107.5652031 | CZ42: 68.01775652 | DB42: 3.4 | DC42: 85.51625168 | DD42: 5.89 | DE42: 1.66 | DF42: 1.852375478 | DG42: 62.12775651 | DH42: 73.8300497 | DJ42: 1952 | DK42: ='Compile Data'!F373 -> 2.49 | DL42: ='Compile Data'!F374 -> 1.74 | DM42: ='Compile Data'!F375 -> 1.66 | DN42: ='Compile Data'!F376 -> 0 | DO42: ='Compile Data'!F377 -> 0 | DP42: ='Compile Data'!F378 -> 0 | DQ42: ='Compile Data'!F379 -> 0 | DR42: ='Compile Data'!F380 -> 0 | DS42: ='Compile Data'!F381 -> 1.852375478 | DT42: ='Compile Data'!F382 -> 2.345336251 | DU42: ='Compile Data'!F383 -> 29.53744166 | DV42: ='Compile Data'!F384 -> 28.39260313 | DX42: 107.5652031 | DY42: 107.5652031 | DZ42: 68.01775652 | EB42: 3.4 | EC42: 85.51625168 | ED42: 5.89 | EE42: 1.66 | EF42: 1.852375478 | EG42: 62.12775651 | EH42: 73.8300497
A43: 1924-04-30 | B43: =INDIRECT(CONCATENATE("'",B$1,"'!",B$4,(YEAR($A43)-1921)*12+MONTH($A43)+3+IF(ISNUMBER(FIND("PRV",B$6)),1,0)))*IF(AND(B$3>0,TRIM(B$9)="CFS"),Conv_Flags!$C43,1) -> 0 | C43: =INDIRECT(CONCATENATE("'",C$1,"'!",C$4,(YEAR($A43)-1921)*12+MONTH($A43)+3+IF(ISNUMBER(FIND("PRV",C$6)),1,0)))*IF(AND(C$3>0,TRIM(C$9)="CFS"),Conv_Flags!$C43,1) -> 17.71542875 | D43: =INDIRECT(CONCATENATE("'",D$1,"'!",D$4,(YEAR($A43)-1921)*12+MONTH($A43)+3+IF(ISNUMBER(FIND("PRV",D$6)),1,0)))*IF(AND(D$3>0,TRIM(D$9)="CFS"),Conv_Flags!$C43,1) -> 18.4305084 | E43: =INDIRECT(CONCATENATE("'",E$1,"'!",E$4,(YEAR($A43)-1921)*12+MONTH($A43)+3+IF(ISNUMBER(FIND("PRV",E$6)),1,0)))*IF(AND(E$3>0,TRIM(E$9)="CFS"),Conv_Flags!$C43,1) -> 18.32850848 | F43: =INDIRECT(CONCATENATE("'",F$1,"'!",F$4,(YEAR($A43)-1921)*12+MONTH($A43)+3+IF(ISNUMBER(FIND("PRV",F$6)),1,0)))*IF(AND(F$3>0,TRIM(F$9)="CFS"),Conv_Flags!$C43,1) -> 17.5442914 | J43: 1953 | K43: =B385 -> 0 | L43: =B386 -> 0 | M43: =B387 -> 0 | N43: =B388 -> 0 | O43: =B389 -> 0 | P43: =B390 -> 0 | Q43: =B391 -> 0 | R43: =B392 -> 0 | S43: =B393 -> 0 | T43: =B394 -> 0 | U43: =B395 -> 0 | V43: =B396 -> 0 | X43: 0 | Y43: 0 | Z43: 0 | AB43: 0 | AC43: 0 | AD43: 0 | AE43: 0 | AF43: 0 | AG43: 0 | AH43: 0 | AJ43: 1953 | AK43: ='Compile Data'!C385 -> 27.5862069 | AL43: ='Compile Data'!C386 -> 17.85123967 | AM43: ='Compile Data'!C387 -> 0 | AN43: ='Compile Data'!C388 -> 0 | AO43: ='Compile Data'!C389 -> 0 | AP43: ='Compile Data'!C390 -> 0.1694446745 | AQ43: ='Compile Data'!C391 -> 0 | AR43: ='Compile Data'!C392 -> 0 | AS43: ='Compile Data'!C393 -> 2.157159989 | AT43: ='Compile Data'!C394 -> 2.5 | AU43: ='Compile Data'!C395 -> 29.54600691 | AV43: ='Compile Data'!C396 -> 28.48844168 | AX43: 108.2984998 | AY43: 108.2984998 | AZ43: 108.2984998 | BB43: 18.02068434 | BC43: 85.62065548 | BD43: 45.43744657 | BE43: 0 | BF43: 2.326604664 | BG43: 62.69160857 | BH43: 56.07464857 | BJ43: 1953 | BK43: ='Compile Data'!D385 -> 27.5862069 | BL43: ='Compile Data'!D386 -> 17.85123967 | BM43: ='Compile Data'!D387 -> 0 | BN43: ='Compile Data'!D388 -> 0 | BO43: ='Compile Data'!D389 -> 0 | BP43: ='Compile Data'!D390 -> 0.1694446744 | BQ43: ='Compile Data'!D391 -> 0 | BR43: ='Compile Data'!D392 -> 0 | BS43: ='Compile Data'!D393 -> 2.157159989 | BT43: ='Compile Data'!D394 -> 2.5 | BU43: ='Compile Data'!D395 -> 29.54600691 | BV43: ='Compile Data'!D396 -> 28.48844168 | BX43: 108.2984998 | BY43: 108.2984998 | BZ43: 108.2984998 | CB43: 18.02068434 | CC43: 85.62065548 | CD43: 45.43744657 | CE43: 0 | CF43: 2.326604664 | CG43: 62.69160857 | CH43: 56.07464857 | CJ43: 1953 | CK43: ='Compile Data'!E385 -> 27.5862069 | CL43: ='Compile Data'!E386 -> 17.85123967 | CM43: ='Compile Data'!E387 -> 0 | CN43: ='Compile Data'!E388 -> 0 | CO43: ='Compile Data'!E389 -> 0 | CP43: ='Compile Data'!E390 -> 0.1694446744 | CQ43: ='Compile Data'!E391 -> 0 | CR43: ='Compile Data'!E392 -> 0 | CS43: ='Compile Data'!E393 -> 2.157159989 | CT43: ='Compile Data'!E394 -> 2.5 | CU43: ='Compile Data'!E395 -> 29.54600691 | CV43: ='Compile Data'!E396 -> 28.48844168 | CX43: 108.2984998 | CY43: 108.2984998 | CZ43: 108.2984998 | DB43: 18.02068434 | DC43: 85.62065548 | DD43: 45.43744657 | DE43: 0 | DF43: 2.326604664 | DG43: 62.69160857 | DH43: 56.07464857 | DJ43: 1953 | DK43: ='Compile Data'!F385 -> 27.5862069 | DL43: ='Compile Data'!F386 -> 17.85123967 | DM43: ='Compile Data'!F387 -> 0 | DN43: ='Compile Data'!F388 -> 0 | DO43: ='Compile Data'!F389 -> 0 | DP43: ='Compile Data'!F390 -> 0.1694446744 | DQ43: ='Compile Data'!F391 -> 0 | DR43: ='Compile Data'!F392 -> 0 | DS43: ='Compile Data'!F393 -> 2.157159989 | DT43: ='Compile Data'!F394 -> 2.5 | DU43: ='Compile Data'!F395 -> 29.54600691 | DV43: ='Compile Data'!F396 -> 28.48844168 | DX43: 108.2984998 | DY43: 108.2984998 | DZ43: 108.2984998 | EB43: 18.02068434 | EC43: 85.62065548 | ED43: 45.43744657 | EE43: 0 | EF43: 2.326604664 | EG43: 62.69160857 | EH43: 56.07464857
A44: 1924-05-31 | B44: =INDIRECT(CONCATENATE("'",B$1,"'!",B$4,(YEAR($A44)-1921)*12+MONTH($A44)+3+IF(ISNUMBER(FIND("PRV",B$6)),1,0)))*IF(AND(B$3>0,TRIM(B$9)="CFS"),Conv_Flags!$C44,1) -> 0 | C44: =INDIRECT(CONCATENATE("'",C$1,"'!",C$4,(YEAR($A44)-1921)*12+MONTH($A44)+3+IF(ISNUMBER(FIND("PRV",C$6)),1,0)))*IF(AND(C$3>0,TRIM(C$9)="CFS"),Conv_Flags!$C44,1) -> 23.13042493 | D44: =INDIRECT(CONCATENATE("'",D$1,"'!",D$4,(YEAR($A44)-1921)*12+MONTH($A44)+3+IF(ISNUMBER(FIND("PRV",D$6)),1,0)))*IF(AND(D$3>0,TRIM(D$9)="CFS"),Conv_Flags!$C44,1) -> 23.04260417 | E44: =INDIRECT(CONCATENATE("'",E$1,"'!",E$4,(YEAR($A44)-1921)*12+MONTH($A44)+3+IF(ISNUMBER(FIND("PRV",E$6)),1,0)))*IF(AND(E$3>0,TRIM(E$9)="CFS"),Conv_Flags!$C44,1) -> 22.89748367 | F44: =INDIRECT(CONCATENATE("'",F$1,"'!",F$4,(YEAR($A44)-1921)*12+MONTH($A44)+3+IF(ISNUMBER(FIND("PRV",F$6)),1,0)))*IF(AND(F$3>0,TRIM(F$9)="CFS"),Conv_Flags!$C44,1) -> 22.90772659 | J44: 1954 | K44: =B397 -> 0 | L44: =B398 -> 0 | M44: =B399 -> 0 | N44: =B400 -> 0 | O44: =B401 -> 0 | P44: =B402 -> 0 | Q44: =B403 -> 0 | R44: =B404 -> 0 | S44: =B405 -> 0 | T44: =B406 -> 0 | U44: =B407 -> 0 | V44: =B408 -> 0 | X44: 0 | Y44: 0 | Z44: 0 | AB44: 0 | AC44: 0 | AD44: =IF(AD$11="AVG",IF(AD$1="INST-VAL",AVERAGE(V43,K44:M44,K44:N44),AVERAGE(K44:N44)),SUM(K44:N44)) -> 0 | AE44: 0 | AF44: 0 | AG44: 0 | AH44: 0 | AJ44: 1954 | AK44: ='Compile Data'!C397 -> 27.5862069 | AL44: ='Compile Data'!C398 -> 0 | AM44: ='Compile Data'!C399 -> 17.85123967 | AN44: ='Compile Data'!C400 -> 0 | AO44: ='Compile Data'!C401 -> 0 | AP44: ='Compile Data'!C402 -> 0 | AQ44: ='Compile Data'!C403 -> 0 | AR44: ='Compile Data'!C404 -> 46.00948951 | AS44: ='Compile Data'!C405 -> 45.54754382 | AT44: ='Compile Data'!C406 -> 5.60003945 | AU44: ='Compile Data'!C407 -> 29.41422492 | AV44: ='Compile Data'!C408 -> 29.5876555 | AX44: 187.8951601 | AY44: 187.8951601 | AZ44: 201.5963998 | BB44: 17.85123967 | BC44: 89.07808733 | BD44: 45.43744657 | BE44: 17.85123967 | BF44: 91.55703333 | BG44: 110.1494637 | BH44: 59.6638624 | BJ44: 1954 | BK44: ='Compile Data'!D397 -> 27.5862069 | BL44: ='Compile Data'!D398 -> 0 | BM44: ='Compile Data'!D399 -> 17.85123967 | BN44: ='Compile Data'!D400 -> 0 | BO44: ='Compile Data'!D401 -> 0 | BP44: ='Compile Data'!D402 -> 0 | BQ44: ='Compile Data'!D403 -> 0 | BR44: ='Compile Data'!D404 -> 46.00323045 | BS44: ='Compile Data'!D405 -> 45.50733473 | BT44: ='Compile Data'!D406 -> 5.60003945 | BU44: ='Compile Data'!D407 -> 29.41422492 | BV44: ='Compile Data'!D408 -> 29.5876555 | BX44: 187.848692 | BY44: 187.848692 | BZ44: 201.5499316 | CB44: 17.85123967 | CC44: 89.07808733 | CD44: =IF(CD$11="AVG",IF(CD$1="INST-VAL",AVERAGE(BV43,BK44:BM44,BK44:BN44),AVERAGE(BK44:BN44)),SUM(BK44:BN44)) -> 45.43744657 | CE44: =IF(CE$11="AVG",IF(CD$1="INST-VAL",AVERAGE(BL44:BN44,BM44:BO44),AVERAGE(BM44:BO44)),SUM(BM44:BO44)) -> 17.85123967 | CF44: =IF(CF$11="AVG",IF(CD$1="INST-VAL",AVERAGE(BO44:BR44,BP44:BS44),AVERAGE(BP44:BS44)),SUM(BP44:BS44)) -> 91.51056518 | CG44: =IF(CG$11="AVG",IF(CD$1="INST-VAL",AVERAGE(BR44:BU44,BS44:BV44),AVERAGE(BS44:BV44)),SUM(BS44:BV44)) -> 110.1092546 | CH44: =IF(CH$11="AVG",IF(CD$1="INST-VAL",AVERAGE(BU44:BV44,BK45,BV44,BK45:BL45),AVERAGE(BV44,BK45:BL45)),SUM(BV44,BK45:BL45)) -> 59.6638624 | CJ44: 1954 | CK44: ='Compile Data'!E397 -> 27.5862069 | CL44: ='Compile Data'!E398 -> 0 | CM44: ='Compile Data'!E399 -> 17.85123967 | CN44: ='Compile Data'!E400 -> 0 | CO44: ='Compile Data'!E401 -> 0 | CP44: ='Compile Data'!E402 -> 0 | CQ44: ='Compile Data'!E403 -> 0 | CR44: ='Compile Data'!E404 -> 46.01111112 | CS44: ='Compile Data'!E405 -> 45.49955176 | CT44: ='Compile Data'!E406 -> 5.60003945 | CU44: ='Compile Data'!E407 -> 29.41422492 | CV44: ='Compile Data'!E408 -> 29.5876555 | CX44: 187.8487897 | CY44: 187.8487897 | CZ44: 201.5500293 | DB44: 17.85123967 | DC44: 89.07808733 | DD44: 45.43744657 | DE44: 17.85123967 | DF44: 91.51066288 | DG44: 110.1014716 | DH44: 59.6638624 | DJ44: 1954 | DK44: ='Compile Data'!F397 -> 27.5862069 | DL44: ='Compile Data'!F398 -> 0 | DM44: ='Compile Data'!F399 -> 17.85123967 | DN44: ='Compile Data'!F400 -> 0 | DO44: ='Compile Data'!F401 -> 0 | DP44: ='Compile Data'!F402 -> 0 | DQ44: ='Compile Data'!F403 -> 0 | DR44: ='Compile Data'!F404 -> 46.01142202 | DS44: ='Compile Data'!F405 -> 45.49923523 | DT44: ='Compile Data'!F406 -> 5.60003945 | DU44: ='Compile Data'!F407 -> 29.41422492 | DV44: ='Compile Data'!F408 -> 29.5876555 | DX44: 187.848784 | DY44: 187.848784 | DZ44: 201.5500237 | EB44: 17.85123967 | EC44: 89.07808733 | ED44: 45.43744657 | EE44: 17.85123967 | EF44: 91.51065724 | EG44: 110.1011551 | EH44: 59.6638624
A45: 1924-06-30 | B45: =INDIRECT(CONCATENATE("'",B$1,"'!",B$4,(YEAR($A45)-1921)*12+MONTH($A45)+3+IF(ISNUMBER(FIND("PRV",B$6)),1,0)))*IF(AND(B$3>0,TRIM(B$9)="CFS"),Conv_Flags!$C45,1) -> 0 | C45: =INDIRECT(CONCATENATE("'",C$1,"'!",C$4,(YEAR($A45)-1921)*12+MONTH($A45)+3+IF(ISNUMBER(FIND("PRV",C$6)),1,0)))*IF(AND(C$3>0,TRIM(C$9)="CFS"),Conv_Flags!$C45,1) -> 96.87730423 | D45: =INDIRECT(CONCATENATE("'",D$1,"'!",D$4,(YEAR($A45)-1921)*12+MONTH($A45)+3+IF(ISNUMBER(FIND("PRV",D$6)),1,0)))*IF(AND(D$3>0,TRIM(D$9)="CFS"),Conv_Flags!$C45,1) -> 96.80408214 | E45: =INDIRECT(CONCATENATE("'",E$1,"'!",E$4,(YEAR($A45)-1921)*12+MONTH($A45)+3+IF(ISNUMBER(FIND("PRV",E$6)),1,0)))*IF(AND(E$3>0,TRIM(E$9)="CFS"),Conv_Flags!$C45,1) -> 96.62994999 | F45: =INDIRECT(CONCATENATE("'",F$1,"'!",F$4,(YEAR($A45)-1921)*12+MONTH($A45)+3+IF(ISNUMBER(FIND("PRV",F$6)),1,0)))*IF(AND(F$3>0,TRIM(F$9)="CFS"),Conv_Flags!$C45,1) -> 96.64085555 | J45: 1955 | K45: =B409 -> 0 | L45: =B410 -> 0 | M45: =B411 -> 0 | N45: =B412 -> 0 | O45: =B413 -> 0 | P45: =B414 -> 0 | Q45: =B415 -> 0 | R45: =B416 -> 0 | S45: =B417 -> 0 | T45: =B418 -> 0 | U45: =B419 -> 0 | V45: =B420 -> 0 | X45: 0 | Y45: 0 | Z45: 0 | AB45: 0 | AC45: 0 | AD45: 0 | AE45: 0 | AF45: 0 | AG45: 0 | AH45: 0 | AJ45: 1955 | AK45: ='Compile Data'!C409 -> 30.0762069 | AL45: ='Compile Data'!C410 -> 0 | AM45: ='Compile Data'!C411 -> 1.66 | AN45: ='Compile Data'!C412 -> 0 | AO45: ='Compile Data'!C413 -> 0 | AP45: ='Compile Data'!C414 -> 1.068083631 | AQ45: ='Compile Data'!C415 -> 8.224781992 | AR45: ='Compile Data'!C416 -> 29.48113936 | AS45: ='Compile Data'!C417 -> 118.686333 | AT45: ='Compile Data'!C418 -> 129.1627124 | AU45: ='Compile Data'!C419 -> 85.31361239 | AV45: ='Compile Data'!C420 -> 53.96814768 | AX45: 526.9545369 | AY45: 526.9545369 | AZ45: 457.6410174 | BB45: 2.728083631 | BC45: 161.2778393 | BD45: 31.7362069 | BE45: 1.66 | BF45: 157.460338 | BG45: 387.1308055 | BH45: 153.3578741 | BJ45: 1955 | BK45: ='Compile Data'!D409 -> 30.0762069 | BL45: ='Compile Data'!D410 -> 0 | BM45: ='Compile Data'!D411 -> 1.66 | BN45: ='Compile Data'!D412 -> 0 | BO45: ='Compile Data'!D413 -> 0 | BP45: ='Compile Data'!D414 -> 1.063542434 | BQ45: ='Compile Data'!D415 -> 8.189812486 | BR45: ='Compile Data'!D416 -> 32.01298675 | BS45: ='Compile Data'!D417 -> 118.5661257 | BT45: ='Compile Data'!D418 -> 133.3109585 | BU45: ='Compile Data'!D419 -> 85.20940773 | BV45: ='Compile Data'!D420 -> 57.97140164 | BX45: 537.3739618 | BY45: 537.3739618 | BZ45: 468.0604422 | CB45: 2.723542434 | CC45: 165.1768886 | CD45: 31.7362069 | CE45: 1.66 | CF45: 159.8324674 | CG45: 395.0578936 | CH45: 157.3611281 | CJ45: 1955 | CK45: ='Compile Data'!E409 -> 30.0762069 | CL45: ='Compile Data'!E410 -> 0 | CM45: ='Compile Data'!E411 -> 1.66 | CN45: ='Compile Data'!E412 -> 0 | CO45: ='Compile Data'!E413 -> 0 | CP45: ='Compile Data'!E414 -> 1.064080094 | CQ45: ='Compile Data'!E415 -> 8.193952744 | CR45: ='Compile Data'!E416 -> 32.0256358 | CS45: ='Compile Data'!E417 -> 118.5808832 | CT45: ='Compile Data'!E418 -> 132.5223491 | CU45: ='Compile Data'!E419 -> 85.21680087 | CV45: ='Compile Data'!E420 -> 49.64858579 | CX45: 528.3020141 | CY45: 528.3020141 | CZ45: 458.9884945 | DB45: 2.724080094 | DC45: 156.8614659 | DD45: 31.7362069 | DE45: 1.66 | DF45: 159.8645518 | DG45: 385.968619 | DH45: 149.0383122 | DJ45: 1955 | DK45: ='Compile Data'!F409 -> 30.0762069 | DL45: ='Compile Data'!F410 -> 0 | DM45: ='Compile Data'!F411 -> 1.66 | DN45: ='Compile Data'!F412 -> 0 | DO45: ='Compile Data'!F413 -> 0 | DP45: ='Compile Data'!F414 -> 1.064083385 | DQ45: ='Compile Data'!F415 -> 8.193978085 | DR45: ='Compile Data'!F416 -> 32.02571606 | DS45: ='Compile Data'!F417 -> 118.5809769 | DT45: ='Compile Data'!F418 -> 132.5170863 | DU45: ='Compile Data'!F419 -> 85.21303762 | DV45: ='Compile Data'!F420 -> 49.64417796 | DX45: 528.2887827 | DY45: 528.2887827 | DZ45: 458.9752631 | EB45: 2.724083385 | EC45: 156.8532948 | ED45: 31.7362069 | EE45: 1.66 | EF45: 159.8647544 | EG45: 385.9552787 | EH45: 149.0339044
A46: 1924-07-31 | B46: =INDIRECT(CONCATENATE("'",B$1,"'!",B$4,(YEAR($A46)-1921)*12+MONTH($A46)+3+IF(ISNUMBER(FIND("PRV",B$6)),1,0)))*IF(AND(B$3>0,TRIM(B$9)="CFS"),Conv_Flags!$C46,1) -> 0 | C46: =INDIRECT(CONCATENATE("'",C$1,"'!",C$4,(YEAR($A46)-1921)*12+MONTH($A46)+3+IF(ISNUMBER(FIND("PRV",C$6)),1,0)))*IF(AND(C$3>0,TRIM(C$9)="CFS"),Conv_Flags!$C46,1) -> 133.0410062 | D46: =INDIRECT(CONCATENATE("'",D$1,"'!",D$4,(YEAR($A46)-1921)*12+MONTH($A46)+3+IF(ISNUMBER(FIND("PRV",D$6)),1,0)))*IF(AND(D$3>0,TRIM(D$9)="CFS"),Conv_Flags!$C46,1) -> 140.1173749 | E46: =INDIRECT(CONCATENATE("'",E$1,"'!",E$4,(YEAR($A46)-1921)*12+MONTH($A46)+3+IF(ISNUMBER(FIND("PRV",E$6)),1,0)))*IF(AND(E$3>0,TRIM(E$9)="CFS"),Conv_Flags!$C46,1) -> 141.3994148 | F46: =INDIRECT(CONCATENATE("'",F$1,"'!",F$4,(YEAR($A46)-1921)*12+MONTH($A46)+3+IF(ISNUMBER(FIND("PRV",F$6)),1,0)))*IF(AND(F$3>0,TRIM(F$9)="CFS"),Conv_Flags!$C46,1) -> 137.9856641 | J46: 1956 | K46: =B421 -> 0 | L46: =B422 -> 0 | M46: =B423 -> 0 | N46: =B424 -> 0 | O46: =B425 -> 0 | P46: =B426 -> 0 | Q46: =B427 -> 0 | R46: =B428 -> 0 | S46: =B429 -> 0 | T46: =B430 -> 0 | U46: =B431 -> 0 | V46: =B432 -> 0 | X46: 0 | Y46: 0 | Z46: 0 | AB46: 0 | AC46: 0 | AD46: 0 | AE46: 0 | AF46: 0 | AG46: 0 | AH46: 0 | AJ46: 1956 | AK46: ='Compile Data'!C421 -> 21.9960792 | AL46: ='Compile Data'!C422 -> 77.39364723 | AM46: ='Compile Data'!C423 -> 1.66 | AN46: ='Compile Data'!C424 -> 0 | AO46: ='Compile Data'!C425 -> 0 | AP46: ='Compile Data'!C426 -> 0 | AQ46: ='Compile Data'!C427 -> 0 | AR46: ='Compile Data'!C428 -> 0 | AS46: ='Compile Data'!C429 -> 2.01210152 | AT46: ='Compile Data'!C430 -> 2.483474617 | AU46: ='Compile Data'!C431 -> 29.63076823 | AV46: ='Compile Data'!C432 -> 28.32930813 | AX46: 107.8930991 | AY46: 107.8930991 | AZ46: 163.5053789 | BB46: 79.05364723 | BC46: 85.54628326 | BD46: 101.0497264 | BE46: 1.66 | BF46: 2.01210152 | BG46: 62.4556525 | BH46: 73.7667547 | BJ46: 1956 | BK46: ='Compile Data'!D421 -> 21.9960792 | BL46: ='Compile Data'!D422 -> 77.39364723 | BM46: ='Compile Data'!D423 -> 1.66 | BN46: ='Compile Data'!D424 -> 0 | BO46: ='Compile Data'!D425 -> 0 | BP46: ='Compile Data'!D426 -> 0 | BQ46: ='Compile Data'!D427 -> 0 | BR46: ='Compile Data'!D428 -> 0 | BS46: ='Compile Data'!D429 -> 2.01210152 | BT46: ='Compile Data'!D430 -> 2.483474617 | BU46: ='Compile Data'!D431 -> 2.044561327 | BV46: ='Compile Data'!D432 -> 28.32930813 | BX46: 80.30689217 | BY46: 80.30689217 | BZ46: 135.919172 | CB46: 79.05364723 | CC46: 57.96007636 | CD46: 101.0497264 | CE46: 1.66 | CF46: 2.01210152 | CG46: 34.8694456 | CH46: 73.7667547 | CJ46: 1956 | CK46: ='Compile Data'!E421 -> 21.9960792 | CL46: ='Compile Data'!E422 -> 77.39364723 | CM46: ='Compile Data'!E423 -> 1.66 | CN46: ='Compile Data'!E424 -> 0 | CO46: ='Compile Data'!E425 -> 0 | CP46: ='Compile Data'!E426 -> 0 | CQ46: ='Compile Data'!E427 -> 0 | CR46: ='Compile Data'!E428 -> 0 | CS46: ='Compile Data'!E429 -> 2.01210152 | CT46: ='Compile Data'!E430 -> 2.483474617 | CU46: ='Compile Data'!E431 -> 29.63076823 | CV46: ='Compile Data'!E432 -> 28.32930813 | CX46: 107.3922827 | CY46: 107.3922827 | CZ46: 163.5053789 | DB46: 79.05364723 | DC46: 85.04546688 | DD46: 101.0497264 | DE46: 1.66 | DF46: 2.01210152 | DG46: 62.4556525 | DH46: 73.26593832 | DJ46: 1956 | DK46: ='Compile Data'!F421 -> 21.9960792 | DL46: ='Compile Data'!F422 -> 77.39364723 | DM46: ='Compile Data'!F423 -> 1.66 | DN46: ='Compile Data'!F424 -> 0 | DO46: ='Compile Data'!F425 -> 0 | DP46: ='Compile Data'!F426 -> 0 | DQ46: ='Compile Data'!F427 -> 0 | DR46: ='Compile Data'!F428 -> 0 | DS46: ='Compile Data'!F429 -> 2.01210152 | DT46: ='Compile Data'!F430 -> 2.483474617 | DU46: ='Compile Data'!F431 -> 29.63076823 | DV46: ='Compile Data'!F432 -> 28.32930813 | DX46: 99.74695977 | DY46: 99.74695977 | DZ46: 163.5053789 | EB46: 79.05364723 | EC46: 77.40014396 | ED46: 101.0497264 | EE46: 1.66 | EF46: 2.01210152 | EG46: 62.4556525 | EH46: 65.6206154
A47: 1924-08-31 | B47: =INDIRECT(CONCATENATE("'",B$1,"'!",B$4,(YEAR($A47)-1921)*12+MONTH($A47)+3+IF(ISNUMBER(FIND("PRV",B$6)),1,0)))*IF(AND(B$3>0,TRIM(B$9)="CFS"),Conv_Flags!$C47,1) -> 0 | C47: =INDIRECT(CONCATENATE("'",C$1,"'!",C$4,(YEAR($A47)-1921)*12+MONTH($A47)+3+IF(ISNUMBER(FIND("PRV",C$6)),1,0)))*IF(AND(C$3>0,TRIM(C$9)="CFS"),Conv_Flags!$C47,1) -> 109.1704123 | D47: =INDIRECT(CONCATENATE("'",D$1,"'!",D$4,(YEAR($A47)-1921)*12+MONTH($A47)+3+IF(ISNUMBER(FIND("PRV",D$6)),1,0)))*IF(AND(D$3>0,TRIM(D$9)="CFS"),Conv_Flags!$C47,1) -> 109.2043738 | E47: =INDIRECT(CONCATENATE("'",E$1,"'!",E$4,(YEAR($A47)-1921)*12+MONTH($A47)+3+IF(ISNUMBER(FIND("PRV",E$6)),1,0)))*IF(AND(E$3>0,TRIM(E$9)="CFS"),Conv_Flags!$C47,1) -> 111.9669129 | F47: =INDIRECT(CONCATENATE("'",F$1,"'!",F$4,(YEAR($A47)-1921)*12+MONTH($A47)+3+IF(ISNUMBER(FIND("PRV",F$6)),1,0)))*IF(AND(F$3>0,TRIM(F$9)="CFS"),Conv_Flags!$C47,1) -> 109.1709182 | J47: 1957 | K47: =B433 -> 0 | L47: =B434 -> 0 | M47: =B435 -> 0 | N47: =B436 -> 0 | O47: =B437 -> 0 | P47: =B438 -> 0 | Q47: =B439 -> 0 | R47: =B440 -> 0 | S47: =B441 -> 0 | T47: =B442 -> 0 | U47: =B443 -> 0 | V47: =B444 -> 0 | X47: 0 | Y47: 0 | Z47: 0 | AB47: 0 | AC47: 0 | AD47: 0 | AE47: 0 | AF47: 0 | AG47: 0 | AH47: 0 | AJ47: 1957 | AK47: ='Compile Data'!C433 -> 27.5862069 | AL47: ='Compile Data'!C434 -> 17.85123967 | AM47: ='Compile Data'!C435 -> 0 | AN47: ='Compile Data'!C436 -> 0 | AO47: ='Compile Data'!C437 -> 0 | AP47: ='Compile Data'!C438 -> 0.8163848132 | AQ47: ='Compile Data'!C439 -> 2.175875765 | AR47: ='Compile Data'!C440 -> 0 | AS47: ='Compile Data'!C441 -> 93.08350334 | AT47: ='Compile Data'!C442 -> 7.336829269 | AU47: ='Compile Data'!C443 -> 31.3362069 | AV47: ='Compile Data'!C444 -> 31.22863587 | AX47: 167.637436 | AY47: 167.637436 | AZ47: 211.4148825 | BB47: 18.66762448 | BC47: 62.56484277 | BD47: 45.43744657 | BE47: 0 | BF47: 96.07576392 | BG47: 162.9851754 | BH47: 31.22863587 | BJ47: 1957 | BK47: ='Compile Data'!D433 -> 27.5862069 | BL47: ='Compile Data'!D434 -> 17.85123967 | BM47: ='Compile Data'!D435 -> 0 | BN47: ='Compile Data'!D436 -> 0 | BO47: ='Compile Data'!D437 -> 0 | BP47: ='Compile Data'!D438 -> 0.8163848132 | BQ47: ='Compile Data'!D439 -> 2.175875765 | BR47: ='Compile Data'!D440 -> 0 | BS47: ='Compile Data'!D441 -> 93.10321542 | BT47: ='Compile Data'!D442 -> 7.336829269 | BU47: ='Compile Data'!D443 -> 31.3362069 | BV47: ='Compile Data'!D444 -> 31.22863587 | BX47: 167.657148 | BY47: 167.657148 | BZ47: 211.4345946 | CB47: 18.66762448 | CC47: 62.56484277 | CD47: 45.43744657 | CE47: 0 | CF47: 96.095476 | CG47: 163.0048875 | CH47: 31.22863587 | CJ47: 1957 | CK47: ='Compile Data'!E433 -> 27.08539052 | CL47: ='Compile Data'!E434 -> 17.85123967 | CM47: ='Compile Data'!E435 -> 0 | CN47: ='Compile Data'!E436 -> 0 | CO47: ='Compile Data'!E437 -> 0 | CP47: ='Compile Data'!E438 -> 0.8163848132 | CQ47: ='Compile Data'!E439 -> 2.175875765 | CR47: ='Compile Data'!E440 -> 0 | CS47: ='Compile Data'!E441 -> 93.0939344 | CT47: ='Compile Data'!E442 -> 7.336829269 | CU47: ='Compile Data'!E443 -> 31.3362069 | CV47: ='Compile Data'!E444 -> 31.22863587 | CX47: 167.647867 | CY47: 167.647867 | CZ47: 210.9244972 | DB47: 18.66762448 | DC47: 62.56484277 | DD47: 44.93663019 | DE47: 0 | DF47: 96.08619498 | DG47: 162.9956064 | DH47: 31.22863587 | DJ47: 1957 | DK47: ='Compile Data'!F433 -> 19.4400676 | DL47: ='Compile Data'!F434 -> 17.85123967 | DM47: ='Compile Data'!F435 -> 0 | DN47: ='Compile Data'!F436 -> 0 | DO47: ='Compile Data'!F437 -> 0 | DP47: ='Compile Data'!F438 -> 0.8163848132 | DQ47: ='Compile Data'!F439 -> 2.175875765 | DR47: ='Compile Data'!F440 -> 0 | DS47: ='Compile Data'!F441 -> 93.08496998 | DT47: ='Compile Data'!F442 -> 7.336829269 | DU47: ='Compile Data'!F443 -> 31.3362069 | DV47: ='Compile Data'!F444 -> 31.22863587 | DX47: 167.6389026 | DY47: 167.6389026 | DZ47: 203.2702099 | EB47: 18.66762448 | EC47: 62.56484277 | ED47: 37.29130727 | EE47: 0 | EF47: 96.07723056 | EG47: 162.986642 | EH47: 31.22863587
A48: 1924-09-30 | B48: =INDIRECT(CONCATENATE("'",B$1,"'!",B$4,(YEAR($A48)-1921)*12+MONTH($A48)+3+IF(ISNUMBER(FIND("PRV",B$6)),1,0)))*IF(AND(B$3>0,TRIM(B$9)="CFS"),Conv_Flags!$C48,1) -> 0 | C48: =INDIRECT(CONCATENATE("'",C$1,"'!",C$4,(YEAR($A48)-1921)*12+MONTH($A48)+3+IF(ISNUMBER(FIND("PRV",C$6)),1,0)))*IF(AND(C$3>0,TRIM(C$9)="CFS"),Conv_Flags!$C48,1) -> 72.04374236 | D48: =INDIRECT(CONCATENATE("'",D$1,"'!",D$4,(YEAR($A48)-1921)*12+MONTH($A48)+3+IF(ISNUMBER(FIND("PRV",D$6)),1,0)))*IF(AND(D$3>0,TRIM(D$9)="CFS"),Conv_Flags!$C48,1) -> 72.09101681 | E48: =INDIRECT(CONCATENATE("'",E$1,"'!",E$4,(YEAR($A48)-1921)*12+MONTH($A48)+3+IF(ISNUMBER(FIND("PRV",E$6)),1,0)))*IF(AND(E$3>0,TRIM(E$9)="CFS"),Conv_Flags!$C48,1) -> 72.04440818 | F48: =INDIRECT(CONCATENATE("'",F$1,"'!",F$4,(YEAR($A48)-1921)*12+MONTH($A48)+3+IF(ISNUMBER(FIND("PRV",F$6)),1,0)))*IF(AND(F$3>0,TRIM(F$9)="CFS"),Conv_Flags!$C48,1) -> 72.04444667 | J48: 1958 | K48: =B445 -> 0 | L48: =B446 -> 0 | M48: =B447 -> 0 | N48: =B448 -> 0 | O48: =B449 -> 0 | P48: =B450 -> 0 | Q48: =B451 -> 0 | R48: =B452 -> 0 | S48: =B453 -> 0 | T48: =B454 -> 0 | U48: =B455 -> 0 | V48: =B456 -> 0 | X48: 0 | Y48: 0 | Z48: 0 | AB48: 0 | AC48: 0 | AD48: 0 | AE48: 0 | AF48: 0 | AG48: 0 | AH48: 0 | AJ48: 1958 | AK48: ='Compile Data'!C445 -> 0 | AL48: ='Compile Data'!C446 -> 0 | AM48: ='Compile Data'!C447 -> 1.66 | AN48: ='Compile Data'!C448 -> 0 | AO48: ='Compile Data'!C449 -> 0 | AP48: ='Compile Data'!C450 -> 0 | AQ48: ='Compile Data'!C451 -> 0 | AR48: ='Compile Data'!C452 -> 0 | AS48: ='Compile Data'!C453 -> 0 | AT48: ='Compile Data'!C454 -> 0 | AU48: ='Compile Data'!C455 -> 0 | AV48: ='Compile Data'!C456 -> 27.5862069 | AX48: 73.02365347 | AY48: 73.02365347 | AZ48: 29.2462069 | BB48: 1.66 | BC48: 55.1724138 | BD48: 1.66 | BE48: 1.66 | BF48: 0 | BG48: 27.5862069 | BH48: 73.02365347 | BJ48: 1958 | BK48: ='Compile Data'!D445 -> 0 | BL48: ='Compile Data'!D446 -> 0 | BM48: ='Compile Data'!D447 -> 1.66 | BN48: ='Compile Data'!D448 -> 0 | BO48: ='Compile Data'!D449 -> 0 | BP48: ='Compile Data'!D450 -> 0 | BQ48: ='Compile Data'!D451 -> 0 | BR48: ='Compile Data'!D452 -> 0 | BS48: ='Compile Data'!D453 -> 0 | BT48: ='Compile Data'!D454 -> 0 | BU48: ='Compile Data'!D455 -> 0 | BV48: ='Compile Data'!D456 -> 27.5862069 | BX48: 73.02365347 | BY48: 73.02365347 | BZ48: 29.2462069 | CB48: 1.66 | CC48: 55.1724138 | CD48: 1.66 | CE48: 1.66 | CF48: 0 | CG48: 27.5862069 | CH48: 73.02365347 | CJ48: 1958 | CK48: ='Compile Data'!E445 -> 0 | CL48: ='Compile Data'!E446 -> 0 | CM48: ='Compile Data'!E447 -> 1.66 | CN48: ='Compile Data'!E448 -> 0 | CO48: ='Compile Data'!E449 -> 0 | CP48: ='Compile Data'!E450 -> 0 | CQ48: ='Compile Data'!E451 -> 0 | CR48: ='Compile Data'!E452 -> 0 | CS48: ='Compile Data'!E453 -> 0 | CT48: ='Compile Data'!E454 -> 0 | CU48: ='Compile Data'!E455 -> 0 | CV48: ='Compile Data'!E456 -> 27.5862069 | CX48: 73.02365347 | CY48: 73.02365347 | CZ48: 29.2462069 | DB48: 1.66 | DC48: 55.1724138 | DD48: 1.66 | DE48: 1.66 | DF48: 0 | DG48: 27.5862069 | DH48: 73.02365347 | DJ48: 1958 | DK48: ='Compile Data'!F445 -> 0 | DL48: ='Compile Data'!F446 -> 0 | DM48: ='Compile Data'!F447 -> 1.66 | DN48: ='Compile Data'!F448 -> 0 | DO48: ='Compile Data'!F449 -> 0 | DP48: ='Compile Data'!F450 -> 0 | DQ48: ='Compile Data'!F451 -> 0 | DR48: ='Compile Data'!F452 -> 0 | DS48: ='Compile Data'!F453 -> 0 | DT48: ='Compile Data'!F454 -> 0 | DU48: ='Compile Data'!F455 -> 27.5862069 | DV48: ='Compile Data'!F456 -> 27.5862069 | DX48: 100.6098604 | DY48: 100.6098604 | DZ48: 56.8324138 | EB48: 1.66 | EC48: 82.7586207 | ED48: 1.66 | EE48: 1.66 | EF48: 0 | EG48: 55.1724138 | EH48: 73.02365347
A49: 1924-10-31 | B49: =INDIRECT(CONCATENATE("'",B$1,"'!",B$4,(YEAR($A49)-1921)*12+MONTH($A49)+3+IF(ISNUMBER(FIND("PRV",B$6)),1,0)))*IF(AND(B$3>0,TRIM(B$9)="CFS"),Conv_Flags!$C49,1) -> 0 | C49: =INDIRECT(CONCATENATE("'",C$1,"'!",C$4,(YEAR($A49)-1921)*12+MONTH($A49)+3+IF(ISNUMBER(FIND("PRV",C$6)),1,0)))*IF(AND(C$3>0,TRIM(C$9)="CFS"),Conv_Flags!$C49,1) -> 61.52201648 | D49: =INDIRECT(CONCATENATE("'",D$1,"'!",D$4,(YEAR($A49)-1921)*12+MONTH($A49)+3+IF(ISNUMBER(FIND("PRV",D$6)),1,0)))*IF(AND(D$3>0,TRIM(D$9)="CFS"),Conv_Flags!$C49,1) -> 61.61663378 | E49: =INDIRECT(CONCATENATE("'",E$1,"'!",E$4,(YEAR($A49)-1921)*12+MONTH($A49)+3+IF(ISNUMBER(FIND("PRV",E$6)),1,0)))*IF(AND(E$3>0,TRIM(E$9)="CFS"),Conv_Flags!$C49,1) -> 61.52334908 | F49: =INDIRECT(CONCATENATE("'",F$1,"'!",F$4,(YEAR($A49)-1921)*12+MONTH($A49)+3+IF(ISNUMBER(FIND("PRV",F$6)),1,0)))*IF(AND(F$3>0,TRIM(F$9)="CFS"),Conv_Flags!$C49,1) -> 61.52342612 | J49: 1959 | K49: =B457 -> 0 | L49: =B458 -> 0 | M49: =B459 -> 0 | N49: =B460 -> 0 | O49: =B461 -> 0 | P49: =B462 -> 0 | Q49: =B463 -> 0 | R49: =B464 -> 0 | S49: =B465 -> 0 | T49: =B466 -> 0 | U49: =B467 -> 0 | V49: =B468 -> 0 | X49: 0 | Y49: 0 | Z49: 0 | AB49: 0 | AC49: 0 | AD49: 0 | AE49: 0 | AF49: 0 | AG49: 0 | AH49: 0 | AJ49: 1959 | AK49: ='Compile Data'!C457 -> 27.5862069 | AL49: ='Compile Data'!C458 -> 17.85123967 | AM49: ='Compile Data'!C459 -> 0 | AN49: ='Compile Data'!C460 -> 0 | AO49: ='Compile Data'!C461 -> 0 | AP49: ='Compile Data'!C462 -> 0 | AQ49: ='Compile Data'!C463 -> 17.85123967 | AR49: ='Compile Data'!C464 -> 72.81198547 | AS49: ='Compile Data'!C465 -> 7.878571429 | AT49: ='Compile Data'!C466 -> 13.63567542 | AU49: ='Compile Data'!C467 -> 36.00693861 | AV49: ='Compile Data'!C468 -> 33.74420993 | AX49: 290.5513426 | AY49: 290.5513426 | AZ49: 227.3660671 | BB49: 17.85123967 | BC49: 138.6004785 | BD49: 45.43744657 | BE49: 0 | BF49: 98.54179657 | BG49: 91.26539539 | BH49: 124.5156924 | BJ49: 1959 | BK49: ='Compile Data'!D457 -> 27.5862069 | BL49: ='Compile Data'!D458 -> 17.85123967 | BM49: ='Compile Data'!D459 -> 0 | BN49: ='Compile Data'!D460 -> 0 | BO49: ='Compile Data'!D461 -> 0 | BP49: ='Compile Data'!D462 -> 0 | BQ49: ='Compile Data'!D463 -> 17.85123967 | BR49: ='Compile Data'!D464 -> 72.81208905 | BS49: ='Compile Data'!D465 -> 7.878571429 | BT49: ='Compile Data'!D466 -> 13.63568689 | BU49: ='Compile Data'!D467 -> 36.00693861 | BV49: ='Compile Data'!D468 -> 33.72537506 | BX49: 290.551452 | BY49: 290.551452 | BZ49: 227.3473473 | CB49: 17.85123967 | CC49: 138.6004727 | CD49: 45.43744657 | CE49: 0 | CF49: 98.54190015 | CG49: 91.24657199 | CH49: 124.5156866 | CJ49: 1959 | CK49: ='Compile Data'!E457 -> 27.5862069 | CL49: ='Compile Data'!E458 -> 17.85123967 | CM49: ='Compile Data'!E459 -> 0 | CN49: ='Compile Data'!E460 -> 0 | CO49: ='Compile Data'!E461 -> 0 | CP49: ='Compile Data'!E462 -> 0 | CQ49: ='Compile Data'!E463 -> 17.85123967 | CR49: ='Compile Data'!E464 -> 72.81231735 | CS49: ='Compile Data'!E465 -> 7.878571429 | CT49: ='Compile Data'!E466 -> 13.63583521 | CU49: ='Compile Data'!E467 -> 36.00693861 | CV49: ='Compile Data'!E468 -> 33.74304083 | CX49: 290.5517544 | CY49: 290.5517544 | CZ49: 227.3653897 | DB49: 17.85123967 | DC49: 138.6003986 | DD49: 45.43744657 | DE49: 0 | DF49: 98.54212844 | DG49: 91.26438608 | DH49: 124.5156125 | DJ49: 1959 | DK49: ='Compile Data'!F457 -> 27.5862069 | DL49: ='Compile Data'!F458 -> 17.85123967 | DM49: ='Compile Data'!F459 -> 0 | DN49: ='Compile Data'!F460 -> 0 | DO49: ='Compile Data'!F461 -> 0 | DP49: ='Compile Data'!F462 -> 0 | DQ49: ='Compile Data'!F463 -> 17.85123967 | DR49: ='Compile Data'!F464 -> 72.82418298 | DS49: ='Compile Data'!F465 -> 7.878571429 | DT49: ='Compile Data'!F466 -> 13.63857304 | DU49: ='Compile Data'!F467 -> 36.00693861 | DV49: ='Compile Data'!F468 -> 33.69043053 | DX49: 290.5649889 | DY49: 290.5649889 | DZ49: 227.3273828 | EB49: 17.85123967 | EC49: 138.5990297 | ED49: 45.43744657 | EE49: 0 | EF49: 98.55399408 | EG49: 91.2145136 | EH49: 124.5142435
A50: 1924-11-30 | B50: =INDIRECT(CONCATENATE("'",B$1,"'!",B$4,(YEAR($A50)-1921)*12+MONTH($A50)+3+IF(ISNUMBER(FIND("PRV",B$6)),1,0)))*IF(AND(B$3>0,TRIM(B$9)="CFS"),Conv_Flags!$C50,1) -> 0 | C50: =INDIRECT(CONCATENATE("'",C$1,"'!",C$4,(YEAR($A50)-1921)*12+MONTH($A50)+3+IF(ISNUMBER(FIND("PRV",C$6)),1,0)))*IF(AND(C$3>0,TRIM(C$9)="CFS"),Conv_Flags!$C50,1) -> 67.29466796 | D50: =INDIRECT(CONCATENATE("'",D$1,"'!",D$4,(YEAR($A50)-1921)*12+MONTH($A50)+3+IF(ISNUMBER(FIND("PRV",D$6)),1,0)))*IF(AND(D$3>0,TRIM(D$9)="CFS"),Conv_Flags!$C50,1) -> 67.17374415 | E50: =INDIRECT(CONCATENATE("'",E$1,"'!",E$4,(YEAR($A50)-1921)*12+MONTH($A50)+3+IF(ISNUMBER(FIND("PRV",E$6)),1,0)))*IF(AND(E$3>0,TRIM(E$9)="CFS"),Conv_Flags!$C50,1) -> 67.29003288 | F50: =INDIRECT(CONCATENATE("'",F$1,"'!",F$4,(YEAR($A50)-1921)*12+MONTH($A50)+3+IF(ISNUMBER(FIND("PRV",F$6)),1,0)))*IF(AND(F$3>0,TRIM(F$9)="CFS"),Conv_Flags!$C50,1) -> 67.30982012 | J50: 1960 | K50: =B469 -> 0 | L50: =B470 -> 0 | M50: =B471 -> 0 | N50: =B472 -> 0 | O50: =B473 -> 0 | P50: =B474 -> 0 | Q50: =B475 -> 0 | R50: =B476 -> 0 | S50: =B477 -> 0 | T50: =B478 -> 0 | U50: =B479 -> 0 | V50: =B480 -> 0 | X50: 0 | Y50: 0 | Z50: 0 | AB50: 0 | AC50: 0 | AD50: 0 | AE50: 0 | AF50: 0 | AG50: 0 | AH50: 0 | AJ50: 1960 | AK50: ='Compile Data'!C469 -> 68.84932994 | AL50: ='Compile Data'!C470 -> 21.9221525 | AM50: ='Compile Data'!C471 -> 17.85123967 | AN50: ='Compile Data'!C472 -> 0 | AO50: ='Compile Data'!C473 -> 0 | AP50: ='Compile Data'!C474 -> 0 | AQ50: ='Compile Data'!C475 -> 8.623159991 | AR50: ='Compile Data'!C476 -> 13.96909098 | AS50: ='Compile Data'!C477 -> 150.1142391 | AT50: ='Compile Data'!C478 -> 103.3580608 | AU50: ='Compile Data'!C479 -> 86.66338027 | AV50: ='Compile Data'!C480 -> 39.07326023 | AX50: 496.4147278 | AY50: 496.4147278 | AZ50: 510.4239135 | BB50: 39.77339217 | BC50: 145.4526304 | BD50: 108.6227221 | BE50: 17.85123967 | BF50: 172.70649 | BG50: 379.2089404 | BH50: 133.6867967 | BJ50: 1960 | BK50: ='Compile Data'!D469 -> 68.86815907 | BL50: ='Compile Data'!D470 -> 21.9221525 | BM50: ='Compile Data'!D471 -> 17.85123967 | BN50: ='Compile Data'!D472 -> 0 | BO50: ='Compile Data'!D473 -> 0 | BP50: ='Compile Data'!D474 -> 0 | BQ50: ='Compile Data'!D475 -> 8.622643947 | BR50: ='Compile Data'!D476 -> 13.96825501 | BS50: ='Compile Data'!D477 -> 150.1142391 | BT50: ='Compile Data'!D478 -> 103.6822134 | BU50: ='Compile Data'!D479 -> 86.43686365 | BV50: ='Compile Data'!D480 -> 47.81830058 | BX50: 507.8791621 | BY50: 507.8791621 | BZ50: 519.2840669 | CB50: 39.77339217 | CC50: 156.5005414 | CD50: 108.6415512 | CE50: 17.85123967 | CF50: 172.705138 | CG50: 388.0516167 | CH50: 145.0549471 | CJ50: 1960 | CK50: ='Compile Data'!E469 -> 68.85041914 | CL50: ='Compile Data'!E470 -> 21.9221525 | CM50: ='Compile Data'!E471 -> 17.85123967 | CN50: ='Compile Data'!E472 -> 0 | CO50: ='Compile Data'!E473 -> 0 | CP50: ='Compile Data'!E474 -> 0 | CQ50: ='Compile Data'!E475 -> 8.623468404 | CR50: ='Compile Data'!E476 -> 13.96959059 | CS50: ='Compile Data'!E477 -> 150.1142391 | CT50: ='Compile Data'!E478 -> 103.6534554 | CU50: ='Compile Data'!E479 -> 86.82879157 | CV50: ='Compile Data'!E480 -> 47.24758562 | CX50: 507.6649037 | CY50: 507.6649037 | CZ50: 519.0609419 | DB50: 39.77339217 | DC50: 156.3217544 | DD50: 108.6238113 | DE50: 17.85123967 | DF50: 172.7072981 | DG50: 387.8440716 | DH50: 144.4753587 | DJ50: 1960 | DK50: ='Compile Data'!F469 -> 68.90166052 | DL50: ='Compile Data'!F470 -> 21.9221525 | DM50: ='Compile Data'!F471 -> 17.85123967 | DN50: ='Compile Data'!F472 -> 0 | DO50: ='Compile Data'!F473 -> 0 | DP50: ='Compile Data'!F474 -> 0 | DQ50: ='Compile Data'!F475 -> 8.633007071 | DR50: ='Compile Data'!F476 -> 13.98504276 | DS50: ='Compile Data'!F477 -> 150.1142391 | DT50: ='Compile Data'!F478 -> 103.3891014 | DU50: ='Compile Data'!F479 -> 84.88279074 | DV50: ='Compile Data'!F480 -> 38.12674756 | DX50: 493.7435084 | DY50: 493.7435084 | DZ50: 507.8059813 | EB50: 39.77339217 | EC50: 142.7226399 | ED50: 108.6750527 | EE50: 17.85123967 | EF50: 172.7322889 | EG50: 376.5128787 | EH50: 132.7393274
A51: 1924-12-31 | B51: =INDIRECT(CONCATENATE("'",B$1,"'!",B$4,(YEAR($A51)-1921)*12+MONTH($A51)+3+IF(ISNUMBER(FIND("PRV",B$6)),1,0)))*IF(AND(B$3>0,TRIM(B$9)="CFS"),Conv_Flags!$C51,1) -> 0 | C51: =INDIRECT(CONCATENATE("'",C$1,"'!",C$4,(YEAR($A51)-1921)*12+MONTH($A51)+3+IF(ISNUMBER(FIND("PRV",C$6)),1,0)))*IF(AND(C$3>0,TRIM(C$9)="CFS"),Conv_Flags!$C51,1) -> 0 | D51: =INDIRECT(CONCATENATE("'",D$1,"'!",D$4,(YEAR($A51)-1921)*12+MONTH($A51)+3+IF(ISNUMBER(FIND("PRV",D$6)),1,0)))*IF(AND(D$3>0,TRIM(D$9)="CFS"),Conv_Flags!$C51,1) -> 0 | E51: =INDIRECT(CONCATENATE("'",E$1,"'!",E$4,(YEAR($A51)-1921)*12+MONTH($A51)+3+IF(ISNUMBER(FIND("PRV",E$6)),1,0)))*IF(AND(E$3>0,TRIM(E$9)="CFS"),Conv_Flags!$C51,1) -> 0 | F51: =INDIRECT(CONCATENATE("'",F$1,"'!",F$4,(YEAR($A51)-1921)*12+MONTH($A51)+3+IF(ISNUMBER(FIND("PRV",F$6)),1,0)))*IF(AND(F$3>0,TRIM(F$9)="CFS"),Conv_Flags!$C51,1) -> 0 | J51: 1961 | K51: =B481 -> 0 | L51: =B482 -> 0 | M51: =B483 -> 0 | N51: =B484 -> 0 | O51: =B485 -> 0 | P51: =B486 -> 0 | Q51: =B487 -> 0 | R51: =B488 -> 0 | S51: =B489 -> 0 | T51: =B490 -> 0 | U51: =B491 -> 0 | V51: =B492 -> 0 | X51: 0 | Y51: 0 | Z51: 0 | AB51: 0 | AC51: 0 | AD51: 0 | AE51: 0 | AF51: 0 | AG51: 0 | AH51: 0 | AJ51: 1961 | AK51: ='Compile Data'!C481 -> 19.71598994 | AL51: ='Compile Data'!C482 -> 74.89754652 | AM51: ='Compile Data'!C483 -> 0 | AN51: ='Compile Data'!C484 -> 0 | AO51: ='Compile Data'!C485 -> 0 | AP51: ='Compile Data'!C486 -> 0 | AQ51: ='Compile Data'!C487 -> 3.845107341 | AR51: ='Compile Data'!C488 -> 0.299410214 | AS51: ='Compile Data'!C489 -> 64.82130954 | AT51: ='Compile Data'!C490 -> 81.13324784 | AU51: ='Compile Data'!C491 -> 63.62870536 | AV51: ='Compile Data'!C492 -> 40.86576291 | AX51: 272.4447829 | AY51: 280.0360611 | AZ51: 349.2070797 | BB51: 74.89754652 | BC51: 122.3457079 | BD51: 94.61353646 | BE51: 0 | BF51: 68.9658271 | BG51: 250.4490256 | BH51: 58.71700257 | BJ51: 1961 | BK51: ='Compile Data'!D481 -> 22.24537722 | BL51: ='Compile Data'!D482 -> 74.99126926 | BM51: ='Compile Data'!D483 -> 0 | BN51: ='Compile Data'!D484 -> 0 | BO51: ='Compile Data'!D485 -> 0 | BP51: ='Compile Data'!D486 -> 0 | BQ51: ='Compile Data'!D487 -> 3.85130426 | BR51: ='Compile Data'!D488 -> 5.095298819 | BS51: ='Compile Data'!D489 -> 65.03228505 | BT51: ='Compile Data'!D490 -> 81.11918418 | BU51: ='Compile Data'!D491 -> 63.45146717 | BV51: ='Compile Data'!D492 -> 41.24152442 | BX51: 277.6423036 | BY51: 295.4935432 | BZ51: 357.0277104 | CB51: 74.99126926 | CC51: 122.5442313 | CD51: 97.23664647 | CE51: 0 | CF51: 73.97888813 | CG51: 250.8444608 | CH51: 59.09276409 | CJ51: 1961 | CK51: ='Compile Data'!E481 -> 22.24537722 | CL51: ='Compile Data'!E482 -> 74.98239585 | CM51: ='Compile Data'!E483 -> 0 | CN51: ='Compile Data'!E484 -> 0 | CO51: ='Compile Data'!E485 -> 0 | CP51: ='Compile Data'!E486 -> 0 | CQ51: ='Compile Data'!E487 -> 3.849501185 | CR51: ='Compile Data'!E488 -> 5.090165137 | CS51: ='Compile Data'!E489 -> 65.04308302 | CT51: ='Compile Data'!E490 -> 81.11258023 | CU51: ='Compile Data'!E491 -> 63.76508975 | CV51: ='Compile Data'!E492 -> 40.94053134 | CX51: 277.6521903 | CY51: 277.6521903 | CZ51: 357.0287237 | DB51: 74.98239585 | DC51: 122.5568608 | DD51: 97.22777307 | DE51: 0 | DF51: 73.98274934 | DG51: 250.8612843 | DH51: 58.79177101 | DJ51: 1961 | DK51: ='Compile Data'!F481 -> 19.71310155 | DL51: ='Compile Data'!F482 -> 74.89947828 | DM51: ='Compile Data'!F483 -> 0 | DN51: ='Compile Data'!F484 -> 0 | DO51: ='Compile Data'!F485 -> 0 | DP51: ='Compile Data'!F486 -> 0 | DQ51: ='Compile Data'!F487 -> 3.850703248 | DR51: ='Compile Data'!F488 -> 0.3063843161 | DS51: ='Compile Data'!F489 -> 65.05164849 | DT51: ='Compile Data'!F490 -> 81.51550744 | DU51: ='Compile Data'!F491 -> 61.86721018 | DV51: ='Compile Data'!F492 -> 42.01180384 | DX51: 272.4544972 | DY51: 272.4544972 | DZ51: 349.2158373 | EB51: 74.89947828 | EC51: 121.7302537 | ED51: 94.61257983 | EE51: 0 | EF51: 69.20873606 | EG51: 250.4461699 | EH51: 59.86304351
A52: 1925-01-31 | B52: =INDIRECT(CONCATENATE("'",B$1,"'!",B$4,(YEAR($A52)-1921)*12+MONTH($A52)+3+IF(ISNUMBER(FIND("PRV",B$6)),1,0)))*IF(AND(B$3>0,TRIM(B$9)="CFS"),Conv_Flags!$C52,1) -> 0 | C52: =INDIRECT(CONCATENATE("'",C$1,"'!",C$4,(YEAR($A52)-1921)*12+MONTH($A52)+3+IF(ISNUMBER(FIND("PRV",C$6)),1,0)))*IF(AND(C$3>0,TRIM(C$9)="CFS"),Conv_Flags!$C52,1) -> 0 | D52: =INDIRECT(CONCATENATE("'",D$1,"'!",D$4,(YEAR($A52)-1921)*12+MONTH($A52)+3+IF(ISNUMBER(FIND("PRV",D$6)),1,0)))*IF(AND(D$3>0,TRIM(D$9)="CFS"),Conv_Flags!$C52,1) -> 0 | E52: =INDIRECT(CONCATENATE("'",E$1,"'!",E$4,(YEAR($A52)-1921)*12+MONTH($A52)+3+IF(ISNUMBER(FIND("PRV",E$6)),1,0)))*IF(AND(E$3>0,TRIM(E$9)="CFS"),Conv_Flags!$C52,1) -> 0 | F52: =INDIRECT(CONCATENATE("'",F$1,"'!",F$4,(YEAR($A52)-1921)*12+MONTH($A52)+3+IF(ISNUMBER(FIND("PRV",F$6)),1,0)))*IF(AND(F$3>0,TRIM(F$9)="CFS"),Conv_Flags!$C52,1) -> 0 | J52: 1962 | K52: =B493 -> 0 | L52: =B494 -> 0 | M52: =B495 -> 0 | N52: =B496 -> 0 | O52: =B497 -> 0 | P52: =B498 -> 0 | Q52: =B499 -> 0 | R52: =B500 -> 0 | S52: =B501 -> 0 | T52: =B502 -> 0 | U52: =B503 -> 0 | V52: =B504 -> 0 | X52: 0 | Y52: 0 | Z52: 0 | AB52: 0 | AC52: 0 | AD52: 0 | AE52: 0 | AF52: 0 | AG52: 0 | AH52: 0 | AJ52: 1962 | AK52: ='Compile Data'!C493 -> 17.85123967 | AL52: ='Compile Data'!C494 -> 0 | AM52: ='Compile Data'!C495 -> 0 | AN52: ='Compile Data'!C496 -> 7.591278222 | AO52: ='Compile Data'!C497 -> 0 | AP52: ='Compile Data'!C498 -> 0 | AQ52: ='Compile Data'!C499 -> 2.618179323 | AR52: ='Compile Data'!C500 -> 12.82669566 | AS52: ='Compile Data'!C501 -> 23.71 | AT52: ='Compile Data'!C502 -> 43.44681134 | AU52: ='Compile Data'!C503 -> 33.55223786 | AV52: ='Compile Data'!C504 -> 41.33591662 | AX52: 167.571119 | AY52: 159.9798408 | AZ52: 182.9323587 | BB52: 7.591278222 | BC52: 77.37815448 | BD52: 25.44251789 | BE52: 7.591278222 | BF52: 39.15487499 | BG52: 142.0449658 | BH52: 43.82591662 | BJ52: 1962 | BK52: ='Compile Data'!D493 -> 17.85123967 | BL52: ='Compile Data'!D494 -> 0 | BM52: ='Compile Data'!D495 -> 0 | BN52: ='Compile Data'!D496 -> 17.85123967 | BO52: ='Compile Data'!D497 -> 0 | BP52: ='Compile Data'!D498 -> 0 | BQ52: ='Compile Data'!D499 -> 2.463458612 | BR52: ='Compile Data'!D500 -> 30.62368523 | BS52: ='Compile Data'!D501 -> 23.71 | BT52: ='Compile Data'!D502 -> 41.05923191 | BU52: ='Compile Data'!D503 -> 12.48693307 | BV52: ='Compile Data'!D504 -> 22.82520103 | BX52: 153.5097495 | BY52: 135.6585098 | BZ52: 168.8709892 | CB52: 17.85123967 | CC52: 37.8021341 | CD52: 35.70247934 | CE52: 17.85123967 | CF52: 56.79714384 | CG52: 100.081366 | CH52: 25.31520103 | CJ52: 1962 | CK52: ='Compile Data'!E493 -> 17.85123967 | CL52: ='Compile Data'!E494 -> 0 | CM52: ='Compile Data'!E495 -> 0 | CN52: ='Compile Data'!E496 -> 0 | CO52: ='Compile Data'!E497 -> 0 | CP52: ='Compile Data'!E498 -> 0 | CQ52: ='Compile Data'!E499 -> 2.674235254 | CR52: ='Compile Data'!E500 -> 14.76921577 | CS52: ='Compile Data'!E501 -> 23.71 | CT52: ='Compile Data'!E502 -> 40.10312921 | CU52: ='Compile Data'!E503 -> 37.43321431 | CV52: ='Compile Data'!E504 -> 39.02484569 | CX52: 160.2046402 | CY52: 160.2046402 | CZ52: 175.5658799 | DB52: 0 | DC52: 78.94806 | DD52: 17.85123967 | DE52: 0 | DF52: 41.15345102 | DG52: 140.2711892 | DH52: 41.51484569 | DJ52: 1962 | DK52: ='Compile Data'!F493 -> 17.85123967 | DL52: ='Compile Data'!F494 -> 0 | DM52: ='Compile Data'!F495 -> 0 | DN52: ='Compile Data'!F496 -> 0 | DO52: ='Compile Data'!F497 -> 0 | DP52: ='Compile Data'!F498 -> 0 | DQ52: ='Compile Data'!F499 -> 2.553257068 | DR52: ='Compile Data'!F500 -> 14.76060721 | DS52: ='Compile Data'!F501 -> 24.24 | DT52: ='Compile Data'!F502 -> 41.00188021 | DU52: ='Compile Data'!F503 -> 35.872376 | DV52: ='Compile Data'!F504 -> 27.54355298 | DX52: 148.4616735 | DY52: 148.4616735 | DZ52: 163.8229131 | EB52: 0 | EC52: 65.90592898 | ED52: 17.85123967 | EE52: 0 | EF52: 41.55386428 | EG52: 128.6578092 | EH52: 30.03355298
A53: 1925-02-28 | B53: =INDIRECT(CONCATENATE("'",B$1,"'!",B$4,(YEAR($A53)-1921)*12+MONTH($A53)+3+IF(ISNUMBER(FIND("PRV",B$6)),1,0)))*IF(AND(B$3>0,TRIM(B$9)="CFS"),Conv_Flags!$C53,1) -> 0 | C53: =INDIRECT(CONCATENATE("'",C$1,"'!",C$4,(YEAR($A53)-1921)*12+MONTH($A53)+3+IF(ISNUMBER(FIND("PRV",C$6)),1,0)))*IF(AND(C$3>0,TRIM(C$9)="CFS"),Conv_Flags!$C53,1) -> 0 | D53: =INDIRECT(CONCATENATE("'",D$1,"'!",D$4,(YEAR($A53)-1921)*12+MONTH($A53)+3+IF(ISNUMBER(FIND("PRV",D$6)),1,0)))*IF(AND(D$3>0,TRIM(D$9)="CFS"),Conv_Flags!$C53,1) -> 0 | E53: =INDIRECT(CONCATENATE("'",E$1,"'!",E$4,(YEAR($A53)-1921)*12+MONTH($A53)+3+IF(ISNUMBER(FIND("PRV",E$6)),1,0)))*IF(AND(E$3>0,TRIM(E$9)="CFS"),Conv_Flags!$C53,1) -> 0 | F53: =INDIRECT(CONCATENATE("'",F$1,"'!",F$4,(YEAR($A53)-1921)*12+MONTH($A53)+3+IF(ISNUMBER(FIND("PRV",F$6)),1,0)))*IF(AND(F$3>0,TRIM(F$9)="CFS"),Conv_Flags!$C53,1) -> 0 | J53: 1963 | K53: =B505 -> 0 | L53: =B506 -> 0 | M53: =B507 -> 0 | N53: =B508 -> 0 | O53: =B509 -> 0 | P53: =B510 -> 0 | Q53: =B511 -> 0 | R53: =B512 -> 0 | S53: =B513 -> 0 | T53: =B514 -> 0 | U53: =B515 -> 0 | V53: =B516 -> 0 | X53: 0 | Y53: 0 | Z53: 0 | AB53: 0 | AC53: 0 | AD53: 0 | AE53: 0 | AF53: 0 | AG53: 0 | AH53: 0 | AJ53: 1963 | AK53: ='Compile Data'!C505 -> 2.49 | AL53: ='Compile Data'!C506 -> 0 | AM53: ='Compile Data'!C507 -> 0 | AN53: ='Compile Data'!C508 -> 0 | AO53: ='Compile Data'!C509 -> 0 | AP53: ='Compile Data'!C510 -> 0 | AQ53: ='Compile Data'!C511 -> 0 | AR53: ='Compile Data'!C512 -> 0 | AS53: ='Compile Data'!C513 -> 0 | AT53: ='Compile Data'!C514 -> 0 | AU53: ='Compile Data'!C515 -> 30.0862069 | AV53: ='Compile Data'!C516 -> 17.2862374 | AX53: 65.22368397 | AY53: 65.22368397 | AZ53: 49.8624443 | BB53: 0 | BC53: 47.3724443 | BD53: 2.49 | BE53: 0 | BF53: 0 | BG53: 47.3724443 | BH53: 17.2862374 | BJ53: 1963 | BK53: ='Compile Data'!D505 -> 2.49 | BL53: ='Compile Data'!D506 -> 0 | BM53: ='Compile Data'!D507 -> 0 | BN53: ='Compile Data'!D508 -> 0 | BO53: ='Compile Data'!D509 -> 0 | BP53: ='Compile Data'!D510 -> 0 | BQ53: ='Compile Data'!D511 -> 0 | BR53: ='Compile Data'!D512 -> 0 | BS53: ='Compile Data'!D513 -> 0 | BT53: ='Compile Data'!D514 -> 0 | BU53: ='Compile Data'!D515 -> 30.0862069 | BV53: ='Compile Data'!D516 -> 30.0862069 | BX53: 85.10295679 | BY53: 85.10295679 | BZ53: 62.6624138 | CB53: 0 | CC53: 67.25171712 | CD53: 2.49 | CE53: 0 | CF53: 0 | CG53: 60.1724138 | CH53: 37.16551022 | CJ53: 1963 | CK53: ='Compile Data'!E505 -> 2.49 | CL53: ='Compile Data'!E506 -> 0 | CM53: ='Compile Data'!E507 -> 0 | CN53: ='Compile Data'!E508 -> 0 | CO53: ='Compile Data'!E509 -> 0 | CP53: ='Compile Data'!E510 -> 0 | CQ53: ='Compile Data'!E511 -> 0 | CR53: ='Compile Data'!E512 -> 0 | CS53: ='Compile Data'!E513 -> 0 | CT53: ='Compile Data'!E514 -> 0 | CU53: ='Compile Data'!E515 -> 30.0862069 | CV53: ='Compile Data'!E516 -> 14.30930979 | CX53: 62.24675636 | CY53: 62.24675636 | CZ53: 46.88551669 | DB53: 0 | DC53: 44.39551669 | DD53: 2.49 | DE53: 0 | DF53: 0 | DG53: 44.39551669 | DH53: 14.30930979 | DJ53: 1963 | DK53: ='Compile Data'!F505 -> 2.49 | DL53: ='Compile Data'!F506 -> 0 | DM53: ='Compile Data'!F507 -> 0 | DN53: ='Compile Data'!F508 -> 0 | DO53: ='Compile Data'!F509 -> 0 | DP53: ='Compile Data'!F510 -> 0 | DQ53: ='Compile Data'!F511 -> 0 | DR53: ='Compile Data'!F512 -> 0 | DS53: ='Compile Data'!F513 -> 0 | DT53: ='Compile Data'!F514 -> 0 | DU53: ='Compile Data'!F515 -> 30.0862069 | DV53: ='Compile Data'!F516 -> 13.59409609 | DX53: 61.53154265 | DY53: 61.53154265 | DZ53: 46.17030298 | EB53: 0 | EC53: 43.68030298 | ED53: 2.49 | EE53: 0 | EF53: 0 | EG53: 43.68030298 | EH53: 13.59409609
A54: 1925-03-31 | B54: =INDIRECT(CONCATENATE("'",B$1,"'!",B$4,(YEAR($A54)-1921)*12+MONTH($A54)+3+IF(ISNUMBER(FIND("PRV",B$6)),1,0)))*IF(AND(B$3>0,TRIM(B$9)="CFS"),Conv_Flags!$C54,1) -> 0 | C54: =INDIRECT(CONCATENATE("'",C$1,"'!",C$4,(YEAR($A54)-1921)*12+MONTH($A54)+3+IF(ISNUMBER(FIND("PRV",C$6)),1,0)))*IF(AND(C$3>0,TRIM(C$9)="CFS"),Conv_Flags!$C54,1) -> 0 | D54: =INDIRECT(CONCATENATE("'",D$1,"'!",D$4,(YEAR($A54)-1921)*12+MONTH($A54)+3+IF(ISNUMBER(FIND("PRV",D$6)),1,0)))*IF(AND(D$3>0,TRIM(D$9)="CFS"),Conv_Flags!$C54,1) -> 0 | E54: =INDIRECT(CONCATENATE("'",E$1,"'!",E$4,(YEAR($A54)-1921)*12+MONTH($A54)+3+IF(ISNUMBER(FIND("PRV",E$6)),1,0)))*IF(AND(E$3>0,TRIM(E$9)="CFS"),Conv_Flags!$C54,1) -> 0.003732490921 | F54: =INDIRECT(CONCATENATE("'",F$1,"'!",F$4,(YEAR($A54)-1921)*12+MONTH($A54)+3+IF(ISNUMBER(FIND("PRV",F$6)),1,0)))*IF(AND(F$3>0,TRIM(F$9)="CFS"),Conv_Flags!$C54,1) -> 0.003740535217 | J54: 1964 | K54: =B517 -> 0 | L54: =B518 -> 0 | M54: =B519 -> 0 | N54: =B520 -> 0 | O54: =B521 -> 0 | P54: =B522 -> 0 | Q54: =B523 -> 0 | R54: =B524 -> 0 | S54: =B525 -> 0 | T54: =B526 -> 0 | U54: =B527 -> 0 | V54: =B528 -> 0 | X54: 0 | Y54: 0 | Z54: 0 | AB54: 0 | AC54: 0 | AD54: 0 | AE54: 0 | AF54: 0 | AG54: 0 | AH54: 0 | AJ54: 1964 | AK54: ='Compile Data'!C517 -> 0 | AL54: ='Compile Data'!C518 -> 0 | AM54: ='Compile Data'!C519 -> 17.85123967 | AN54: ='Compile Data'!C520 -> 0 | AO54: ='Compile Data'!C521 -> 0 | AP54: ='Compile Data'!C522 -> 1.484778551 | AQ54: ='Compile Data'!C523 -> 53.46572341 | AR54: ='Compile Data'!C524 -> 14.94515864 | AS54: ='Compile Data'!C525 -> 28.00503828 | AT54: ='Compile Data'!C526 -> 33.57036873 | AU54: ='Compile Data'!C527 -> 20.35123967 | AV54: ='Compile Data'!C528 -> 19.34765584 | AX54: 232.2148103 | AY54: 232.2148103 | AZ54: 189.0212028 | BB54: 19.33601822 | BC54: 93.8849584 | BD54: 17.85123967 | BE54: 17.85123967 | BF54: 97.90069888 | BG54: 101.2743025 | BH54: 80.39250305 | BJ54: 1964 | BK54: ='Compile Data'!D517 -> 7.079303324 | BL54: ='Compile Data'!D518 -> 0 | BM54: ='Compile Data'!D519 -> 17.85123967 | BN54: ='Compile Data'!D520 -> 0 | BO54: ='Compile Data'!D521 -> 0 | BP54: ='Compile Data'!D522 -> 1.484692709 | BQ54: ='Compile Data'!D523 -> 57.4182122 | BR54: ='Compile Data'!D524 -> 14.94429459 | BS54: ='Compile Data'!D525 -> 28.85146781 | BT54: ='Compile Data'!D526 -> 33.92509273 | BU54: ='Compile Data'!D527 -> 20.02538557 | BV54: ='Compile Data'!D528 -> 40.87850141 | BX54: 227.3971732 | BY54: 227.3971732 | BZ54: 222.45819 | CB54: 19.33593238 | CC54: 87.67737017 | CD54: 24.93054299 | CE54: 17.85123967 | CF54: 102.6986673 | CG54: 123.6804475 | CH54: 70.74802764 | CJ54: 1964 | CK54: ='Compile Data'!E517 -> 0 | CL54: ='Compile Data'!E518 -> 0 | CM54: ='Compile Data'!E519 -> 17.85123967 | CN54: ='Compile Data'!E520 -> 0 | CO54: ='Compile Data'!E521 -> 0 | CP54: ='Compile Data'!E522 -> 1.488210035 | CQ54: ='Compile Data'!E523 -> 53.42977819 | CR54: ='Compile Data'!E524 -> 14.97969852 | CS54: ='Compile Data'!E525 -> 25.52539017 | CT54: ='Compile Data'!E526 -> 31.34933726 | CU54: ='Compile Data'!E527 -> 20.35123967 | CV54: ='Compile Data'!E528 -> 19.13284449 | CX54: 227.12359 | CY54: 227.12359 | CZ54: 184.107738 | DB54: 19.3394497 | DC54: 93.69768185 | DD54: 17.85123967 | DE54: 17.85123967 | DF54: 95.42307692 | DG54: 96.3588116 | DH54: 79.99993613 | DJ54: 1964 | DK54: ='Compile Data'!F517 -> 0 | DL54: ='Compile Data'!F518 -> 0 | DM54: ='Compile Data'!F519 -> 17.85123967 | DN54: ='Compile Data'!F520 -> 0 | DO54: ='Compile Data'!F521 -> 0 | DP54: ='Compile Data'!F522 -> 1.489027814 | DQ54: ='Compile Data'!F523 -> 53.42818267 | DR54: ='Compile Data'!F524 -> 14.98792993 | DS54: ='Compile Data'!F525 -> 25.77416306 | DT54: ='Compile Data'!F526 -> 30.72817209 | DU54: ='Compile Data'!F527 -> 20.35123967 | DV54: ='Compile Data'!F528 -> 18.80881216 | DX54: 225.512276 | DY54: 225.512276 | DZ54: 183.4187671 | EB54: 19.34026748 | EC54: 93.28732899 | ED54: 17.85123967 | EE54: 17.85123967 | EF54: 95.67930348 | EG54: 95.66238697 | EH54: 78.75356081
A55: 1925-04-30 | B55: =INDIRECT(CONCATENATE("'",B$1,"'!",B$4,(YEAR($A55)-1921)*12+MONTH($A55)+3+IF(ISNUMBER(FIND("PRV",B$6)),1,0)))*IF(AND(B$3>0,TRIM(B$9)="CFS"),Conv_Flags!$C55,1) -> 0 | C55: =INDIRECT(CONCATENATE("'",C$1,"'!",C$4,(YEAR($A55)-1921)*12+MONTH($A55)+3+IF(ISNUMBER(FIND("PRV",C$6)),1,0)))*IF(AND(C$3>0,TRIM(C$9)="CFS"),Conv_Flags!$C55,1) -> 0 | D55: =INDIRECT(CONCATENATE("'",D$1,"'!",D$4,(YEAR($A55)-1921)*12+MONTH($A55)+3+IF(ISNUMBER(FIND("PRV",D$6)),1,0)))*IF(AND(D$3>0,TRIM(D$9)="CFS"),Conv_Flags!$C55,1) -> 2.303720599 | E55: =INDIRECT(CONCATENATE("'",E$1,"'!",E$4,(YEAR($A55)-1921)*12+MONTH($A55)+3+IF(ISNUMBER(FIND("PRV",E$6)),1,0)))*IF(AND(E$3>0,TRIM(E$9)="CFS"),Conv_Flags!$C55,1) -> 0 | F55: =INDIRECT(CONCATENATE("'",F$1,"'!",F$4,(YEAR($A55)-1921)*12+MONTH($A55)+3+IF(ISNUMBER(FIND("PRV",F$6)),1,0)))*IF(AND(F$3>0,TRIM(F$9)="CFS"),Conv_Flags!$C55,1) -> 0 | J55: 1965 | K55: =B529 -> 0 | L55: =B530 -> 0 | M55: =B531 -> 0 | N55: =B532 -> 0 | O55: =B533 -> 0 | P55: =B534 -> 0 | Q55: =B535 -> 0 | R55: =B536 -> 0 | S55: =B537 -> 0 | T55: =B538 -> 0 | U55: =B539 -> 0 | V55: =B540 -> 0 | X55: 0 | Y55: 0 | Z55: 0 | AB55: 0 | AC55: 0 | AD55: 0 | AE55: 0 | AF55: 0 | AG55: 0 | AH55: 0 | AJ55: 1965 | AK55: ='Compile Data'!C529 -> 54.18606289 | AL55: ='Compile Data'!C530 -> 6.858784319 | AM55: ='Compile Data'!C531 -> 0 | AN55: ='Compile Data'!C532 -> 0 | AO55: ='Compile Data'!C533 -> 0 | AP55: ='Compile Data'!C534 -> 0.7166325831 | AQ55: ='Compile Data'!C535 -> 4.300598325 | AR55: ='Compile Data'!C536 -> 0 | AS55: ='Compile Data'!C537 -> 2.5 | AT55: ='Compile Data'!C538 -> 2.5 | AU55: ='Compile Data'!C539 -> 29.69555663 | AV55: ='Compile Data'!C540 -> 30.0862069 | AX55: 89.51698927 | AY55: 89.51698927 | AZ55: 130.8438416 | BB55: 7.575416902 | BC55: 79.49975836 | BD55: 61.04484721 | BE55: 0 | BF55: 7.517230909 | BG55: 64.78176352 | BH55: 49.80420173 | BJ55: 1965 | BK55: ='Compile Data'!D529 -> 26.77348319 | BL55: ='Compile Data'!D530 -> 3.09604304 | BM55: ='Compile Data'!D531 -> 0 | BN55: ='Compile Data'!D532 -> 0 | BO55: ='Compile Data'!D533 -> 0 | BP55: ='Compile Data'!D534 -> 0.7341090364 | BQ55: ='Compile Data'!D535 -> 4.405476624 | BR55: ='Compile Data'!D536 -> 0 | BS55: ='Compile Data'!D537 -> 2.5 | BT55: ='Compile Data'!D538 -> 2.5 | BU55: ='Compile Data'!D539 -> 29.69555663 | BV55: ='Compile Data'!D540 -> 30.0862069 | BX55: 97.50755608 | BY55: 97.50755608 | BZ55: 99.79087541 | CB55: 3.830152076 | CC55: 87.36797042 | CD55: 29.86952623 | CE55: 0 | CF55: 7.63958566 | CG55: 64.78176352 | CH55: 57.6724138 | CJ55: 1965 | CK55: ='Compile Data'!E529 -> 54.21359769 | CL55: ='Compile Data'!E530 -> 6.653493945 | CM55: ='Compile Data'!E531 -> 0 | CN55: ='Compile Data'!E532 -> 0 | CO55: ='Compile Data'!E533 -> 0 | CP55: ='Compile Data'!E534 -> 0.7182731326 | CQ55: ='Compile Data'!E535 -> 4.31044346 | CR55: ='Compile Data'!E536 -> 0 | CS55: ='Compile Data'!E537 -> 2.5 | CT55: ='Compile Data'!E538 -> 2.5 | CU55: ='Compile Data'!E539 -> 29.69555663 | CV55: ='Compile Data'!E540 -> 30.0862069 | CX55: 97.31359353 | CY55: 97.31359353 | CZ55: 130.6775718 | DB55: 7.371767078 | DC55: 87.28487694 | DD55: 60.86709163 | DE55: 0 | DF55: 7.528716593 | DG55: 64.78176352 | DH55: 57.58932032 | DJ55: 1965 | DK55: ='Compile Data'!F529 -> 54.12727717 | DL55: ='Compile Data'!F530 -> 5.81747148 | DM55: ='Compile Data'!F531 -> 0 | DN55: ='Compile Data'!F532 -> 0 | DO55: ='Compile Data'!F533 -> 0 | DP55: ='Compile Data'!F534 -> 0.7183893611 | DQ55: ='Compile Data'!F535 -> 4.311140961 | DR55: ='Compile Data'!F536 -> 0 | DS55: ='Compile Data'!F537 -> 2.5 | DT55: ='Compile Data'!F538 -> 2.5 | DU55: ='Compile Data'!F539 -> 29.69555663 | DV55: ='Compile Data'!F540 -> 30.0862069 | DX55: 80.66428234 | DY55: 80.66428234 | DZ55: 129.7560425 | EB55: 6.535860841 | EC55: 70.63475202 | ED55: 59.94474865 | EE55: 0 | EF55: 7.529530323 | EG55: 64.78176352 | EH55: 40.93919539
A56: 1925-05-31 | B56: =INDIRECT(CONCATENATE("'",B$1,"'!",B$4,(YEAR($A56)-1921)*12+MONTH($A56)+3+IF(ISNUMBER(FIND("PRV",B$6)),1,0)))*IF(AND(B$3>0,TRIM(B$9)="CFS"),Conv_Flags!$C56,1) -> 0 | C56: =INDIRECT(CONCATENATE("'",C$1,"'!",C$4,(YEAR($A56)-1921)*12+MONTH($A56)+3+IF(ISNUMBER(FIND("PRV",C$6)),1,0)))*IF(AND(C$3>0,TRIM(C$9)="CFS"),Conv_Flags!$C56,1) -> 0 | D56: =INDIRECT(CONCATENATE("'",D$1,"'!",D$4,(YEAR($A56)-1921)*12+MONTH($A56)+3+IF(ISNUMBER(FIND("PRV",D$6)),1,0)))*IF(AND(D$3>0,TRIM(D$9)="CFS"),Conv_Flags!$C56,1) -> 0 | E56: =INDIRECT(CONCATENATE("'",E$1,"'!",E$4,(YEAR($A56)-1921)*12+MONTH($A56)+3+IF(ISNUMBER(FIND("PRV",E$6)),1,0)))*IF(AND(E$3>0,TRIM(E$9)="CFS"),Conv_Flags!$C56,1) -> 0 | F56: =INDIRECT(CONCATENATE("'",F$1,"'!",F$4,(YEAR($A56)-1921)*12+MONTH($A56)+3+IF(ISNUMBER(FIND("PRV",F$6)),1,0)))*IF(AND(F$3>0,TRIM(F$9)="CFS"),Conv_Flags!$C56,1) -> 0 | J56: 1966 | K56: =B541 -> 0 | L56: =B542 -> 0 | M56: =B543 -> 0 | N56: =B544 -> 0 | O56: =B545 -> 0 | P56: =B546 -> 0 | Q56: =B547 -> 0 | R56: =B548 -> 0 | S56: =B549 -> 0 | T56: =B550 -> 0 | U56: =B551 -> 0 | V56: =B552 -> 0 | X56: 0 | Y56: 0 | Z56: 0 | AB56: 0 | AC56: 0 | AD56: 0 | AE56: 0 | AF56: 0 | AG56: 0 | AH56: 0 | AJ56: 1966 | AK56: ='Compile Data'!C541 -> 19.71799483 | AL56: ='Compile Data'!C542 -> 0 | AM56: ='Compile Data'!C543 -> 0 | AN56: ='Compile Data'!C544 -> 0 | AO56: ='Compile Data'!C545 -> 0 | AP56: ='Compile Data'!C546 -> 0 | AQ56: ='Compile Data'!C547 -> 0 | AR56: ='Compile Data'!C548 -> 85.79553853 | AS56: ='Compile Data'!C549 -> 28.47142857 | AT56: ='Compile Data'!C550 -> 56.23407994 | AU56: ='Compile Data'!C551 -> 20.35123967 | AV56: ='Compile Data'!C552 -> 54.76757241 | AX56: 300.4226607 | AY56: 300.4226607 | AZ56: 265.337854 | BB56: 0 | BC56: 126.5216136 | BD56: 19.71799483 | BE56: 0 | BF56: 114.2669671 | BG56: 159.8243206 | BH56: 107.910374 | BJ56: 1966 | BK56: ='Compile Data'!D541 -> 27.5862069 | BL56: ='Compile Data'!D542 -> 0 | BM56: ='Compile Data'!D543 -> 0 | BN56: ='Compile Data'!D544 -> 0 | BO56: ='Compile Data'!D545 -> 0 | BP56: ='Compile Data'!D546 -> 0 | BQ56: ='Compile Data'!D547 -> 0 | BR56: ='Compile Data'!D548 -> 90.71103799 | BS56: ='Compile Data'!D549 -> 28.47142857 | BT56: ='Compile Data'!D550 -> 51.88428472 | BU56: ='Compile Data'!D551 -> 20.35123967 | BV56: ='Compile Data'!D552 -> 54.1720765 | BX56: 300.392869 | BY56: 300.392869 | BZ56: 273.1762744 | CB56: 0 | CC56: 125.9261177 | CD56: 27.5862069 | CE56: 0 | CF56: 119.1824666 | CG56: 154.8790295 | CH56: 107.3148781 | CJ56: 1966 | CK56: ='Compile Data'!E541 -> 27.50311342 | CL56: ='Compile Data'!E542 -> 0 | CM56: ='Compile Data'!E543 -> 0 | CN56: ='Compile Data'!E544 -> 0 | CO56: ='Compile Data'!E545 -> 0 | CP56: ='Compile Data'!E546 -> 0 | CQ56: ='Compile Data'!E547 -> 0 | CR56: ='Compile Data'!E548 -> 85.79553853 | CS56: ='Compile Data'!E549 -> 28.47142857 | CT56: ='Compile Data'!E550 -> 62.30455176 | CU56: ='Compile Data'!E551 -> 20.35123967 | CV56: ='Compile Data'!E552 -> 52.68108993 | CX56: 306.9337139 | CY56: 306.9337139 | CZ56: 277.1069619 | DB56: 0 | DC56: 124.4351312 | DD56: 27.50311342 | DE56: 0 | DF56: 114.2669671 | DG56: 163.8083099 | DH56: 108.3509554 | DJ56: 1966 | DK56: ='Compile Data'!F541 -> 10.85298849 | DL56: ='Compile Data'!F542 -> 0 | DM56: ='Compile Data'!F543 -> 0 | DN56: ='Compile Data'!F544 -> 0 | DO56: ='Compile Data'!F545 -> 0 | DP56: ='Compile Data'!F546 -> 0 | DQ56: ='Compile Data'!F547 -> 0 | DR56: ='Compile Data'!F548 -> 85.79553853 | DS56: ='Compile Data'!F549 -> 29.00142857 | DT56: ='Compile Data'!F550 -> 63.55068701 | DU56: ='Compile Data'!F551 -> 20.35123967 | DV56: ='Compile Data'!F552 -> 52.86117342 | DX56: 308.8899327 | DY56: 308.8899327 | DZ56: 262.4130557 | EB56: 0 | EC56: 124.6152147 | ED56: 10.85298849 | EE56: 0 | EF56: 114.7969671 | EG56: 165.7645287 | EH56: 108.5310389
A57: 1925-06-30 | B57: =INDIRECT(CONCATENATE("'",B$1,"'!",B$4,(YEAR($A57)-1921)*12+MONTH($A57)+3+IF(ISNUMBER(FIND("PRV",B$6)),1,0)))*IF(AND(B$3>0,TRIM(B$9)="CFS"),Conv_Flags!$C57,1) -> 0 | C57: =INDIRECT(CONCATENATE("'",C$1,"'!",C$4,(YEAR($A57)-1921)*12+MONTH($A57)+3+IF(ISNUMBER(FIND("PRV",C$6)),1,0)))*IF(AND(C$3>0,TRIM(C$9)="CFS"),Conv_Flags!$C57,1) -> 52.24317087 | D57: =INDIRECT(CONCATENATE("'",D$1,"'!",D$4,(YEAR($A57)-1921)*12+MONTH($A57)+3+IF(ISNUMBER(FIND("PRV",D$6)),1,0)))*IF(AND(D$3>0,TRIM(D$9)="CFS"),Conv_Flags!$C57,1) -> 73.47762962 | E57: =INDIRECT(CONCATENATE("'",E$1,"'!",E$4,(YEAR($A57)-1921)*12+MONTH($A57)+3+IF(ISNUMBER(FIND("PRV",E$6)),1,0)))*IF(AND(E$3>0,TRIM(E$9)="CFS"),Conv_Flags!$C57,1) -> 61.20562439 | F57: =INDIRECT(CONCATENATE("'",F$1,"'!",F$4,(YEAR($A57)-1921)*12+MONTH($A57)+3+IF(ISNUMBER(FIND("PRV",F$6)),1,0)))*IF(AND(F$3>0,TRIM(F$9)="CFS"),Conv_Flags!$C57,1) -> 45.60276337 | J57: 1967 | K57: =B553 -> 0 | L57: =B554 -> 0 | M57: =B555 -> 0 | N57: =B556 -> 0 | O57: =B557 -> 0 | P57: =B558 -> 0 | Q57: =B559 -> 0 | R57: =B560 -> 0 | S57: =B561 -> 0 | T57: =B562 -> 0 | U57: =B563 -> 0 | V57: =B564 -> 0 | X57: 0 | Y57: 0 | Z57: 0 | AB57: 0 | AC57: 0 | AD57: 0 | AE57: 0 | AF57: 0 | AG57: 0 | AH57: 0 | AJ57: 1967 | AK57: ='Compile Data'!C553 -> 51.40280156 | AL57: ='Compile Data'!C554 -> 1.74 | AM57: ='Compile Data'!C555 -> 1.66 | AN57: ='Compile Data'!C556 -> 0 | AO57: ='Compile Data'!C557 -> 0 | AP57: ='Compile Data'!C558 -> 0 | AQ57: ='Compile Data'!C559 -> 0 | AR57: ='Compile Data'!C560 -> 0 | AS57: ='Compile Data'!C561 -> 0 | AT57: ='Compile Data'!C562 -> 0 | AU57: ='Compile Data'!C563 -> 27.5862069 | AV57: ='Compile Data'!C564 -> 27.5862069 | AX57: 100.6098604 | AY57: 100.6098604 | AZ57: 109.9752154 | BB57: 3.4 | BC57: 82.7586207 | BD57: 54.80280156 | BE57: 1.66 | BF57: 0 | BG57: 55.1724138 | BH57: 55.1724138 | BJ57: 1967 | BK57: ='Compile Data'!D553 -> 51.40280156 | BL57: ='Compile Data'!D554 -> 1.74 | BM57: ='Compile Data'!D555 -> 1.66 | BN57: ='Compile Data'!D556 -> 0 | BO57: ='Compile Data'!D557 -> 0 | BP57: ='Compile Data'!D558 -> 0 | BQ57: ='Compile Data'!D559 -> 0 | BR57: ='Compile Data'!D560 -> 0 | BS57: ='Compile Data'!D561 -> 0 | BT57: ='Compile Data'!D562 -> 0 | BU57: ='Compile Data'!D563 -> 27.5862069 | BV57: ='Compile Data'!D564 -> 27.5862069 | BX57: 100.6098604 | BY57: 100.6098604 | BZ57: 109.9752154 | CB57: 3.4 | CC57: 82.7586207 | CD57: 54.80280156 | CE57: 1.66 | CF57: 0 | CG57: 55.1724138 | CH57: 55.1724138 | CJ57: 1967 | CK57: ='Compile Data'!E553 -> 51.40280156 | CL57: ='Compile Data'!E554 -> 4.267063878 | CM57: ='Compile Data'!E555 -> 1.66 | CN57: ='Compile Data'!E556 -> 0 | CO57: ='Compile Data'!E557 -> 0 | CP57: ='Compile Data'!E558 -> 0 | CQ57: ='Compile Data'!E559 -> 0 | CR57: ='Compile Data'!E560 -> 0 | CS57: ='Compile Data'!E561 -> 0 | CT57: ='Compile Data'!E562 -> 0 | CU57: ='Compile Data'!E563 -> 27.5862069 | CV57: ='Compile Data'!E564 -> 0 | CX57: 90.87489314 | CY57: 90.87489314 | CZ57: 84.91607234 | DB57: 5.927063878 | DC57: 55.1724138 | DD57: 57.32986544 | DE57: 1.66 | DF57: 0 | DG57: 27.5862069 | DH57: 45.43744657 | DJ57: 1967 | DK57: ='Compile Data'!F553 -> 51.40280156 | DL57: ='Compile Data'!F554 -> 4.267063878 | DM57: ='Compile Data'!F555 -> 1.66 | DN57: ='Compile Data'!F556 -> 0 | DO57: ='Compile Data'!F557 -> 0 | DP57: ='Compile Data'!F558 -> 0 | DQ57: ='Compile Data'!F559 -> 0 | DR57: ='Compile Data'!F560 -> 0 | DS57: ='Compile Data'!F561 -> 0 | DT57: ='Compile Data'!F562 -> 0 | DU57: ='Compile Data'!F563 -> 27.5862069 | DV57: ='Compile Data'!F564 -> 27.5862069 | DX57: 118.4611 | DY57: 118.4611 | DZ57: 112.5022792 | EB57: 5.927063878 | EC57: 82.7586207 | ED57: 57.32986544 | EE57: 1.66 | EF57: 0 | EG57: 55.1724138 | EH57: 73.02365347
A58: 1925-07-31 | B58: =INDIRECT(CONCATENATE("'",B$1,"'!",B$4,(YEAR($A58)-1921)*12+MONTH($A58)+3+IF(ISNUMBER(FIND("PRV",B$6)),1,0)))*IF(AND(B$3>0,TRIM(B$9)="CFS"),Conv_Flags!$C58,1) -> 0 | C58: =INDIRECT(CONCATENATE("'",C$1,"'!",C$4,(YEAR($A58)-1921)*12+MONTH($A58)+3+IF(ISNUMBER(FIND("PRV",C$6)),1,0)))*IF(AND(C$3>0,TRIM(C$9)="CFS"),Conv_Flags!$C58,1) -> 39.78395266 | D58: =INDIRECT(CONCATENATE("'",D$1,"'!",D$4,(YEAR($A58)-1921)*12+MONTH($A58)+3+IF(ISNUMBER(FIND("PRV",D$6)),1,0)))*IF(AND(D$3>0,TRIM(D$9)="CFS"),Conv_Flags!$C58,1) -> 62.64796577 | E58: =INDIRECT(CONCATENATE("'",E$1,"'!",E$4,(YEAR($A58)-1921)*12+MONTH($A58)+3+IF(ISNUMBER(FIND("PRV",E$6)),1,0)))*IF(AND(E$3>0,TRIM(E$9)="CFS"),Conv_Flags!$C58,1) -> 62.68757376 | F58: =INDIRECT(CONCATENATE("'",F$1,"'!",F$4,(YEAR($A58)-1921)*12+MONTH($A58)+3+IF(ISNUMBER(FIND("PRV",F$6)),1,0)))*IF(AND(F$3>0,TRIM(F$9)="CFS"),Conv_Flags!$C58,1) -> 47.07763016 | J58: 1968 | K58: =B565 -> 0 | L58: =B566 -> 0 | M58: =B567 -> 0 | N58: =B568 -> 0 | O58: =B569 -> 0 | P58: =B570 -> 0 | Q58: =B571 -> 0 | R58: =B572 -> 0 | S58: =B573 -> 0 | T58: =B574 -> 0 | U58: =B575 -> 0 | V58: =B576 -> 0 | X58: 0 | Y58: 0 | Z58: 0 | AB58: 0 | AC58: 0 | AD58: 0 | AE58: 0 | AF58: 0 | AG58: 0 | AH58: 0 | AJ58: 1968 | AK58: ='Compile Data'!C565 -> 27.5862069 | AL58: ='Compile Data'!C566 -> 0 | AM58: ='Compile Data'!C567 -> 17.85123967 | AN58: ='Compile Data'!C568 -> 0 | AO58: ='Compile Data'!C569 -> 0 | AP58: ='Compile Data'!C570 -> 0 | AQ58: ='Compile Data'!C571 -> 0.2244018341 | AR58: ='Compile Data'!C572 -> 0 | AS58: ='Compile Data'!C573 -> 107.3118361 | AT58: ='Compile Data'!C574 -> 49.7518308 | AU58: ='Compile Data'!C575 -> 34.82007282 | AV58: ='Compile Data'!C576 -> 83.62218101 | AX58: 375.8112827 | AY58: 375.8112827 | AZ58: 321.1677692 | BB58: 17.85123967 | BC58: 199.0119742 | BD58: 45.43744657 | BE58: 17.85123967 | BF58: 107.536238 | BG58: 275.5059208 | BH58: 182.0431411 | BJ58: 1968 | BK58: ='Compile Data'!D565 -> 27.5862069 | BL58: ='Compile Data'!D566 -> 0 | BM58: ='Compile Data'!D567 -> 17.85123967 | BN58: ='Compile Data'!D568 -> 0 | BO58: ='Compile Data'!D569 -> 0 | BP58: ='Compile Data'!D570 -> 0 | BQ58: ='Compile Data'!D571 -> 0.2244018345 | BR58: ='Compile Data'!D572 -> 0 | BS58: ='Compile Data'!D573 -> 107.3118361 | BT58: ='Compile Data'!D574 -> 49.74158795 | BU58: ='Compile Data'!D575 -> 34.82007279 | BV58: ='Compile Data'!D576 -> 83.62218101 | BX58: 375.8112826 | BY58: 375.8112826 | BZ58: 321.1575263 | CB58: 17.85123967 | CC58: 199.022217 | CD58: 45.43744657 | CE58: 17.85123967 | CF58: 107.536238 | CG58: 275.4956779 | CH58: 182.0533839 | CJ58: 1968 | CK58: ='Compile Data'!E565 -> 27.5862069 | CL58: ='Compile Data'!E566 -> 17.85123967 | CM58: ='Compile Data'!E567 -> 17.85123967 | CN58: ='Compile Data'!E568 -> 0 | CO58: ='Compile Data'!E569 -> 0 | CP58: ='Compile Data'!E570 -> 0 | CQ58: ='Compile Data'!E571 -> 0.2274537728 | CR58: ='Compile Data'!E572 -> 0 | CS58: ='Compile Data'!E573 -> 107.3118361 | CT58: ='Compile Data'!E574 -> 49.78169225 | CU58: ='Compile Data'!E575 -> 34.82006077 | CV58: ='Compile Data'!E576 -> 83.62218101 | CX58: 375.4747945 | CY58: 375.4747945 | CZ58: 339.0519102 | DB58: 35.70247934 | DC58: 198.6425727 | DD58: 63.28868624 | DE58: 17.85123967 | DF58: 107.5392899 | DG58: 275.5357702 | DH58: 181.6737516 | DJ58: 1968 | DK58: ='Compile Data'!F565 -> 27.5862069 | DL58: ='Compile Data'!F566 -> 17.85123967 | DM58: ='Compile Data'!F567 -> 17.85123967 | DN58: ='Compile Data'!F568 -> 0 | DO58: ='Compile Data'!F569 -> 0 | DP58: ='Compile Data'!F570 -> 0 | DQ58: ='Compile Data'!F571 -> 0.2274286733 | DR58: ='Compile Data'!F572 -> 0 | DS58: ='Compile Data'!F573 -> 107.3118361 | DT58: ='Compile Data'!F574 -> 49.62971791 | DU58: ='Compile Data'!F575 -> 34.82006045 | DV58: ='Compile Data'!F576 -> 83.62218101 | DX58: 375.4775614 | DY58: 375.4775614 | DZ58: 338.8999104 | EB58: 35.70247934 | EC58: 198.797339 | ED58: 63.28868624 | EE58: 17.85123967 | EF58: 107.5392648 | EG58: 275.3837955 | EH58: 181.8285183
